Workbook

Sheet AgroForstRechner

Sheet EM (hidden)
A1: Agroforst-Rechner
A2: Laufzeiten | B2: Gehölzkultur | C2: VS | D2: Ackerkultur
A3: zu betrachtende Gesamtlaufzeit [Jahre] | B3: Wassergehalt für energet. Eigenverwertung | C3: Zinsatz in % | E3: Wiederholung der Fruchtfolge nach Jahren
F4: ERLÖSE | K4: KOSTEN
A5: Umtriebszeit der Gehölze [Jahre] | B5: Gehölzart | C5: Landbaugebiet | D5: Jahr | E5: Fruchtfolge | F5: Erzeugerpreis | G5: Erzeugerpreis (Individualwert) | H5: Ertrag | I5: Ertrag (Individualwert) | J5: Erlös | K5: Saatgut | L5: Saatgut (Individualwert) | M5: Dünger | N5: Dünger (Individualwert) | O5: Pfl.Schutz | P5: Pfl.Schutz (Individualwert) | Q5: Direktkosten | R5: Lohnkosten | S5: Lohnkosten (Individualwert) | T5: Maschinen | U5: Maschinen (Individualwert) | V5: Trocknungskosten (Individualwert) | W5: Arbeitserledigungskosten | X5: Gesamtkosten | Y5: Gewinn
D6: =IF(OR(E4=1,E4=2,E4=3,E4=4,E4=5,E4=6),1,"-") -> - | F6: =IF(OR(D6<>1,E6=""),"",(IF(G6<>"",G6,(IF(E6=DA!A3,DA!I3,IF(E6=DA!A4,DA!I4,IF(E6=DA!A5,DA!I5,IF(E6=DA!A6,DA!I6,IF(E6=DA!A7,DA!I7,IF(E6=DA!A4,DA!I8,IF(E6=DA!A8,DA!I4,IF(E6=DA!A9,DA!I9,IF(E6=DA!A10,DA!I10,IF(E6=DA!A11,DA!I11,IF(E6=DA!A12,DA!I12,IF(E6=DA!A13,DA!I13,IF(E6=DA!A14,DA!I14,IF(E6=DA!A15,DA!I15,IF(E6=DA!A16,DA!I16,IF(E6=DA!A17,DA!I17,IF(E6=DA!A18,DA!I18,IF(E6=DA!A19,DA!I19,IF(E6=DA!A20,DA!I20,IF(E6=DA!A21,DA!I21)))))))))))))))))))))))) ->  | H6: =IF(OR(D6<>1,E6=""),"",(IF(I6<>"",I6,(SUM(IF(EM!C6="LBG I",(IF(EM!E6=DA!A3,DA!J3,IF(EM!E6=DA!A4,DA!J4,IF(EM!E6=DA!A5,DA!J5,IF(EM!E6=DA!A6,DA!J6,IF(EM!E6=DA!A7,DA!J7,IF(EM!E6=DA!A8,DA!J8,IF(EM!E6=DA!A9,DA!J9,IF(EM!E6=DA!A10,DA!J10,IF(EM!E6=DA!A11,DA!J11,IF(EM!E6=DA!A12,DA!J12,IF(EM!E6=DA!A13,DA!J13,IF(EM!E6=DA!A14,DA!J14,IF(EM!E6=DA!A15,DA!J15,IF(EM!E6=DA!A16,DA!J16,IF(EM!E6=DA!A17,DA!J17,IF(EM!E6=DA!A18,DA!J18,IF(EM!E6=DA!A19,DA!J19,IF(EM!E6=DA!A20,DA!J20,IF(EM!E6=DA!A21,DA!J21)))))))))))))))))))),"")&IF(EM!C6="LBG II",(IF(EM!E6=DA!A3,DA!K3,IF(EM!E6=DA!A4,DA!K4,IF(EM!E6=DA!A5,DA!K5,IF(EM!E6=DA!A6,DA!K6,IF(EM!E6=DA!A7,DA!K7,IF(EM!E6=DA!A8,DA!K8,IF(EM!E6=DA!A9,DA!K9,IF(EM!E6=DA!A10,DA!K10,IF(EM!E6=DA!A11,DA!K11,IF(EM!E6=DA!A12,DA!K12,IF(EM!E6=DA!A13,DA!K13,IF(EM!E6=DA!A14,DA!K14,IF(EM!E6=DA!A15,DA!K15,IF(EM!E6=DA!A16,DA!K16,IF(EM!E6=DA!A17,DA!K17,IF(EM!E6=DA!A18,DA!K18,IF(EM!E6=DA!A19,DA!K19,IF(EM!E6=DA!A20,DA!K20,IF(EM!E6=DA!A21,DA!K21)))))))))))))))))))),"")&IF(EM!C6="LBG III",(IF(EM!E6=DA!A3,DA!L3,IF(EM!E6=DA!A4,DA!L4,IF(EM!E6=DA!A5,DA!L5,IF(EM!E6=DA!A6,DA!L6,IF(EM!E6=DA!A7,DA!L7,IF(EM!E6=DA!A8,DA!L8,IF(EM!E6=DA!A9,DA!L9,IF(EM!E6=DA!A10,DA!L10,IF(EM!E6=DA!A11,DA!L11,IF(EM!E6=DA!A12,DA!L12,IF(EM!E6=DA!A13,DA!L13,IF(EM!E6=DA!A14,DA!L14,IF(EM!E6=DA!A15,DA!L15,IF(EM!E6=DA!A16,DA!L16,IF(EM!E6=DA!A17,DA!L17,IF(EM!E6=DA!A18,DA!L18,IF(EM!E6=DA!A19,DA!L19,IF(EM!E6=DA!A20,DA!L20,IF(EM!E6=DA!A21,DA!L21)))))))))))))))))))),"")&IF(EM!C6="LBG IV",(IF(EM!E6=DA!A3,DA!M3,IF(EM!E6=DA!A4,DA!M4,IF(EM!E6=DA!A5,DA!M5,IF(EM!E6=DA!A6,DA!M6,IF(EM!E6=DA!A7,DA!M7,IF(EM!E6=DA!A8,DA!M8,IF(EM!E6=DA!A9,DA!M9,IF(EM!E6=DA!A10,DA!M10,IF(EM!E6=DA!A11,DA!M11,IF(EM!E6=DA!A12,DA!M12,IF(EM!E6=DA!A13,DA!M13,IF(EM!E6=DA!A14,DA!M14,IF(EM!E6=DA!A15,DA!M15,IF(EM!E6=DA!A16,DA!M16,IF(EM!E6=DA!A17,DA!M17,IF(EM!E6=DA!A18,DA!M18,IF(EM!E6=DA!A19,DA!M19,IF(EM!E6=DA!A20,DA!M20,IF(EM!E6=DA!A21,DA!M21)))))))))))))))))))),"")&IF(EM!C6="LBG V",(IF(EM!E6=DA!A3,DA!N3,IF(EM!E6=DA!A4,DA!N4,IF(EM!E6=DA!A5,DA!N5,IF(EM!E6=DA!A6,DA!N6,IF(EM!E6=DA!A7,DA!N7,IF(EM!E6=DA!A8,DA!N8,IF(EM!E6=DA!A9,DA!N9,IF(EM!E6=DA!A10,DA!N10,IF(EM!E6=DA!A11,DA!N11,IF(EM!E6=DA!A12,DA!N12,IF(EM!E6=DA!A13,DA!N13,IF(EM!E6=DA!A14,DA!N14,IF(EM!E6=DA!A15,DA!N15,IF(EM!E6=DA!A16,DA!N16,IF(EM!E6=DA!A17,DA!N17,IF(EM!E6=DA!A18,DA!N18,IF(EM!E6=DA!A19,DA!N19,IF(EM!E6=DA!A20,DA!N20))))))))))))))))))),"")))))) ->  | J6: =IF(OR(D6<>1,E6=""),"",(SUM(F6*H6)+(IF(L13="ja",N13,0))+W21)) ->  | K6: =IF(OR(D6<>1,E6=""),"",(IF(L6<>"",L6,(SUM(IF(EM!C6="LBG I",(IF(EM!E6=DA!A3,DA!AN3,IF(EM!E6=DA!A4,DA!AN4,IF(EM!E6=DA!A5,DA!AN5,IF(EM!E6=DA!A6,DA!AN6,IF(EM!E6=DA!A7,DA!AN7,IF(EM!E6=DA!A8,DA!AN8,IF(EM!E6=DA!A9,DA!AN9,IF(EM!E6=DA!A10,DA!AN10,IF(EM!E6=DA!A11,DA!AN11,IF(EM!E6=DA!A12,DA!AN12,IF(EM!E6=DA!A13,DA!AN13,IF(EM!E6=DA!A14,DA!AN14,IF(EM!E6=DA!A15,DA!AN15,IF(EM!E6=DA!A16,DA!AN16,IF(EM!E6=DA!A17,DA!AN17,IF(EM!E6=DA!A18,DA!AN18,IF(EM!E6=DA!A19,DA!AN19,IF(EM!E6=DA!A20,DA!AN20,IF(EM!E6=DA!A21,DA!AN21)))))))))))))))))))),"")&IF(EM!C6="LBG II",(IF(EM!E6=DA!A3,DA!AO3,IF(EM!E6=DA!A4,DA!AO4,IF(EM!E6=DA!A5,DA!AO5,IF(EM!E6=DA!A6,DA!AO6,IF(EM!E6=DA!A7,DA!AO7,IF(EM!E6=DA!A8,DA!AO8,IF(EM!E6=DA!A9,DA!AO9,IF(EM!E6=DA!A10,DA!AO10,IF(EM!E6=DA!A11,DA!AO11,IF(EM!E6=DA!A12,DA!AO12,IF(EM!E6=DA!A13,DA!AO13,IF(EM!E6=DA!A14,DA!AO14,IF(EM!E6=DA!A15,DA!AO15,IF(EM!E6=DA!A16,DA!AO16,IF(EM!E6=DA!A17,DA!AO17,IF(EM!E6=DA!A18,DA!AO18,IF(EM!E6=DA!A19,DA!AO19,IF(EM!E6=DA!A20,DA!AO20,IF(EM!E6=DA!A21,DA!AO21)))))))))))))))))))),"")&IF(EM!C6="LBG III",(IF(EM!E6=DA!A3,DA!AP3,IF(EM!E6=DA!A4,DA!AP4,IF(EM!E6=DA!A5,DA!AP5,IF(EM!E6=DA!A6,DA!AP6,IF(EM!E6=DA!A7,DA!AP7,IF(EM!E6=DA!A8,DA!AP8,IF(EM!E6=DA!A9,DA!AP9,IF(EM!E6=DA!A10,DA!AP10,IF(EM!E6=DA!A11,DA!AP11,IF(EM!E6=DA!A12,DA!AP12,IF(EM!E6=DA!A13,DA!AP13,IF(EM!E6=DA!A14,DA!AP14,IF(EM!E6=DA!A15,DA!AP15,IF(EM!E6=DA!A16,DA!AP16,IF(EM!E6=DA!A17,DA!AP17,IF(EM!E6=DA!A18,DA!AP18,IF(EM!E6=DA!A19,DA!AP19,IF(EM!E6=DA!A20,DA!AP20,IF(EM!E6=DA!A21,DA!AP21)))))))))))))))))))),"")&IF(EM!C6="LBG IV",(IF(EM!E6=DA!A3,DA!AQ3,IF(EM!E6=DA!A4,DA!AQ4,IF(EM!E6=DA!A5,DA!AQ5,IF(EM!E6=DA!A6,DA!AQ6,IF(EM!E6=DA!A7,DA!AQ7,IF(EM!E6=DA!A8,DA!AQ8,IF(EM!E6=DA!A9,DA!AQ9,IF(EM!E6=DA!A10,DA!AQ10,IF(EM!E6=DA!A11,DA!AQ11,IF(EM!E6=DA!A12,DA!AQ12,IF(EM!E6=DA!A13,DA!AQ13,IF(EM!E6=DA!A14,DA!AQ14,IF(EM!E6=DA!A15,DA!AQ15,IF(EM!E6=DA!A16,DA!AQ16,IF(EM!E6=DA!A17,DA!AQ17,IF(EM!E6=DA!A18,DA!AQ18,IF(EM!E6=DA!A19,DA!AQ19,IF(EM!E6=DA!A20,DA!AQ20,IF(EM!E6=DA!A21,DA!AQ21)))))))))))))))))))),"")&IF(EM!C6="LBG V",(IF(EM!E6=DA!A3,DA!AR3,IF(EM!E6=DA!A4,DA!AR4,IF(EM!E6=DA!A5,DA!AR5,IF(EM!E6=DA!A6,DA!AR6,IF(EM!E6=DA!A7,DA!AR7,IF(EM!E6=DA!A8,DA!AR8,IF(EM!E6=DA!A9,DA!AR9,IF(EM!E6=DA!A10,DA!AR10,IF(EM!E6=DA!A11,DA!AR11,IF(EM!E6=DA!A12,DA!AR12,IF(EM!E6=DA!A13,DA!AR13,IF(EM!E6=DA!A14,DA!AR14,IF(EM!E6=DA!A15,DA!AR15,IF(EM!E6=DA!A16,DA!AR16,IF(EM!E6=DA!A17,DA!AR17,IF(EM!E6=DA!A18,DA!AR18,IF(EM!E6=DA!A19,DA!AR19,IF(EM!E6=DA!A20,DA!AR20))))))))))))))))))),"")))))) ->  | M6: =IF(OR(D6<>1,E6=""),"",(IF(N6<>"",N6,(SUM(IF(EM!C6="LBG I",(IF(EM!E6=DA!A3,DA!AS3,IF(EM!E6=DA!A4,DA!AS4,IF(EM!E6=DA!A5,DA!AS5,IF(EM!E6=DA!A6,DA!AS6,IF(EM!E6=DA!A7,DA!AS7,IF(EM!E6=DA!A8,DA!AS8,IF(EM!E6=DA!A9,DA!AS9,IF(EM!E6=DA!A10,DA!AS10,IF(EM!E6=DA!A11,DA!AS11,IF(EM!E6=DA!A12,DA!AS12,IF(EM!E6=DA!A13,DA!AS13,IF(EM!E6=DA!A14,DA!AS14,IF(EM!E6=DA!A15,DA!AS15,IF(EM!E6=DA!A16,DA!AS16,IF(EM!E6=DA!A17,DA!AS17,IF(EM!E6=DA!A18,DA!AS18,IF(EM!E6=DA!A19,DA!AS19,IF(EM!E6=DA!A20,DA!AS20,IF(EM!E6=DA!A21,DA!AS21)))))))))))))))))))),"")&IF(EM!C6="LBG II",(IF(EM!E6=DA!A3,DA!AT3,IF(EM!E6=DA!A4,DA!AT4,IF(EM!E6=DA!A5,DA!AT5,IF(EM!E6=DA!A6,DA!AT6,IF(EM!E6=DA!A7,DA!AT7,IF(EM!E6=DA!A8,DA!AT8,IF(EM!E6=DA!A9,DA!AT9,IF(EM!E6=DA!A10,DA!AT10,IF(EM!E6=DA!A11,DA!AT11,IF(EM!E6=DA!A12,DA!AT12,IF(EM!E6=DA!A13,DA!AT13,IF(EM!E6=DA!A14,DA!AT14,IF(EM!E6=DA!A15,DA!AT15,IF(EM!E6=DA!A16,DA!AT16,IF(EM!E6=DA!A17,DA!AT17,IF(EM!E6=DA!A18,DA!AT18,IF(EM!E6=DA!A19,DA!AT19,IF(EM!E6=DA!A20,DA!AT20,IF(EM!E6=DA!A21,DA!AT21)))))))))))))))))))),"")&IF(EM!C6="LBG III",(IF(EM!E6=DA!A3,DA!AU3,IF(EM!E6=DA!A4,DA!AU4,IF(EM!E6=DA!A5,DA!AU5,IF(EM!E6=DA!A6,DA!AU6,IF(EM!E6=DA!A7,DA!AU7,IF(EM!E6=DA!A8,DA!AU8,IF(EM!E6=DA!A9,DA!AU9,IF(EM!E6=DA!A10,DA!AU10,IF(EM!E6=DA!A11,DA!AU11,IF(EM!E6=DA!A12,DA!AU12,IF(EM!E6=DA!A13,DA!AU13,IF(EM!E6=DA!A14,DA!AU14,IF(EM!E6=DA!A15,DA!AU15,IF(EM!E6=DA!A16,DA!AU16,IF(EM!E6=DA!A17,DA!AU17,IF(EM!E6=DA!A18,DA!AU18,IF(EM!E6=DA!A19,DA!AU19,IF(EM!E6=DA!A20,DA!AU20,IF(EM!E6=DA!A21,DA!AU21)))))))))))))))))))),"")&IF(EM!C6="LBG IV",(IF(EM!E6=DA!A3,DA!AV3,IF(EM!E6=DA!A4,DA!AV4,IF(EM!E6=DA!A5,DA!AV5,IF(EM!E6=DA!A6,DA!AV6,IF(EM!E6=DA!A7,DA!AV7,IF(EM!E6=DA!A8,DA!AV8,IF(EM!E6=DA!A9,DA!AV9,IF(EM!E6=DA!A10,DA!AV10,IF(EM!E6=DA!A11,DA!AV11,IF(EM!E6=DA!A12,DA!AV12,IF(EM!E6=DA!A13,DA!AV13,IF(EM!E6=DA!A14,DA!AV14,IF(EM!E6=DA!A15,DA!AV15,IF(EM!E6=DA!A16,DA!AV16,IF(EM!E6=DA!A17,DA!AV17,IF(EM!E6=DA!A18,DA!AV18,IF(EM!E6=DA!A19,DA!AV19,IF(EM!E6=DA!A20,DA!AV20,IF(EM!E6=DA!A21,DA!AV21)))))))))))))))))))),"")&IF(EM!C6="LBG V",(IF(EM!E6=DA!A3,DA!AW3,IF(EM!E6=DA!A4,DA!AW4,IF(EM!E6=DA!A5,DA!AW5,IF(EM!E6=DA!A6,DA!AW6,IF(EM!E6=DA!A7,DA!AW7,IF(EM!E6=DA!A8,DA!AW8,IF(EM!E6=DA!A9,DA!AW9,IF(EM!E6=DA!A10,DA!AW10,IF(EM!E6=DA!A11,DA!AW11,IF(EM!E6=DA!A12,DA!AW12,IF(EM!E6=DA!A13,DA!AW13,IF(EM!E6=DA!A14,DA!AW14,IF(EM!E6=DA!A15,DA!AW15,IF(EM!E6=DA!A16,DA!AW16,IF(EM!E6=DA!A17,DA!AW17,IF(EM!E6=DA!A18,DA!AW18,IF(EM!E6=DA!A19,DA!AW19,IF(EM!E6=DA!A20,DA!AW20))))))))))))))))))),"")))))) ->  | O6: =IF(OR(D6<>1,E6=""),"",(IF(P6<>"",P6,(SUM(IF(EM!C6="LBG I",(IF(EM!E6=DA!A3,DA!AX3,IF(EM!E6=DA!A4,DA!AX4,IF(EM!E6=DA!A5,DA!AX5,IF(EM!E6=DA!A6,DA!AX6,IF(EM!E6=DA!A7,DA!AX7,IF(EM!E6=DA!A8,DA!AX8,IF(EM!E6=DA!A9,DA!AX9,IF(EM!E6=DA!A10,DA!AX10,IF(EM!E6=DA!A11,DA!AX11,IF(EM!E6=DA!A12,DA!AX12,IF(EM!E6=DA!A13,DA!AX13,IF(EM!E6=DA!A14,DA!AX14,IF(EM!E6=DA!A15,DA!AX15,IF(EM!E6=DA!A16,DA!AX16,IF(EM!E6=DA!A17,DA!AX17,IF(EM!E6=DA!A18,DA!AX18,IF(EM!E6=DA!A19,DA!AX19,IF(EM!E6=DA!A20,DA!AX20,IF(EM!E6=DA!A21,DA!AX21)))))))))))))))))))),"")&IF(EM!C6="LBG II",(IF(EM!E6=DA!A3,DA!AY3,IF(EM!E6=DA!A4,DA!AY4,IF(EM!E6=DA!A5,DA!AY5,IF(EM!E6=DA!A6,DA!AY6,IF(EM!E6=DA!A7,DA!AY7,IF(EM!E6=DA!A8,DA!AY8,IF(EM!E6=DA!A9,DA!AY9,IF(EM!E6=DA!A10,DA!AY10,IF(EM!E6=DA!A11,DA!AY11,IF(EM!E6=DA!A12,DA!AY12,IF(EM!E6=DA!A13,DA!AY13,IF(EM!E6=DA!A14,DA!AY14,IF(EM!E6=DA!A15,DA!AY15,IF(EM!E6=DA!A16,DA!AY16,IF(EM!E6=DA!A17,DA!AY17,IF(EM!E6=DA!A18,DA!AY18,IF(EM!E6=DA!A19,DA!AY19,IF(EM!E6=DA!A20,DA!AY20,IF(EM!E6=DA!A21,DA!AY21)))))))))))))))))))),"")&IF(EM!C6="LBG III",(IF(EM!E6=DA!A3,DA!AZ3,IF(EM!E6=DA!A4,DA!AZ4,IF(EM!E6=DA!A5,DA!AZ5,IF(EM!E6=DA!A6,DA!AZ6,IF(EM!E6=DA!A7,DA!AZ7,IF(EM!E6=DA!A8,DA!AZ8,IF(EM!E6=DA!A9,DA!AZ9,IF(EM!E6=DA!A10,DA!AZ10,IF(EM!E6=DA!A11,DA!AZ11,IF(EM!E6=DA!A12,DA!AZ12,IF(EM!E6=DA!A13,DA!AZ13,IF(EM!E6=DA!A14,DA!AZ14,IF(EM!E6=DA!A15,DA!AZ15,IF(EM!E6=DA!A16,DA!AZ16,IF(EM!E6=DA!A17,DA!AZ17,IF(EM!E6=DA!A18,DA!AZ18,IF(EM!E6=DA!A19,DA!AZ19,IF(EM!E6=DA!A20,DA!AZ20,IF(EM!E6=DA!A21,DA!AZ21)))))))))))))))))))),"")&IF(EM!C6="LBG IV",(IF(EM!E6=DA!A3,DA!BA3,IF(EM!E6=DA!A4,DA!BA4,IF(EM!E6=DA!A5,DA!BA5,IF(EM!E6=DA!A6,DA!BA6,IF(EM!E6=DA!A7,DA!BA7,IF(EM!E6=DA!A8,DA!BA8,IF(EM!E6=DA!A9,DA!BA9,IF(EM!E6=DA!A10,DA!BA10,IF(EM!E6=DA!A11,DA!BA11,IF(EM!E6=DA!A12,DA!BA12,IF(EM!E6=DA!A13,DA!BA13,IF(EM!E6=DA!A14,DA!BA14,IF(EM!E6=DA!A15,DA!BA15,IF(EM!E6=DA!A16,DA!BA16,IF(EM!E6=DA!A17,DA!BA17,IF(EM!E6=DA!A18,DA!BA18,IF(EM!E6=DA!A19,DA!BA19,IF(EM!E6=DA!A20,DA!BA20,IF(EM!E6=DA!A21,DA!BA21)))))))))))))))))))),"")&IF(EM!C6="LBG V",(IF(EM!E6=DA!A3,DA!BB3,IF(EM!E6=DA!A4,DA!BB4,IF(EM!E6=DA!A5,DA!BB5,IF(EM!E6=DA!A6,DA!BB6,IF(EM!E6=DA!A7,DA!BB7,IF(EM!E6=DA!A8,DA!BB8,IF(EM!E6=DA!A9,DA!BB9,IF(EM!E6=DA!A10,DA!BB10,IF(EM!E6=DA!A11,DA!BB11,IF(EM!E6=DA!A12,DA!BB12,IF(EM!E6=DA!A13,DA!BB13,IF(EM!E6=DA!A14,DA!BB14,IF(EM!E6=DA!A15,DA!BB15,IF(EM!E6=DA!A16,DA!BB16,IF(EM!E6=DA!A17,DA!BB17,IF(EM!E6=DA!A18,DA!BB18,IF(EM!E6=DA!A19,DA!BB19,IF(EM!E6=DA!A20,DA!BB20))))))))))))))))))),"")))))) ->  | Q6: =IF(OR(D6<>1,E6=""),"",(SUM(K6+M6+O6+M13))) ->  | R6: =IF(OR(D6<>1,E6=""),"",(IF(S6<>"",S6,(SUM(IF(EM!C6="LBG I",(IF(EM!E6=DA!A3,DA!BH3,IF(EM!E6=DA!A4,DA!BH4,IF(EM!E6=DA!A5,DA!BH5,IF(EM!E6=DA!A6,DA!BH6,IF(EM!E6=DA!A7,DA!BH7,IF(EM!E6=DA!A8,DA!BH8,IF(EM!E6=DA!A9,DA!BH9,IF(EM!E6=DA!A10,DA!BH10,IF(EM!E6=DA!A11,DA!BH11,IF(EM!E6=DA!A12,DA!BH12,IF(EM!E6=DA!A13,DA!BH13,IF(EM!E6=DA!A14,DA!BH14,IF(EM!E6=DA!A15,DA!BH15,IF(EM!E6=DA!A16,DA!BH16,IF(EM!E6=DA!A17,DA!BH17,IF(EM!E6=DA!A18,DA!BH18,IF(EM!E6=DA!A19,DA!BH19,IF(EM!E6=DA!A20,DA!BH20,IF(EM!E6=DA!A21,DA!BH21)))))))))))))))))))),"")&IF(EM!C6="LBG II",(IF(EM!E6=DA!A3,DA!BI3,IF(EM!E6=DA!A4,DA!BI4,IF(EM!E6=DA!A5,DA!BI5,IF(EM!E6=DA!A6,DA!BI6,IF(EM!E6=DA!A7,DA!BI7,IF(EM!E6=DA!A8,DA!BI8,IF(EM!E6=DA!A9,DA!BI9,IF(EM!E6=DA!A10,DA!BI10,IF(EM!E6=DA!A11,DA!BI11,IF(EM!E6=DA!A12,DA!BI12,IF(EM!E6=DA!A13,DA!BI13,IF(EM!E6=DA!A14,DA!BI14,IF(EM!E6=DA!A15,DA!BI15,IF(EM!E6=DA!A16,DA!BI16,IF(EM!E6=DA!A17,DA!BI17,IF(EM!E6=DA!A18,DA!BI18,IF(EM!E6=DA!A19,DA!BI19,IF(EM!E6=DA!A20,DA!BI20,IF(EM!E6=DA!A21,DA!BI21)))))))))))))))))))),"")&IF(EM!C6="LBG III",(IF(EM!E6=DA!A3,DA!BJ3,IF(EM!E6=DA!A4,DA!BJ4,IF(EM!E6=DA!A5,DA!BJ5,IF(EM!E6=DA!A6,DA!BJ6,IF(EM!E6=DA!A7,DA!BJ7,IF(EM!E6=DA!A8,DA!BJ8,IF(EM!E6=DA!A9,DA!BJ9,IF(EM!E6=DA!A10,DA!BJ10,IF(EM!E6=DA!A11,DA!BJ11,IF(EM!E6=DA!A12,DA!BJ12,IF(EM!E6=DA!A13,DA!BJ13,IF(EM!E6=DA!A14,DA!BJ14,IF(EM!E6=DA!A15,DA!BJ15,IF(EM!E6=DA!A16,DA!BJ16,IF(EM!E6=DA!A17,DA!BJ17,IF(EM!E6=DA!A18,DA!BJ18,IF(EM!E6=DA!A19,DA!BJ19,IF(EM!E6=DA!A20,DA!BJ20,IF(EM!E6=DA!A21,DA!BJ21)))))))))))))))))))),"")&IF(EM!C6="LBG IV",(IF(EM!E6=DA!A3,DA!BK3,IF(EM!E6=DA!A4,DA!BK4,IF(EM!E6=DA!A5,DA!BK5,IF(EM!E6=DA!A6,DA!BK6,IF(EM!E6=DA!A7,DA!BK7,IF(EM!E6=DA!A8,DA!BK8,IF(EM!E6=DA!A9,DA!BK9,IF(EM!E6=DA!A10,DA!BK10,IF(EM!E6=DA!A11,DA!BK11,IF(EM!E6=DA!A12,DA!BK12,IF(EM!E6=DA!A13,DA!BK13,IF(EM!E6=DA!A14,DA!BK14,IF(EM!E6=DA!A15,DA!BK15,IF(EM!E6=DA!A16,DA!BK16,IF(EM!E6=DA!A17,DA!BK17,IF(EM!E6=DA!A18,DA!BK18,IF(EM!E6=DA!A19,DA!BK19,IF(EM!E6=DA!A20,DA!BK20,IF(EM!E6=DA!A21,DA!BK21)))))))))))))))))))),"")&IF(EM!C6="LBG V",(IF(EM!E6=DA!A3,DA!BL3,IF(EM!E6=DA!A4,DA!BL4,IF(EM!E6=DA!A5,DA!BL5,IF(EM!E6=DA!A6,DA!BL6,IF(EM!E6=DA!A7,DA!BL7,IF(EM!E6=DA!A8,DA!BL8,IF(EM!E6=DA!A9,DA!BL9,IF(EM!E6=DA!A10,DA!BL10,IF(EM!E6=DA!A11,DA!BL11,IF(EM!E6=DA!A12,DA!BL12,IF(EM!E6=DA!A13,DA!BL13,IF(EM!E6=DA!A14,DA!BL14,IF(EM!E6=DA!A15,DA!BL15,IF(EM!E6=DA!A16,DA!BL16,IF(EM!E6=DA!A17,DA!BL17,IF(EM!E6=DA!A18,DA!BL18,IF(EM!E6=DA!A19,DA!BL19,IF(EM!E6=DA!A20,DA!BL20))))))))))))))))))),"")))))) ->  | T6: =IF(OR(D6<>1,E6=""),"",(IF(U6<>"",U6,(SUM(IF(EM!C6="LBG I",(IF(EM!E6=DA!A3,DA!BC3,IF(EM!E6=DA!A4,DA!BC4,IF(EM!E6=DA!A5,DA!BC5,IF(EM!E6=DA!A6,DA!BC6,IF(EM!E6=DA!A7,DA!BC7,IF(EM!E6=DA!A8,DA!BC8,IF(EM!E6=DA!A9,DA!BC9,IF(EM!E6=DA!A10,DA!BC10,IF(EM!E6=DA!A11,DA!BC11,IF(EM!E6=DA!A12,DA!BC12,IF(EM!E6=DA!A13,DA!BC13,IF(EM!E6=DA!A14,DA!BC14,IF(EM!E6=DA!A15,DA!BC15,IF(EM!E6=DA!A16,DA!BC16,IF(EM!E6=DA!A17,DA!BC17,IF(EM!E6=DA!A18,DA!BC18,IF(EM!E6=DA!A19,DA!BC19,IF(EM!E6=DA!A20,DA!BC20,IF(EM!E6=DA!A21,DA!BC21)))))))))))))))))))),"")&IF(EM!C6="LBG II",(IF(EM!E6=DA!A3,DA!BD3,IF(EM!E6=DA!A4,DA!BD4,IF(EM!E6=DA!A5,DA!BD5,IF(EM!E6=DA!A6,DA!BD6,IF(EM!E6=DA!A7,DA!BD7,IF(EM!E6=DA!A8,DA!BD8,IF(EM!E6=DA!A9,DA!BD9,IF(EM!E6=DA!A10,DA!BD10,IF(EM!E6=DA!A11,DA!BD11,IF(EM!E6=DA!A12,DA!BD12,IF(EM!E6=DA!A13,DA!BD13,IF(EM!E6=DA!A14,DA!BD14,IF(EM!E6=DA!A15,DA!BD15,IF(EM!E6=DA!A16,DA!BD16,IF(EM!E6=DA!A17,DA!BD17,IF(EM!E6=DA!A18,DA!BD18,IF(EM!E6=DA!A19,DA!BD19,IF(EM!E6=DA!A20,DA!BD20,IF(EM!E6=DA!A21,DA!BD21)))))))))))))))))))),"")&IF(EM!C6="LBG III",(IF(EM!E6=DA!A3,DA!BE3,IF(EM!E6=DA!A4,DA!BE4,IF(EM!E6=DA!A5,DA!BE5,IF(EM!E6=DA!A6,DA!BE6,IF(EM!E6=DA!A7,DA!BE7,IF(EM!E6=DA!A8,DA!BE8,IF(EM!E6=DA!A9,DA!BE9,IF(EM!E6=DA!A10,DA!BE10,IF(EM!E6=DA!A11,DA!BE11,IF(EM!E6=DA!A12,DA!BE12,IF(EM!E6=DA!A13,DA!BE13,IF(EM!E6=DA!A14,DA!BE14,IF(EM!E6=DA!A15,DA!BE15,IF(EM!E6=DA!A16,DA!BE16,IF(EM!E6=DA!A17,DA!BE17,IF(EM!E6=DA!A18,DA!BE18,IF(EM!E6=DA!A19,DA!BE19,IF(EM!E6=DA!A20,DA!BE20,IF(EM!E6=DA!A21,DA!BE21)))))))))))))))))))),"")&IF(EM!C6="LBG IV",(IF(EM!E6=DA!A3,DA!BF3,IF(EM!E6=DA!A4,DA!BF4,IF(EM!E6=DA!A5,DA!BF5,IF(EM!E6=DA!A6,DA!BF6,IF(EM!E6=DA!A7,DA!BF7,IF(EM!E6=DA!A8,DA!BF8,IF(EM!E6=DA!A9,DA!BF9,IF(EM!E6=DA!A10,DA!BF10,IF(EM!E6=DA!A11,DA!BF11,IF(EM!E6=DA!A12,DA!BF12,IF(EM!E6=DA!A13,DA!BF13,IF(EM!E6=DA!A14,DA!BF14,IF(EM!E6=DA!A15,DA!BF15,IF(EM!E6=DA!A16,DA!BF16,IF(EM!E6=DA!A17,DA!BF17,IF(EM!E6=DA!A18,DA!BF18,IF(EM!E6=DA!A19,DA!BF19,IF(EM!E6=DA!A20,DA!BF20,IF(EM!E6=DA!A21,DA!BF21)))))))))))))))))))),"")&IF(EM!C6="LBG V",(IF(EM!E6=DA!A3,DA!BG3,IF(EM!E6=DA!A4,DA!BG4,IF(EM!E6=DA!A5,DA!BG5,IF(EM!E6=DA!A6,DA!BG6,IF(EM!E6=DA!A7,DA!BG7,IF(EM!E6=DA!A8,DA!BG8,IF(EM!E6=DA!A9,DA!BG9,IF(EM!E6=DA!A10,DA!BG10,IF(EM!E6=DA!A11,DA!BG11,IF(EM!E6=DA!A12,DA!BG12,IF(EM!E6=DA!A13,DA!BG13,IF(EM!E6=DA!A14,DA!BG14,IF(EM!E6=DA!A15,DA!BG15,IF(EM!E6=DA!A16,DA!BG16,IF(EM!E6=DA!A17,DA!BG17,IF(EM!E6=DA!A18,DA!BG18,IF(EM!E6=DA!A19,DA!BG19,IF(EM!E6=DA!A20,DA!BG20))))))))))))))))))),"")))))) ->  | W6: =IF(OR(D6<>1,E6=""),"",(SUM(R6,T6)*(IF(A20=0,1,IF(A20=5,1.05,IF(A20=10,1.1))))+(IF(V6<>"",V6)))) ->  | X6: =IF(OR(D6<>1,E6=""),"",(SUM(Q6,W6)+V21)) ->  | Y6: =IF(OR(D6<>1,E6=""),"",((J6-X6))) -> 
A7: Rotationen der Ackerfrüchte [Jahre] | B7: Wassergehalt für Verkauf | D7: =IF(OR(E4=2,E4=3,E4=4,E4=5,E4=6),2,"-") -> - | F7: =IF(OR(D7<>2,E7=""),"",(IF(G7<>"",G7,(IF(E7=DA!A3,DA!I3,IF(E7=DA!A4,DA!I4,IF(E7=DA!A5,DA!I5,IF(E7=DA!A6,DA!I6,IF(E7=DA!A7,DA!I7,IF(E7=DA!A4,DA!I8,IF(E7=DA!A8,DA!I4,IF(E7=DA!A9,DA!I9,IF(E7=DA!A10,DA!I10,IF(E7=DA!A11,DA!I11,IF(E7=DA!A12,DA!I12,IF(E7=DA!A13,DA!I13,IF(E7=DA!A14,DA!I14,IF(E7=DA!A15,DA!I15,IF(E7=DA!A16,DA!I16,IF(E7=DA!A17,DA!I17,IF(E7=DA!A18,DA!I18,IF(E7=DA!A19,DA!I19,IF(E7=DA!A20,DA!I20,IF(E7=DA!A21,DA!I21)))))))))))))))))))))))) ->  | H7: =IF(OR(D7<>2,E7=""),"",(IF(I7<>"",I7,(SUM(IF(EM!C6="LBG I",(IF(EM!E7=DA!A3,DA!J3,IF(EM!E7=DA!A4,DA!J4,IF(EM!E7=DA!A5,DA!J5,IF(EM!E7=DA!A6,DA!J6,IF(EM!E7=DA!A7,DA!J7,IF(EM!E7=DA!A8,DA!J8,IF(EM!E7=DA!A9,DA!J9,IF(EM!E7=DA!A10,DA!J10,IF(EM!E7=DA!A11,DA!J11,IF(EM!E7=DA!A12,DA!J12,IF(EM!E7=DA!A13,DA!J13,IF(EM!E7=DA!A14,DA!J14,IF(EM!E7=DA!A15,DA!J15,IF(EM!E7=DA!A16,DA!J16,IF(EM!E7=DA!A17,DA!J17,IF(EM!E7=DA!A18,DA!J18,IF(EM!E7=DA!A19,DA!J19,IF(EM!E7=DA!A20,DA!J20,IF(EM!E7=DA!A21,DA!J21)))))))))))))))))))),"")&IF(EM!C6="LBG II",(IF(EM!E7=DA!A3,DA!K3,IF(EM!E7=DA!A4,DA!K4,IF(EM!E7=DA!A5,DA!K5,IF(EM!E7=DA!A6,DA!K6,IF(EM!E7=DA!A7,DA!K7,IF(EM!E7=DA!A8,DA!K8,IF(EM!E7=DA!A9,DA!K9,IF(EM!E7=DA!A10,DA!K10,IF(EM!E7=DA!A11,DA!K11,IF(EM!E7=DA!A12,DA!K12,IF(EM!E7=DA!A13,DA!K13,IF(EM!E7=DA!A14,DA!K14,IF(EM!E7=DA!A15,DA!K15,IF(EM!E7=DA!A16,DA!K16,IF(EM!E7=DA!A17,DA!K17,IF(EM!E7=DA!A18,DA!K18,IF(EM!E7=DA!A19,DA!K19,IF(EM!E7=DA!A20,DA!K20,IF(EM!E7=DA!A21,DA!K21)))))))))))))))))))),"")&IF(EM!C6="LBG III",(IF(EM!E7=DA!A3,DA!L3,IF(EM!E7=DA!A4,DA!L4,IF(EM!E7=DA!A5,DA!L5,IF(EM!E7=DA!A6,DA!L6,IF(EM!E7=DA!A7,DA!L7,IF(EM!E7=DA!A8,DA!L8,IF(EM!E7=DA!A9,DA!L9,IF(EM!E7=DA!A10,DA!L10,IF(EM!E7=DA!A11,DA!L11,IF(EM!E7=DA!A12,DA!L12,IF(EM!E7=DA!A13,DA!L13,IF(EM!E7=DA!A14,DA!L14,IF(EM!E7=DA!A15,DA!L15,IF(EM!E7=DA!A16,DA!L16,IF(EM!E7=DA!A17,DA!L17,IF(EM!E7=DA!A18,DA!L18,IF(EM!E7=DA!A19,DA!L19,IF(EM!E7=DA!A20,DA!L20,IF(EM!E7=DA!A21,DA!L21)))))))))))))))))))),"")&IF(EM!C6="LBG IV",(IF(EM!E7=DA!A3,DA!M3,IF(EM!E7=DA!A4,DA!M4,IF(EM!E7=DA!A5,DA!M5,IF(EM!E7=DA!A6,DA!M6,IF(EM!E7=DA!A7,DA!M7,IF(EM!E7=DA!A8,DA!M8,IF(EM!E7=DA!A9,DA!M9,IF(EM!E7=DA!A10,DA!M10,IF(EM!E7=DA!A11,DA!M11,IF(EM!E7=DA!A12,DA!M12,IF(EM!E7=DA!A13,DA!M13,IF(EM!E7=DA!A14,DA!M14,IF(EM!E7=DA!A15,DA!M15,IF(EM!E7=DA!A16,DA!M16,IF(EM!E7=DA!A17,DA!M17,IF(EM!E7=DA!A18,DA!M18,IF(EM!E7=DA!A19,DA!M19,IF(EM!E7=DA!A20,DA!M20,IF(EM!E7=DA!A21,DA!M21)))))))))))))))))))),"")&IF(EM!C6="LBG V",(IF(EM!E7=DA!A3,DA!N3,IF(EM!E7=DA!A4,DA!N4,IF(EM!E7=DA!A5,DA!N5,IF(EM!E7=DA!A6,DA!N6,IF(EM!E7=DA!A7,DA!N7,IF(EM!E7=DA!A8,DA!N8,IF(EM!E7=DA!A9,DA!N9,IF(EM!E7=DA!A10,DA!N10,IF(EM!E7=DA!A11,DA!N11,IF(EM!E7=DA!A12,DA!N12,IF(EM!E7=DA!A13,DA!N13,IF(EM!E7=DA!A14,DA!N14,IF(EM!E7=DA!A15,DA!N15,IF(EM!E7=DA!A16,DA!N16,IF(EM!E7=DA!A17,DA!N17,IF(EM!E7=DA!A18,DA!N18,IF(EM!E7=DA!A19,DA!N19,IF(EM!E7=DA!A20,DA!N20))))))))))))))))))),"")))))) ->  | J7: =IF(OR(D7<>2,E7=""),"",(SUM(F7*H7)+(IF(L14="ja",N14,0))+W22)) ->  | K7: =IF(OR(D7<>2,E7=""),"",(IF(L7<>"",L7,(SUM(IF(EM!C6="LBG I",(IF(EM!E7=DA!A3,DA!AN3,IF(EM!E7=DA!A4,DA!AN4,IF(EM!E7=DA!A5,DA!AN5,IF(EM!E7=DA!A6,DA!AN6,IF(EM!E7=DA!A7,DA!AN7,IF(EM!E7=DA!A8,DA!AN8,IF(EM!E7=DA!A9,DA!AN9,IF(EM!E7=DA!A10,DA!AN10,IF(EM!E7=DA!A11,DA!AN11,IF(EM!E7=DA!A12,DA!AN12,IF(EM!E7=DA!A13,DA!AN13,IF(EM!E7=DA!A14,DA!AN14,IF(EM!E7=DA!A15,DA!AN15,IF(EM!E7=DA!A16,DA!AN16,IF(EM!E7=DA!A17,DA!AN17,IF(EM!E7=DA!A18,DA!AN18,IF(EM!E7=DA!A19,DA!AN19,IF(EM!E7=DA!A20,DA!AN20,IF(EM!E7=DA!A21,DA!AN21)))))))))))))))))))),"")&IF(EM!C6="LBG II",(IF(EM!E7=DA!A3,DA!AO3,IF(EM!E7=DA!A4,DA!AO4,IF(EM!E7=DA!A5,DA!AO5,IF(EM!E7=DA!A6,DA!AO6,IF(EM!E7=DA!A7,DA!AO7,IF(EM!E7=DA!A8,DA!AO8,IF(EM!E7=DA!A9,DA!AO9,IF(EM!E7=DA!A10,DA!AO10,IF(EM!E7=DA!A11,DA!AO11,IF(EM!E7=DA!A12,DA!AO12,IF(EM!E7=DA!A13,DA!AO13,IF(EM!E7=DA!A14,DA!AO14,IF(EM!E7=DA!A15,DA!AO15,IF(EM!E7=DA!A16,DA!AO16,IF(EM!E7=DA!A17,DA!AO17,IF(EM!E7=DA!A18,DA!AO18,IF(EM!E7=DA!A19,DA!AO19,IF(EM!E7=DA!A20,DA!AO20,IF(EM!E7=DA!A21,DA!AO21)))))))))))))))))))),"")&IF(EM!C6="LBG III",(IF(EM!E7=DA!A3,DA!AP3,IF(EM!E7=DA!A4,DA!AP4,IF(EM!E7=DA!A5,DA!AP5,IF(EM!E7=DA!A6,DA!AP6,IF(EM!E7=DA!A7,DA!AP7,IF(EM!E7=DA!A8,DA!AP8,IF(EM!E7=DA!A9,DA!AP9,IF(EM!E7=DA!A10,DA!AP10,IF(EM!E7=DA!A11,DA!AP11,IF(EM!E7=DA!A12,DA!AP12,IF(EM!E7=DA!A13,DA!AP13,IF(EM!E7=DA!A14,DA!AP14,IF(EM!E7=DA!A15,DA!AP15,IF(EM!E7=DA!A16,DA!AP16,IF(EM!E7=DA!A17,DA!AP17,IF(EM!E7=DA!A18,DA!AP18,IF(EM!E7=DA!A19,DA!AP19,IF(EM!E7=DA!A20,DA!AP20,IF(EM!E7=DA!A21,DA!AP21)))))))))))))))))))),"")&IF(EM!C6="LBG IV",(IF(EM!E7=DA!A3,DA!AQ3,IF(EM!E7=DA!A4,DA!AQ4,IF(EM!E7=DA!A5,DA!AQ5,IF(EM!E7=DA!A6,DA!AQ6,IF(EM!E7=DA!A7,DA!AQ7,IF(EM!E7=DA!A8,DA!AQ8,IF(EM!E7=DA!A9,DA!AQ9,IF(EM!E7=DA!A10,DA!AQ10,IF(EM!E7=DA!A11,DA!AQ11,IF(EM!E7=DA!A12,DA!AQ12,IF(EM!E7=DA!A13,DA!AQ13,IF(EM!E7=DA!A14,DA!AQ14,IF(EM!E7=DA!A15,DA!AQ15,IF(EM!E7=DA!A16,DA!AQ16,IF(EM!E7=DA!A17,DA!AQ17,IF(EM!E7=DA!A18,DA!AQ18,IF(EM!E7=DA!A19,DA!AQ19,IF(EM!E7=DA!A20,DA!AQ20,IF(EM!E7=DA!A21,DA!AQ21)))))))))))))))))))),"")&IF(EM!C6="LBG V",(IF(EM!E7=DA!A3,DA!AR3,IF(EM!E7=DA!A4,DA!AR4,IF(EM!E7=DA!A5,DA!AR5,IF(EM!E7=DA!A6,DA!AR6,IF(EM!E7=DA!A7,DA!AR7,IF(EM!E7=DA!A8,DA!AR8,IF(EM!E7=DA!A9,DA!AR9,IF(EM!E7=DA!A10,DA!AR10,IF(EM!E7=DA!A11,DA!AR11,IF(EM!E7=DA!A12,DA!AR12,IF(EM!E7=DA!A13,DA!AR13,IF(EM!E7=DA!A14,DA!AR14,IF(EM!E7=DA!A15,DA!AR15,IF(EM!E7=DA!A16,DA!AR16,IF(EM!E7=DA!A17,DA!AR17,IF(EM!E7=DA!A18,DA!AR18,IF(EM!E7=DA!A19,DA!AR19,IF(EM!E7=DA!A20,DA!AR20))))))))))))))))))),"")))))) ->  | M7: =IF(OR(D7<>2,E7=""),"",(IF(N7<>"",N7,(SUM(IF(EM!C6="LBG I",(IF(EM!E7=DA!A3,DA!AS3,IF(EM!E7=DA!A4,DA!AS4,IF(EM!E7=DA!A5,DA!AS5,IF(EM!E7=DA!A6,DA!AS6,IF(EM!E7=DA!A7,DA!AS7,IF(EM!E7=DA!A8,DA!AS8,IF(EM!E7=DA!A9,DA!AS9,IF(EM!E7=DA!A10,DA!AS10,IF(EM!E7=DA!A11,DA!AS11,IF(EM!E7=DA!A12,DA!AS12,IF(EM!E7=DA!A13,DA!AS13,IF(EM!E7=DA!A14,DA!AS14,IF(EM!E7=DA!A15,DA!AS15,IF(EM!E7=DA!A16,DA!AS16,IF(EM!E7=DA!A17,DA!AS17,IF(EM!E7=DA!A18,DA!AS18,IF(EM!E7=DA!A19,DA!AS19,IF(EM!E7=DA!A20,DA!AS20,IF(EM!E7=DA!A21,DA!AS21)))))))))))))))))))),"")&IF(EM!C6="LBG II",(IF(EM!E7=DA!A3,DA!AT3,IF(EM!E7=DA!A4,DA!AT4,IF(EM!E7=DA!A5,DA!AT5,IF(EM!E7=DA!A6,DA!AT6,IF(EM!E7=DA!A7,DA!AT7,IF(EM!E7=DA!A8,DA!AT8,IF(EM!E7=DA!A9,DA!AT9,IF(EM!E7=DA!A10,DA!AT10,IF(EM!E7=DA!A11,DA!AT11,IF(EM!E7=DA!A12,DA!AT12,IF(EM!E7=DA!A13,DA!AT13,IF(EM!E7=DA!A14,DA!AT14,IF(EM!E7=DA!A15,DA!AT15,IF(EM!E7=DA!A16,DA!AT16,IF(EM!E7=DA!A17,DA!AT17,IF(EM!E7=DA!A18,DA!AT18,IF(EM!E7=DA!A19,DA!AT19,IF(EM!E7=DA!A20,DA!AT20,IF(EM!E7=DA!A21,DA!AT21)))))))))))))))))))),"")&IF(EM!C6="LBG III",(IF(EM!E7=DA!A3,DA!AU3,IF(EM!E7=DA!A4,DA!AU4,IF(EM!E7=DA!A5,DA!AU5,IF(EM!E7=DA!A6,DA!AU6,IF(EM!E7=DA!A7,DA!AU7,IF(EM!E7=DA!A8,DA!AU8,IF(EM!E7=DA!A9,DA!AU9,IF(EM!E7=DA!A10,DA!AU10,IF(EM!E7=DA!A11,DA!AU11,IF(EM!E7=DA!A12,DA!AU12,IF(EM!E7=DA!A13,DA!AU13,IF(EM!E7=DA!A14,DA!AU14,IF(EM!E7=DA!A15,DA!AU15,IF(EM!E7=DA!A16,DA!AU16,IF(EM!E7=DA!A17,DA!AU17,IF(EM!E7=DA!A18,DA!AU18,IF(EM!E7=DA!A19,DA!AU19,IF(EM!E7=DA!A20,DA!AU20,IF(EM!E7=DA!A21,DA!AU21)))))))))))))))))))),"")&IF(EM!C6="LBG IV",(IF(EM!E7=DA!A3,DA!AV3,IF(EM!E7=DA!A4,DA!AV4,IF(EM!E7=DA!A5,DA!AV5,IF(EM!E7=DA!A6,DA!AV6,IF(EM!E7=DA!A7,DA!AV7,IF(EM!E7=DA!A8,DA!AV8,IF(EM!E7=DA!A9,DA!AV9,IF(EM!E7=DA!A10,DA!AV10,IF(EM!E7=DA!A11,DA!AV11,IF(EM!E7=DA!A12,DA!AV12,IF(EM!E7=DA!A13,DA!AV13,IF(EM!E7=DA!A14,DA!AV14,IF(EM!E7=DA!A15,DA!AV15,IF(EM!E7=DA!A16,DA!AV16,IF(EM!E7=DA!A17,DA!AV17,IF(EM!E7=DA!A18,DA!AV18,IF(EM!E7=DA!A19,DA!AV19,IF(EM!E7=DA!A20,DA!AV20,IF(EM!E7=DA!A21,DA!AV21)))))))))))))))))))),"")&IF(EM!C6="LBG V",(IF(EM!E7=DA!A3,DA!AW3,IF(EM!E7=DA!A4,DA!AW4,IF(EM!E7=DA!A5,DA!AW5,IF(EM!E7=DA!A6,DA!AW6,IF(EM!E7=DA!A7,DA!AW7,IF(EM!E7=DA!A8,DA!AW8,IF(EM!E7=DA!A9,DA!AW9,IF(EM!E7=DA!A10,DA!AW10,IF(EM!E7=DA!A11,DA!AW11,IF(EM!E7=DA!A12,DA!AW12,IF(EM!E7=DA!A13,DA!AW13,IF(EM!E7=DA!A14,DA!AW14,IF(EM!E7=DA!A15,DA!AW15,IF(EM!E7=DA!A16,DA!AW16,IF(EM!E7=DA!A17,DA!AW17,IF(EM!E7=DA!A18,DA!AW18,IF(EM!E7=DA!A19,DA!AW19,IF(EM!E7=DA!A20,DA!AW20))))))))))))))))))),"")))))) ->  | O7: =IF(OR(D7<>2,E7=""),"",(IF(P7<>"",P7,(SUM(IF(EM!C6="LBG I",(IF(EM!E7=DA!A3,DA!AX3,IF(EM!E7=DA!A4,DA!AX4,IF(EM!E7=DA!A5,DA!AX5,IF(EM!E7=DA!A6,DA!AX6,IF(EM!E7=DA!A7,DA!AX7,IF(EM!E7=DA!A8,DA!AX8,IF(EM!E7=DA!A9,DA!AX9,IF(EM!E7=DA!A10,DA!AX10,IF(EM!E7=DA!A11,DA!AX11,IF(EM!E7=DA!A12,DA!AX12,IF(EM!E7=DA!A13,DA!AX13,IF(EM!E7=DA!A14,DA!AX14,IF(EM!E7=DA!A15,DA!AX15,IF(EM!E7=DA!A16,DA!AX16,IF(EM!E7=DA!A17,DA!AX17,IF(EM!E7=DA!A18,DA!AX18,IF(EM!E7=DA!A19,DA!AX19,IF(EM!E7=DA!A20,DA!AX20,IF(EM!E7=DA!A21,DA!AX21)))))))))))))))))))),"")&IF(EM!C6="LBG II",(IF(EM!E7=DA!A3,DA!AY3,IF(EM!E7=DA!A4,DA!AY4,IF(EM!E7=DA!A5,DA!AY5,IF(EM!E7=DA!A6,DA!AY6,IF(EM!E7=DA!A7,DA!AY7,IF(EM!E7=DA!A8,DA!AY8,IF(EM!E7=DA!A9,DA!AY9,IF(EM!E7=DA!A10,DA!AY10,IF(EM!E7=DA!A11,DA!AY11,IF(EM!E7=DA!A12,DA!AY12,IF(EM!E7=DA!A13,DA!AY13,IF(EM!E7=DA!A14,DA!AY14,IF(EM!E7=DA!A15,DA!AY15,IF(EM!E7=DA!A16,DA!AY16,IF(EM!E7=DA!A17,DA!AY17,IF(EM!E7=DA!A18,DA!AY18,IF(EM!E7=DA!A19,DA!AY19,IF(EM!E7=DA!A20,DA!AY20,IF(EM!E7=DA!A21,DA!AY21)))))))))))))))))))),"")&IF(EM!C6="LBG III",(IF(EM!E7=DA!A3,DA!AZ3,IF(EM!E7=DA!A4,DA!AZ4,IF(EM!E7=DA!A5,DA!AZ5,IF(EM!E7=DA!A6,DA!AZ6,IF(EM!E7=DA!A7,DA!AZ7,IF(EM!E7=DA!A8,DA!AZ8,IF(EM!E7=DA!A9,DA!AZ9,IF(EM!E7=DA!A10,DA!AZ10,IF(EM!E7=DA!A11,DA!AZ11,IF(EM!E7=DA!A12,DA!AZ12,IF(EM!E7=DA!A13,DA!AZ13,IF(EM!E7=DA!A14,DA!AZ14,IF(EM!E7=DA!A15,DA!AZ15,IF(EM!E7=DA!A16,DA!AZ16,IF(EM!E7=DA!A17,DA!AZ17,IF(EM!E7=DA!A18,DA!AZ18,IF(EM!E7=DA!A19,DA!AZ19,IF(EM!E7=DA!A20,DA!AZ20,IF(EM!E7=DA!A21,DA!AZ21)))))))))))))))))))),"")&IF(EM!C6="LBG IV",(IF(EM!E7=DA!A3,DA!BA3,IF(EM!E7=DA!A4,DA!BA4,IF(EM!E7=DA!A5,DA!BA5,IF(EM!E7=DA!A6,DA!BA6,IF(EM!E7=DA!A7,DA!BA7,IF(EM!E7=DA!A8,DA!BA8,IF(EM!E7=DA!A9,DA!BA9,IF(EM!E7=DA!A10,DA!BA10,IF(EM!E7=DA!A11,DA!BA11,IF(EM!E7=DA!A12,DA!BA12,IF(EM!E7=DA!A13,DA!BA13,IF(EM!E7=DA!A14,DA!BA14,IF(EM!E7=DA!A15,DA!BA15,IF(EM!E7=DA!A16,DA!BA16,IF(EM!E7=DA!A17,DA!BA17,IF(EM!E7=DA!A18,DA!BA18,IF(EM!E7=DA!A19,DA!BA19,IF(EM!E7=DA!A20,DA!BA20,IF(EM!E7=DA!A21,DA!BA21)))))))))))))))))))),"")&IF(EM!C6="LBG V",(IF(EM!E7=DA!A3,DA!BB3,IF(EM!E7=DA!A4,DA!BB4,IF(EM!E7=DA!A5,DA!BB5,IF(EM!E7=DA!A6,DA!BB6,IF(EM!E7=DA!A7,DA!BB7,IF(EM!E7=DA!A8,DA!BB8,IF(EM!E7=DA!A9,DA!BB9,IF(EM!E7=DA!A10,DA!BB10,IF(EM!E7=DA!A11,DA!BB11,IF(EM!E7=DA!A12,DA!BB12,IF(EM!E7=DA!A13,DA!BB13,IF(EM!E7=DA!A14,DA!BB14,IF(EM!E7=DA!A15,DA!BB15,IF(EM!E7=DA!A16,DA!BB16,IF(EM!E7=DA!A17,DA!BB17,IF(EM!E7=DA!A18,DA!BB18,IF(EM!E7=DA!A19,DA!BB19,IF(EM!E7=DA!A20,DA!BB20))))))))))))))))))),"")))))) ->  | Q7: =IF(OR(D7<>2,E7=""),"",(SUM(K7+M7+O7+M14))) ->  | R7: =IF(OR(D7<>2,E7=""),"",(IF(S7<>"",S7,(SUM(IF(EM!C6="LBG I",(IF(EM!E7=DA!A3,DA!BH3,IF(EM!E7=DA!A4,DA!BH4,IF(EM!E7=DA!A5,DA!BH5,IF(EM!E7=DA!A6,DA!BH6,IF(EM!E7=DA!A7,DA!BH7,IF(EM!E7=DA!A8,DA!BH8,IF(EM!E7=DA!A9,DA!BH9,IF(EM!E7=DA!A10,DA!BH10,IF(EM!E7=DA!A11,DA!BH11,IF(EM!E7=DA!A12,DA!BH12,IF(EM!E7=DA!A13,DA!BH13,IF(EM!E7=DA!A14,DA!BH14,IF(EM!E7=DA!A15,DA!BH15,IF(EM!E7=DA!A16,DA!BH16,IF(EM!E7=DA!A17,DA!BH17,IF(EM!E7=DA!A18,DA!BH18,IF(EM!E7=DA!A19,DA!BH19,IF(EM!E7=DA!A20,DA!BH20,IF(EM!E7=DA!A21,DA!BH21)))))))))))))))))))),"")&IF(EM!C6="LBG II",(IF(EM!E7=DA!A3,DA!BI3,IF(EM!E7=DA!A4,DA!BI4,IF(EM!E7=DA!A5,DA!BI5,IF(EM!E7=DA!A6,DA!BI6,IF(EM!E7=DA!A7,DA!BI7,IF(EM!E7=DA!A8,DA!BI8,IF(EM!E7=DA!A9,DA!BI9,IF(EM!E7=DA!A10,DA!BI10,IF(EM!E7=DA!A11,DA!BI11,IF(EM!E7=DA!A12,DA!BI12,IF(EM!E7=DA!A13,DA!BI13,IF(EM!E7=DA!A14,DA!BI14,IF(EM!E7=DA!A15,DA!BI15,IF(EM!E7=DA!A16,DA!BI16,IF(EM!E7=DA!A17,DA!BI17,IF(EM!E7=DA!A18,DA!BI18,IF(EM!E7=DA!A19,DA!BI19,IF(EM!E7=DA!A20,DA!BI20,IF(EM!E7=DA!A21,DA!BI21)))))))))))))))))))),"")&IF(EM!C6="LBG III",(IF(EM!E7=DA!A3,DA!BJ3,IF(EM!E7=DA!A4,DA!BJ4,IF(EM!E7=DA!A5,DA!BJ5,IF(EM!E7=DA!A6,DA!BJ6,IF(EM!E7=DA!A7,DA!BJ7,IF(EM!E7=DA!A8,DA!BJ8,IF(EM!E7=DA!A9,DA!BJ9,IF(EM!E7=DA!A10,DA!BJ10,IF(EM!E7=DA!A11,DA!BJ11,IF(EM!E7=DA!A12,DA!BJ12,IF(EM!E7=DA!A13,DA!BJ13,IF(EM!E7=DA!A14,DA!BJ14,IF(EM!E7=DA!A15,DA!BJ15,IF(EM!E7=DA!A16,DA!BJ16,IF(EM!E7=DA!A17,DA!BJ17,IF(EM!E7=DA!A18,DA!BJ18,IF(EM!E7=DA!A19,DA!BJ19,IF(EM!E7=DA!A20,DA!BJ20,IF(EM!E7=DA!A21,DA!BJ21)))))))))))))))))))),"")&IF(EM!C6="LBG IV",(IF(EM!E7=DA!A3,DA!BK3,IF(EM!E7=DA!A4,DA!BK4,IF(EM!E7=DA!A5,DA!BK5,IF(EM!E7=DA!A6,DA!BK6,IF(EM!E7=DA!A7,DA!BK7,IF(EM!E7=DA!A8,DA!BK8,IF(EM!E7=DA!A9,DA!BK9,IF(EM!E7=DA!A10,DA!BK10,IF(EM!E7=DA!A11,DA!BK11,IF(EM!E7=DA!A12,DA!BK12,IF(EM!E7=DA!A13,DA!BK13,IF(EM!E7=DA!A14,DA!BK14,IF(EM!E7=DA!A15,DA!BK15,IF(EM!E7=DA!A16,DA!BK16,IF(EM!E7=DA!A17,DA!BK17,IF(EM!E7=DA!A18,DA!BK18,IF(EM!E7=DA!A19,DA!BK19,IF(EM!E7=DA!A20,DA!BK20,IF(EM!E7=DA!A21,DA!BK21)))))))))))))))))))),"")&IF(EM!C6="LBG V",(IF(EM!E7=DA!A3,DA!BL3,IF(EM!E7=DA!A4,DA!BL4,IF(EM!E7=DA!A5,DA!BL5,IF(EM!E7=DA!A6,DA!BL6,IF(EM!E7=DA!A7,DA!BL7,IF(EM!E7=DA!A8,DA!BL8,IF(EM!E7=DA!A9,DA!BL9,IF(EM!E7=DA!A10,DA!BL10,IF(EM!E7=DA!A11,DA!BL11,IF(EM!E7=DA!A12,DA!BL12,IF(EM!E7=DA!A13,DA!BL13,IF(EM!E7=DA!A14,DA!BL14,IF(EM!E7=DA!A15,DA!BL15,IF(EM!E7=DA!A16,DA!BL16,IF(EM!E7=DA!A17,DA!BL17,IF(EM!E7=DA!A18,DA!BL18,IF(EM!E7=DA!A19,DA!BL19,IF(EM!E7=DA!A20,DA!BL20))))))))))))))))))),"")))))) ->  | T7: =IF(OR(D7<>2,E7=""),"",(IF(U7<>"",U7,(SUM(IF(EM!C6="LBG I",(IF(EM!E7=DA!A3,DA!BC3,IF(EM!E7=DA!A4,DA!BC4,IF(EM!E7=DA!A5,DA!BC5,IF(EM!E7=DA!A6,DA!BC6,IF(EM!E7=DA!A7,DA!BC7,IF(EM!E7=DA!A8,DA!BC8,IF(EM!E7=DA!A9,DA!BC9,IF(EM!E7=DA!A10,DA!BC10,IF(EM!E7=DA!A11,DA!BC11,IF(EM!E7=DA!A12,DA!BC12,IF(EM!E7=DA!A13,DA!BC13,IF(EM!E7=DA!A14,DA!BC14,IF(EM!E7=DA!A15,DA!BC15,IF(EM!E7=DA!A16,DA!BC16,IF(EM!E7=DA!A17,DA!BC17,IF(EM!E7=DA!A18,DA!BC18,IF(EM!E7=DA!A19,DA!BC19,IF(EM!E7=DA!A20,DA!BC20,IF(EM!E7=DA!A21,DA!BC21)))))))))))))))))))),"")&IF(EM!C6="LBG II",(IF(EM!E7=DA!A3,DA!BD3,IF(EM!E7=DA!A4,DA!BD4,IF(EM!E7=DA!A5,DA!BD5,IF(EM!E7=DA!A6,DA!BD6,IF(EM!E7=DA!A7,DA!BD7,IF(EM!E7=DA!A8,DA!BD8,IF(EM!E7=DA!A9,DA!BD9,IF(EM!E7=DA!A10,DA!BD10,IF(EM!E7=DA!A11,DA!BD11,IF(EM!E7=DA!A12,DA!BD12,IF(EM!E7=DA!A13,DA!BD13,IF(EM!E7=DA!A14,DA!BD14,IF(EM!E7=DA!A15,DA!BD15,IF(EM!E7=DA!A16,DA!BD16,IF(EM!E7=DA!A17,DA!BD17,IF(EM!E7=DA!A18,DA!BD18,IF(EM!E7=DA!A19,DA!BD19,IF(EM!E7=DA!A20,DA!BD20,IF(EM!E7=DA!A21,DA!BD21)))))))))))))))))))),"")&IF(EM!C6="LBG III",(IF(EM!E7=DA!A3,DA!BE3,IF(EM!E7=DA!A4,DA!BE4,IF(EM!E7=DA!A5,DA!BE5,IF(EM!E7=DA!A6,DA!BE6,IF(EM!E7=DA!A7,DA!BE7,IF(EM!E7=DA!A8,DA!BE8,IF(EM!E7=DA!A9,DA!BE9,IF(EM!E7=DA!A10,DA!BE10,IF(EM!E7=DA!A11,DA!BE11,IF(EM!E7=DA!A12,DA!BE12,IF(EM!E7=DA!A13,DA!BE13,IF(EM!E7=DA!A14,DA!BE14,IF(EM!E7=DA!A15,DA!BE15,IF(EM!E7=DA!A16,DA!BE16,IF(EM!E7=DA!A17,DA!BE17,IF(EM!E7=DA!A18,DA!BE18,IF(EM!E7=DA!A19,DA!BE19,IF(EM!E7=DA!A20,DA!BE20,IF(EM!E7=DA!A21,DA!BE21)))))))))))))))))))),"")&IF(EM!C6="LBG IV",(IF(EM!E7=DA!A3,DA!BF3,IF(EM!E7=DA!A4,DA!BF4,IF(EM!E7=DA!A5,DA!BF5,IF(EM!E7=DA!A6,DA!BF6,IF(EM!E7=DA!A7,DA!BF7,IF(EM!E7=DA!A8,DA!BF8,IF(EM!E7=DA!A9,DA!BF9,IF(EM!E7=DA!A10,DA!BF10,IF(EM!E7=DA!A11,DA!BF11,IF(EM!E7=DA!A12,DA!BF12,IF(EM!E7=DA!A13,DA!BF13,IF(EM!E7=DA!A14,DA!BF14,IF(EM!E7=DA!A15,DA!BF15,IF(EM!E7=DA!A16,DA!BF16,IF(EM!E7=DA!A17,DA!BF17,IF(EM!E7=DA!A18,DA!BF18,IF(EM!E7=DA!A19,DA!BF19,IF(EM!E7=DA!A20,DA!BF20,IF(EM!E7=DA!A21,DA!BF21)))))))))))))))))))),"")&IF(EM!C6="LBG V",(IF(EM!E7=DA!A3,DA!BG3,IF(EM!E7=DA!A4,DA!BG4,IF(EM!E7=DA!A5,DA!BG5,IF(EM!E7=DA!A6,DA!BG6,IF(EM!E7=DA!A7,DA!BG7,IF(EM!E7=DA!A8,DA!BG8,IF(EM!E7=DA!A9,DA!BG9,IF(EM!E7=DA!A10,DA!BG10,IF(EM!E7=DA!A11,DA!BG11,IF(EM!E7=DA!A12,DA!BG12,IF(EM!E7=DA!A13,DA!BG13,IF(EM!E7=DA!A14,DA!BG14,IF(EM!E7=DA!A15,DA!BG15,IF(EM!E7=DA!A16,DA!BG16,IF(EM!E7=DA!A17,DA!BG17,IF(EM!E7=DA!A18,DA!BG18,IF(EM!E7=DA!A19,DA!BG19,IF(EM!E7=DA!A20,DA!BG20))))))))))))))))))),"")))))) ->  | W7: =IF(OR(D7<>2,E7=""),"",(SUM(R7,T7)*(IF(A20=0,1,IF(A20=5,1.05,IF(A20=10,1.1))))+(IF(V7<>"",V7)))) ->  | X7: =IF(OR(D7<>2,E7=""),"",(SUM(Q7,W7)+V22)) ->  | Y7: =IF(OR(D7<>2,E7=""),"",(J7-X7)) -> 
A8: =IF(AND(ISNUMBER(E4),A4<>""),A4/E4,"") ->  | D8: =IF(OR(E4=3,E4=4,E4=5,E4=6),3,"-") -> - | F8: =IF(OR(D8<>3,E8=""),"",(IF(G8<>"",G8,(IF(E8=DA!A3,DA!I3,IF(E8=DA!A4,DA!I4,IF(E8=DA!A5,DA!I5,IF(E8=DA!A6,DA!I6,IF(E8=DA!A7,DA!I7,IF(E8=DA!A4,DA!I8,IF(E8=DA!A8,DA!I4,IF(E8=DA!A9,DA!I9,IF(E8=DA!A10,DA!I10,IF(E8=DA!A11,DA!I11,IF(E8=DA!A12,DA!I12,IF(E8=DA!A13,DA!I13,IF(E8=DA!A14,DA!I14,IF(E8=DA!A15,DA!I15,IF(E8=DA!A16,DA!I16,IF(E8=DA!A17,DA!I17,IF(E8=DA!A18,DA!I18,IF(E8=DA!A19,DA!I19,IF(E8=DA!A20,DA!I20,IF(E8=DA!A21,DA!I21)))))))))))))))))))))))) ->  | H8: =IF(OR(D8<>3,E8=""),"",(IF(I8<>"",I8,(SUM(IF(EM!C6="LBG I",(IF(EM!E8=DA!A3,DA!J3,IF(EM!E8=DA!A4,DA!J4,IF(EM!E8=DA!A5,DA!J5,IF(EM!E8=DA!A6,DA!J6,IF(EM!E8=DA!A7,DA!J7,IF(EM!E8=DA!A8,DA!J8,IF(EM!E8=DA!A9,DA!J9,IF(EM!E8=DA!A10,DA!J10,IF(EM!E8=DA!A11,DA!J11,IF(EM!E8=DA!A12,DA!J12,IF(EM!E8=DA!A13,DA!J13,IF(EM!E8=DA!A14,DA!J14,IF(EM!E8=DA!A15,DA!J15,IF(EM!E8=DA!A16,DA!J16,IF(EM!E8=DA!A17,DA!J17,IF(EM!E8=DA!A18,DA!J18,IF(EM!E8=DA!A19,DA!J19,IF(EM!E8=DA!A20,DA!J20,IF(EM!E8=DA!A21,DA!J21)))))))))))))))))))),"")&IF(EM!C6="LBG II",(IF(EM!E8=DA!A3,DA!K3,IF(EM!E8=DA!A4,DA!K4,IF(EM!E8=DA!A5,DA!K5,IF(EM!E8=DA!A6,DA!K6,IF(EM!E8=DA!A7,DA!K7,IF(EM!E8=DA!A8,DA!K8,IF(EM!E8=DA!A9,DA!K9,IF(EM!E8=DA!A10,DA!K10,IF(EM!E8=DA!A11,DA!K11,IF(EM!E8=DA!A12,DA!K12,IF(EM!E8=DA!A13,DA!K13,IF(EM!E8=DA!A14,DA!K14,IF(EM!E8=DA!A15,DA!K15,IF(EM!E8=DA!A16,DA!K16,IF(EM!E8=DA!A17,DA!K17,IF(EM!E8=DA!A18,DA!K18,IF(EM!E8=DA!A19,DA!K19,IF(EM!E8=DA!A20,DA!K20,IF(EM!E8=DA!A21,DA!K21)))))))))))))))))))),"")&IF(EM!C6="LBG III",(IF(EM!E8=DA!A3,DA!L3,IF(EM!E8=DA!A4,DA!L4,IF(EM!E8=DA!A5,DA!L5,IF(EM!E8=DA!A6,DA!L6,IF(EM!E8=DA!A7,DA!L7,IF(EM!E8=DA!A8,DA!L8,IF(EM!E8=DA!A9,DA!L9,IF(EM!E8=DA!A10,DA!L10,IF(EM!E8=DA!A11,DA!L11,IF(EM!E8=DA!A12,DA!L12,IF(EM!E8=DA!A13,DA!L13,IF(EM!E8=DA!A14,DA!L14,IF(EM!E8=DA!A15,DA!L15,IF(EM!E8=DA!A16,DA!L16,IF(EM!E8=DA!A17,DA!L17,IF(EM!E8=DA!A18,DA!L18,IF(EM!E8=DA!A19,DA!L19,IF(EM!E8=DA!A20,DA!L20,IF(EM!E8=DA!A21,DA!L21)))))))))))))))))))),"")&IF(EM!C6="LBG IV",(IF(EM!E8=DA!A3,DA!M3,IF(EM!E8=DA!A4,DA!M4,IF(EM!E8=DA!A5,DA!M5,IF(EM!E8=DA!A6,DA!M6,IF(EM!E8=DA!A7,DA!M7,IF(EM!E8=DA!A8,DA!M8,IF(EM!E8=DA!A9,DA!M9,IF(EM!E8=DA!A10,DA!M10,IF(EM!E8=DA!A11,DA!M11,IF(EM!E8=DA!A12,DA!M12,IF(EM!E8=DA!A13,DA!M13,IF(EM!E8=DA!A14,DA!M14,IF(EM!E8=DA!A15,DA!M15,IF(EM!E8=DA!A16,DA!M16,IF(EM!E8=DA!A17,DA!M17,IF(EM!E8=DA!A18,DA!M18,IF(EM!E8=DA!A19,DA!M19,IF(EM!E8=DA!A20,DA!M20,IF(EM!E8=DA!A21,DA!M21)))))))))))))))))))),"")&IF(EM!C6="LBG V",(IF(EM!E8=DA!A3,DA!N3,IF(EM!E8=DA!A4,DA!N4,IF(EM!E8=DA!A5,DA!N5,IF(EM!E8=DA!A6,DA!N6,IF(EM!E8=DA!A7,DA!N7,IF(EM!E8=DA!A8,DA!N8,IF(EM!E8=DA!A9,DA!N9,IF(EM!E8=DA!A10,DA!N10,IF(EM!E8=DA!A11,DA!N11,IF(EM!E8=DA!A12,DA!N12,IF(EM!E8=DA!A13,DA!N13,IF(EM!E8=DA!A14,DA!N14,IF(EM!E8=DA!A15,DA!N15,IF(EM!E8=DA!A16,DA!N16,IF(EM!E8=DA!A17,DA!N17,IF(EM!E8=DA!A18,DA!N18,IF(EM!E8=DA!A19,DA!N19,IF(EM!E8=DA!A20,DA!N20))))))))))))))))))),"")))))) ->  | J8: =IF(OR(D8<>3,E8=""),"",(SUM(F8*H8)+(IF(L15="ja",N15,0))+W23)) ->  | K8: =IF(OR(D8<>3,E8=""),"",(IF(L8<>"",L8,(SUM(IF(EM!C6="LBG I",(IF(EM!E8=DA!A3,DA!AN3,IF(EM!E8=DA!A4,DA!AN4,IF(EM!E8=DA!A5,DA!AN5,IF(EM!E8=DA!A6,DA!AN6,IF(EM!E8=DA!A7,DA!AN7,IF(EM!E8=DA!A8,DA!AN8,IF(EM!E8=DA!A9,DA!AN9,IF(EM!E8=DA!A10,DA!AN10,IF(EM!E8=DA!A11,DA!AN11,IF(EM!E8=DA!A12,DA!AN12,IF(EM!E8=DA!A13,DA!AN13,IF(EM!E8=DA!A14,DA!AN14,IF(EM!E8=DA!A15,DA!AN15,IF(EM!E8=DA!A16,DA!AN16,IF(EM!E8=DA!A17,DA!AN17,IF(EM!E8=DA!A18,DA!AN18,IF(EM!E8=DA!A19,DA!AN19,IF(EM!E8=DA!A20,DA!AN20,IF(EM!E8=DA!A21,DA!AN21)))))))))))))))))))),"")&IF(EM!C6="LBG II",(IF(EM!E8=DA!A3,DA!AO3,IF(EM!E8=DA!A4,DA!AO4,IF(EM!E8=DA!A5,DA!AO5,IF(EM!E8=DA!A6,DA!AO6,IF(EM!E8=DA!A7,DA!AO7,IF(EM!E8=DA!A8,DA!AO8,IF(EM!E8=DA!A9,DA!AO9,IF(EM!E8=DA!A10,DA!AO10,IF(EM!E8=DA!A11,DA!AO11,IF(EM!E8=DA!A12,DA!AO12,IF(EM!E8=DA!A13,DA!AO13,IF(EM!E8=DA!A14,DA!AO14,IF(EM!E8=DA!A15,DA!AO15,IF(EM!E8=DA!A16,DA!AO16,IF(EM!E8=DA!A17,DA!AO17,IF(EM!E8=DA!A18,DA!AO18,IF(EM!E8=DA!A19,DA!AO19,IF(EM!E8=DA!A20,DA!AO20,IF(EM!E8=DA!A21,DA!AO21)))))))))))))))))))),"")&IF(EM!C6="LBG III",(IF(EM!E8=DA!A3,DA!AP3,IF(EM!E8=DA!A4,DA!AP4,IF(EM!E8=DA!A5,DA!AP5,IF(EM!E8=DA!A6,DA!AP6,IF(EM!E8=DA!A7,DA!AP7,IF(EM!E8=DA!A8,DA!AP8,IF(EM!E8=DA!A9,DA!AP9,IF(EM!E8=DA!A10,DA!AP10,IF(EM!E8=DA!A11,DA!AP11,IF(EM!E8=DA!A12,DA!AP12,IF(EM!E8=DA!A13,DA!AP13,IF(EM!E8=DA!A14,DA!AP14,IF(EM!E8=DA!A15,DA!AP15,IF(EM!E8=DA!A16,DA!AP16,IF(EM!E8=DA!A17,DA!AP17,IF(EM!E8=DA!A18,DA!AP18,IF(EM!E8=DA!A19,DA!AP19,IF(EM!E8=DA!A20,DA!AP20,IF(EM!E8=DA!A21,DA!AP21)))))))))))))))))))),"")&IF(EM!C6="LBG IV",(IF(EM!E8=DA!A3,DA!AQ3,IF(EM!E8=DA!A4,DA!AQ4,IF(EM!E8=DA!A5,DA!AQ5,IF(EM!E8=DA!A6,DA!AQ6,IF(EM!E8=DA!A7,DA!AQ7,IF(EM!E8=DA!A8,DA!AQ8,IF(EM!E8=DA!A9,DA!AQ9,IF(EM!E8=DA!A10,DA!AQ10,IF(EM!E8=DA!A11,DA!AQ11,IF(EM!E8=DA!A12,DA!AQ12,IF(EM!E8=DA!A13,DA!AQ13,IF(EM!E8=DA!A14,DA!AQ14,IF(EM!E8=DA!A15,DA!AQ15,IF(EM!E8=DA!A16,DA!AQ16,IF(EM!E8=DA!A17,DA!AQ17,IF(EM!E8=DA!A18,DA!AQ18,IF(EM!E8=DA!A19,DA!AQ19,IF(EM!E8=DA!A20,DA!AQ20,IF(EM!E8=DA!A21,DA!AQ21)))))))))))))))))))),"")&IF(EM!C6="LBG V",(IF(EM!E8=DA!A3,DA!AR3,IF(EM!E8=DA!A4,DA!AR4,IF(EM!E8=DA!A5,DA!AR5,IF(EM!E8=DA!A6,DA!AR6,IF(EM!E8=DA!A7,DA!AR7,IF(EM!E8=DA!A8,DA!AR8,IF(EM!E8=DA!A9,DA!AR9,IF(EM!E8=DA!A10,DA!AR10,IF(EM!E8=DA!A11,DA!AR11,IF(EM!E8=DA!A12,DA!AR12,IF(EM!E8=DA!A13,DA!AR13,IF(EM!E8=DA!A14,DA!AR14,IF(EM!E8=DA!A15,DA!AR15,IF(EM!E8=DA!A16,DA!AR16,IF(EM!E8=DA!A17,DA!AR17,IF(EM!E8=DA!A18,DA!AR18,IF(EM!E8=DA!A19,DA!AR19,IF(EM!E8=DA!A20,DA!AR20))))))))))))))))))),"")))))) ->  | M8: =IF(OR(D8<>3,E8=""),"",(IF(N8<>"",N8,(SUM(IF(EM!C6="LBG I",(IF(EM!E8=DA!A3,DA!AS3,IF(EM!E8=DA!A4,DA!AS4,IF(EM!E8=DA!A5,DA!AS5,IF(EM!E8=DA!A6,DA!AS6,IF(EM!E8=DA!A7,DA!AS7,IF(EM!E8=DA!A8,DA!AS8,IF(EM!E8=DA!A9,DA!AS9,IF(EM!E8=DA!A10,DA!AS10,IF(EM!E8=DA!A11,DA!AS11,IF(EM!E8=DA!A12,DA!AS12,IF(EM!E8=DA!A13,DA!AS13,IF(EM!E8=DA!A14,DA!AS14,IF(EM!E8=DA!A15,DA!AS15,IF(EM!E8=DA!A16,DA!AS16,IF(EM!E8=DA!A17,DA!AS17,IF(EM!E8=DA!A18,DA!AS18,IF(EM!E8=DA!A19,DA!AS19,IF(EM!E8=DA!A20,DA!AS20,IF(EM!E8=DA!A21,DA!AS21)))))))))))))))))))),"")&IF(EM!C6="LBG II",(IF(EM!E8=DA!A3,DA!AT3,IF(EM!E8=DA!A4,DA!AT4,IF(EM!E8=DA!A5,DA!AT5,IF(EM!E8=DA!A6,DA!AT6,IF(EM!E8=DA!A7,DA!AT7,IF(EM!E8=DA!A8,DA!AT8,IF(EM!E8=DA!A9,DA!AT9,IF(EM!E8=DA!A10,DA!AT10,IF(EM!E8=DA!A11,DA!AT11,IF(EM!E8=DA!A12,DA!AT12,IF(EM!E8=DA!A13,DA!AT13,IF(EM!E8=DA!A14,DA!AT14,IF(EM!E8=DA!A15,DA!AT15,IF(EM!E8=DA!A16,DA!AT16,IF(EM!E8=DA!A17,DA!AT17,IF(EM!E8=DA!A18,DA!AT18,IF(EM!E8=DA!A19,DA!AT19,IF(EM!E8=DA!A20,DA!AT20,IF(EM!E8=DA!A21,DA!AT21)))))))))))))))))))),"")&IF(EM!C6="LBG III",(IF(EM!E8=DA!A3,DA!AU3,IF(EM!E8=DA!A4,DA!AU4,IF(EM!E8=DA!A5,DA!AU5,IF(EM!E8=DA!A6,DA!AU6,IF(EM!E8=DA!A7,DA!AU7,IF(EM!E8=DA!A8,DA!AU8,IF(EM!E8=DA!A9,DA!AU9,IF(EM!E8=DA!A10,DA!AU10,IF(EM!E8=DA!A11,DA!AU11,IF(EM!E8=DA!A12,DA!AU12,IF(EM!E8=DA!A13,DA!AU13,IF(EM!E8=DA!A14,DA!AU14,IF(EM!E8=DA!A15,DA!AU15,IF(EM!E8=DA!A16,DA!AU16,IF(EM!E8=DA!A17,DA!AU17,IF(EM!E8=DA!A18,DA!AU18,IF(EM!E8=DA!A19,DA!AU19,IF(EM!E8=DA!A20,DA!AU20,IF(EM!E8=DA!A21,DA!AU21)))))))))))))))))))),"")&IF(EM!C6="LBG IV",(IF(EM!E8=DA!A3,DA!AV3,IF(EM!E8=DA!A4,DA!AV4,IF(EM!E8=DA!A5,DA!AV5,IF(EM!E8=DA!A6,DA!AV6,IF(EM!E8=DA!A7,DA!AV7,IF(EM!E8=DA!A8,DA!AV8,IF(EM!E8=DA!A9,DA!AV9,IF(EM!E8=DA!A10,DA!AV10,IF(EM!E8=DA!A11,DA!AV11,IF(EM!E8=DA!A12,DA!AV12,IF(EM!E8=DA!A13,DA!AV13,IF(EM!E8=DA!A14,DA!AV14,IF(EM!E8=DA!A15,DA!AV15,IF(EM!E8=DA!A16,DA!AV16,IF(EM!E8=DA!A17,DA!AV17,IF(EM!E8=DA!A18,DA!AV18,IF(EM!E8=DA!A19,DA!AV19,IF(EM!E8=DA!A20,DA!AV20,IF(EM!E8=DA!A21,DA!AV21)))))))))))))))))))),"")&IF(EM!C6="LBG V",(IF(EM!E8=DA!A3,DA!AW3,IF(EM!E8=DA!A4,DA!AW4,IF(EM!E8=DA!A5,DA!AW5,IF(EM!E8=DA!A6,DA!AW6,IF(EM!E8=DA!A7,DA!AW7,IF(EM!E8=DA!A8,DA!AW8,IF(EM!E8=DA!A9,DA!AW9,IF(EM!E8=DA!A10,DA!AW10,IF(EM!E8=DA!A11,DA!AW11,IF(EM!E8=DA!A12,DA!AW12,IF(EM!E8=DA!A13,DA!AW13,IF(EM!E8=DA!A14,DA!AW14,IF(EM!E8=DA!A15,DA!AW15,IF(EM!E8=DA!A16,DA!AW16,IF(EM!E8=DA!A17,DA!AW17,IF(EM!E8=DA!A18,DA!AW18,IF(EM!E8=DA!A19,DA!AW19,IF(EM!E8=DA!A20,DA!AW20))))))))))))))))))),"")))))) ->  | O8: =IF(OR(D8<>3,E8=""),"",(IF(P8<>"",P8,(SUM(IF(EM!C6="LBG I",(IF(EM!E8=DA!A3,DA!AX3,IF(EM!E8=DA!A4,DA!AX4,IF(EM!E8=DA!A5,DA!AX5,IF(EM!E8=DA!A6,DA!AX6,IF(EM!E8=DA!A7,DA!AX7,IF(EM!E8=DA!A8,DA!AX8,IF(EM!E8=DA!A9,DA!AX9,IF(EM!E8=DA!A10,DA!AX10,IF(EM!E8=DA!A11,DA!AX11,IF(EM!E8=DA!A12,DA!AX12,IF(EM!E8=DA!A13,DA!AX13,IF(EM!E8=DA!A14,DA!AX14,IF(EM!E8=DA!A15,DA!AX15,IF(EM!E8=DA!A16,DA!AX16,IF(EM!E8=DA!A17,DA!AX17,IF(EM!E8=DA!A18,DA!AX18,IF(EM!E8=DA!A19,DA!AX19,IF(EM!E8=DA!A20,DA!AX20,IF(EM!E8=DA!A21,DA!AX21)))))))))))))))))))),"")&IF(EM!C6="LBG II",(IF(EM!E8=DA!A3,DA!AY3,IF(EM!E8=DA!A4,DA!AY4,IF(EM!E8=DA!A5,DA!AY5,IF(EM!E8=DA!A6,DA!AY6,IF(EM!E8=DA!A7,DA!AY7,IF(EM!E8=DA!A8,DA!AY8,IF(EM!E8=DA!A9,DA!AY9,IF(EM!E8=DA!A10,DA!AY10,IF(EM!E8=DA!A11,DA!AY11,IF(EM!E8=DA!A12,DA!AY12,IF(EM!E8=DA!A13,DA!AY13,IF(EM!E8=DA!A14,DA!AY14,IF(EM!E8=DA!A15,DA!AY15,IF(EM!E8=DA!A16,DA!AY16,IF(EM!E8=DA!A17,DA!AY17,IF(EM!E8=DA!A18,DA!AY18,IF(EM!E8=DA!A19,DA!AY19,IF(EM!E8=DA!A20,DA!AY20,IF(EM!E8=DA!A21,DA!AY21)))))))))))))))))))),"")&IF(EM!C6="LBG III",(IF(EM!E8=DA!A3,DA!AZ3,IF(EM!E8=DA!A4,DA!AZ4,IF(EM!E8=DA!A5,DA!AZ5,IF(EM!E8=DA!A6,DA!AZ6,IF(EM!E8=DA!A7,DA!AZ7,IF(EM!E8=DA!A8,DA!AZ8,IF(EM!E8=DA!A9,DA!AZ9,IF(EM!E8=DA!A10,DA!AZ10,IF(EM!E8=DA!A11,DA!AZ11,IF(EM!E8=DA!A12,DA!AZ12,IF(EM!E8=DA!A13,DA!AZ13,IF(EM!E8=DA!A14,DA!AZ14,IF(EM!E8=DA!A15,DA!AZ15,IF(EM!E8=DA!A16,DA!AZ16,IF(EM!E8=DA!A17,DA!AZ17,IF(EM!E8=DA!A18,DA!AZ18,IF(EM!E8=DA!A19,DA!AZ19,IF(EM!E8=DA!A20,DA!AZ20,IF(EM!E8=DA!A21,DA!AZ21)))))))))))))))))))),"")&IF(EM!C6="LBG IV",(IF(EM!E8=DA!A3,DA!BA3,IF(EM!E8=DA!A4,DA!BA4,IF(EM!E8=DA!A5,DA!BA5,IF(EM!E8=DA!A6,DA!BA6,IF(EM!E8=DA!A7,DA!BA7,IF(EM!E8=DA!A8,DA!BA8,IF(EM!E8=DA!A9,DA!BA9,IF(EM!E8=DA!A10,DA!BA10,IF(EM!E8=DA!A11,DA!BA11,IF(EM!E8=DA!A12,DA!BA12,IF(EM!E8=DA!A13,DA!BA13,IF(EM!E8=DA!A14,DA!BA14,IF(EM!E8=DA!A15,DA!BA15,IF(EM!E8=DA!A16,DA!BA16,IF(EM!E8=DA!A17,DA!BA17,IF(EM!E8=DA!A18,DA!BA18,IF(EM!E8=DA!A19,DA!BA19,IF(EM!E8=DA!A20,DA!BA20,IF(EM!E8=DA!A21,DA!BA21)))))))))))))))))))),"")&IF(EM!C6="LBG V",(IF(EM!E8=DA!A3,DA!BB3,IF(EM!E8=DA!A4,DA!BB4,IF(EM!E8=DA!A5,DA!BB5,IF(EM!E8=DA!A6,DA!BB6,IF(EM!E8=DA!A7,DA!BB7,IF(EM!E8=DA!A8,DA!BB8,IF(EM!E8=DA!A9,DA!BB9,IF(EM!E8=DA!A10,DA!BB10,IF(EM!E8=DA!A11,DA!BB11,IF(EM!E8=DA!A12,DA!BB12,IF(EM!E8=DA!A13,DA!BB13,IF(EM!E8=DA!A14,DA!BB14,IF(EM!E8=DA!A15,DA!BB15,IF(EM!E8=DA!A16,DA!BB16,IF(EM!E8=DA!A17,DA!BB17,IF(EM!E8=DA!A18,DA!BB18,IF(EM!E8=DA!A19,DA!BB19,IF(EM!E8=DA!A20,DA!BB20))))))))))))))))))),"")))))) ->  | Q8: =IF(OR(D8<>3,E8=""),"",(SUM(K8+M8+O8+M15))) ->  | R8: =IF(OR(D8<>3,E8=""),"",(IF(S8<>"",S8,(SUM(IF(EM!C6="LBG I",(IF(EM!E8=DA!A3,DA!BH3,IF(EM!E8=DA!A4,DA!BH4,IF(EM!E8=DA!A5,DA!BH5,IF(EM!E8=DA!A6,DA!BH6,IF(EM!E8=DA!A7,DA!BH7,IF(EM!E8=DA!A8,DA!BH8,IF(EM!E8=DA!A9,DA!BH9,IF(EM!E8=DA!A10,DA!BH10,IF(EM!E8=DA!A11,DA!BH11,IF(EM!E8=DA!A12,DA!BH12,IF(EM!E8=DA!A13,DA!BH13,IF(EM!E8=DA!A14,DA!BH14,IF(EM!E8=DA!A15,DA!BH15,IF(EM!E8=DA!A16,DA!BH16,IF(EM!E8=DA!A17,DA!BH17,IF(EM!E8=DA!A18,DA!BH18,IF(EM!E8=DA!A19,DA!BH19,IF(EM!E8=DA!A20,DA!BH20,IF(EM!E8=DA!A21,DA!BH21)))))))))))))))))))),"")&IF(EM!C6="LBG II",(IF(EM!E8=DA!A3,DA!BI3,IF(EM!E8=DA!A4,DA!BI4,IF(EM!E8=DA!A5,DA!BI5,IF(EM!E8=DA!A6,DA!BI6,IF(EM!E8=DA!A7,DA!BI7,IF(EM!E8=DA!A8,DA!BI8,IF(EM!E8=DA!A9,DA!BI9,IF(EM!E8=DA!A10,DA!BI10,IF(EM!E8=DA!A11,DA!BI11,IF(EM!E8=DA!A12,DA!BI12,IF(EM!E8=DA!A13,DA!BI13,IF(EM!E8=DA!A14,DA!BI14,IF(EM!E8=DA!A15,DA!BI15,IF(EM!E8=DA!A16,DA!BI16,IF(EM!E8=DA!A17,DA!BI17,IF(EM!E8=DA!A18,DA!BI18,IF(EM!E8=DA!A19,DA!BI19,IF(EM!E8=DA!A20,DA!BI20,IF(EM!E8=DA!A21,DA!BI21)))))))))))))))))))),"")&IF(EM!C6="LBG III",(IF(EM!E8=DA!A3,DA!BJ3,IF(EM!E8=DA!A4,DA!BJ4,IF(EM!E8=DA!A5,DA!BJ5,IF(EM!E8=DA!A6,DA!BJ6,IF(EM!E8=DA!A7,DA!BJ7,IF(EM!E8=DA!A8,DA!BJ8,IF(EM!E8=DA!A9,DA!BJ9,IF(EM!E8=DA!A10,DA!BJ10,IF(EM!E8=DA!A11,DA!BJ11,IF(EM!E8=DA!A12,DA!BJ12,IF(EM!E8=DA!A13,DA!BJ13,IF(EM!E8=DA!A14,DA!BJ14,IF(EM!E8=DA!A15,DA!BJ15,IF(EM!E8=DA!A16,DA!BJ16,IF(EM!E8=DA!A17,DA!BJ17,IF(EM!E8=DA!A18,DA!BJ18,IF(EM!E8=DA!A19,DA!BJ19,IF(EM!E8=DA!A20,DA!BJ20,IF(EM!E8=DA!A21,DA!BJ21)))))))))))))))))))),"")&IF(EM!C6="LBG IV",(IF(EM!E8=DA!A3,DA!BK3,IF(EM!E8=DA!A4,DA!BK4,IF(EM!E8=DA!A5,DA!BK5,IF(EM!E8=DA!A6,DA!BK6,IF(EM!E8=DA!A7,DA!BK7,IF(EM!E8=DA!A8,DA!BK8,IF(EM!E8=DA!A9,DA!BK9,IF(EM!E8=DA!A10,DA!BK10,IF(EM!E8=DA!A11,DA!BK11,IF(EM!E8=DA!A12,DA!BK12,IF(EM!E8=DA!A13,DA!BK13,IF(EM!E8=DA!A14,DA!BK14,IF(EM!E8=DA!A15,DA!BK15,IF(EM!E8=DA!A16,DA!BK16,IF(EM!E8=DA!A17,DA!BK17,IF(EM!E8=DA!A18,DA!BK18,IF(EM!E8=DA!A19,DA!BK19,IF(EM!E8=DA!A20,DA!BK20,IF(EM!E8=DA!A21,DA!BK21)))))))))))))))))))),"")&IF(EM!C6="LBG V",(IF(EM!E8=DA!A3,DA!BL3,IF(EM!E8=DA!A4,DA!BL4,IF(EM!E8=DA!A5,DA!BL5,IF(EM!E8=DA!A6,DA!BL6,IF(EM!E8=DA!A7,DA!BL7,IF(EM!E8=DA!A8,DA!BL8,IF(EM!E8=DA!A9,DA!BL9,IF(EM!E8=DA!A10,DA!BL10,IF(EM!E8=DA!A11,DA!BL11,IF(EM!E8=DA!A12,DA!BL12,IF(EM!E8=DA!A13,DA!BL13,IF(EM!E8=DA!A14,DA!BL14,IF(EM!E8=DA!A15,DA!BL15,IF(EM!E8=DA!A16,DA!BL16,IF(EM!E8=DA!A17,DA!BL17,IF(EM!E8=DA!A18,DA!BL18,IF(EM!E8=DA!A19,DA!BL19,IF(EM!E8=DA!A20,DA!BL20))))))))))))))))))),"")))))) ->  | T8: =IF(OR(D8<>3,E8=""),"",(IF(U8<>"",U8,(SUM(IF(EM!C6="LBG I",(IF(EM!E8=DA!A3,DA!BC3,IF(EM!E8=DA!A4,DA!BC4,IF(EM!E8=DA!A5,DA!BC5,IF(EM!E8=DA!A6,DA!BC6,IF(EM!E8=DA!A7,DA!BC7,IF(EM!E8=DA!A8,DA!BC8,IF(EM!E8=DA!A9,DA!BC9,IF(EM!E8=DA!A10,DA!BC10,IF(EM!E8=DA!A11,DA!BC11,IF(EM!E8=DA!A12,DA!BC12,IF(EM!E8=DA!A13,DA!BC13,IF(EM!E8=DA!A14,DA!BC14,IF(EM!E8=DA!A15,DA!BC15,IF(EM!E8=DA!A16,DA!BC16,IF(EM!E8=DA!A17,DA!BC17,IF(EM!E8=DA!A18,DA!BC18,IF(EM!E8=DA!A19,DA!BC19,IF(EM!E8=DA!A20,DA!BC20,IF(EM!E8=DA!A21,DA!BC21)))))))))))))))))))),"")&IF(EM!C6="LBG II",(IF(EM!E8=DA!A3,DA!BD3,IF(EM!E8=DA!A4,DA!BD4,IF(EM!E8=DA!A5,DA!BD5,IF(EM!E8=DA!A6,DA!BD6,IF(EM!E8=DA!A7,DA!BD7,IF(EM!E8=DA!A8,DA!BD8,IF(EM!E8=DA!A9,DA!BD9,IF(EM!E8=DA!A10,DA!BD10,IF(EM!E8=DA!A11,DA!BD11,IF(EM!E8=DA!A12,DA!BD12,IF(EM!E8=DA!A13,DA!BD13,IF(EM!E8=DA!A14,DA!BD14,IF(EM!E8=DA!A15,DA!BD15,IF(EM!E8=DA!A16,DA!BD16,IF(EM!E8=DA!A17,DA!BD17,IF(EM!E8=DA!A18,DA!BD18,IF(EM!E8=DA!A19,DA!BD19,IF(EM!E8=DA!A20,DA!BD20,IF(EM!E8=DA!A21,DA!BD21)))))))))))))))))))),"")&IF(EM!C6="LBG III",(IF(EM!E8=DA!A3,DA!BE3,IF(EM!E8=DA!A4,DA!BE4,IF(EM!E8=DA!A5,DA!BE5,IF(EM!E8=DA!A6,DA!BE6,IF(EM!E8=DA!A7,DA!BE7,IF(EM!E8=DA!A8,DA!BE8,IF(EM!E8=DA!A9,DA!BE9,IF(EM!E8=DA!A10,DA!BE10,IF(EM!E8=DA!A11,DA!BE11,IF(EM!E8=DA!A12,DA!BE12,IF(EM!E8=DA!A13,DA!BE13,IF(EM!E8=DA!A14,DA!BE14,IF(EM!E8=DA!A15,DA!BE15,IF(EM!E8=DA!A16,DA!BE16,IF(EM!E8=DA!A17,DA!BE17,IF(EM!E8=DA!A18,DA!BE18,IF(EM!E8=DA!A19,DA!BE19,IF(EM!E8=DA!A20,DA!BE20,IF(EM!E8=DA!A21,DA!BE21)))))))))))))))))))),"")&IF(EM!C6="LBG IV",(IF(EM!E8=DA!A3,DA!BF3,IF(EM!E8=DA!A4,DA!BF4,IF(EM!E8=DA!A5,DA!BF5,IF(EM!E8=DA!A6,DA!BF6,IF(EM!E8=DA!A7,DA!BF7,IF(EM!E8=DA!A8,DA!BF8,IF(EM!E8=DA!A9,DA!BF9,IF(EM!E8=DA!A10,DA!BF10,IF(EM!E8=DA!A11,DA!BF11,IF(EM!E8=DA!A12,DA!BF12,IF(EM!E8=DA!A13,DA!BF13,IF(EM!E8=DA!A14,DA!BF14,IF(EM!E8=DA!A15,DA!BF15,IF(EM!E8=DA!A16,DA!BF16,IF(EM!E8=DA!A17,DA!BF17,IF(EM!E8=DA!A18,DA!BF18,IF(EM!E8=DA!A19,DA!BF19,IF(EM!E8=DA!A20,DA!BF20,IF(EM!E8=DA!A21,DA!BF21)))))))))))))))))))),"")&IF(EM!C6="LBG V",(IF(EM!E8=DA!A3,DA!BG3,IF(EM!E8=DA!A4,DA!BG4,IF(EM!E8=DA!A5,DA!BG5,IF(EM!E8=DA!A6,DA!BG6,IF(EM!E8=DA!A7,DA!BG7,IF(EM!E8=DA!A8,DA!BG8,IF(EM!E8=DA!A9,DA!BG9,IF(EM!E8=DA!A10,DA!BG10,IF(EM!E8=DA!A11,DA!BG11,IF(EM!E8=DA!A12,DA!BG12,IF(EM!E8=DA!A13,DA!BG13,IF(EM!E8=DA!A14,DA!BG14,IF(EM!E8=DA!A15,DA!BG15,IF(EM!E8=DA!A16,DA!BG16,IF(EM!E8=DA!A17,DA!BG17,IF(EM!E8=DA!A18,DA!BG18,IF(EM!E8=DA!A19,DA!BG19,IF(EM!E8=DA!A20,DA!BG20))))))))))))))))))),"")))))) ->  | W8: =IF(OR(D8<>3,E8=""),"",(SUM(R8,T8)*(IF(A20=0,1,IF(A20=5,1.05,IF(A20=10,1.1))))+(IF(V8<>"",V8)))) ->  | X8: =IF(OR(D8<>3,E8=""),"",(SUM(Q8,W8)+V23)) ->  | Y8: =IF(OR(D8<>3,E8=""),"",(J8-X8)) -> 
A9: Rotationen der Gehölze [Jahre] | B9: Verkaufspreis [€/ha] | D9: =IF(OR(E4=4,E4=5,E4=6),4,"-") -> - | F9: =IF(OR(D9<>4,E9=""),"",(IF(G9<>"",G9,(IF(E9=DA!A3,DA!I3,IF(E9=DA!A4,DA!I4,IF(E9=DA!A5,DA!I5,IF(E9=DA!A6,DA!I6,IF(E9=DA!A7,DA!I7,IF(E9=DA!A4,DA!I8,IF(E9=DA!A8,DA!I4,IF(E9=DA!A9,DA!I9,IF(E9=DA!A10,DA!I10,IF(E9=DA!A11,DA!I11,IF(E9=DA!A12,DA!I12,IF(E9=DA!A13,DA!I13,IF(E9=DA!A14,DA!I14,IF(E9=DA!A15,DA!I15,IF(E9=DA!A16,DA!I16,IF(E9=DA!A17,DA!I17,IF(E9=DA!A18,DA!I18,IF(E9=DA!A19,DA!I19,IF(E9=DA!A20,DA!I20,IF(E9=DA!A21,DA!I21)))))))))))))))))))))))) ->  | H9: =IF(OR(D9<>4,E9=""),"",(IF(I9<>"",I9,(SUM(IF(EM!C6="LBG I",(IF(EM!E9=DA!A3,DA!J3,IF(EM!E9=DA!A4,DA!J4,IF(EM!E9=DA!A5,DA!J5,IF(EM!E9=DA!A6,DA!J6,IF(EM!E9=DA!A7,DA!J7,IF(EM!E9=DA!A8,DA!J8,IF(EM!E9=DA!A9,DA!J9,IF(EM!E9=DA!A10,DA!J10,IF(EM!E9=DA!A11,DA!J11,IF(EM!E9=DA!A12,DA!J12,IF(EM!E9=DA!A13,DA!J13,IF(EM!E9=DA!A14,DA!J14,IF(EM!E9=DA!A15,DA!J15,IF(EM!E9=DA!A16,DA!J16,IF(EM!E9=DA!A17,DA!J17,IF(EM!E9=DA!A18,DA!J18,IF(EM!E9=DA!A19,DA!J19,IF(EM!E9=DA!A20,DA!J20,IF(EM!E9=DA!A21,DA!J21)))))))))))))))))))),"")&IF(EM!C6="LBG II",(IF(EM!E9=DA!A3,DA!K3,IF(EM!E9=DA!A4,DA!K4,IF(EM!E9=DA!A5,DA!K5,IF(EM!E9=DA!A6,DA!K6,IF(EM!E9=DA!A7,DA!K7,IF(EM!E9=DA!A8,DA!K8,IF(EM!E9=DA!A9,DA!K9,IF(EM!E9=DA!A10,DA!K10,IF(EM!E9=DA!A11,DA!K11,IF(EM!E9=DA!A12,DA!K12,IF(EM!E9=DA!A13,DA!K13,IF(EM!E9=DA!A14,DA!K14,IF(EM!E9=DA!A15,DA!K15,IF(EM!E9=DA!A16,DA!K16,IF(EM!E9=DA!A17,DA!K17,IF(EM!E9=DA!A18,DA!K18,IF(EM!E9=DA!A19,DA!K19,IF(EM!E9=DA!A20,DA!K20,IF(EM!E9=DA!A21,DA!K21)))))))))))))))))))),"")&IF(EM!C6="LBG III",(IF(EM!E9=DA!A3,DA!L3,IF(EM!E9=DA!A4,DA!L4,IF(EM!E9=DA!A5,DA!L5,IF(EM!E9=DA!A6,DA!L6,IF(EM!E9=DA!A7,DA!L7,IF(EM!E9=DA!A8,DA!L8,IF(EM!E9=DA!A9,DA!L9,IF(EM!E9=DA!A10,DA!L10,IF(EM!E9=DA!A11,DA!L11,IF(EM!E9=DA!A12,DA!L12,IF(EM!E9=DA!A13,DA!L13,IF(EM!E9=DA!A14,DA!L14,IF(EM!E9=DA!A15,DA!L15,IF(EM!E9=DA!A16,DA!L16,IF(EM!E9=DA!A17,DA!L17,IF(EM!E9=DA!A18,DA!L18,IF(EM!E9=DA!A19,DA!L19,IF(EM!E9=DA!A20,DA!L20,IF(EM!E9=DA!A21,DA!L21)))))))))))))))))))),"")&IF(EM!C6="LBG IV",(IF(EM!E9=DA!A3,DA!M3,IF(EM!E9=DA!A4,DA!M4,IF(EM!E9=DA!A5,DA!M5,IF(EM!E9=DA!A6,DA!M6,IF(EM!E9=DA!A7,DA!M7,IF(EM!E9=DA!A8,DA!M8,IF(EM!E9=DA!A9,DA!M9,IF(EM!E9=DA!A10,DA!M10,IF(EM!E9=DA!A11,DA!M11,IF(EM!E9=DA!A12,DA!M12,IF(EM!E9=DA!A13,DA!M13,IF(EM!E9=DA!A14,DA!M14,IF(EM!E9=DA!A15,DA!M15,IF(EM!E9=DA!A16,DA!M16,IF(EM!E9=DA!A17,DA!M17,IF(EM!E9=DA!A18,DA!M18,IF(EM!E9=DA!A19,DA!M19,IF(EM!E9=DA!A20,DA!M20,IF(EM!E9=DA!A21,DA!M21)))))))))))))))))))),"")&IF(EM!C6="LBG V",(IF(EM!E9=DA!A3,DA!N3,IF(EM!E9=DA!A4,DA!N4,IF(EM!E9=DA!A5,DA!N5,IF(EM!E9=DA!A6,DA!N6,IF(EM!E9=DA!A7,DA!N7,IF(EM!E9=DA!A8,DA!N8,IF(EM!E9=DA!A9,DA!N9,IF(EM!E9=DA!A10,DA!N10,IF(EM!E9=DA!A11,DA!N11,IF(EM!E9=DA!A12,DA!N12,IF(EM!E9=DA!A13,DA!N13,IF(EM!E9=DA!A14,DA!N14,IF(EM!E9=DA!A15,DA!N15,IF(EM!E9=DA!A16,DA!N16,IF(EM!E9=DA!A17,DA!N17,IF(EM!E9=DA!A18,DA!N18,IF(EM!E9=DA!A19,DA!N19,IF(EM!E9=DA!A20,DA!N20))))))))))))))))))),"")))))) ->  | J9: =IF(OR(D9<>4,E9=""),"",(SUM(F9*H9)+(IF(L16="ja",N16,0))+W24)) ->  | K9: =IF(OR(D9<>4,E9=""),"",(IF(L9<>"",L9,(SUM(IF(EM!C6="LBG I",(IF(EM!E9=DA!A3,DA!AN3,IF(EM!E9=DA!A4,DA!AN4,IF(EM!E9=DA!A5,DA!AN5,IF(EM!E9=DA!A6,DA!AN6,IF(EM!E9=DA!A7,DA!AN7,IF(EM!E9=DA!A8,DA!AN8,IF(EM!E9=DA!A9,DA!AN9,IF(EM!E9=DA!A10,DA!AN10,IF(EM!E9=DA!A11,DA!AN11,IF(EM!E9=DA!A12,DA!AN12,IF(EM!E9=DA!A13,DA!AN13,IF(EM!E9=DA!A14,DA!AN14,IF(EM!E9=DA!A15,DA!AN15,IF(EM!E9=DA!A16,DA!AN16,IF(EM!E9=DA!A17,DA!AN17,IF(EM!E9=DA!A18,DA!AN18,IF(EM!E9=DA!A19,DA!AN19,IF(EM!E9=DA!A20,DA!AN20,IF(EM!E9=DA!A21,DA!AN21)))))))))))))))))))),"")&IF(EM!C6="LBG II",(IF(EM!E9=DA!A3,DA!AO3,IF(EM!E9=DA!A4,DA!AO4,IF(EM!E9=DA!A5,DA!AO5,IF(EM!E9=DA!A6,DA!AO6,IF(EM!E9=DA!A7,DA!AO7,IF(EM!E9=DA!A8,DA!AO8,IF(EM!E9=DA!A9,DA!AO9,IF(EM!E9=DA!A10,DA!AO10,IF(EM!E9=DA!A11,DA!AO11,IF(EM!E9=DA!A12,DA!AO12,IF(EM!E9=DA!A13,DA!AO13,IF(EM!E9=DA!A14,DA!AO14,IF(EM!E9=DA!A15,DA!AO15,IF(EM!E9=DA!A16,DA!AO16,IF(EM!E9=DA!A17,DA!AO17,IF(EM!E9=DA!A18,DA!AO18,IF(EM!E9=DA!A19,DA!AO19,IF(EM!E9=DA!A20,DA!AO20,IF(EM!E9=DA!A21,DA!AO21)))))))))))))))))))),"")&IF(EM!C6="LBG III",(IF(EM!E9=DA!A3,DA!AP3,IF(EM!E9=DA!A4,DA!AP4,IF(EM!E9=DA!A5,DA!AP5,IF(EM!E9=DA!A6,DA!AP6,IF(EM!E9=DA!A7,DA!AP7,IF(EM!E9=DA!A8,DA!AP8,IF(EM!E9=DA!A9,DA!AP9,IF(EM!E9=DA!A10,DA!AP10,IF(EM!E9=DA!A11,DA!AP11,IF(EM!E9=DA!A12,DA!AP12,IF(EM!E9=DA!A13,DA!AP13,IF(EM!E9=DA!A14,DA!AP14,IF(EM!E9=DA!A15,DA!AP15,IF(EM!E9=DA!A16,DA!AP16,IF(EM!E9=DA!A17,DA!AP17,IF(EM!E9=DA!A18,DA!AP18,IF(EM!E9=DA!A19,DA!AP19,IF(EM!E9=DA!A20,DA!AP20,IF(EM!E9=DA!A21,DA!AP21)))))))))))))))))))),"")&IF(EM!C6="LBG IV",(IF(EM!E9=DA!A3,DA!AQ3,IF(EM!E9=DA!A4,DA!AQ4,IF(EM!E9=DA!A5,DA!AQ5,IF(EM!E9=DA!A6,DA!AQ6,IF(EM!E9=DA!A7,DA!AQ7,IF(EM!E9=DA!A8,DA!AQ8,IF(EM!E9=DA!A9,DA!AQ9,IF(EM!E9=DA!A10,DA!AQ10,IF(EM!E9=DA!A11,DA!AQ11,IF(EM!E9=DA!A12,DA!AQ12,IF(EM!E9=DA!A13,DA!AQ13,IF(EM!E9=DA!A14,DA!AQ14,IF(EM!E9=DA!A15,DA!AQ15,IF(EM!E9=DA!A16,DA!AQ16,IF(EM!E9=DA!A17,DA!AQ17,IF(EM!E9=DA!A18,DA!AQ18,IF(EM!E9=DA!A19,DA!AQ19,IF(EM!E9=DA!A20,DA!AQ20,IF(EM!E9=DA!A21,DA!AQ21)))))))))))))))))))),"")&IF(EM!C6="LBG V",(IF(EM!E9=DA!A3,DA!AR3,IF(EM!E9=DA!A4,DA!AR4,IF(EM!E9=DA!A5,DA!AR5,IF(EM!E9=DA!A6,DA!AR6,IF(EM!E9=DA!A7,DA!AR7,IF(EM!E9=DA!A8,DA!AR8,IF(EM!E9=DA!A9,DA!AR9,IF(EM!E9=DA!A10,DA!AR10,IF(EM!E9=DA!A11,DA!AR11,IF(EM!E9=DA!A12,DA!AR12,IF(EM!E9=DA!A13,DA!AR13,IF(EM!E9=DA!A14,DA!AR14,IF(EM!E9=DA!A15,DA!AR15,IF(EM!E9=DA!A16,DA!AR16,IF(EM!E9=DA!A17,DA!AR17,IF(EM!E9=DA!A18,DA!AR18,IF(EM!E9=DA!A19,DA!AR19,IF(EM!E9=DA!A20,DA!AR20))))))))))))))))))),"")))))) ->  | M9: =IF(OR(D9<>4,E9=""),"",(IF(N9<>"",N9,(SUM(IF(EM!C6="LBG I",(IF(EM!E9=DA!A3,DA!AS3,IF(EM!E9=DA!A4,DA!AS4,IF(EM!E9=DA!A5,DA!AS5,IF(EM!E9=DA!A6,DA!AS6,IF(EM!E9=DA!A7,DA!AS7,IF(EM!E9=DA!A8,DA!AS8,IF(EM!E9=DA!A9,DA!AS9,IF(EM!E9=DA!A10,DA!AS10,IF(EM!E9=DA!A11,DA!AS11,IF(EM!E9=DA!A12,DA!AS12,IF(EM!E9=DA!A13,DA!AS13,IF(EM!E9=DA!A14,DA!AS14,IF(EM!E9=DA!A15,DA!AS15,IF(EM!E9=DA!A16,DA!AS16,IF(EM!E9=DA!A17,DA!AS17,IF(EM!E9=DA!A18,DA!AS18,IF(EM!E9=DA!A19,DA!AS19,IF(EM!E9=DA!A20,DA!AS20,IF(EM!E9=DA!A21,DA!AS21)))))))))))))))))))),"")&IF(EM!C6="LBG II",(IF(EM!E9=DA!A3,DA!AT3,IF(EM!E9=DA!A4,DA!AT4,IF(EM!E9=DA!A5,DA!AT5,IF(EM!E9=DA!A6,DA!AT6,IF(EM!E9=DA!A7,DA!AT7,IF(EM!E9=DA!A8,DA!AT8,IF(EM!E9=DA!A9,DA!AT9,IF(EM!E9=DA!A10,DA!AT10,IF(EM!E9=DA!A11,DA!AT11,IF(EM!E9=DA!A12,DA!AT12,IF(EM!E9=DA!A13,DA!AT13,IF(EM!E9=DA!A14,DA!AT14,IF(EM!E9=DA!A15,DA!AT15,IF(EM!E9=DA!A16,DA!AT16,IF(EM!E9=DA!A17,DA!AT17,IF(EM!E9=DA!A18,DA!AT18,IF(EM!E9=DA!A19,DA!AT19,IF(EM!E9=DA!A20,DA!AT20,IF(EM!E9=DA!A21,DA!AT21)))))))))))))))))))),"")&IF(EM!C6="LBG III",(IF(EM!E9=DA!A3,DA!AU3,IF(EM!E9=DA!A4,DA!AU4,IF(EM!E9=DA!A5,DA!AU5,IF(EM!E9=DA!A6,DA!AU6,IF(EM!E9=DA!A7,DA!AU7,IF(EM!E9=DA!A8,DA!AU8,IF(EM!E9=DA!A9,DA!AU9,IF(EM!E9=DA!A10,DA!AU10,IF(EM!E9=DA!A11,DA!AU11,IF(EM!E9=DA!A12,DA!AU12,IF(EM!E9=DA!A13,DA!AU13,IF(EM!E9=DA!A14,DA!AU14,IF(EM!E9=DA!A15,DA!AU15,IF(EM!E9=DA!A16,DA!AU16,IF(EM!E9=DA!A17,DA!AU17,IF(EM!E9=DA!A18,DA!AU18,IF(EM!E9=DA!A19,DA!AU19,IF(EM!E9=DA!A20,DA!AU20,IF(EM!E9=DA!A21,DA!AU21)))))))))))))))))))),"")&IF(EM!C6="LBG IV",(IF(EM!E9=DA!A3,DA!AV3,IF(EM!E9=DA!A4,DA!AV4,IF(EM!E9=DA!A5,DA!AV5,IF(EM!E9=DA!A6,DA!AV6,IF(EM!E9=DA!A7,DA!AV7,IF(EM!E9=DA!A8,DA!AV8,IF(EM!E9=DA!A9,DA!AV9,IF(EM!E9=DA!A10,DA!AV10,IF(EM!E9=DA!A11,DA!AV11,IF(EM!E9=DA!A12,DA!AV12,IF(EM!E9=DA!A13,DA!AV13,IF(EM!E9=DA!A14,DA!AV14,IF(EM!E9=DA!A15,DA!AV15,IF(EM!E9=DA!A16,DA!AV16,IF(EM!E9=DA!A17,DA!AV17,IF(EM!E9=DA!A18,DA!AV18,IF(EM!E9=DA!A19,DA!AV19,IF(EM!E9=DA!A20,DA!AV20,IF(EM!E9=DA!A21,DA!AV21)))))))))))))))))))),"")&IF(EM!C6="LBG V",(IF(EM!E9=DA!A3,DA!AW3,IF(EM!E9=DA!A4,DA!AW4,IF(EM!E9=DA!A5,DA!AW5,IF(EM!E9=DA!A6,DA!AW6,IF(EM!E9=DA!A7,DA!AW7,IF(EM!E9=DA!A8,DA!AW8,IF(EM!E9=DA!A9,DA!AW9,IF(EM!E9=DA!A10,DA!AW10,IF(EM!E9=DA!A11,DA!AW11,IF(EM!E9=DA!A12,DA!AW12,IF(EM!E9=DA!A13,DA!AW13,IF(EM!E9=DA!A14,DA!AW14,IF(EM!E9=DA!A15,DA!AW15,IF(EM!E9=DA!A16,DA!AW16,IF(EM!E9=DA!A17,DA!AW17,IF(EM!E9=DA!A18,DA!AW18,IF(EM!E9=DA!A19,DA!AW19,IF(EM!E9=DA!A20,DA!AW20))))))))))))))))))),"")))))) ->  | O9: =IF(OR(D9<>4,E9=""),"",(IF(P9<>"",P9,(SUM(IF(EM!C6="LBG I",(IF(EM!E9=DA!A3,DA!AX3,IF(EM!E9=DA!A4,DA!AX4,IF(EM!E9=DA!A5,DA!AX5,IF(EM!E9=DA!A6,DA!AX6,IF(EM!E9=DA!A7,DA!AX7,IF(EM!E9=DA!A8,DA!AX8,IF(EM!E9=DA!A9,DA!AX9,IF(EM!E9=DA!A10,DA!AX10,IF(EM!E9=DA!A11,DA!AX11,IF(EM!E9=DA!A12,DA!AX12,IF(EM!E9=DA!A13,DA!AX13,IF(EM!E9=DA!A14,DA!AX14,IF(EM!E9=DA!A15,DA!AX15,IF(EM!E9=DA!A16,DA!AX16,IF(EM!E9=DA!A17,DA!AX17,IF(EM!E9=DA!A18,DA!AX18,IF(EM!E9=DA!A19,DA!AX19,IF(EM!E9=DA!A20,DA!AX20,IF(EM!E9=DA!A21,DA!AX21)))))))))))))))))))),"")&IF(EM!C6="LBG II",(IF(EM!E9=DA!A3,DA!AY3,IF(EM!E9=DA!A4,DA!AY4,IF(EM!E9=DA!A5,DA!AY5,IF(EM!E9=DA!A6,DA!AY6,IF(EM!E9=DA!A7,DA!AY7,IF(EM!E9=DA!A8,DA!AY8,IF(EM!E9=DA!A9,DA!AY9,IF(EM!E9=DA!A10,DA!AY10,IF(EM!E9=DA!A11,DA!AY11,IF(EM!E9=DA!A12,DA!AY12,IF(EM!E9=DA!A13,DA!AY13,IF(EM!E9=DA!A14,DA!AY14,IF(EM!E9=DA!A15,DA!AY15,IF(EM!E9=DA!A16,DA!AY16,IF(EM!E9=DA!A17,DA!AY17,IF(EM!E9=DA!A18,DA!AY18,IF(EM!E9=DA!A19,DA!AY19,IF(EM!E9=DA!A20,DA!AY20,IF(EM!E9=DA!A21,DA!AY21)))))))))))))))))))),"")&IF(EM!C6="LBG III",(IF(EM!E9=DA!A3,DA!AZ3,IF(EM!E9=DA!A4,DA!AZ4,IF(EM!E9=DA!A5,DA!AZ5,IF(EM!E9=DA!A6,DA!AZ6,IF(EM!E9=DA!A7,DA!AZ7,IF(EM!E9=DA!A8,DA!AZ8,IF(EM!E9=DA!A9,DA!AZ9,IF(EM!E9=DA!A10,DA!AZ10,IF(EM!E9=DA!A11,DA!AZ11,IF(EM!E9=DA!A12,DA!AZ12,IF(EM!E9=DA!A13,DA!AZ13,IF(EM!E9=DA!A14,DA!AZ14,IF(EM!E9=DA!A15,DA!AZ15,IF(EM!E9=DA!A16,DA!AZ16,IF(EM!E9=DA!A17,DA!AZ17,IF(EM!E9=DA!A18,DA!AZ18,IF(EM!E9=DA!A19,DA!AZ19,IF(EM!E9=DA!A20,DA!AZ20,IF(EM!E9=DA!A21,DA!AZ21)))))))))))))))))))),"")&IF(EM!C6="LBG IV",(IF(EM!E9=DA!A3,DA!BA3,IF(EM!E9=DA!A4,DA!BA4,IF(EM!E9=DA!A5,DA!BA5,IF(EM!E9=DA!A6,DA!BA6,IF(EM!E9=DA!A7,DA!BA7,IF(EM!E9=DA!A8,DA!BA8,IF(EM!E9=DA!A9,DA!BA9,IF(EM!E9=DA!A10,DA!BA10,IF(EM!E9=DA!A11,DA!BA11,IF(EM!E9=DA!A12,DA!BA12,IF(EM!E9=DA!A13,DA!BA13,IF(EM!E9=DA!A14,DA!BA14,IF(EM!E9=DA!A15,DA!BA15,IF(EM!E9=DA!A16,DA!BA16,IF(EM!E9=DA!A17,DA!BA17,IF(EM!E9=DA!A18,DA!BA18,IF(EM!E9=DA!A19,DA!BA19,IF(EM!E9=DA!A20,DA!BA20,IF(EM!E9=DA!A21,DA!BA21)))))))))))))))))))),"")&IF(EM!C6="LBG V",(IF(EM!E9=DA!A3,DA!BB3,IF(EM!E9=DA!A4,DA!BB4,IF(EM!E9=DA!A5,DA!BB5,IF(EM!E9=DA!A6,DA!BB6,IF(EM!E9=DA!A7,DA!BB7,IF(EM!E9=DA!A8,DA!BB8,IF(EM!E9=DA!A9,DA!BB9,IF(EM!E9=DA!A10,DA!BB10,IF(EM!E9=DA!A11,DA!BB11,IF(EM!E9=DA!A12,DA!BB12,IF(EM!E9=DA!A13,DA!BB13,IF(EM!E9=DA!A14,DA!BB14,IF(EM!E9=DA!A15,DA!BB15,IF(EM!E9=DA!A16,DA!BB16,IF(EM!E9=DA!A17,DA!BB17,IF(EM!E9=DA!A18,DA!BB18,IF(EM!E9=DA!A19,DA!BB19,IF(EM!E9=DA!A20,DA!BB20))))))))))))))))))),"")))))) ->  | Q9: =IF(OR(D9<>4,E9=""),"",(SUM(K9+M9+O9+M16))) ->  | R9: =IF(OR(D9<>4,E9=""),"",(IF(S9<>"",S9,(SUM(IF(EM!C6="LBG I",(IF(EM!E9=DA!A3,DA!BH3,IF(EM!E9=DA!A4,DA!BH4,IF(EM!E9=DA!A5,DA!BH5,IF(EM!E9=DA!A6,DA!BH6,IF(EM!E9=DA!A7,DA!BH7,IF(EM!E9=DA!A8,DA!BH8,IF(EM!E9=DA!A9,DA!BH9,IF(EM!E9=DA!A10,DA!BH10,IF(EM!E9=DA!A11,DA!BH11,IF(EM!E9=DA!A12,DA!BH12,IF(EM!E9=DA!A13,DA!BH13,IF(EM!E9=DA!A14,DA!BH14,IF(EM!E9=DA!A15,DA!BH15,IF(EM!E9=DA!A16,DA!BH16,IF(EM!E9=DA!A17,DA!BH17,IF(EM!E9=DA!A18,DA!BH18,IF(EM!E9=DA!A19,DA!BH19,IF(EM!E9=DA!A20,DA!BH20,IF(EM!E9=DA!A21,DA!BH21)))))))))))))))))))),"")&IF(EM!C6="LBG II",(IF(EM!E9=DA!A3,DA!BI3,IF(EM!E9=DA!A4,DA!BI4,IF(EM!E9=DA!A5,DA!BI5,IF(EM!E9=DA!A6,DA!BI6,IF(EM!E9=DA!A7,DA!BI7,IF(EM!E9=DA!A8,DA!BI8,IF(EM!E9=DA!A9,DA!BI9,IF(EM!E9=DA!A10,DA!BI10,IF(EM!E9=DA!A11,DA!BI11,IF(EM!E9=DA!A12,DA!BI12,IF(EM!E9=DA!A13,DA!BI13,IF(EM!E9=DA!A14,DA!BI14,IF(EM!E9=DA!A15,DA!BI15,IF(EM!E9=DA!A16,DA!BI16,IF(EM!E9=DA!A17,DA!BI17,IF(EM!E9=DA!A18,DA!BI18,IF(EM!E9=DA!A19,DA!BI19,IF(EM!E9=DA!A20,DA!BI20,IF(EM!E9=DA!A21,DA!BI21)))))))))))))))))))),"")&IF(EM!C6="LBG III",(IF(EM!E9=DA!A3,DA!BJ3,IF(EM!E9=DA!A4,DA!BJ4,IF(EM!E9=DA!A5,DA!BJ5,IF(EM!E9=DA!A6,DA!BJ6,IF(EM!E9=DA!A7,DA!BJ7,IF(EM!E9=DA!A8,DA!BJ8,IF(EM!E9=DA!A9,DA!BJ9,IF(EM!E9=DA!A10,DA!BJ10,IF(EM!E9=DA!A11,DA!BJ11,IF(EM!E9=DA!A12,DA!BJ12,IF(EM!E9=DA!A13,DA!BJ13,IF(EM!E9=DA!A14,DA!BJ14,IF(EM!E9=DA!A15,DA!BJ15,IF(EM!E9=DA!A16,DA!BJ16,IF(EM!E9=DA!A17,DA!BJ17,IF(EM!E9=DA!A18,DA!BJ18,IF(EM!E9=DA!A19,DA!BJ19,IF(EM!E9=DA!A20,DA!BJ20,IF(EM!E9=DA!A21,DA!BJ21)))))))))))))))))))),"")&IF(EM!C6="LBG IV",(IF(EM!E9=DA!A3,DA!BK3,IF(EM!E9=DA!A4,DA!BK4,IF(EM!E9=DA!A5,DA!BK5,IF(EM!E9=DA!A6,DA!BK6,IF(EM!E9=DA!A7,DA!BK7,IF(EM!E9=DA!A8,DA!BK8,IF(EM!E9=DA!A9,DA!BK9,IF(EM!E9=DA!A10,DA!BK10,IF(EM!E9=DA!A11,DA!BK11,IF(EM!E9=DA!A12,DA!BK12,IF(EM!E9=DA!A13,DA!BK13,IF(EM!E9=DA!A14,DA!BK14,IF(EM!E9=DA!A15,DA!BK15,IF(EM!E9=DA!A16,DA!BK16,IF(EM!E9=DA!A17,DA!BK17,IF(EM!E9=DA!A18,DA!BK18,IF(EM!E9=DA!A19,DA!BK19,IF(EM!E9=DA!A20,DA!BK20,IF(EM!E9=DA!A21,DA!BK21)))))))))))))))))))),"")&IF(EM!C6="LBG V",(IF(EM!E9=DA!A3,DA!BL3,IF(EM!E9=DA!A4,DA!BL4,IF(EM!E9=DA!A5,DA!BL5,IF(EM!E9=DA!A6,DA!BL6,IF(EM!E9=DA!A7,DA!BL7,IF(EM!E9=DA!A8,DA!BL8,IF(EM!E9=DA!A9,DA!BL9,IF(EM!E9=DA!A10,DA!BL10,IF(EM!E9=DA!A11,DA!BL11,IF(EM!E9=DA!A12,DA!BL12,IF(EM!E9=DA!A13,DA!BL13,IF(EM!E9=DA!A14,DA!BL14,IF(EM!E9=DA!A15,DA!BL15,IF(EM!E9=DA!A16,DA!BL16,IF(EM!E9=DA!A17,DA!BL17,IF(EM!E9=DA!A18,DA!BL18,IF(EM!E9=DA!A19,DA!BL19,IF(EM!E9=DA!A20,DA!BL20))))))))))))))))))),"")))))) ->  | T9: =IF(OR(D9<>4,E9=""),"",(IF(U9<>"",U9,(SUM(IF(EM!C6="LBG I",(IF(EM!E9=DA!A3,DA!BC3,IF(EM!E9=DA!A4,DA!BC4,IF(EM!E9=DA!A5,DA!BC5,IF(EM!E9=DA!A6,DA!BC6,IF(EM!E9=DA!A7,DA!BC7,IF(EM!E9=DA!A8,DA!BC8,IF(EM!E9=DA!A9,DA!BC9,IF(EM!E9=DA!A10,DA!BC10,IF(EM!E9=DA!A11,DA!BC11,IF(EM!E9=DA!A12,DA!BC12,IF(EM!E9=DA!A13,DA!BC13,IF(EM!E9=DA!A14,DA!BC14,IF(EM!E9=DA!A15,DA!BC15,IF(EM!E9=DA!A16,DA!BC16,IF(EM!E9=DA!A17,DA!BC17,IF(EM!E9=DA!A18,DA!BC18,IF(EM!E9=DA!A19,DA!BC19,IF(EM!E9=DA!A20,DA!BC20,IF(EM!E9=DA!A21,DA!BC21)))))))))))))))))))),"")&IF(EM!C6="LBG II",(IF(EM!E9=DA!A3,DA!BD3,IF(EM!E9=DA!A4,DA!BD4,IF(EM!E9=DA!A5,DA!BD5,IF(EM!E9=DA!A6,DA!BD6,IF(EM!E9=DA!A7,DA!BD7,IF(EM!E9=DA!A8,DA!BD8,IF(EM!E9=DA!A9,DA!BD9,IF(EM!E9=DA!A10,DA!BD10,IF(EM!E9=DA!A11,DA!BD11,IF(EM!E9=DA!A12,DA!BD12,IF(EM!E9=DA!A13,DA!BD13,IF(EM!E9=DA!A14,DA!BD14,IF(EM!E9=DA!A15,DA!BD15,IF(EM!E9=DA!A16,DA!BD16,IF(EM!E9=DA!A17,DA!BD17,IF(EM!E9=DA!A18,DA!BD18,IF(EM!E9=DA!A19,DA!BD19,IF(EM!E9=DA!A20,DA!BD20,IF(EM!E9=DA!A21,DA!BD21)))))))))))))))))))),"")&IF(EM!C6="LBG III",(IF(EM!E9=DA!A3,DA!BE3,IF(EM!E9=DA!A4,DA!BE4,IF(EM!E9=DA!A5,DA!BE5,IF(EM!E9=DA!A6,DA!BE6,IF(EM!E9=DA!A7,DA!BE7,IF(EM!E9=DA!A8,DA!BE8,IF(EM!E9=DA!A9,DA!BE9,IF(EM!E9=DA!A10,DA!BE10,IF(EM!E9=DA!A11,DA!BE11,IF(EM!E9=DA!A12,DA!BE12,IF(EM!E9=DA!A13,DA!BE13,IF(EM!E9=DA!A14,DA!BE14,IF(EM!E9=DA!A15,DA!BE15,IF(EM!E9=DA!A16,DA!BE16,IF(EM!E9=DA!A17,DA!BE17,IF(EM!E9=DA!A18,DA!BE18,IF(EM!E9=DA!A19,DA!BE19,IF(EM!E9=DA!A20,DA!BE20,IF(EM!E9=DA!A21,DA!BE21)))))))))))))))))))),"")&IF(EM!C6="LBG IV",(IF(EM!E9=DA!A3,DA!BF3,IF(EM!E9=DA!A4,DA!BF4,IF(EM!E9=DA!A5,DA!BF5,IF(EM!E9=DA!A6,DA!BF6,IF(EM!E9=DA!A7,DA!BF7,IF(EM!E9=DA!A8,DA!BF8,IF(EM!E9=DA!A9,DA!BF9,IF(EM!E9=DA!A10,DA!BF10,IF(EM!E9=DA!A11,DA!BF11,IF(EM!E9=DA!A12,DA!BF12,IF(EM!E9=DA!A13,DA!BF13,IF(EM!E9=DA!A14,DA!BF14,IF(EM!E9=DA!A15,DA!BF15,IF(EM!E9=DA!A16,DA!BF16,IF(EM!E9=DA!A17,DA!BF17,IF(EM!E9=DA!A18,DA!BF18,IF(EM!E9=DA!A19,DA!BF19,IF(EM!E9=DA!A20,DA!BF20,IF(EM!E9=DA!A21,DA!BF21)))))))))))))))))))),"")&IF(EM!C6="LBG V",(IF(EM!E9=DA!A3,DA!BG3,IF(EM!E9=DA!A4,DA!BG4,IF(EM!E9=DA!A5,DA!BG5,IF(EM!E9=DA!A6,DA!BG6,IF(EM!E9=DA!A7,DA!BG7,IF(EM!E9=DA!A8,DA!BG8,IF(EM!E9=DA!A9,DA!BG9,IF(EM!E9=DA!A10,DA!BG10,IF(EM!E9=DA!A11,DA!BG11,IF(EM!E9=DA!A12,DA!BG12,IF(EM!E9=DA!A13,DA!BG13,IF(EM!E9=DA!A14,DA!BG14,IF(EM!E9=DA!A15,DA!BG15,IF(EM!E9=DA!A16,DA!BG16,IF(EM!E9=DA!A17,DA!BG17,IF(EM!E9=DA!A18,DA!BG18,IF(EM!E9=DA!A19,DA!BG19,IF(EM!E9=DA!A20,DA!BG20))))))))))))))))))),"")))))) ->  | W9: =IF(OR(D9<>4,E9=""),"",(SUM(R9,T9)*(IF(A20=0,1,IF(A20=5,1.05,IF(A20=10,1.1))))+(IF(V9<>"",V9)))) ->  | X9: =IF(OR(D9<>4,E9=""),"",SUM(Q9,W9)+V24) ->  | Y9: =IF(OR(D9<>4,E9=""),"",(J9-X9)) -> 
A10: =IF(OR(A6="",A4=""),"",A4/A6) ->  | D10: =IF(OR(E4=5,E4=6),5,"-") -> - | F10: =IF(OR(D10<>5,E10=""),"",(IF(G10<>"",G10,(IF(E10=DA!A3,DA!I3,IF(E10=DA!A4,DA!I4,IF(E10=DA!A5,DA!I5,IF(E10=DA!A6,DA!I6,IF(E10=DA!A7,DA!I7,IF(E10=DA!A4,DA!I8,IF(E10=DA!A8,DA!I4,IF(E10=DA!A9,DA!I9,IF(E10=DA!A10,DA!I10,IF(E10=DA!A11,DA!I11,IF(E10=DA!A12,DA!I12,IF(E10=DA!A13,DA!I13,IF(E10=DA!A14,DA!I14,IF(E10=DA!A15,DA!I15,IF(E10=DA!A16,DA!I16,IF(E10=DA!A17,DA!I17,IF(E10=DA!A18,DA!I18,IF(E10=DA!A19,DA!I19,IF(E10=DA!A20,DA!I20,IF(E10=DA!A21,DA!I21)))))))))))))))))))))))) ->  | H10: =IF(OR(D10<>5,E10=""),"",(IF(I10<>"",I10,(SUM(IF(EM!C6="LBG I",(IF(EM!E10=DA!A3,DA!J3,IF(EM!E10=DA!A4,DA!J4,IF(EM!E10=DA!A5,DA!J5,IF(EM!E10=DA!A6,DA!J6,IF(EM!E10=DA!A7,DA!J7,IF(EM!E10=DA!A8,DA!J8,IF(EM!E10=DA!A9,DA!J9,IF(EM!E10=DA!A10,DA!J10,IF(EM!E10=DA!A11,DA!J11,IF(EM!E10=DA!A12,DA!J12,IF(EM!E10=DA!A13,DA!J13,IF(EM!E10=DA!A14,DA!J14,IF(EM!E10=DA!A15,DA!J15,IF(EM!E10=DA!A16,DA!J16,IF(EM!E10=DA!A17,DA!J17,IF(EM!E10=DA!A18,DA!J18,IF(EM!E10=DA!A19,DA!J19,IF(EM!E10=DA!A20,DA!J20,IF(EM!E10=DA!A21,DA!J21)))))))))))))))))))),"")&IF(EM!C6="LBG II",(IF(EM!E10=DA!A3,DA!K3,IF(EM!E10=DA!A4,DA!K4,IF(EM!E10=DA!A5,DA!K5,IF(EM!E10=DA!A6,DA!K6,IF(EM!E10=DA!A7,DA!K7,IF(EM!E10=DA!A8,DA!K8,IF(EM!E10=DA!A9,DA!K9,IF(EM!E10=DA!A10,DA!K10,IF(EM!E10=DA!A11,DA!K11,IF(EM!E10=DA!A12,DA!K12,IF(EM!E10=DA!A13,DA!K13,IF(EM!E10=DA!A14,DA!K14,IF(EM!E10=DA!A15,DA!K15,IF(EM!E10=DA!A16,DA!K16,IF(EM!E10=DA!A17,DA!K17,IF(EM!E10=DA!A18,DA!K18,IF(EM!E10=DA!A19,DA!K19,IF(EM!E10=DA!A20,DA!K20,IF(EM!E10=DA!A21,DA!K21)))))))))))))))))))),"")&IF(EM!C6="LBG III",(IF(EM!E10=DA!A3,DA!L3,IF(EM!E10=DA!A4,DA!L4,IF(EM!E10=DA!A5,DA!L5,IF(EM!E10=DA!A6,DA!L6,IF(EM!E10=DA!A7,DA!L7,IF(EM!E10=DA!A8,DA!L8,IF(EM!E10=DA!A9,DA!L9,IF(EM!E10=DA!A10,DA!L10,IF(EM!E10=DA!A11,DA!L11,IF(EM!E10=DA!A12,DA!L12,IF(EM!E10=DA!A13,DA!L13,IF(EM!E10=DA!A14,DA!L14,IF(EM!E10=DA!A15,DA!L15,IF(EM!E10=DA!A16,DA!L16,IF(EM!E10=DA!A17,DA!L17,IF(EM!E10=DA!A18,DA!L18,IF(EM!E10=DA!A19,DA!L19,IF(EM!E10=DA!A20,DA!L20,IF(EM!E10=DA!A21,DA!L21)))))))))))))))))))),"")&IF(EM!C6="LBG IV",(IF(EM!E10=DA!A3,DA!M3,IF(EM!E10=DA!A4,DA!M4,IF(EM!E10=DA!A5,DA!M5,IF(EM!E10=DA!A6,DA!M6,IF(EM!E10=DA!A7,DA!M7,IF(EM!E10=DA!A8,DA!M8,IF(EM!E10=DA!A9,DA!M9,IF(EM!E10=DA!A10,DA!M10,IF(EM!E10=DA!A11,DA!M11,IF(EM!E10=DA!A12,DA!M12,IF(EM!E10=DA!A13,DA!M13,IF(EM!E10=DA!A14,DA!M14,IF(EM!E10=DA!A15,DA!M15,IF(EM!E10=DA!A16,DA!M16,IF(EM!E10=DA!A17,DA!M17,IF(EM!E10=DA!A18,DA!M18,IF(EM!E10=DA!A19,DA!M19,IF(EM!E10=DA!A20,DA!M20,IF(EM!E10=DA!A21,DA!M21)))))))))))))))))))),"")&IF(EM!C6="LBG V",(IF(EM!E10=DA!A3,DA!N3,IF(EM!E10=DA!A4,DA!N4,IF(EM!E10=DA!A5,DA!N5,IF(EM!E10=DA!A6,DA!N6,IF(EM!E10=DA!A7,DA!N7,IF(EM!E10=DA!A8,DA!N8,IF(EM!E10=DA!A9,DA!N9,IF(EM!E10=DA!A10,DA!N10,IF(EM!E10=DA!A11,DA!N11,IF(EM!E10=DA!A12,DA!N12,IF(EM!E10=DA!A13,DA!N13,IF(EM!E10=DA!A14,DA!N14,IF(EM!E10=DA!A15,DA!N15,IF(EM!E10=DA!A16,DA!N16,IF(EM!E10=DA!A17,DA!N17,IF(EM!E10=DA!A18,DA!N18,IF(EM!E10=DA!A19,DA!N19,IF(EM!E10=DA!A20,DA!N20))))))))))))))))))),"")))))) ->  | J10: =IF(OR(D10<>5,E10=""),"",(SUM(F10*H10)+(IF(L17="ja",N17,0))+W25)) ->  | K10: =IF(OR(D10<>5,E10=""),"",(IF(L10<>"",L10,(SUM(IF(EM!C6="LBG I",(IF(EM!E10=DA!A3,DA!AN3,IF(EM!E10=DA!A4,DA!AN4,IF(EM!E10=DA!A5,DA!AN5,IF(EM!E10=DA!A6,DA!AN6,IF(EM!E10=DA!A7,DA!AN7,IF(EM!E10=DA!A8,DA!AN8,IF(EM!E10=DA!A9,DA!AN9,IF(EM!E10=DA!A10,DA!AN10,IF(EM!E10=DA!A11,DA!AN11,IF(EM!E10=DA!A12,DA!AN12,IF(EM!E10=DA!A13,DA!AN13,IF(EM!E10=DA!A14,DA!AN14,IF(EM!E10=DA!A15,DA!AN15,IF(EM!E10=DA!A16,DA!AN16,IF(EM!E10=DA!A17,DA!AN17,IF(EM!E10=DA!A18,DA!AN18,IF(EM!E10=DA!A19,DA!AN19,IF(EM!E10=DA!A20,DA!AN20,IF(EM!E10=DA!A21,DA!AN21)))))))))))))))))))),"")&IF(EM!C6="LBG II",(IF(EM!E10=DA!A3,DA!AO3,IF(EM!E10=DA!A4,DA!AO4,IF(EM!E10=DA!A5,DA!AO5,IF(EM!E10=DA!A6,DA!AO6,IF(EM!E10=DA!A7,DA!AO7,IF(EM!E10=DA!A8,DA!AO8,IF(EM!E10=DA!A9,DA!AO9,IF(EM!E10=DA!A10,DA!AO10,IF(EM!E10=DA!A11,DA!AO11,IF(EM!E10=DA!A12,DA!AO12,IF(EM!E10=DA!A13,DA!AO13,IF(EM!E10=DA!A14,DA!AO14,IF(EM!E10=DA!A15,DA!AO15,IF(EM!E10=DA!A16,DA!AO16,IF(EM!E10=DA!A17,DA!AO17,IF(EM!E10=DA!A18,DA!AO18,IF(EM!E10=DA!A19,DA!AO19,IF(EM!E10=DA!A20,DA!AO20,IF(EM!E10=DA!A21,DA!AO21)))))))))))))))))))),"")&IF(EM!C6="LBG III",(IF(EM!E10=DA!A3,DA!AP3,IF(EM!E10=DA!A4,DA!AP4,IF(EM!E10=DA!A5,DA!AP5,IF(EM!E10=DA!A6,DA!AP6,IF(EM!E10=DA!A7,DA!AP7,IF(EM!E10=DA!A8,DA!AP8,IF(EM!E10=DA!A9,DA!AP9,IF(EM!E10=DA!A10,DA!AP10,IF(EM!E10=DA!A11,DA!AP11,IF(EM!E10=DA!A12,DA!AP12,IF(EM!E10=DA!A13,DA!AP13,IF(EM!E10=DA!A14,DA!AP14,IF(EM!E10=DA!A15,DA!AP15,IF(EM!E10=DA!A16,DA!AP16,IF(EM!E10=DA!A17,DA!AP17,IF(EM!E10=DA!A18,DA!AP18,IF(EM!E10=DA!A19,DA!AP19,IF(EM!E10=DA!A20,DA!AP20,IF(EM!E10=DA!A21,DA!AP21)))))))))))))))))))),"")&IF(EM!C6="LBG IV",(IF(EM!E10=DA!A3,DA!AQ3,IF(EM!E10=DA!A4,DA!AQ4,IF(EM!E10=DA!A5,DA!AQ5,IF(EM!E10=DA!A6,DA!AQ6,IF(EM!E10=DA!A7,DA!AQ7,IF(EM!E10=DA!A8,DA!AQ8,IF(EM!E10=DA!A9,DA!AQ9,IF(EM!E10=DA!A10,DA!AQ10,IF(EM!E10=DA!A11,DA!AQ11,IF(EM!E10=DA!A12,DA!AQ12,IF(EM!E10=DA!A13,DA!AQ13,IF(EM!E10=DA!A14,DA!AQ14,IF(EM!E10=DA!A15,DA!AQ15,IF(EM!E10=DA!A16,DA!AQ16,IF(EM!E10=DA!A17,DA!AQ17,IF(EM!E10=DA!A18,DA!AQ18,IF(EM!E10=DA!A19,DA!AQ19,IF(EM!E10=DA!A20,DA!AQ20,IF(EM!E10=DA!A21,DA!AQ21)))))))))))))))))))),"")&IF(EM!C6="LBG V",(IF(EM!E10=DA!A3,DA!AR3,IF(EM!E10=DA!A4,DA!AR4,IF(EM!E10=DA!A5,DA!AR5,IF(EM!E10=DA!A6,DA!AR6,IF(EM!E10=DA!A7,DA!AR7,IF(EM!E10=DA!A8,DA!AR8,IF(EM!E10=DA!A9,DA!AR9,IF(EM!E10=DA!A10,DA!AR10,IF(EM!E10=DA!A11,DA!AR11,IF(EM!E10=DA!A12,DA!AR12,IF(EM!E10=DA!A13,DA!AR13,IF(EM!E10=DA!A14,DA!AR14,IF(EM!E10=DA!A15,DA!AR15,IF(EM!E10=DA!A16,DA!AR16,IF(EM!E10=DA!A17,DA!AR17,IF(EM!E10=DA!A18,DA!AR18,IF(EM!E10=DA!A19,DA!AR19,IF(EM!E10=DA!A20,DA!AR20))))))))))))))))))),"")))))) ->  | M10: =IF(OR(D10<>5,E10=""),"",(IF(N10<>"",N10,(SUM(IF(EM!C6="LBG I",(IF(EM!E10=DA!A3,DA!AS3,IF(EM!E10=DA!A4,DA!AS4,IF(EM!E10=DA!A5,DA!AS5,IF(EM!E10=DA!A6,DA!AS6,IF(EM!E10=DA!A7,DA!AS7,IF(EM!E10=DA!A8,DA!AS8,IF(EM!E10=DA!A9,DA!AS9,IF(EM!E10=DA!A10,DA!AS10,IF(EM!E10=DA!A11,DA!AS11,IF(EM!E10=DA!A12,DA!AS12,IF(EM!E10=DA!A13,DA!AS13,IF(EM!E10=DA!A14,DA!AS14,IF(EM!E10=DA!A15,DA!AS15,IF(EM!E10=DA!A16,DA!AS16,IF(EM!E10=DA!A17,DA!AS17,IF(EM!E10=DA!A18,DA!AS18,IF(EM!E10=DA!A19,DA!AS19,IF(EM!E10=DA!A20,DA!AS20,IF(EM!E10=DA!A21,DA!AS21)))))))))))))))))))),"")&IF(EM!C6="LBG II",(IF(EM!E10=DA!A3,DA!AT3,IF(EM!E10=DA!A4,DA!AT4,IF(EM!E10=DA!A5,DA!AT5,IF(EM!E10=DA!A6,DA!AT6,IF(EM!E10=DA!A7,DA!AT7,IF(EM!E10=DA!A8,DA!AT8,IF(EM!E10=DA!A9,DA!AT9,IF(EM!E10=DA!A10,DA!AT10,IF(EM!E10=DA!A11,DA!AT11,IF(EM!E10=DA!A12,DA!AT12,IF(EM!E10=DA!A13,DA!AT13,IF(EM!E10=DA!A14,DA!AT14,IF(EM!E10=DA!A15,DA!AT15,IF(EM!E10=DA!A16,DA!AT16,IF(EM!E10=DA!A17,DA!AT17,IF(EM!E10=DA!A18,DA!AT18,IF(EM!E10=DA!A19,DA!AT19,IF(EM!E10=DA!A20,DA!AT20,IF(EM!E10=DA!A21,DA!AT21)))))))))))))))))))),"")&IF(EM!C6="LBG III",(IF(EM!E10=DA!A3,DA!AU3,IF(EM!E10=DA!A4,DA!AU4,IF(EM!E10=DA!A5,DA!AU5,IF(EM!E10=DA!A6,DA!AU6,IF(EM!E10=DA!A7,DA!AU7,IF(EM!E10=DA!A8,DA!AU8,IF(EM!E10=DA!A9,DA!AU9,IF(EM!E10=DA!A10,DA!AU10,IF(EM!E10=DA!A11,DA!AU11,IF(EM!E10=DA!A12,DA!AU12,IF(EM!E10=DA!A13,DA!AU13,IF(EM!E10=DA!A14,DA!AU14,IF(EM!E10=DA!A15,DA!AU15,IF(EM!E10=DA!A16,DA!AU16,IF(EM!E10=DA!A17,DA!AU17,IF(EM!E10=DA!A18,DA!AU18,IF(EM!E10=DA!A19,DA!AU19,IF(EM!E10=DA!A20,DA!AU20,IF(EM!E10=DA!A21,DA!AU21)))))))))))))))))))),"")&IF(EM!C6="LBG IV",(IF(EM!E10=DA!A3,DA!AV3,IF(EM!E10=DA!A4,DA!AV4,IF(EM!E10=DA!A5,DA!AV5,IF(EM!E10=DA!A6,DA!AV6,IF(EM!E10=DA!A7,DA!AV7,IF(EM!E10=DA!A8,DA!AV8,IF(EM!E10=DA!A9,DA!AV9,IF(EM!E10=DA!A10,DA!AV10,IF(EM!E10=DA!A11,DA!AV11,IF(EM!E10=DA!A12,DA!AV12,IF(EM!E10=DA!A13,DA!AV13,IF(EM!E10=DA!A14,DA!AV14,IF(EM!E10=DA!A15,DA!AV15,IF(EM!E10=DA!A16,DA!AV16,IF(EM!E10=DA!A17,DA!AV17,IF(EM!E10=DA!A18,DA!AV18,IF(EM!E10=DA!A19,DA!AV19,IF(EM!E10=DA!A20,DA!AV20,IF(EM!E10=DA!A21,DA!AV21)))))))))))))))))))),"")&IF(EM!C6="LBG V",(IF(EM!E10=DA!A3,DA!AW3,IF(EM!E10=DA!A4,DA!AW4,IF(EM!E10=DA!A5,DA!AW5,IF(EM!E10=DA!A6,DA!AW6,IF(EM!E10=DA!A7,DA!AW7,IF(EM!E10=DA!A8,DA!AW8,IF(EM!E10=DA!A9,DA!AW9,IF(EM!E10=DA!A10,DA!AW10,IF(EM!E10=DA!A11,DA!AW11,IF(EM!E10=DA!A12,DA!AW12,IF(EM!E10=DA!A13,DA!AW13,IF(EM!E10=DA!A14,DA!AW14,IF(EM!E10=DA!A15,DA!AW15,IF(EM!E10=DA!A16,DA!AW16,IF(EM!E10=DA!A17,DA!AW17,IF(EM!E10=DA!A18,DA!AW18,IF(EM!E10=DA!A19,DA!AW19,IF(EM!E10=DA!A20,DA!AW20))))))))))))))))))),"")))))) ->  | O10: =IF(OR(D10<>5,E10=""),"",(IF(P10<>"",P10,(SUM(IF(EM!C6="LBG I",(IF(EM!E10=DA!A3,DA!AX3,IF(EM!E10=DA!A4,DA!AX4,IF(EM!E10=DA!A5,DA!AX5,IF(EM!E10=DA!A6,DA!AX6,IF(EM!E10=DA!A7,DA!AX7,IF(EM!E10=DA!A8,DA!AX8,IF(EM!E10=DA!A9,DA!AX9,IF(EM!E10=DA!A10,DA!AX10,IF(EM!E10=DA!A11,DA!AX11,IF(EM!E10=DA!A12,DA!AX12,IF(EM!E10=DA!A13,DA!AX13,IF(EM!E10=DA!A14,DA!AX14,IF(EM!E10=DA!A15,DA!AX15,IF(EM!E10=DA!A16,DA!AX16,IF(EM!E10=DA!A17,DA!AX17,IF(EM!E10=DA!A18,DA!AX18,IF(EM!E10=DA!A19,DA!AX19,IF(EM!E10=DA!A20,DA!AX20,IF(EM!E10=DA!A21,DA!AX21)))))))))))))))))))),"")&IF(EM!C6="LBG II",(IF(EM!E10=DA!A3,DA!AY3,IF(EM!E10=DA!A4,DA!AY4,IF(EM!E10=DA!A5,DA!AY5,IF(EM!E10=DA!A6,DA!AY6,IF(EM!E10=DA!A7,DA!AY7,IF(EM!E10=DA!A8,DA!AY8,IF(EM!E10=DA!A9,DA!AY9,IF(EM!E10=DA!A10,DA!AY10,IF(EM!E10=DA!A11,DA!AY11,IF(EM!E10=DA!A12,DA!AY12,IF(EM!E10=DA!A13,DA!AY13,IF(EM!E10=DA!A14,DA!AY14,IF(EM!E10=DA!A15,DA!AY15,IF(EM!E10=DA!A16,DA!AY16,IF(EM!E10=DA!A17,DA!AY17,IF(EM!E10=DA!A18,DA!AY18,IF(EM!E10=DA!A19,DA!AY19,IF(EM!E10=DA!A20,DA!AY20,IF(EM!E10=DA!A21,DA!AY21)))))))))))))))))))),"")&IF(EM!C6="LBG III",(IF(EM!E10=DA!A3,DA!AZ3,IF(EM!E10=DA!A4,DA!AZ4,IF(EM!E10=DA!A5,DA!AZ5,IF(EM!E10=DA!A6,DA!AZ6,IF(EM!E10=DA!A7,DA!AZ7,IF(EM!E10=DA!A8,DA!AZ8,IF(EM!E10=DA!A9,DA!AZ9,IF(EM!E10=DA!A10,DA!AZ10,IF(EM!E10=DA!A11,DA!AZ11,IF(EM!E10=DA!A12,DA!AZ12,IF(EM!E10=DA!A13,DA!AZ13,IF(EM!E10=DA!A14,DA!AZ14,IF(EM!E10=DA!A15,DA!AZ15,IF(EM!E10=DA!A16,DA!AZ16,IF(EM!E10=DA!A17,DA!AZ17,IF(EM!E10=DA!A18,DA!AZ18,IF(EM!E10=DA!A19,DA!AZ19,IF(EM!E10=DA!A20,DA!AZ20,IF(EM!E10=DA!A21,DA!AZ21)))))))))))))))))))),"")&IF(EM!C6="LBG IV",(IF(EM!E10=DA!A3,DA!BA3,IF(EM!E10=DA!A4,DA!BA4,IF(EM!E10=DA!A5,DA!BA5,IF(EM!E10=DA!A6,DA!BA6,IF(EM!E10=DA!A7,DA!BA7,IF(EM!E10=DA!A8,DA!BA8,IF(EM!E10=DA!A9,DA!BA9,IF(EM!E10=DA!A10,DA!BA10,IF(EM!E10=DA!A11,DA!BA11,IF(EM!E10=DA!A12,DA!BA12,IF(EM!E10=DA!A13,DA!BA13,IF(EM!E10=DA!A14,DA!BA14,IF(EM!E10=DA!A15,DA!BA15,IF(EM!E10=DA!A16,DA!BA16,IF(EM!E10=DA!A17,DA!BA17,IF(EM!E10=DA!A18,DA!BA18,IF(EM!E10=DA!A19,DA!BA19,IF(EM!E10=DA!A20,DA!BA20,IF(EM!E10=DA!A21,DA!BA21)))))))))))))))))))),"")&IF(EM!C6="LBG V",(IF(EM!E10=DA!A3,DA!BB3,IF(EM!E10=DA!A4,DA!BB4,IF(EM!E10=DA!A5,DA!BB5,IF(EM!E10=DA!A6,DA!BB6,IF(EM!E10=DA!A7,DA!BB7,IF(EM!E10=DA!A8,DA!BB8,IF(EM!E10=DA!A9,DA!BB9,IF(EM!E10=DA!A10,DA!BB10,IF(EM!E10=DA!A11,DA!BB11,IF(EM!E10=DA!A12,DA!BB12,IF(EM!E10=DA!A13,DA!BB13,IF(EM!E10=DA!A14,DA!BB14,IF(EM!E10=DA!A15,DA!BB15,IF(EM!E10=DA!A16,DA!BB16,IF(EM!E10=DA!A17,DA!BB17,IF(EM!E10=DA!A18,DA!BB18,IF(EM!E10=DA!A19,DA!BB19,IF(EM!E10=DA!A20,DA!BB20))))))))))))))))))),"")))))) ->  | Q10: =IF(OR(D10<>5,E10=""),"",(SUM(K10+M10+O10+M17))) ->  | R10: =IF(OR(D10<>5,E10=""),"",(IF(S10<>"",S10,(SUM(IF(EM!C6="LBG I",(IF(EM!E10=DA!A3,DA!BH3,IF(EM!E10=DA!A4,DA!BH4,IF(EM!E10=DA!A5,DA!BH5,IF(EM!E10=DA!A6,DA!BH6,IF(EM!E10=DA!A7,DA!BH7,IF(EM!E10=DA!A8,DA!BH8,IF(EM!E10=DA!A9,DA!BH9,IF(EM!E10=DA!A10,DA!BH10,IF(EM!E10=DA!A11,DA!BH11,IF(EM!E10=DA!A12,DA!BH12,IF(EM!E10=DA!A13,DA!BH13,IF(EM!E10=DA!A14,DA!BH14,IF(EM!E10=DA!A15,DA!BH15,IF(EM!E10=DA!A16,DA!BH16,IF(EM!E10=DA!A17,DA!BH17,IF(EM!E10=DA!A18,DA!BH18,IF(EM!E10=DA!A19,DA!BH19,IF(EM!E10=DA!A20,DA!BH20,IF(EM!E10=DA!A21,DA!BH21)))))))))))))))))))),"")&IF(EM!C6="LBG II",(IF(EM!E10=DA!A3,DA!BI3,IF(EM!E10=DA!A4,DA!BI4,IF(EM!E10=DA!A5,DA!BI5,IF(EM!E10=DA!A6,DA!BI6,IF(EM!E10=DA!A7,DA!BI7,IF(EM!E10=DA!A8,DA!BI8,IF(EM!E10=DA!A9,DA!BI9,IF(EM!E10=DA!A10,DA!BI10,IF(EM!E10=DA!A11,DA!BI11,IF(EM!E10=DA!A12,DA!BI12,IF(EM!E10=DA!A13,DA!BI13,IF(EM!E10=DA!A14,DA!BI14,IF(EM!E10=DA!A15,DA!BI15,IF(EM!E10=DA!A16,DA!BI16,IF(EM!E10=DA!A17,DA!BI17,IF(EM!E10=DA!A18,DA!BI18,IF(EM!E10=DA!A19,DA!BI19,IF(EM!E10=DA!A20,DA!BI20,IF(EM!E10=DA!A21,DA!BI21)))))))))))))))))))),"")&IF(EM!C6="LBG III",(IF(EM!E10=DA!A3,DA!BJ3,IF(EM!E10=DA!A4,DA!BJ4,IF(EM!E10=DA!A5,DA!BJ5,IF(EM!E10=DA!A6,DA!BJ6,IF(EM!E10=DA!A7,DA!BJ7,IF(EM!E10=DA!A8,DA!BJ8,IF(EM!E10=DA!A9,DA!BJ9,IF(EM!E10=DA!A10,DA!BJ10,IF(EM!E10=DA!A11,DA!BJ11,IF(EM!E10=DA!A12,DA!BJ12,IF(EM!E10=DA!A13,DA!BJ13,IF(EM!E10=DA!A14,DA!BJ14,IF(EM!E10=DA!A15,DA!BJ15,IF(EM!E10=DA!A16,DA!BJ16,IF(EM!E10=DA!A17,DA!BJ17,IF(EM!E10=DA!A18,DA!BJ18,IF(EM!E10=DA!A19,DA!BJ19,IF(EM!E10=DA!A20,DA!BJ20,IF(EM!E10=DA!A21,DA!BJ21)))))))))))))))))))),"")&IF(EM!C6="LBG IV",(IF(EM!E10=DA!A3,DA!BK3,IF(EM!E10=DA!A4,DA!BK4,IF(EM!E10=DA!A5,DA!BK5,IF(EM!E10=DA!A6,DA!BK6,IF(EM!E10=DA!A7,DA!BK7,IF(EM!E10=DA!A8,DA!BK8,IF(EM!E10=DA!A9,DA!BK9,IF(EM!E10=DA!A10,DA!BK10,IF(EM!E10=DA!A11,DA!BK11,IF(EM!E10=DA!A12,DA!BK12,IF(EM!E10=DA!A13,DA!BK13,IF(EM!E10=DA!A14,DA!BK14,IF(EM!E10=DA!A15,DA!BK15,IF(EM!E10=DA!A16,DA!BK16,IF(EM!E10=DA!A17,DA!BK17,IF(EM!E10=DA!A18,DA!BK18,IF(EM!E10=DA!A19,DA!BK19,IF(EM!E10=DA!A20,DA!BK20,IF(EM!E10=DA!A21,DA!BK21)))))))))))))))))))),"")&IF(EM!C6="LBG V",(IF(EM!E10=DA!A3,DA!BL3,IF(EM!E10=DA!A4,DA!BL4,IF(EM!E10=DA!A5,DA!BL5,IF(EM!E10=DA!A6,DA!BL6,IF(EM!E10=DA!A7,DA!BL7,IF(EM!E10=DA!A8,DA!BL8,IF(EM!E10=DA!A9,DA!BL9,IF(EM!E10=DA!A10,DA!BL10,IF(EM!E10=DA!A11,DA!BL11,IF(EM!E10=DA!A12,DA!BL12,IF(EM!E10=DA!A13,DA!BL13,IF(EM!E10=DA!A14,DA!BL14,IF(EM!E10=DA!A15,DA!BL15,IF(EM!E10=DA!A16,DA!BL16,IF(EM!E10=DA!A17,DA!BL17,IF(EM!E10=DA!A18,DA!BL18,IF(EM!E10=DA!A19,DA!BL19,IF(EM!E10=DA!A20,DA!BL20))))))))))))))))))),"")))))) ->  | T10: =IF(OR(D10<>5,E10=""),"",(IF(U10<>"",U10,(SUM(IF(EM!C6="LBG I",(IF(EM!E10=DA!A3,DA!BC3,IF(EM!E10=DA!A4,DA!BC4,IF(EM!E10=DA!A5,DA!BC5,IF(EM!E10=DA!A6,DA!BC6,IF(EM!E10=DA!A7,DA!BC7,IF(EM!E10=DA!A8,DA!BC8,IF(EM!E10=DA!A9,DA!BC9,IF(EM!E10=DA!A10,DA!BC10,IF(EM!E10=DA!A11,DA!BC11,IF(EM!E10=DA!A12,DA!BC12,IF(EM!E10=DA!A13,DA!BC13,IF(EM!E10=DA!A14,DA!BC14,IF(EM!E10=DA!A15,DA!BC15,IF(EM!E10=DA!A16,DA!BC16,IF(EM!E10=DA!A17,DA!BC17,IF(EM!E10=DA!A18,DA!BC18,IF(EM!E10=DA!A19,DA!BC19,IF(EM!E10=DA!A20,DA!BC20,IF(EM!E10=DA!A21,DA!BC21)))))))))))))))))))),"")&IF(EM!C6="LBG II",(IF(EM!E10=DA!A3,DA!BD3,IF(EM!E10=DA!A4,DA!BD4,IF(EM!E10=DA!A5,DA!BD5,IF(EM!E10=DA!A6,DA!BD6,IF(EM!E10=DA!A7,DA!BD7,IF(EM!E10=DA!A8,DA!BD8,IF(EM!E10=DA!A9,DA!BD9,IF(EM!E10=DA!A10,DA!BD10,IF(EM!E10=DA!A11,DA!BD11,IF(EM!E10=DA!A12,DA!BD12,IF(EM!E10=DA!A13,DA!BD13,IF(EM!E10=DA!A14,DA!BD14,IF(EM!E10=DA!A15,DA!BD15,IF(EM!E10=DA!A16,DA!BD16,IF(EM!E10=DA!A17,DA!BD17,IF(EM!E10=DA!A18,DA!BD18,IF(EM!E10=DA!A19,DA!BD19,IF(EM!E10=DA!A20,DA!BD20,IF(EM!E10=DA!A21,DA!BD21)))))))))))))))))))),"")&IF(EM!C6="LBG III",(IF(EM!E10=DA!A3,DA!BE3,IF(EM!E10=DA!A4,DA!BE4,IF(EM!E10=DA!A5,DA!BE5,IF(EM!E10=DA!A6,DA!BE6,IF(EM!E10=DA!A7,DA!BE7,IF(EM!E10=DA!A8,DA!BE8,IF(EM!E10=DA!A9,DA!BE9,IF(EM!E10=DA!A10,DA!BE10,IF(EM!E10=DA!A11,DA!BE11,IF(EM!E10=DA!A12,DA!BE12,IF(EM!E10=DA!A13,DA!BE13,IF(EM!E10=DA!A14,DA!BE14,IF(EM!E10=DA!A15,DA!BE15,IF(EM!E10=DA!A16,DA!BE16,IF(EM!E10=DA!A17,DA!BE17,IF(EM!E10=DA!A18,DA!BE18,IF(EM!E10=DA!A19,DA!BE19,IF(EM!E10=DA!A20,DA!BE20,IF(EM!E10=DA!A21,DA!BE21)))))))))))))))))))),"")&IF(EM!C6="LBG IV",(IF(EM!E10=DA!A3,DA!BF3,IF(EM!E10=DA!A4,DA!BF4,IF(EM!E10=DA!A5,DA!BF5,IF(EM!E10=DA!A6,DA!BF6,IF(EM!E10=DA!A7,DA!BF7,IF(EM!E10=DA!A8,DA!BF8,IF(EM!E10=DA!A9,DA!BF9,IF(EM!E10=DA!A10,DA!BF10,IF(EM!E10=DA!A11,DA!BF11,IF(EM!E10=DA!A12,DA!BF12,IF(EM!E10=DA!A13,DA!BF13,IF(EM!E10=DA!A14,DA!BF14,IF(EM!E10=DA!A15,DA!BF15,IF(EM!E10=DA!A16,DA!BF16,IF(EM!E10=DA!A17,DA!BF17,IF(EM!E10=DA!A18,DA!BF18,IF(EM!E10=DA!A19,DA!BF19,IF(EM!E10=DA!A20,DA!BF20,IF(EM!E10=DA!A21,DA!BF21)))))))))))))))))))),"")&IF(EM!C6="LBG V",(IF(EM!E10=DA!A3,DA!BG3,IF(EM!E10=DA!A4,DA!BG4,IF(EM!E10=DA!A5,DA!BG5,IF(EM!E10=DA!A6,DA!BG6,IF(EM!E10=DA!A7,DA!BG7,IF(EM!E10=DA!A8,DA!BG8,IF(EM!E10=DA!A9,DA!BG9,IF(EM!E10=DA!A10,DA!BG10,IF(EM!E10=DA!A11,DA!BG11,IF(EM!E10=DA!A12,DA!BG12,IF(EM!E10=DA!A13,DA!BG13,IF(EM!E10=DA!A14,DA!BG14,IF(EM!E10=DA!A15,DA!BG15,IF(EM!E10=DA!A16,DA!BG16,IF(EM!E10=DA!A17,DA!BG17,IF(EM!E10=DA!A18,DA!BG18,IF(EM!E10=DA!A19,DA!BG19,IF(EM!E10=DA!A20,DA!BG20))))))))))))))))))),"")))))) ->  | W10: =IF(OR(D10<>5,E10=""),"",(SUM(R10,T10)*(IF(A20=0,1,IF(A20=5,1.05,IF(A20=10,1.1))))+(IF(V10<>"",V10)))) ->  | X10: =IF(OR(D10<>5,E10=""),"",(SUM(Q10,W10)+V25)) ->  | Y10: =IF(OR(D10<>5,E10=""),"",(J10-X10)) -> 
A11: Umtriebsart | B11: Erntemenge [t/ha*a] | D11: =IF(OR(E4=6),6,"-") -> - | F11: =IF(OR(D11<>6,E11=""),"",(IF(G11<>"",G11,(IF(E11=DA!A3,DA!I3,IF(E11=DA!A4,DA!I4,IF(E11=DA!A5,DA!I5,IF(E11=DA!A6,DA!I6,IF(E11=DA!A7,DA!I7,IF(E11=DA!A4,DA!I8,IF(E11=DA!A8,DA!I4,IF(E11=DA!A9,DA!I9,IF(E11=DA!A10,DA!I10,IF(E11=DA!A11,DA!I11,IF(E11=DA!A12,DA!I12,IF(E11=DA!A13,DA!I13,IF(E11=DA!A14,DA!I14,IF(E11=DA!A15,DA!I15,IF(E11=DA!A16,DA!I16,IF(E11=DA!A17,DA!I17,IF(E11=DA!A18,DA!I18,IF(E11=DA!A19,DA!I19,IF(E11=DA!A20,DA!I20,IF(E11=DA!A21,DA!I21)))))))))))))))))))))))) ->  | H11: =IF(OR(D11<>6,E11=""),"",(IF(I11<>"",I11,(SUM(IF(EM!C6="LBG I",(IF(EM!E11=DA!A3,DA!J3,IF(EM!E11=DA!A4,DA!J4,IF(EM!E11=DA!A5,DA!J5,IF(EM!E11=DA!A6,DA!J6,IF(EM!E11=DA!A7,DA!J7,IF(EM!E11=DA!A8,DA!J8,IF(EM!E11=DA!A9,DA!J9,IF(EM!E11=DA!A10,DA!J10,IF(EM!E11=DA!A11,DA!J11,IF(EM!E11=DA!A12,DA!J12,IF(EM!E11=DA!A13,DA!J13,IF(EM!E11=DA!A14,DA!J14,IF(EM!E11=DA!A15,DA!J15,IF(EM!E11=DA!A16,DA!J16,IF(EM!E11=DA!A17,DA!J17,IF(EM!E11=DA!A18,DA!J18,IF(EM!E11=DA!A19,DA!J19,IF(EM!E11=DA!A20,DA!J20,IF(EM!E11=DA!A21,DA!J21)))))))))))))))))))),"")&IF(EM!C6="LBG II",(IF(EM!E11=DA!A3,DA!K3,IF(EM!E11=DA!A4,DA!K4,IF(EM!E11=DA!A5,DA!K5,IF(EM!E11=DA!A6,DA!K6,IF(EM!E11=DA!A7,DA!K7,IF(EM!E11=DA!A8,DA!K8,IF(EM!E11=DA!A9,DA!K9,IF(EM!E11=DA!A10,DA!K10,IF(EM!E11=DA!A11,DA!K11,IF(EM!E11=DA!A12,DA!K12,IF(EM!E11=DA!A13,DA!K13,IF(EM!E11=DA!A14,DA!K14,IF(EM!E11=DA!A15,DA!K15,IF(EM!E11=DA!A16,DA!K16,IF(EM!E11=DA!A17,DA!K17,IF(EM!E11=DA!A18,DA!K18,IF(EM!E11=DA!A19,DA!K19,IF(EM!E11=DA!A20,DA!K20,IF(EM!E11=DA!A21,DA!K21)))))))))))))))))))),"")&IF(EM!C6="LBG III",(IF(EM!E11=DA!A3,DA!L3,IF(EM!E11=DA!A4,DA!L4,IF(EM!E11=DA!A5,DA!L5,IF(EM!E11=DA!A6,DA!L6,IF(EM!E11=DA!A7,DA!L7,IF(EM!E11=DA!A8,DA!L8,IF(EM!E11=DA!A9,DA!L9,IF(EM!E11=DA!A10,DA!L10,IF(EM!E11=DA!A11,DA!L11,IF(EM!E11=DA!A12,DA!L12,IF(EM!E11=DA!A13,DA!L13,IF(EM!E11=DA!A14,DA!L14,IF(EM!E11=DA!A15,DA!L15,IF(EM!E11=DA!A16,DA!L16,IF(EM!E11=DA!A17,DA!L17,IF(EM!E11=DA!A18,DA!L18,IF(EM!E11=DA!A19,DA!L19,IF(EM!E11=DA!A20,DA!L20,IF(EM!E11=DA!A21,DA!L21)))))))))))))))))))),"")&IF(EM!C6="LBG IV",(IF(EM!E11=DA!A3,DA!M3,IF(EM!E11=DA!A4,DA!M4,IF(EM!E11=DA!A5,DA!M5,IF(EM!E11=DA!A6,DA!M6,IF(EM!E11=DA!A7,DA!M7,IF(EM!E11=DA!A8,DA!M8,IF(EM!E11=DA!A9,DA!M9,IF(EM!E11=DA!A10,DA!M10,IF(EM!E11=DA!A11,DA!M11,IF(EM!E11=DA!A12,DA!M12,IF(EM!E11=DA!A13,DA!M13,IF(EM!E11=DA!A14,DA!M14,IF(EM!E11=DA!A15,DA!M15,IF(EM!E11=DA!A16,DA!M16,IF(EM!E11=DA!A17,DA!M17,IF(EM!E11=DA!A18,DA!M18,IF(EM!E11=DA!A19,DA!M19,IF(EM!E11=DA!A20,DA!M20,IF(EM!E11=DA!A21,DA!M21)))))))))))))))))))),"")&IF(EM!C6="LBG V",(IF(EM!E11=DA!A3,DA!N3,IF(EM!E11=DA!A4,DA!N4,IF(EM!E11=DA!A5,DA!N5,IF(EM!E11=DA!A6,DA!N6,IF(EM!E11=DA!A7,DA!N7,IF(EM!E11=DA!A8,DA!N8,IF(EM!E11=DA!A9,DA!N9,IF(EM!E11=DA!A10,DA!N10,IF(EM!E11=DA!A11,DA!N11,IF(EM!E11=DA!A12,DA!N12,IF(EM!E11=DA!A13,DA!N13,IF(EM!E11=DA!A14,DA!N14,IF(EM!E11=DA!A15,DA!N15,IF(EM!E11=DA!A16,DA!N16,IF(EM!E11=DA!A17,DA!N17,IF(EM!E11=DA!A18,DA!N18,IF(EM!E11=DA!A19,DA!N19,IF(EM!E11=DA!A20,DA!N20))))))))))))))))))),"")))))) ->  | J11: =IF(OR(D11<>6,E11=""),"",(SUM(F11*H11)+(IF(L18="ja",N18,0))+W26)) ->  | K11: =IF(OR(D11<>6,E11=""),"",(IF(L11<>"",L11,(SUM(IF(EM!C6="LBG I",(IF(EM!E11=DA!A3,DA!AN3,IF(EM!E11=DA!A4,DA!AN4,IF(EM!E11=DA!A5,DA!AN5,IF(EM!E11=DA!A6,DA!AN6,IF(EM!E11=DA!A7,DA!AN7,IF(EM!E11=DA!A8,DA!AN8,IF(EM!E11=DA!A9,DA!AN9,IF(EM!E11=DA!A10,DA!AN10,IF(EM!E11=DA!A11,DA!AN11,IF(EM!E11=DA!A12,DA!AN12,IF(EM!E11=DA!A13,DA!AN13,IF(EM!E11=DA!A14,DA!AN14,IF(EM!E11=DA!A15,DA!AN15,IF(EM!E11=DA!A16,DA!AN16,IF(EM!E11=DA!A17,DA!AN17,IF(EM!E11=DA!A18,DA!AN18,IF(EM!E11=DA!A19,DA!AN19,IF(EM!E11=DA!A20,DA!AN20,IF(EM!E11=DA!A21,DA!AN21)))))))))))))))))))),"")&IF(EM!C6="LBG II",(IF(EM!E11=DA!A3,DA!AO3,IF(EM!E11=DA!A4,DA!AO4,IF(EM!E11=DA!A5,DA!AO5,IF(EM!E11=DA!A6,DA!AO6,IF(EM!E11=DA!A7,DA!AO7,IF(EM!E11=DA!A8,DA!AO8,IF(EM!E11=DA!A9,DA!AO9,IF(EM!E11=DA!A10,DA!AO10,IF(EM!E11=DA!A11,DA!AO11,IF(EM!E11=DA!A12,DA!AO12,IF(EM!E11=DA!A13,DA!AO13,IF(EM!E11=DA!A14,DA!AO14,IF(EM!E11=DA!A15,DA!AO15,IF(EM!E11=DA!A16,DA!AO16,IF(EM!E11=DA!A17,DA!AO17,IF(EM!E11=DA!A18,DA!AO18,IF(EM!E11=DA!A19,DA!AO19,IF(EM!E11=DA!A20,DA!AO20,IF(EM!E11=DA!A21,DA!AO21)))))))))))))))))))),"")&IF(EM!C6="LBG III",(IF(EM!E11=DA!A3,DA!AP3,IF(EM!E11=DA!A4,DA!AP4,IF(EM!E11=DA!A5,DA!AP5,IF(EM!E11=DA!A6,DA!AP6,IF(EM!E11=DA!A7,DA!AP7,IF(EM!E11=DA!A8,DA!AP8,IF(EM!E11=DA!A9,DA!AP9,IF(EM!E11=DA!A10,DA!AP10,IF(EM!E11=DA!A11,DA!AP11,IF(EM!E11=DA!A12,DA!AP12,IF(EM!E11=DA!A13,DA!AP13,IF(EM!E11=DA!A14,DA!AP14,IF(EM!E11=DA!A15,DA!AP15,IF(EM!E11=DA!A16,DA!AP16,IF(EM!E11=DA!A17,DA!AP17,IF(EM!E11=DA!A18,DA!AP18,IF(EM!E11=DA!A19,DA!AP19,IF(EM!E11=DA!A20,DA!AP20,IF(EM!E11=DA!A21,DA!AP21)))))))))))))))))))),"")&IF(EM!C6="LBG IV",(IF(EM!E11=DA!A3,DA!AQ3,IF(EM!E11=DA!A4,DA!AQ4,IF(EM!E11=DA!A5,DA!AQ5,IF(EM!E11=DA!A6,DA!AQ6,IF(EM!E11=DA!A7,DA!AQ7,IF(EM!E11=DA!A8,DA!AQ8,IF(EM!E11=DA!A9,DA!AQ9,IF(EM!E11=DA!A10,DA!AQ10,IF(EM!E11=DA!A11,DA!AQ11,IF(EM!E11=DA!A12,DA!AQ12,IF(EM!E11=DA!A13,DA!AQ13,IF(EM!E11=DA!A14,DA!AQ14,IF(EM!E11=DA!A15,DA!AQ15,IF(EM!E11=DA!A16,DA!AQ16,IF(EM!E11=DA!A17,DA!AQ17,IF(EM!E11=DA!A18,DA!AQ18,IF(EM!E11=DA!A19,DA!AQ19,IF(EM!E11=DA!A20,DA!AQ20,IF(EM!E11=DA!A21,DA!AQ21)))))))))))))))))))),"")&IF(EM!C6="LBG V",(IF(EM!E11=DA!A3,DA!AR3,IF(EM!E11=DA!A4,DA!AR4,IF(EM!E11=DA!A5,DA!AR5,IF(EM!E11=DA!A6,DA!AR6,IF(EM!E11=DA!A7,DA!AR7,IF(EM!E11=DA!A8,DA!AR8,IF(EM!E11=DA!A9,DA!AR9,IF(EM!E11=DA!A10,DA!AR10,IF(EM!E11=DA!A11,DA!AR11,IF(EM!E11=DA!A12,DA!AR12,IF(EM!E11=DA!A13,DA!AR13,IF(EM!E11=DA!A14,DA!AR14,IF(EM!E11=DA!A15,DA!AR15,IF(EM!E11=DA!A16,DA!AR16,IF(EM!E11=DA!A17,DA!AR17,IF(EM!E11=DA!A18,DA!AR18,IF(EM!E11=DA!A19,DA!AR19,IF(EM!E11=DA!A20,DA!AR20))))))))))))))))))),"")))))) ->  | M11: =IF(OR(D11<>6,E11=""),"",(IF(N11<>"",N11,(SUM(IF(EM!C6="LBG I",(IF(EM!E11=DA!A3,DA!AS3,IF(EM!E11=DA!A4,DA!AS4,IF(EM!E11=DA!A5,DA!AS5,IF(EM!E11=DA!A6,DA!AS6,IF(EM!E11=DA!A7,DA!AS7,IF(EM!E11=DA!A8,DA!AS8,IF(EM!E11=DA!A9,DA!AS9,IF(EM!E11=DA!A10,DA!AS10,IF(EM!E11=DA!A11,DA!AS11,IF(EM!E11=DA!A12,DA!AS12,IF(EM!E11=DA!A13,DA!AS13,IF(EM!E11=DA!A14,DA!AS14,IF(EM!E11=DA!A15,DA!AS15,IF(EM!E11=DA!A16,DA!AS16,IF(EM!E11=DA!A17,DA!AS17,IF(EM!E11=DA!A18,DA!AS18,IF(EM!E11=DA!A19,DA!AS19,IF(EM!E11=DA!A20,DA!AS20,IF(EM!E11=DA!A21,DA!AS21)))))))))))))))))))),"")&IF(EM!C6="LBG II",(IF(EM!E11=DA!A3,DA!AT3,IF(EM!E11=DA!A4,DA!AT4,IF(EM!E11=DA!A5,DA!AT5,IF(EM!E11=DA!A6,DA!AT6,IF(EM!E11=DA!A7,DA!AT7,IF(EM!E11=DA!A8,DA!AT8,IF(EM!E11=DA!A9,DA!AT9,IF(EM!E11=DA!A10,DA!AT10,IF(EM!E11=DA!A11,DA!AT11,IF(EM!E11=DA!A12,DA!AT12,IF(EM!E11=DA!A13,DA!AT13,IF(EM!E11=DA!A14,DA!AT14,IF(EM!E11=DA!A15,DA!AT15,IF(EM!E11=DA!A16,DA!AT16,IF(EM!E11=DA!A17,DA!AT17,IF(EM!E11=DA!A18,DA!AT18,IF(EM!E11=DA!A19,DA!AT19,IF(EM!E11=DA!A20,DA!AT20,IF(EM!E11=DA!A21,DA!AT21)))))))))))))))))))),"")&IF(EM!C6="LBG III",(IF(EM!E11=DA!A3,DA!AU3,IF(EM!E11=DA!A4,DA!AU4,IF(EM!E11=DA!A5,DA!AU5,IF(EM!E11=DA!A6,DA!AU6,IF(EM!E11=DA!A7,DA!AU7,IF(EM!E11=DA!A8,DA!AU8,IF(EM!E11=DA!A9,DA!AU9,IF(EM!E11=DA!A10,DA!AU10,IF(EM!E11=DA!A11,DA!AU11,IF(EM!E11=DA!A12,DA!AU12,IF(EM!E11=DA!A13,DA!AU13,IF(EM!E11=DA!A14,DA!AU14,IF(EM!E11=DA!A15,DA!AU15,IF(EM!E11=DA!A16,DA!AU16,IF(EM!E11=DA!A17,DA!AU17,IF(EM!E11=DA!A18,DA!AU18,IF(EM!E11=DA!A19,DA!AU19,IF(EM!E11=DA!A20,DA!AU20,IF(EM!E11=DA!A21,DA!AU21)))))))))))))))))))),"")&IF(EM!C6="LBG IV",(IF(EM!E11=DA!A3,DA!AV3,IF(EM!E11=DA!A4,DA!AV4,IF(EM!E11=DA!A5,DA!AV5,IF(EM!E11=DA!A6,DA!AV6,IF(EM!E11=DA!A7,DA!AV7,IF(EM!E11=DA!A8,DA!AV8,IF(EM!E11=DA!A9,DA!AV9,IF(EM!E11=DA!A10,DA!AV10,IF(EM!E11=DA!A11,DA!AV11,IF(EM!E11=DA!A12,DA!AV12,IF(EM!E11=DA!A13,DA!AV13,IF(EM!E11=DA!A14,DA!AV14,IF(EM!E11=DA!A15,DA!AV15,IF(EM!E11=DA!A16,DA!AV16,IF(EM!E11=DA!A17,DA!AV17,IF(EM!E11=DA!A18,DA!AV18,IF(EM!E11=DA!A19,DA!AV19,IF(EM!E11=DA!A20,DA!AV20,IF(EM!E11=DA!A21,DA!AV21)))))))))))))))))))),"")&IF(EM!C6="LBG V",(IF(EM!E11=DA!A3,DA!AW3,IF(EM!E11=DA!A4,DA!AW4,IF(EM!E11=DA!A5,DA!AW5,IF(EM!E11=DA!A6,DA!AW6,IF(EM!E11=DA!A7,DA!AW7,IF(EM!E11=DA!A8,DA!AW8,IF(EM!E11=DA!A9,DA!AW9,IF(EM!E11=DA!A10,DA!AW10,IF(EM!E11=DA!A11,DA!AW11,IF(EM!E11=DA!A12,DA!AW12,IF(EM!E11=DA!A13,DA!AW13,IF(EM!E11=DA!A14,DA!AW14,IF(EM!E11=DA!A15,DA!AW15,IF(EM!E11=DA!A16,DA!AW16,IF(EM!E11=DA!A17,DA!AW17,IF(EM!E11=DA!A18,DA!AW18,IF(EM!E11=DA!A19,DA!AW19,IF(EM!E11=DA!A20,DA!AW20))))))))))))))))))),"")))))) ->  | O11: =IF(OR(D11<>6,E11=""),"",(IF(P11<>"",P11,(SUM(IF(EM!C6="LBG I",(IF(EM!E11=DA!A3,DA!AX3,IF(EM!E11=DA!A4,DA!AX4,IF(EM!E11=DA!A5,DA!AX5,IF(EM!E11=DA!A6,DA!AX6,IF(EM!E11=DA!A7,DA!AX7,IF(EM!E11=DA!A8,DA!AX8,IF(EM!E11=DA!A9,DA!AX9,IF(EM!E11=DA!A10,DA!AX10,IF(EM!E11=DA!A11,DA!AX11,IF(EM!E11=DA!A12,DA!AX12,IF(EM!E11=DA!A13,DA!AX13,IF(EM!E11=DA!A14,DA!AX14,IF(EM!E11=DA!A15,DA!AX15,IF(EM!E11=DA!A16,DA!AX16,IF(EM!E11=DA!A17,DA!AX17,IF(EM!E11=DA!A18,DA!AX18,IF(EM!E11=DA!A19,DA!AX19,IF(EM!E11=DA!A20,DA!AX20,IF(EM!E11=DA!A21,DA!AX21)))))))))))))))))))),"")&IF(EM!C6="LBG II",(IF(EM!E11=DA!A3,DA!AY3,IF(EM!E11=DA!A4,DA!AY4,IF(EM!E11=DA!A5,DA!AY5,IF(EM!E11=DA!A6,DA!AY6,IF(EM!E11=DA!A7,DA!AY7,IF(EM!E11=DA!A8,DA!AY8,IF(EM!E11=DA!A9,DA!AY9,IF(EM!E11=DA!A10,DA!AY10,IF(EM!E11=DA!A11,DA!AY11,IF(EM!E11=DA!A12,DA!AY12,IF(EM!E11=DA!A13,DA!AY13,IF(EM!E11=DA!A14,DA!AY14,IF(EM!E11=DA!A15,DA!AY15,IF(EM!E11=DA!A16,DA!AY16,IF(EM!E11=DA!A17,DA!AY17,IF(EM!E11=DA!A18,DA!AY18,IF(EM!E11=DA!A19,DA!AY19,IF(EM!E11=DA!A20,DA!AY20,IF(EM!E11=DA!A21,DA!AY21)))))))))))))))))))),"")&IF(EM!C6="LBG III",(IF(EM!E11=DA!A3,DA!AZ3,IF(EM!E11=DA!A4,DA!AZ4,IF(EM!E11=DA!A5,DA!AZ5,IF(EM!E11=DA!A6,DA!AZ6,IF(EM!E11=DA!A7,DA!AZ7,IF(EM!E11=DA!A8,DA!AZ8,IF(EM!E11=DA!A9,DA!AZ9,IF(EM!E11=DA!A10,DA!AZ10,IF(EM!E11=DA!A11,DA!AZ11,IF(EM!E11=DA!A12,DA!AZ12,IF(EM!E11=DA!A13,DA!AZ13,IF(EM!E11=DA!A14,DA!AZ14,IF(EM!E11=DA!A15,DA!AZ15,IF(EM!E11=DA!A16,DA!AZ16,IF(EM!E11=DA!A17,DA!AZ17,IF(EM!E11=DA!A18,DA!AZ18,IF(EM!E11=DA!A19,DA!AZ19,IF(EM!E11=DA!A20,DA!AZ20,IF(EM!E11=DA!A21,DA!AZ21)))))))))))))))))))),"")&IF(EM!C6="LBG IV",(IF(EM!E11=DA!A3,DA!BA3,IF(EM!E11=DA!A4,DA!BA4,IF(EM!E11=DA!A5,DA!BA5,IF(EM!E11=DA!A6,DA!BA6,IF(EM!E11=DA!A7,DA!BA7,IF(EM!E11=DA!A8,DA!BA8,IF(EM!E11=DA!A9,DA!BA9,IF(EM!E11=DA!A10,DA!BA10,IF(EM!E11=DA!A11,DA!BA11,IF(EM!E11=DA!A12,DA!BA12,IF(EM!E11=DA!A13,DA!BA13,IF(EM!E11=DA!A14,DA!BA14,IF(EM!E11=DA!A15,DA!BA15,IF(EM!E11=DA!A16,DA!BA16,IF(EM!E11=DA!A17,DA!BA17,IF(EM!E11=DA!A18,DA!BA18,IF(EM!E11=DA!A19,DA!BA19,IF(EM!E11=DA!A20,DA!BA20,IF(EM!E11=DA!A21,DA!BA21)))))))))))))))))))),"")&IF(EM!C6="LBG V",(IF(EM!E11=DA!A3,DA!BB3,IF(EM!E11=DA!A4,DA!BB4,IF(EM!E11=DA!A5,DA!BB5,IF(EM!E11=DA!A6,DA!BB6,IF(EM!E11=DA!A7,DA!BB7,IF(EM!E11=DA!A8,DA!BB8,IF(EM!E11=DA!A9,DA!BB9,IF(EM!E11=DA!A10,DA!BB10,IF(EM!E11=DA!A11,DA!BB11,IF(EM!E11=DA!A12,DA!BB12,IF(EM!E11=DA!A13,DA!BB13,IF(EM!E11=DA!A14,DA!BB14,IF(EM!E11=DA!A15,DA!BB15,IF(EM!E11=DA!A16,DA!BB16,IF(EM!E11=DA!A17,DA!BB17,IF(EM!E11=DA!A18,DA!BB18,IF(EM!E11=DA!A19,DA!BB19,IF(EM!E11=DA!A20,DA!BB20))))))))))))))))))),"")))))) ->  | Q11: =IF(OR(D11<>6,E11=""),"",(SUM(K11+M11+O11+M18))) ->  | R11: =IF(OR(D11<>6,E11=""),"",(IF(S11<>"",S11,(SUM(IF(EM!C6="LBG I",(IF(EM!E11=DA!A3,DA!BH3,IF(EM!E11=DA!A4,DA!BH4,IF(EM!E11=DA!A5,DA!BH5,IF(EM!E11=DA!A6,DA!BH6,IF(EM!E11=DA!A7,DA!BH7,IF(EM!E11=DA!A8,DA!BH8,IF(EM!E11=DA!A9,DA!BH9,IF(EM!E11=DA!A10,DA!BH10,IF(EM!E11=DA!A11,DA!BH11,IF(EM!E11=DA!A12,DA!BH12,IF(EM!E11=DA!A13,DA!BH13,IF(EM!E11=DA!A14,DA!BH14,IF(EM!E11=DA!A15,DA!BH15,IF(EM!E11=DA!A16,DA!BH16,IF(EM!E11=DA!A17,DA!BH17,IF(EM!E11=DA!A18,DA!BH18,IF(EM!E11=DA!A19,DA!BH19,IF(EM!E11=DA!A20,DA!BH20,IF(EM!E11=DA!A21,DA!BH21)))))))))))))))))))),"")&IF(EM!C6="LBG II",(IF(EM!E11=DA!A3,DA!BI3,IF(EM!E11=DA!A4,DA!BI4,IF(EM!E11=DA!A5,DA!BI5,IF(EM!E11=DA!A6,DA!BI6,IF(EM!E11=DA!A7,DA!BI7,IF(EM!E11=DA!A8,DA!BI8,IF(EM!E11=DA!A9,DA!BI9,IF(EM!E11=DA!A10,DA!BI10,IF(EM!E11=DA!A11,DA!BI11,IF(EM!E11=DA!A12,DA!BI12,IF(EM!E11=DA!A13,DA!BI13,IF(EM!E11=DA!A14,DA!BI14,IF(EM!E11=DA!A15,DA!BI15,IF(EM!E11=DA!A16,DA!BI16,IF(EM!E11=DA!A17,DA!BI17,IF(EM!E11=DA!A18,DA!BI18,IF(EM!E11=DA!A19,DA!BI19,IF(EM!E11=DA!A20,DA!BI20,IF(EM!E11=DA!A21,DA!BI21)))))))))))))))))))),"")&IF(EM!C6="LBG III",(IF(EM!E11=DA!A3,DA!BJ3,IF(EM!E11=DA!A4,DA!BJ4,IF(EM!E11=DA!A5,DA!BJ5,IF(EM!E11=DA!A6,DA!BJ6,IF(EM!E11=DA!A7,DA!BJ7,IF(EM!E11=DA!A8,DA!BJ8,IF(EM!E11=DA!A9,DA!BJ9,IF(EM!E11=DA!A10,DA!BJ10,IF(EM!E11=DA!A11,DA!BJ11,IF(EM!E11=DA!A12,DA!BJ12,IF(EM!E11=DA!A13,DA!BJ13,IF(EM!E11=DA!A14,DA!BJ14,IF(EM!E11=DA!A15,DA!BJ15,IF(EM!E11=DA!A16,DA!BJ16,IF(EM!E11=DA!A17,DA!BJ17,IF(EM!E11=DA!A18,DA!BJ18,IF(EM!E11=DA!A19,DA!BJ19,IF(EM!E11=DA!A20,DA!BJ20,IF(EM!E11=DA!A21,DA!BJ21)))))))))))))))))))),"")&IF(EM!C6="LBG IV",(IF(EM!E11=DA!A3,DA!BK3,IF(EM!E11=DA!A4,DA!BK4,IF(EM!E11=DA!A5,DA!BK5,IF(EM!E11=DA!A6,DA!BK6,IF(EM!E11=DA!A7,DA!BK7,IF(EM!E11=DA!A8,DA!BK8,IF(EM!E11=DA!A9,DA!BK9,IF(EM!E11=DA!A10,DA!BK10,IF(EM!E11=DA!A11,DA!BK11,IF(EM!E11=DA!A12,DA!BK12,IF(EM!E11=DA!A13,DA!BK13,IF(EM!E11=DA!A14,DA!BK14,IF(EM!E11=DA!A15,DA!BK15,IF(EM!E11=DA!A16,DA!BK16,IF(EM!E11=DA!A17,DA!BK17,IF(EM!E11=DA!A18,DA!BK18,IF(EM!E11=DA!A19,DA!BK19,IF(EM!E11=DA!A20,DA!BK20,IF(EM!E11=DA!A21,DA!BK21)))))))))))))))))))),"")&IF(EM!C6="LBG V",(IF(EM!E11=DA!A3,DA!BL3,IF(EM!E11=DA!A4,DA!BL4,IF(EM!E11=DA!A5,DA!BL5,IF(EM!E11=DA!A6,DA!BL6,IF(EM!E11=DA!A7,DA!BL7,IF(EM!E11=DA!A8,DA!BL8,IF(EM!E11=DA!A9,DA!BL9,IF(EM!E11=DA!A10,DA!BL10,IF(EM!E11=DA!A11,DA!BL11,IF(EM!E11=DA!A12,DA!BL12,IF(EM!E11=DA!A13,DA!BL13,IF(EM!E11=DA!A14,DA!BL14,IF(EM!E11=DA!A15,DA!BL15,IF(EM!E11=DA!A16,DA!BL16,IF(EM!E11=DA!A17,DA!BL17,IF(EM!E11=DA!A18,DA!BL18,IF(EM!E11=DA!A19,DA!BL19,IF(EM!E11=DA!A20,DA!BL20))))))))))))))))))),"")))))) ->  | T11: =IF(OR(D11<>6,E11=""),"",(IF(U11<>"",U11,(SUM(IF(EM!C6="LBG I",(IF(EM!E11=DA!A3,DA!BC3,IF(EM!E11=DA!A4,DA!BC4,IF(EM!E11=DA!A5,DA!BC5,IF(EM!E11=DA!A6,DA!BC6,IF(EM!E11=DA!A7,DA!BC7,IF(EM!E11=DA!A8,DA!BC8,IF(EM!E11=DA!A9,DA!BC9,IF(EM!E11=DA!A10,DA!BC10,IF(EM!E11=DA!A11,DA!BC11,IF(EM!E11=DA!A12,DA!BC12,IF(EM!E11=DA!A13,DA!BC13,IF(EM!E11=DA!A14,DA!BC14,IF(EM!E11=DA!A15,DA!BC15,IF(EM!E11=DA!A16,DA!BC16,IF(EM!E11=DA!A17,DA!BC17,IF(EM!E11=DA!A18,DA!BC18,IF(EM!E11=DA!A19,DA!BC19,IF(EM!E11=DA!A20,DA!BC20,IF(EM!E11=DA!A21,DA!BC21)))))))))))))))))))),"")&IF(EM!C6="LBG II",(IF(EM!E11=DA!A3,DA!BD3,IF(EM!E11=DA!A4,DA!BD4,IF(EM!E11=DA!A5,DA!BD5,IF(EM!E11=DA!A6,DA!BD6,IF(EM!E11=DA!A7,DA!BD7,IF(EM!E11=DA!A8,DA!BD8,IF(EM!E11=DA!A9,DA!BD9,IF(EM!E11=DA!A10,DA!BD10,IF(EM!E11=DA!A11,DA!BD11,IF(EM!E11=DA!A12,DA!BD12,IF(EM!E11=DA!A13,DA!BD13,IF(EM!E11=DA!A14,DA!BD14,IF(EM!E11=DA!A15,DA!BD15,IF(EM!E11=DA!A16,DA!BD16,IF(EM!E11=DA!A17,DA!BD17,IF(EM!E11=DA!A18,DA!BD18,IF(EM!E11=DA!A19,DA!BD19,IF(EM!E11=DA!A20,DA!BD20,IF(EM!E11=DA!A21,DA!BD21)))))))))))))))))))),"")&IF(EM!C6="LBG III",(IF(EM!E11=DA!A3,DA!BE3,IF(EM!E11=DA!A4,DA!BE4,IF(EM!E11=DA!A5,DA!BE5,IF(EM!E11=DA!A6,DA!BE6,IF(EM!E11=DA!A7,DA!BE7,IF(EM!E11=DA!A8,DA!BE8,IF(EM!E11=DA!A9,DA!BE9,IF(EM!E11=DA!A10,DA!BE10,IF(EM!E11=DA!A11,DA!BE11,IF(EM!E11=DA!A12,DA!BE12,IF(EM!E11=DA!A13,DA!BE13,IF(EM!E11=DA!A14,DA!BE14,IF(EM!E11=DA!A15,DA!BE15,IF(EM!E11=DA!A16,DA!BE16,IF(EM!E11=DA!A17,DA!BE17,IF(EM!E11=DA!A18,DA!BE18,IF(EM!E11=DA!A19,DA!BE19,IF(EM!E11=DA!A20,DA!BE20,IF(EM!E11=DA!A21,DA!BE21)))))))))))))))))))),"")&IF(EM!C6="LBG IV",(IF(EM!E11=DA!A3,DA!BF3,IF(EM!E11=DA!A4,DA!BF4,IF(EM!E11=DA!A5,DA!BF5,IF(EM!E11=DA!A6,DA!BF6,IF(EM!E11=DA!A7,DA!BF7,IF(EM!E11=DA!A8,DA!BF8,IF(EM!E11=DA!A9,DA!BF9,IF(EM!E11=DA!A10,DA!BF10,IF(EM!E11=DA!A11,DA!BF11,IF(EM!E11=DA!A12,DA!BF12,IF(EM!E11=DA!A13,DA!BF13,IF(EM!E11=DA!A14,DA!BF14,IF(EM!E11=DA!A15,DA!BF15,IF(EM!E11=DA!A16,DA!BF16,IF(EM!E11=DA!A17,DA!BF17,IF(EM!E11=DA!A18,DA!BF18,IF(EM!E11=DA!A19,DA!BF19,IF(EM!E11=DA!A20,DA!BF20,IF(EM!E11=DA!A21,DA!BF21)))))))))))))))))))),"")&IF(EM!C6="LBG V",(IF(EM!E11=DA!A3,DA!BG3,IF(EM!E11=DA!A4,DA!BG4,IF(EM!E11=DA!A5,DA!BG5,IF(EM!E11=DA!A6,DA!BG6,IF(EM!E11=DA!A7,DA!BG7,IF(EM!E11=DA!A8,DA!BG8,IF(EM!E11=DA!A9,DA!BG9,IF(EM!E11=DA!A10,DA!BG10,IF(EM!E11=DA!A11,DA!BG11,IF(EM!E11=DA!A12,DA!BG12,IF(EM!E11=DA!A13,DA!BG13,IF(EM!E11=DA!A14,DA!BG14,IF(EM!E11=DA!A15,DA!BG15,IF(EM!E11=DA!A16,DA!BG16,IF(EM!E11=DA!A17,DA!BG17,IF(EM!E11=DA!A18,DA!BG18,IF(EM!E11=DA!A19,DA!BG19,IF(EM!E11=DA!A20,DA!BG20))))))))))))))))))),"")))))) ->  | W11: =IF(OR(D11<>6,E11=""),"",(SUM(R11,T11)*(IF(A20=0,1,IF(A20=5,1.05,IF(A20=10,1.1))))+(IF(V11<>"",V11)))) ->  | X11: =IF(OR(D11<>6,E11=""),"",(SUM(Q11,W11)+V26)) ->  | Y11: =IF(OR(D11<>6,E11=""),"",(J11-X11)) -> 
A12: =IF(A6="","",IF(A6<=6,"Mini Rotation",IF(AND(A6>6,A6<=12),"Midi Rotation",IF(AND(A6>12,A6<=20),"Maxi Rotation",IF(A6>20,"Stammholz"))))) ->  | B12: =G26 ->  | L12: Dünger Koppelprodukt | M12: Dünger Koppelprodukt Kosten | N12: Gewinn Koppelprodukt
A13: Gehölzertrag/Jahr in t/ha*a atro | M13: =IF(OR(L13="nein",L13=""),"0",SUM(IF(EM!C6="LBG I",(IF(EM!E6=DA!A3,DA!BR3,IF(EM!E6=DA!A4,DA!BR4,IF(EM!E6=DA!A5,DA!BR5,IF(EM!E6=DA!A6,DA!BR6,IF(EM!E6=DA!A7,DA!BR7,IF(EM!E6=DA!A8,DA!BR8,IF(EM!E6=DA!A9,DA!BR9,IF(EM!E6=DA!A10,DA!BR10,IF(EM!E6=DA!A11,DA!BR11,IF(EM!E6=DA!A12,DA!BR12,IF(EM!E6=DA!A13,DA!BR13,IF(EM!E6=DA!A14,DA!BR14,IF(EM!E6=DA!A15,DA!BR15,IF(EM!E6=DA!A16,DA!BR16,IF(EM!E6=DA!A17,DA!BR17,IF(EM!E6=DA!A18,DA!BR18,IF(EM!E6=DA!A19,DA!BR19,IF(EM!E6=DA!A20,DA!BR20))))))))))))))))))),"")&IF(EM!C6="LBG II",(IF(EM!E6=DA!A3,DA!BS3,IF(EM!E6=DA!A4,DA!BS4,IF(EM!E6=DA!A5,DA!BS5,IF(EM!E6=DA!A6,DA!BS6,IF(EM!E6=DA!A7,DA!BS7,IF(EM!E6=DA!A8,DA!BS8,IF(EM!E6=DA!A9,DA!BS9,IF(EM!E6=DA!A10,DA!BS10,IF(EM!E6=DA!A11,DA!BS11,IF(EM!E6=DA!A12,DA!BS12,IF(EM!E6=DA!A13,DA!BS13,IF(EM!E6=DA!A14,DA!BS14,IF(EM!E6=DA!A15,DA!BS15,IF(EM!E6=DA!A16,DA!BS16,IF(EM!E6=DA!A17,DA!BS17,IF(EM!E6=DA!A18,DA!BS18,IF(EM!E6=DA!A19,DA!BS19,IF(EM!E6=DA!A20,DA!BS20))))))))))))))))))),"")&IF(EM!C6="LBG III",(IF(EM!E6=DA!A3,DA!BT3,IF(EM!E6=DA!A4,DA!BT4,IF(EM!E6=DA!A5,DA!BT5,IF(EM!E6=DA!A6,DA!BT6,IF(EM!E6=DA!A7,DA!BT7,IF(EM!E6=DA!A8,DA!BT8,IF(EM!E6=DA!A9,DA!BT9,IF(EM!E6=DA!A10,DA!BT10,IF(EM!E6=DA!A11,DA!BT11,IF(EM!E6=DA!A12,DA!BT12,IF(EM!E6=DA!A13,DA!BT13,IF(EM!E6=DA!A14,DA!BT14,IF(EM!E6=DA!A15,DA!BT15,IF(EM!E6=DA!A16,DA!BT16,IF(EM!E6=DA!A17,DA!BT17,IF(EM!E6=DA!A18,DA!BT18,IF(EM!E6=DA!A19,DA!BT19,IF(EM!E6=DA!A20,DA!BT20))))))))))))))))))),"")&IF(EM!C6="LBG IV",(IF(EM!E6=DA!A3,DA!BU3,IF(EM!E6=DA!A4,DA!BU4,IF(EM!E6=DA!A5,DA!BU5,IF(EM!E6=DA!A6,DA!BU6,IF(EM!E6=DA!A7,DA!BU7,IF(EM!E6=DA!A8,DA!BU8,IF(EM!E6=DA!A9,DA!BU9,IF(EM!E6=DA!A10,DA!BU10,IF(EM!E6=DA!A11,DA!BU11,IF(EM!E6=DA!A12,DA!BU12,IF(EM!E6=DA!A13,DA!BU13,IF(EM!E6=DA!A14,DA!BU14,IF(EM!E6=DA!A15,DA!BU15,IF(EM!E6=DA!A16,DA!BU16,IF(EM!E6=DA!A17,DA!BU17,IF(EM!E6=DA!A18,DA!BU18,IF(EM!E6=DA!A19,DA!BU19,IF(EM!E6=DA!A20,DA!BU20))))))))))))))))))),"")&IF(EM!C6="LBG V",(IF(EM!E6=DA!A3,DA!BV3,IF(EM!E6=DA!A4,DA!BV4,IF(EM!E6=DA!A5,DA!BV5,IF(EM!E6=DA!A6,DA!BV6,IF(EM!E6=DA!A7,DA!BV7,IF(EM!E6=DA!A8,DA!BV8,IF(EM!E6=DA!A9,DA!BV9,IF(EM!E6=DA!A10,DA!BV10,IF(EM!E6=DA!A11,DA!BV11,IF(EM!E6=DA!A12,DA!BV12,IF(EM!E6=DA!A13,DA!BV13,IF(EM!E6=DA!A14,DA!BV14,IF(EM!E6=DA!A15,DA!BV15,IF(EM!E6=DA!A16,DA!BV16,IF(EM!E6=DA!A17,DA!BV17,IF(EM!E6=DA!A18,DA!BV18,IF(EM!E6=DA!A19,DA!BV19,IF(EM!E6=DA!A20,DA!BV20))))))))))))))))))),""))) -> 0
A14: =IF(G28<>"",G28,(IF(A12="Mini Rotation",(IF(B6="Pappel",(IF(C6="LBG I",DGK!B6,IF(C6="LBG II",DGK!C6,IF(C6="LBG III",DGK!D6,IF(C6="LBG IV",DGK!E6,IF(C6="LBG V",DGK!F6)))))),"")&IF(B6="Weide",(IF(C6="LBG I",DGK!B7,IF(C6="LBG II",DGK!C7,IF(C6="LBG III",DGK!D7,IF(C6="LBG IV",DGK!E7,IF(C6="LBG V",DGK!F7)))))),"")&IF(B6="Robinie",(IF(C6="LBG I",DGK!B8,IF(C6="LBG II",DGK!C8,IF(C6="LBG III",DGK!D8,IF(C7="LBG IV",DGK!E8,IF(C6="LBG V",DGK!F8)))))),"")&IF(B6="andere Baumarten",(IF(C6="LBG I",DGK!B9,IF(C6="LBG II",DGK!C9,IF(C6="LBG III",DGK!D9,IF(C6="LBG IV",DGK!E9,IF(C6="LBG V",DGK!F9)))))),"")),"")&IF(A12="Midi Rotation",(IF(B6="Pappel",(IF(C6="LBG I",DGK!B13,IF(C6="LBG II",DGK!C13,IF(C6="LBG III",DGK!D13,IF(C6="LBG IV",DGK!E13,IF(C6="LBG V",DGK!F13)))))),"")&IF(B6="Weide",(IF(C6="LBG I",DGK!B14,IF(C6="LBG II",DGK!C14,IF(C6="LBG III",DGK!D14,IF(C6="LBG IV",DGK!E14,IF(C6="LBG V",DGK!F14)))))),"")&IF(B6="Robinie",(IF(C6="LBG I",DGK!B15,IF(C6="LBG II",DGK!C15,IF(C6="LBG III",DGK!D15,IF(C6="LBG IV",DGK!E15,IF(C6="LBG V",DGK!F15)))))),"")&IF(B6="andere Baumarten",(IF(C6="LBG I",DGK!B16,IF(C6="LBG II",DGK!C16,IF(C6="LBG III",DGK!D16,IF(C6="LBG IV",DGK!E16,IF(C6="LBG V",DGK!F16)))))),"")),"")&IF(A12="Maxi Rotation",(IF(B6="Pappel",(IF(C6="LBG I",DGK!B20,IF(C6="LBG II",DGK!C20,IF(C6="LBG III",DGK!D20,IF(C6="LBG IV",DGK!E20,IF(C6="LBG V",DGK!F20)))))),"")&IF(B6="Weide",(IF(C6="LBG I",DGK!B21,IF(C6="LBG II",DGK!C21,IF(C6="LBG III",DGK!D21,IF(C6="LBG IV",DGK!E21,IF(C6="LBG V",DGK!F21)))))),"")&IF(B6="Robinie",(IF(C6="LBG I",DGK!B22,IF(C6="LBG II",DGK!C22,IF(C6="LBG III",DGK!D22,IF(C6="LBG IV",DGK!E22,IF(C6="LBG V",DGK!F22)))))),"")&IF(B6="andere Baumarten",(IF(C6="LBG I",DGK!B23,IF(C6="LBG II",DGK!C23,IF(C6="LBG III",DGK!D23,IF(C6="LBG IV",DGK!E23,IF(C6="LBG V",DGK!F23)))))),"")),"")))&IF(A12="Stammholz",(IF(B6="Pappel",(IF(C6="LBG I",DGK!B27,IF(C6="LBG II",DGK!C27,IF(C6="LBG III",DGK!D27,IF(C6="LBG IV",DGK!E27,IF(C6="LBG V",DGK!F27)))))),"")&IF(B6="Weide",(IF(C6="LBG I",DGK!B28,IF(C6="LBG II",DGK!C28,IF(C6="LBG III",DGK!D28,IF(C6="LBG IV",DGK!E28,IF(C6="LBG V",DGK!F28)))))),"")&IF(B6="Robinie",(IF(C6="LBG I",DGK!B29,IF(C6="LBG II",DGK!C29,IF(C6="LBG III",DGK!D29,IF(C6="LBG IV",DGK!E29,IF(C6="LBG V",DGK!F29)))))),"")&IF(B6="andere Baumarten",(IF(C6="LBG I",DGK!B30,IF(C6="LBG II",DGK!C30,IF(C6="LBG III",DGK!D30,IF(C6="LBG IV",DGK!E30,IF(C6="LBG V",DGK!F30)))))),"")),"") ->  | B14: Erlöse Gehölzkultur [€] | C14: Flächenanteile | E14: Erlöse Ackerkultur [€] | F14: Vergleich | M14: =IF(OR(L14="nein",L14=""),"0",SUM(IF(EM!C6="LBG I",(IF(EM!E7=DA!A3,DA!BR3,IF(EM!E7=DA!A4,DA!BR4,IF(EM!E7=DA!A5,DA!BR5,IF(EM!E7=DA!A6,DA!BR6,IF(EM!E7=DA!A7,DA!BR7,IF(EM!E7=DA!A8,DA!BR8,IF(EM!E7=DA!A9,DA!BR9,IF(EM!E7=DA!A10,DA!BR10,IF(EM!E7=DA!A11,DA!BR11,IF(EM!E7=DA!A12,DA!BR12,IF(EM!E7=DA!A13,DA!BR13,IF(EM!E7=DA!A14,DA!BR14,IF(EM!E7=DA!A15,DA!BR15,IF(EM!E7=DA!A16,DA!BR16,IF(EM!E7=DA!A17,DA!BR17,IF(EM!E7=DA!A18,DA!BR18,IF(EM!E7=DA!A19,DA!BR19,IF(EM!E7=DA!A20,DA!BR20))))))))))))))))))),"")&IF(EM!C6="LBG II",(IF(EM!E7=DA!A3,DA!BS3,IF(EM!E7=DA!A4,DA!BS4,IF(EM!E7=DA!A5,DA!BS5,IF(EM!E7=DA!A6,DA!BS6,IF(EM!E7=DA!A7,DA!BS7,IF(EM!E7=DA!A8,DA!BS8,IF(EM!E7=DA!A9,DA!BS9,IF(EM!E7=DA!A10,DA!BS10,IF(EM!E7=DA!A11,DA!BS11,IF(EM!E7=DA!A12,DA!BS12,IF(EM!E7=DA!A13,DA!BS13,IF(EM!E7=DA!A14,DA!BS14,IF(EM!E7=DA!A15,DA!BS15,IF(EM!E7=DA!A16,DA!BS16,IF(EM!E7=DA!A17,DA!BS17,IF(EM!E7=DA!A18,DA!BS18,IF(EM!E7=DA!A19,DA!BS19,IF(EM!E7=DA!A20,DA!BS20))))))))))))))))))),"")&IF(EM!C6="LBG III",(IF(EM!E7=DA!A3,DA!BT3,IF(EM!E7=DA!A4,DA!BT4,IF(EM!E7=DA!A5,DA!BT5,IF(EM!E7=DA!A6,DA!BT6,IF(EM!E7=DA!A7,DA!BT7,IF(EM!E7=DA!A8,DA!BT8,IF(EM!E7=DA!A9,DA!BT9,IF(EM!E7=DA!A10,DA!BT10,IF(EM!E7=DA!A11,DA!BT11,IF(EM!E7=DA!A12,DA!BT12,IF(EM!E7=DA!A13,DA!BT13,IF(EM!E7=DA!A14,DA!BT14,IF(EM!E7=DA!A15,DA!BT15,IF(EM!E7=DA!A16,DA!BT16,IF(EM!E7=DA!A17,DA!BT17,IF(EM!E7=DA!A18,DA!BT18,IF(EM!E7=DA!A19,DA!BT19,IF(EM!E7=DA!A20,DA!BT20))))))))))))))))))),"")&IF(EM!C6="LBG IV",(IF(EM!E7=DA!A3,DA!BU3,IF(EM!E7=DA!A4,DA!BU4,IF(EM!E7=DA!A5,DA!BU5,IF(EM!E7=DA!A6,DA!BU6,IF(EM!E7=DA!A7,DA!BU7,IF(EM!E7=DA!A8,DA!BU8,IF(EM!E7=DA!A9,DA!BU9,IF(EM!E7=DA!A10,DA!BU10,IF(EM!E7=DA!A11,DA!BU11,IF(EM!E7=DA!A12,DA!BU12,IF(EM!E7=DA!A13,DA!BU13,IF(EM!E7=DA!A14,DA!BU14,IF(EM!E7=DA!A15,DA!BU15,IF(EM!E7=DA!A16,DA!BU16,IF(EM!E7=DA!A17,DA!BU17,IF(EM!E7=DA!A18,DA!BU18,IF(EM!E7=DA!A19,DA!BU19,IF(EM!E7=DA!A20,DA!BU20))))))))))))))))))),"")&IF(EM!C6="LBG V",(IF(EM!E7=DA!A3,DA!BV3,IF(EM!E7=DA!A4,DA!BV4,IF(EM!E7=DA!A5,DA!BV5,IF(EM!E7=DA!A6,DA!BV6,IF(EM!E7=DA!A7,DA!BV7,IF(EM!E7=DA!A8,DA!BV8,IF(EM!E7=DA!A9,DA!BV9,IF(EM!E7=DA!A10,DA!BV10,IF(EM!E7=DA!A11,DA!BV11,IF(EM!E7=DA!A12,DA!BV12,IF(EM!E7=DA!A13,DA!BV13,IF(EM!E7=DA!A14,DA!BV14,IF(EM!E7=DA!A15,DA!BV15,IF(EM!E7=DA!A16,DA!BV16,IF(EM!E7=DA!A17,DA!BV17,IF(EM!E7=DA!A18,DA!BV18,IF(EM!E7=DA!A19,DA!BV19,IF(EM!E7=DA!A20,DA!BV20))))))))))))))))))),""))) -> 0
A15: Anzahl Pflege [a] | B15: =IF(ISNUMBER(SUM(HGO!V2:V81)),((SUM(HGO!V2:V81))),"") -> 0 | C15: Ackerfläche | D15: Gehölzfläche | E15: =IF(ISNUMBER(EM!A4/EM!E4*(IF(E4=6,SUM(J6:J11),(IF(E4=5,SUM(J6:J10),(IF(E4=4,SUM(J6:J9),(IF(E4=3,SUM(J6:J8),(IF(E4=2,SUM(J6:J7),(IF(E4=1,SUM(J6)))))))))))))),(EM!A4/EM!E4*(IF(E4=6,SUM(J6:J11),(IF(E4=5,SUM(J6:J10),(IF(E4=4,SUM(J6:J9),(IF(E4=3,SUM(J6:J8),(IF(E4=2,SUM(J6:J7),(IF(E4=1,SUM(J6)))))))))))))),"") ->  | F15: Anuitäten | G15: Kapitalwert | H15: Zeitraum | M15: =IF(OR(L15="nein",L15=""),"0",SUM(IF(EM!C6="LBG I",(IF(EM!E8=DA!A3,DA!BR3,IF(EM!E8=DA!A4,DA!BR4,IF(EM!E8=DA!A5,DA!BR5,IF(EM!E8=DA!A6,DA!BR6,IF(EM!E8=DA!A7,DA!BR7,IF(EM!E8=DA!A8,DA!BR8,IF(EM!E8=DA!A9,DA!BR9,IF(EM!E8=DA!A10,DA!BR10,IF(EM!E8=DA!A11,DA!BR11,IF(EM!E8=DA!A12,DA!BR12,IF(EM!E8=DA!A13,DA!BR13,IF(EM!E8=DA!A14,DA!BR14,IF(EM!E8=DA!A15,DA!BR15,IF(EM!E8=DA!A16,DA!BR16,IF(EM!E8=DA!A17,DA!BR17,IF(EM!E8=DA!A18,DA!BR18,IF(EM!E8=DA!A19,DA!BR19,IF(EM!E8=DA!A20,DA!BR20))))))))))))))))))),"")&IF(EM!C6="LBG II",(IF(EM!E8=DA!A3,DA!BS3,IF(EM!E8=DA!A4,DA!BS4,IF(EM!E8=DA!A5,DA!BS5,IF(EM!E8=DA!A6,DA!BS6,IF(EM!E8=DA!A7,DA!BS7,IF(EM!E8=DA!A8,DA!BS8,IF(EM!E8=DA!A9,DA!BS9,IF(EM!E8=DA!A10,DA!BS10,IF(EM!E8=DA!A11,DA!BS11,IF(EM!E8=DA!A12,DA!BS12,IF(EM!E8=DA!A13,DA!BS13,IF(EM!E8=DA!A14,DA!BS14,IF(EM!E8=DA!A15,DA!BS15,IF(EM!E8=DA!A16,DA!BS16,IF(EM!E8=DA!A17,DA!BS17,IF(EM!E8=DA!A18,DA!BS18,IF(EM!E8=DA!A19,DA!BS19,IF(EM!E8=DA!A20,DA!BS20))))))))))))))))))),"")&IF(EM!C6="LBG III",(IF(EM!E8=DA!A3,DA!BT3,IF(EM!E8=DA!A4,DA!BT4,IF(EM!E8=DA!A5,DA!BT5,IF(EM!E8=DA!A6,DA!BT6,IF(EM!E8=DA!A7,DA!BT7,IF(EM!E8=DA!A8,DA!BT8,IF(EM!E8=DA!A9,DA!BT9,IF(EM!E8=DA!A10,DA!BT10,IF(EM!E8=DA!A11,DA!BT11,IF(EM!E8=DA!A12,DA!BT12,IF(EM!E8=DA!A13,DA!BT13,IF(EM!E8=DA!A14,DA!BT14,IF(EM!E8=DA!A15,DA!BT15,IF(EM!E8=DA!A16,DA!BT16,IF(EM!E8=DA!A17,DA!BT17,IF(EM!E8=DA!A18,DA!BT18,IF(EM!E8=DA!A19,DA!BT19,IF(EM!E8=DA!A20,DA!BT20))))))))))))))))))),"")&IF(EM!C6="LBG IV",(IF(EM!E8=DA!A3,DA!BU3,IF(EM!E8=DA!A4,DA!BU4,IF(EM!E8=DA!A5,DA!BU5,IF(EM!E8=DA!A6,DA!BU6,IF(EM!E8=DA!A7,DA!BU7,IF(EM!E8=DA!A8,DA!BU8,IF(EM!E8=DA!A9,DA!BU9,IF(EM!E8=DA!A10,DA!BU10,IF(EM!E8=DA!A11,DA!BU11,IF(EM!E8=DA!A12,DA!BU12,IF(EM!E8=DA!A13,DA!BU13,IF(EM!E8=DA!A14,DA!BU14,IF(EM!E8=DA!A15,DA!BU15,IF(EM!E8=DA!A16,DA!BU16,IF(EM!E8=DA!A17,DA!BU17,IF(EM!E8=DA!A18,DA!BU18,IF(EM!E8=DA!A19,DA!BU19,IF(EM!E8=DA!A20,DA!BU20))))))))))))))))))),"")&IF(EM!C6="LBG V",(IF(EM!E8=DA!A3,DA!BV3,IF(EM!E8=DA!A4,DA!BV4,IF(EM!E8=DA!A5,DA!BV5,IF(EM!E8=DA!A6,DA!BV6,IF(EM!E8=DA!A7,DA!BV7,IF(EM!E8=DA!A8,DA!BV8,IF(EM!E8=DA!A9,DA!BV9,IF(EM!E8=DA!A10,DA!BV10,IF(EM!E8=DA!A11,DA!BV11,IF(EM!E8=DA!A12,DA!BV12,IF(EM!E8=DA!A13,DA!BV13,IF(EM!E8=DA!A14,DA!BV14,IF(EM!E8=DA!A15,DA!BV15,IF(EM!E8=DA!A16,DA!BV16,IF(EM!E8=DA!A17,DA!BV17,IF(EM!E8=DA!A18,DA!BV18,IF(EM!E8=DA!A19,DA!BV19,IF(EM!E8=DA!A20,DA!BV20))))))))))))))))))),""))) -> 0
A16: 1 | B16: Kosten Gehölzkultur [€] | C16: in ha | D16: in ha | E16: Kosten Ackerkultur [€] | F16: Anuität Ackerkultur [€] | G16: Kapitalwert Ackerkultur [€] | H16: nach Jahren | M16: =IF(OR(L16="nein",L16=""),"0",SUM(IF(EM!C6="LBG I",(IF(EM!E9=DA!A3,DA!BR3,IF(EM!E9=DA!A4,DA!BR4,IF(EM!E9=DA!A5,DA!BR5,IF(EM!E9=DA!A6,DA!BR6,IF(EM!E9=DA!A7,DA!BR7,IF(EM!E9=DA!A8,DA!BR8,IF(EM!E9=DA!A9,DA!BR9,IF(EM!E9=DA!A10,DA!BR10,IF(EM!E9=DA!A11,DA!BR11,IF(EM!E9=DA!A12,DA!BR12,IF(EM!E9=DA!A13,DA!BR13,IF(EM!E9=DA!A14,DA!BR14,IF(EM!E9=DA!A15,DA!BR15,IF(EM!E9=DA!A16,DA!BR16,IF(EM!E9=DA!A17,DA!BR17,IF(EM!E9=DA!A18,DA!BR18,IF(EM!E9=DA!A19,DA!BR19,IF(EM!E9=DA!A20,DA!BR20))))))))))))))))))),"")&IF(EM!C6="LBG II",(IF(EM!E9=DA!A3,DA!BS3,IF(EM!E9=DA!A4,DA!BS4,IF(EM!E9=DA!A5,DA!BS5,IF(EM!E9=DA!A6,DA!BS6,IF(EM!E9=DA!A7,DA!BS7,IF(EM!E9=DA!A8,DA!BS8,IF(EM!E9=DA!A9,DA!BS9,IF(EM!E9=DA!A10,DA!BS10,IF(EM!E9=DA!A11,DA!BS11,IF(EM!E9=DA!A12,DA!BS12,IF(EM!E9=DA!A13,DA!BS13,IF(EM!E9=DA!A14,DA!BS14,IF(EM!E9=DA!A15,DA!BS15,IF(EM!E9=DA!A16,DA!BS16,IF(EM!E9=DA!A17,DA!BS17,IF(EM!E9=DA!A18,DA!BS18,IF(EM!E9=DA!A19,DA!BS19,IF(EM!E9=DA!A20,DA!BS20))))))))))))))))))),"")&IF(EM!C6="LBG III",(IF(EM!E9=DA!A3,DA!BT3,IF(EM!E9=DA!A4,DA!BT4,IF(EM!E9=DA!A5,DA!BT5,IF(EM!E9=DA!A6,DA!BT6,IF(EM!E9=DA!A7,DA!BT7,IF(EM!E9=DA!A8,DA!BT8,IF(EM!E9=DA!A9,DA!BT9,IF(EM!E9=DA!A10,DA!BT10,IF(EM!E9=DA!A11,DA!BT11,IF(EM!E9=DA!A12,DA!BT12,IF(EM!E9=DA!A13,DA!BT13,IF(EM!E9=DA!A14,DA!BT14,IF(EM!E9=DA!A15,DA!BT15,IF(EM!E9=DA!A16,DA!BT16,IF(EM!E9=DA!A17,DA!BT17,IF(EM!E9=DA!A18,DA!BT18,IF(EM!E9=DA!A19,DA!BT19,IF(EM!E9=DA!A20,DA!BT20))))))))))))))))))),"")&IF(EM!C6="LBG IV",(IF(EM!E9=DA!A3,DA!BU3,IF(EM!E9=DA!A4,DA!BU4,IF(EM!E9=DA!A5,DA!BU5,IF(EM!E9=DA!A6,DA!BU6,IF(EM!E9=DA!A7,DA!BU7,IF(EM!E9=DA!A8,DA!BU8,IF(EM!E9=DA!A9,DA!BU9,IF(EM!E9=DA!A10,DA!BU10,IF(EM!E9=DA!A11,DA!BU11,IF(EM!E9=DA!A12,DA!BU12,IF(EM!E9=DA!A13,DA!BU13,IF(EM!E9=DA!A14,DA!BU14,IF(EM!E9=DA!A15,DA!BU15,IF(EM!E9=DA!A16,DA!BU16,IF(EM!E9=DA!A17,DA!BU17,IF(EM!E9=DA!A18,DA!BU18,IF(EM!E9=DA!A19,DA!BU19,IF(EM!E9=DA!A20,DA!BU20))))))))))))))))))),"")&IF(EM!C6="LBG V",(IF(EM!E9=DA!A3,DA!BV3,IF(EM!E9=DA!A4,DA!BV4,IF(EM!E9=DA!A5,DA!BV5,IF(EM!E9=DA!A6,DA!BV6,IF(EM!E9=DA!A7,DA!BV7,IF(EM!E9=DA!A8,DA!BV8,IF(EM!E9=DA!A9,DA!BV9,IF(EM!E9=DA!A10,DA!BV10,IF(EM!E9=DA!A11,DA!BV11,IF(EM!E9=DA!A12,DA!BV12,IF(EM!E9=DA!A13,DA!BV13,IF(EM!E9=DA!A14,DA!BV14,IF(EM!E9=DA!A15,DA!BV15,IF(EM!E9=DA!A16,DA!BV16,IF(EM!E9=DA!A17,DA!BV17,IF(EM!E9=DA!A18,DA!BV18,IF(EM!E9=DA!A19,DA!BV19,IF(EM!E9=DA!A20,DA!BV20))))))))))))))))))),""))) -> 0
A17: Transportkosten Häcksler | B17: =IF(ISNUMBER(SUM(HGO!U2:U81)),((SUM(HGO!U2:U81))),"") -> 0 | E17: =IF(ISNUMBER(EM!A4/EM!E4*(IF(E4=6,SUM(X6:X11),(IF(E4=5,SUM(X6:X10),(IF(E4=4,SUM(X6:X9),(IF(E4=3,SUM(X6:X8),(IF(E4=2,SUM(X6:X7),(IF(E4=1,SUM(X6)))))))))))))),(EM!A4/EM!E4*(IF(E4=6,SUM(X6:X11),(IF(E4=5,SUM(X6:X10),(IF(E4=4,SUM(X6:X9),(IF(E4=3,SUM(X6:X8),(IF(E4=2,SUM(X6:X7),(IF(E4=1,SUM(X6)))))))))))))),"") ->  | F17: =IF(H17>A4,"Bitte Zeitraum wählen",(IF(H17="","Bitte Zeitraum wählen",IF(ISNUMBER(INDEX(HGO!S:S,(ROW(S2)-1)*(H17)+1)),INDEX(HGO!S:S,(ROW(S2)-1)*(H17)+1),"")))) ->  | G17: =IF(H17>A4,"Bitte Zeitraum wählen",(IF(H17="","Bitte Zeitraum wählen",IF(ISNUMBER(INDEX(HGO!R:R,(ROW(R2)-1)*(H17)+1)),INDEX(HGO!R:R,(ROW(R2)-1)*(H17)+1),"")))) ->  | H17: =A4 -> 0 | M17: =IF(OR(L17="nein",L17=""),"0",SUM(IF(EM!C6="LBG I",(IF(EM!E10=DA!A3,DA!BR3,IF(EM!E10=DA!A4,DA!BR4,IF(EM!E10=DA!A5,DA!BR5,IF(EM!E10=DA!A6,DA!BR6,IF(EM!E10=DA!A7,DA!BR7,IF(EM!E10=DA!A8,DA!BR8,IF(EM!E10=DA!A9,DA!BR9,IF(EM!E10=DA!A10,DA!BR10,IF(EM!E10=DA!A11,DA!BR11,IF(EM!E10=DA!A12,DA!BR12,IF(EM!E10=DA!A13,DA!BR13,IF(EM!E10=DA!A14,DA!BR14,IF(EM!E10=DA!A15,DA!BR15,IF(EM!E10=DA!A16,DA!BR16,IF(EM!E10=DA!A17,DA!BR17,IF(EM!E10=DA!A18,DA!BR18,IF(EM!E10=DA!A19,DA!BR19,IF(EM!E10=DA!A20,DA!BR20))))))))))))))))))),"")&IF(EM!C6="LBG II",(IF(EM!E10=DA!A3,DA!BS3,IF(EM!E10=DA!A4,DA!BS4,IF(EM!E10=DA!A5,DA!BS5,IF(EM!E10=DA!A6,DA!BS6,IF(EM!E10=DA!A7,DA!BS7,IF(EM!E10=DA!A8,DA!BS8,IF(EM!E10=DA!A9,DA!BS9,IF(EM!E10=DA!A10,DA!BS10,IF(EM!E10=DA!A11,DA!BS11,IF(EM!E10=DA!A12,DA!BS12,IF(EM!E10=DA!A13,DA!BS13,IF(EM!E10=DA!A14,DA!BS14,IF(EM!E10=DA!A15,DA!BS15,IF(EM!E10=DA!A16,DA!BS16,IF(EM!E10=DA!A17,DA!BS17,IF(EM!E10=DA!A18,DA!BS18,IF(EM!E10=DA!A19,DA!BS19,IF(EM!E10=DA!A20,DA!BS20))))))))))))))))))),"")&IF(EM!C6="LBG III",(IF(EM!E10=DA!A3,DA!BT3,IF(EM!E10=DA!A4,DA!BT4,IF(EM!E10=DA!A5,DA!BT5,IF(EM!E10=DA!A6,DA!BT6,IF(EM!E10=DA!A7,DA!BT7,IF(EM!E10=DA!A8,DA!BT8,IF(EM!E10=DA!A9,DA!BT9,IF(EM!E10=DA!A10,DA!BT10,IF(EM!E10=DA!A11,DA!BT11,IF(EM!E10=DA!A12,DA!BT12,IF(EM!E10=DA!A13,DA!BT13,IF(EM!E10=DA!A14,DA!BT14,IF(EM!E10=DA!A15,DA!BT15,IF(EM!E10=DA!A16,DA!BT16,IF(EM!E10=DA!A17,DA!BT17,IF(EM!E10=DA!A18,DA!BT18,IF(EM!E10=DA!A19,DA!BT19,IF(EM!E10=DA!A20,DA!BT20))))))))))))))))))),"")&IF(EM!C6="LBG IV",(IF(EM!E10=DA!A3,DA!BU3,IF(EM!E10=DA!A4,DA!BU4,IF(EM!E10=DA!A5,DA!BU5,IF(EM!E10=DA!A6,DA!BU6,IF(EM!E10=DA!A7,DA!BU7,IF(EM!E10=DA!A8,DA!BU8,IF(EM!E10=DA!A9,DA!BU9,IF(EM!E10=DA!A10,DA!BU10,IF(EM!E10=DA!A11,DA!BU11,IF(EM!E10=DA!A12,DA!BU12,IF(EM!E10=DA!A13,DA!BU13,IF(EM!E10=DA!A14,DA!BU14,IF(EM!E10=DA!A15,DA!BU15,IF(EM!E10=DA!A16,DA!BU16,IF(EM!E10=DA!A17,DA!BU17,IF(EM!E10=DA!A18,DA!BU18,IF(EM!E10=DA!A19,DA!BU19,IF(EM!E10=DA!A20,DA!BU20))))))))))))))))))),"")&IF(EM!C6="LBG V",(IF(EM!E10=DA!A3,DA!BV3,IF(EM!E10=DA!A4,DA!BV4,IF(EM!E10=DA!A5,DA!BV5,IF(EM!E10=DA!A6,DA!BV6,IF(EM!E10=DA!A7,DA!BV7,IF(EM!E10=DA!A8,DA!BV8,IF(EM!E10=DA!A9,DA!BV9,IF(EM!E10=DA!A10,DA!BV10,IF(EM!E10=DA!A11,DA!BV11,IF(EM!E10=DA!A12,DA!BV12,IF(EM!E10=DA!A13,DA!BV13,IF(EM!E10=DA!A14,DA!BV14,IF(EM!E10=DA!A15,DA!BV15,IF(EM!E10=DA!A16,DA!BV16,IF(EM!E10=DA!A17,DA!BV17,IF(EM!E10=DA!A18,DA!BV18,IF(EM!E10=DA!A19,DA!BV19,IF(EM!E10=DA!A20,DA!BV20))))))))))))))))))),""))) -> 0
B18: Gewinn Gehölzkultur [€] | E18: Gewinn Ackerkultur [€] | F18: Anuität Gehölzkultur [€] | G18: Kapitalwert Gehölzkultur [€] | H18: nach Jahren | M18: =IF(OR(L18="nein",L18=""),"0",SUM(IF(EM!C6="LBG I",(IF(EM!E11=DA!A3,DA!BR3,IF(EM!E11=DA!A4,DA!BR4,IF(EM!E11=DA!A5,DA!BR5,IF(EM!E11=DA!A6,DA!BR6,IF(EM!E11=DA!A7,DA!BR7,IF(EM!E11=DA!A8,DA!BR8,IF(EM!E11=DA!A9,DA!BR9,IF(EM!E11=DA!A10,DA!BR10,IF(EM!E11=DA!A11,DA!BR11,IF(EM!E11=DA!A12,DA!BR12,IF(EM!E11=DA!A13,DA!BR13,IF(EM!E11=DA!A14,DA!BR14,IF(EM!E11=DA!A15,DA!BR15,IF(EM!E11=DA!A16,DA!BR16,IF(EM!E11=DA!A17,DA!BR17,IF(EM!E11=DA!A18,DA!BR18,IF(EM!E11=DA!A19,DA!BR19,IF(EM!E11=DA!A20,DA!BR20))))))))))))))))))),"")&IF(EM!C6="LBG II",(IF(EM!E11=DA!A3,DA!BS3,IF(EM!E11=DA!A4,DA!BS4,IF(EM!E11=DA!A5,DA!BS5,IF(EM!E11=DA!A6,DA!BS6,IF(EM!E11=DA!A7,DA!BS7,IF(EM!E11=DA!A8,DA!BS8,IF(EM!E11=DA!A9,DA!BS9,IF(EM!E11=DA!A10,DA!BS10,IF(EM!E11=DA!A11,DA!BS11,IF(EM!E11=DA!A12,DA!BS12,IF(EM!E11=DA!A13,DA!BS13,IF(EM!E11=DA!A14,DA!BS14,IF(EM!E11=DA!A15,DA!BS15,IF(EM!E11=DA!A16,DA!BS16,IF(EM!E11=DA!A17,DA!BS17,IF(EM!E11=DA!A18,DA!BS18,IF(EM!E11=DA!A19,DA!BS19,IF(EM!E11=DA!A20,DA!BS20))))))))))))))))))),"")&IF(EM!C6="LBG III",(IF(EM!E11=DA!A3,DA!BT3,IF(EM!E11=DA!A4,DA!BT4,IF(EM!E11=DA!A5,DA!BT5,IF(EM!E11=DA!A6,DA!BT6,IF(EM!E11=DA!A7,DA!BT7,IF(EM!E11=DA!A8,DA!BT8,IF(EM!E11=DA!A9,DA!BT9,IF(EM!E11=DA!A10,DA!BT10,IF(EM!E11=DA!A11,DA!BT11,IF(EM!E11=DA!A12,DA!BT12,IF(EM!E11=DA!A13,DA!BT13,IF(EM!E11=DA!A14,DA!BT14,IF(EM!E11=DA!A15,DA!BT15,IF(EM!E11=DA!A16,DA!BT16,IF(EM!E11=DA!A17,DA!BT17,IF(EM!E11=DA!A18,DA!BT18,IF(EM!E11=DA!A19,DA!BT19,IF(EM!E11=DA!A20,DA!BT20))))))))))))))))))),"")&IF(EM!C6="LBG IV",(IF(EM!E11=DA!A3,DA!BU3,IF(EM!E11=DA!A4,DA!BU4,IF(EM!E11=DA!A5,DA!BU5,IF(EM!E11=DA!A6,DA!BU6,IF(EM!E11=DA!A7,DA!BU7,IF(EM!E11=DA!A8,DA!BU8,IF(EM!E11=DA!A9,DA!BU9,IF(EM!E11=DA!A10,DA!BU10,IF(EM!E11=DA!A11,DA!BU11,IF(EM!E11=DA!A12,DA!BU12,IF(EM!E11=DA!A13,DA!BU13,IF(EM!E11=DA!A14,DA!BU14,IF(EM!E11=DA!A15,DA!BU15,IF(EM!E11=DA!A16,DA!BU16,IF(EM!E11=DA!A17,DA!BU17,IF(EM!E11=DA!A18,DA!BU18,IF(EM!E11=DA!A19,DA!BU19,IF(EM!E11=DA!A20,DA!BU20))))))))))))))))))),"")&IF(EM!C6="LBG V",(IF(EM!E11=DA!A3,DA!BV3,IF(EM!E11=DA!A4,DA!BV4,IF(EM!E11=DA!A5,DA!BV5,IF(EM!E11=DA!A6,DA!BV6,IF(EM!E11=DA!A7,DA!BV7,IF(EM!E11=DA!A8,DA!BV8,IF(EM!E11=DA!A9,DA!BV9,IF(EM!E11=DA!A10,DA!BV10,IF(EM!E11=DA!A11,DA!BV11,IF(EM!E11=DA!A12,DA!BV12,IF(EM!E11=DA!A13,DA!BV13,IF(EM!E11=DA!A14,DA!BV14,IF(EM!E11=DA!A15,DA!BV15,IF(EM!E11=DA!A16,DA!BV16,IF(EM!E11=DA!A17,DA!BV17,IF(EM!E11=DA!A18,DA!BV18,IF(EM!E11=DA!A19,DA!BV19,IF(EM!E11=DA!A20,DA!BV20))))))))))))))))))),""))) -> 0
A19: Mehraufwand in % | B19: =IF(ISNUMBER((B15-B17)+(SUM(HGO!AB2:AB81))),((B15-B17)+(SUM(HGO!AB2:AB81))),"") -> 0 | E19: =IF(ISNUMBER(E15-E17),(E15-E17),"") ->  | F19: =IF(H19>A4,"Bitte Zeitraum wählen",(IF(H19="","Bitte Zeitraum wählen",IF(ISNUMBER(INDEX(HGO!Z:Z,(ROW(Z2)-1)*(H19)+1)),INDEX(HGO!Z:Z,(ROW(Z2)-1)*(H19)+1),"")))) ->  | G19: =IF(H19>A4,"Bitte Zeitraum wählen",(IF(H19="","Bitte Zeitraum wählen",IF(ISNUMBER(INDEX(HGO!Y:Y,(ROW(Y2)-1)*(H19)+1)),INDEX(HGO!Y:Y,(ROW(Y2)-1)*(H19)+1),"")))) ->  | H19: =A4 -> 0
B20: Erzeugungspreis Gehölze €/t | E20: Mittlerer Deckungsbeitrag Ackerkultur [€] | F20: Anuität für AFS Gesamt [€] | G20: Kapitalwert für AFS Gesamt [€] | I20: Zwischenfrucht | J20: Saatgut | K20: Saatgut individuell | L20: Dünger | M20: Dünger individuell | N20: Pfl.schutzmittel | O20: Pfl.schutzmittel indieviduell | P20: Direktkosten | Q20: Maschinenkosten | R20: Maschinenkosten individuell | S20: Lohnkosten | T20: Lohnkosten individuell | U20: Arbeitserledigungskosten | V20: Gesamtkosten Zwischenfrucht | W20: Erlös individuell | X20: Gewinn Zwischenfrucht
A21: ESF | B21: =IF(G34<>"",B17/G34,"") ->  | E21: =IF(OR(E19="",A4=""),"",E19/A4) ->  | F21: =IF(OR(F17="Bitte Zeitraum wählen",F19="Bitte Zeitraum wählen"),"Bitte Zeitraum wählen",(SUM(F17*(HGO!I31),F19*(HGO!I32)))) ->  | G21: =IF(OR(G17="Bitte Zeitraum wählen",G19="Bitte Zeitraum wählen"),"Bitte Zeitraum wählen",(SUM(G17,G19))) -> 0 | J21: =IF(I21="","",(IF(K21<>"",K21,(SUM(IF(OR(EM!C6="LBG I",EM!C6="LBG II",EM!C6="LBG III",EM!C6="LBG IV",EM!C6="LBG V"),(IF(EM!I21=DAZF!A4,DAZF!B4,IF(EM!I21=DAZF!A5,DAZF!B5,IF(EM!I21=DAZF!A6,DAZF!B6,IF(EM!I21=DAZF!A7,DAZF!B7,IF(EM!I21=DAZF!A8,DAZF!B8)))))),"")))))) ->  | L21: =IF(I21="","",(IF(M21<>"",M21,(SUM(IF(OR(EM!C6="LBG I",EM!C6="LBG II",EM!C6="LBG III",EM!C6="LBG IV",EM!C6="LBG V"),(IF(EM!I21=DAZF!A4,DAZF!B10,IF(EM!I21=DAZF!A5,DAZF!B11,IF(EM!I21=DAZF!A6,DAZF!B12,IF(EM!I21=DAZF!A7,DAZF!B13,IF(EM!I21=DAZF!A8,DAZF!B14)))))),"")))))) ->  | P21: =IF(I21="","",(J21+L21)) ->  | Q21: =IF(I21="","",(IF(R21<>"",R21,(SUM(IF(OR(EM!C6="LBG I",EM!C6="LBG II",EM!C6="LBG III",EM!C6="LBG IV",EM!C6="LBG V"),(IF(EM!I21=DAZF!A4,DAZF!F4,IF(EM!I21=DAZF!A5,DAZF!F5,IF(EM!I21=DAZF!A6,DAZF!F6,IF(EM!I21=DAZF!A7,DAZF!F7,IF(EM!I21=DAZF!A8,DAZF!F8)))))),"")))))) ->  | S21: =IF(I21="","",(IF(T21<>"",T21,(SUM(IF(OR(EM!C6="LBG I",EM!C6="LBG II",EM!C6="LBG III",EM!C6="LBG IV",EM!C6="LBG V"),(IF(EM!I21=DAZF!A4,DAZF!F10,IF(EM!I21=DAZF!A5,DAZF!F11,IF(EM!I21=DAZF!A6,DAZF!F12,IF(EM!I21=DAZF!A7,DAZF!F13,IF(EM!I21=DAZF!A8,DAZF!F14)))))),"")))))) ->  | U21: =IF(I21="","",(Q21+S21)) ->  | V21: =IF(I21="",0,(P21+U21)) -> 0 | X21: =IF(I21="","",(W21-V21)) -> 
J22: =IF(I22="","",(IF(K22<>"",K22,(SUM(IF(OR(EM!C6="LBG I",EM!C6="LBG II",EM!C6="LBG III",EM!C6="LBG IV",EM!C6="LBG V"),(IF(EM!I22=DAZF!A4,DAZF!B4,IF(EM!I22=DAZF!A5,DAZF!B5,IF(EM!I22=DAZF!A6,DAZF!B6,IF(EM!I22=DAZF!A7,DAZF!B7,IF(EM!I22=DAZF!A8,DAZF!B8)))))),"")))))) ->  | L22: =IF(I22="","",(IF(M22<>"",M22,(SUM(IF(OR(EM!C6="LBG I",EM!C6="LBG II",EM!C6="LBG III",EM!C6="LBG IV",EM!C6="LBG V"),(IF(EM!I22=DAZF!A4,DAZF!B10,IF(EM!I22=DAZF!A5,DAZF!B11,IF(EM!I22=DAZF!A6,DAZF!B12,IF(EM!I22=DAZF!A7,DAZF!B13,IF(EM!I22=DAZF!A8,DAZF!B14)))))),"")))))) ->  | Q22: =IF(I22="","",(IF(R22<>"",R22,(SUM(IF(OR(EM!C6="LBG I",EM!C6="LBG II",EM!C6="LBG III",EM!C6="LBG IV",EM!C6="LBG V"),(IF(EM!I22=DAZF!A4,DAZF!F4,IF(EM!I22=DAZF!A5,DAZF!F5,IF(EM!I22=DAZF!A6,DAZF!F6,IF(EM!I22=DAZF!A7,DAZF!F7,IF(EM!I22=DAZF!A8,DAZF!F8)))))),"")))))) ->  | S22: =IF(I22="","",(IF(T22<>"",T22,(SUM(IF(OR(EM!C6="LBG I",EM!C6="LBG II",EM!C6="LBG III",EM!C6="LBG IV",EM!C6="LBG V"),(IF(EM!I22=DAZF!A4,DAZF!F10,IF(EM!I22=DAZF!A5,DAZF!F11,IF(EM!I22=DAZF!A6,DAZF!F12,IF(EM!I22=DAZF!A7,DAZF!F13,IF(EM!I22=DAZF!A8,DAZF!F14)))))),"")))))) ->  | V22: 0
A23: Gehölzekosten | G23: Gehölzerlöse | J23: =IF(I23="","",(IF(K23<>"",K23,(SUM(IF(OR(EM!C6="LBG I",EM!C6="LBG II",EM!C6="LBG III",EM!C6="LBG IV",EM!C6="LBG V"),(IF(EM!I23=DAZF!A4,DAZF!B4,IF(EM!I23=DAZF!A5,DAZF!B5,IF(EM!I23=DAZF!A6,DAZF!B6,IF(EM!I23=DAZF!A7,DAZF!B7,IF(EM!I23=DAZF!A8,DAZF!B8)))))),"")))))) ->  | L23: =IF(I23="","",(IF(M23<>"",M23,(SUM(IF(OR(EM!C6="LBG I",EM!C6="LBG II",EM!C6="LBG III",EM!C6="LBG IV",EM!C6="LBG V"),(IF(EM!I23=DAZF!A4,DAZF!B10,IF(EM!I23=DAZF!A5,DAZF!B11,IF(EM!I23=DAZF!A6,DAZF!B12,IF(EM!I23=DAZF!A7,DAZF!B13,IF(EM!I23=DAZF!A8,DAZF!B14)))))),"")))))) ->  | Q23: =IF(I23="","",(IF(R23<>"",R23,(SUM(IF(OR(EM!C6="LBG I",EM!C6="LBG II",EM!C6="LBG III",EM!C6="LBG IV",EM!C6="LBG V"),(IF(EM!I23=DAZF!A4,DAZF!F4,IF(EM!I23=DAZF!A5,DAZF!F5,IF(EM!I23=DAZF!A6,DAZF!F6,IF(EM!I23=DAZF!A7,DAZF!F7,IF(EM!I23=DAZF!A8,DAZF!F8)))))),"")))))) ->  | S23: =IF(I23="","",(IF(T23<>"",T23,(SUM(IF(OR(EM!C6="LBG I",EM!C6="LBG II",EM!C6="LBG III",EM!C6="LBG IV",EM!C6="LBG V"),(IF(EM!I23=DAZF!A4,DAZF!F10,IF(EM!I23=DAZF!A5,DAZF!F11,IF(EM!I23=DAZF!A6,DAZF!F12,IF(EM!I23=DAZF!A7,DAZF!F13,IF(EM!I23=DAZF!A8,DAZF!F14)))))),"")))))) ->  | V23: 0
A24: Pflanzung | D24: Pflanzgut | G24: Ertrag/Jahr | H24: Erlös/Jahr | J24: =IF(I24="","",(IF(K24<>"",K24,(SUM(IF(OR(EM!C6="LBG I",EM!C6="LBG II",EM!C6="LBG III",EM!C6="LBG IV",EM!C6="LBG V"),(IF(EM!I24=DAZF!A4,DAZF!B4,IF(EM!I24=DAZF!A5,DAZF!B5,IF(EM!I24=DAZF!A6,DAZF!B6,IF(EM!I24=DAZF!A7,DAZF!B7,IF(EM!I24=DAZF!A8,DAZF!B8)))))),"")))))) ->  | L24: =IF(I24="","",(IF(M24<>"",M24,(SUM(IF(OR(EM!C6="LBG I",EM!C6="LBG II",EM!C6="LBG III",EM!C6="LBG IV",EM!C6="LBG V"),(IF(EM!I24=DAZF!A4,DAZF!B10,IF(EM!I24=DAZF!A5,DAZF!B11,IF(EM!I24=DAZF!A6,DAZF!B12,IF(EM!I24=DAZF!A7,DAZF!B13,IF(EM!I24=DAZF!A8,DAZF!B14)))))),"")))))) ->  | Q24: =IF(I24="","",(IF(R24<>"",R24,(SUM(IF(OR(EM!C6="LBG I",EM!C6="LBG II",EM!C6="LBG III",EM!C6="LBG IV",EM!C6="LBG V"),(IF(EM!I24=DAZF!A4,DAZF!F4,IF(EM!I24=DAZF!A5,DAZF!F5,IF(EM!I24=DAZF!A6,DAZF!F6,IF(EM!I24=DAZF!A7,DAZF!F7,IF(EM!I24=DAZF!A8,DAZF!F8)))))),"")))))) ->  | S24: =IF(I24="","",(IF(T24<>"",T24,(SUM(IF(OR(EM!C6="LBG I",EM!C6="LBG II",EM!C6="LBG III",EM!C6="LBG IV",EM!C6="LBG V"),(IF(EM!I24=DAZF!A4,DAZF!F10,IF(EM!I24=DAZF!A5,DAZF!F11,IF(EM!I24=DAZF!A6,DAZF!F12,IF(EM!I24=DAZF!A7,DAZF!F13,IF(EM!I24=DAZF!A8,DAZF!F14)))))),"")))))) ->  | V24: 0
A25: Stk./ha | B25: €/Stk. | C25: €/ha | D25: Stk./ha | E25: €/Stk. | F25: €/ha | G25: t/ha * a bei Verkauf | H25: €/ha * a | J25: =IF(I25="","",(IF(K25<>"",K25,(SUM(IF(OR(EM!C6="LBG I",EM!C6="LBG II",EM!C6="LBG III",EM!C6="LBG IV",EM!C6="LBG V"),(IF(EM!I25=DAZF!A4,DAZF!B4,IF(EM!I25=DAZF!A5,DAZF!B5,IF(EM!I25=DAZF!A6,DAZF!B6,IF(EM!I25=DAZF!A7,DAZF!B7,IF(EM!I25=DAZF!A8,DAZF!B8)))))),"")))))) ->  | L25: =IF(I25="","",(IF(M25<>"",M25,(SUM(IF(OR(EM!C6="LBG I",EM!C6="LBG II",EM!C6="LBG III",EM!C6="LBG IV",EM!C6="LBG V"),(IF(EM!I25=DAZF!A4,DAZF!B10,IF(EM!I25=DAZF!A5,DAZF!B11,IF(EM!I25=DAZF!A6,DAZF!B12,IF(EM!I25=DAZF!A7,DAZF!B13,IF(EM!I25=DAZF!A8,DAZF!B14)))))),"")))))) ->  | Q25: =IF(I25="","",(IF(R25<>"",R25,(SUM(IF(OR(EM!C6="LBG I",EM!C6="LBG II",EM!C6="LBG III",EM!C6="LBG IV",EM!C6="LBG V"),(IF(EM!I25=DAZF!A4,DAZF!F4,IF(EM!I25=DAZF!A5,DAZF!F5,IF(EM!I25=DAZF!A6,DAZF!F6,IF(EM!I25=DAZF!A7,DAZF!F7,IF(EM!I25=DAZF!A8,DAZF!F8)))))),"")))))) ->  | S25: =IF(I25="","",(IF(T25<>"",T25,(SUM(IF(OR(EM!C6="LBG I",EM!C6="LBG II",EM!C6="LBG III",EM!C6="LBG IV",EM!C6="LBG V"),(IF(EM!I25=DAZF!A4,DAZF!F10,IF(EM!I25=DAZF!A5,DAZF!F11,IF(EM!I25=DAZF!A6,DAZF!F12,IF(EM!I25=DAZF!A7,DAZF!F13,IF(EM!I25=DAZF!A8,DAZF!F14)))))),"")))))) ->  | V25: 0
A26: =IF(A28<>"",A28,(IF(A12="Mini Rotation",DGK!N6,IF(A12="Midi Rotation",DGK!N13,IF(A12="Maxi Rotation",DGK!N20,IF(A12="Stammholz",DGK!N27,"")))))) ->  | B26: =IF(B28<>"",B28,(IF(A12="Mini Rotation",DGK!O6,IF(A12="Midi Rotation",DGK!O13,IF(A12="Maxi Rotation",DGK!O20,IF(A12="Stammholz",DGK!O27,"")))))) ->  | C26: =IF(OR(A26="",B26="",A26="individuell eintragen",B26="individuell eintragen"),"",A26*B26*(IF(A20=0,1,IF(A20=5,1.05,IF(A20=10,1.1))))) ->  | D26: =IF(D28<>"",D28,(IF(A12="Mini Rotation",DGK!Q6,IF(A12="Midi Rotation",DGK!Q13,IF(A12="Maxi Rotation",DGK!Q20,IF(A12="Stammholz",DGK!Q27,"")))))) ->  | E26: =IF(E28<>"",E28,(IF(A12="Mini Rotation",DGK!R6,IF(A12="Midi Rotation",DGK!R13,IF(A12="Maxi Rotation",DGK!R20,IF(A12="Stammholz",DGK!R27,"")))))) ->  | F26: =IF(OR(D26="",E26="",D26="individuell eintragen",E26="individuell eintragen"),"",D26*E26) ->  | G26: =(IF(A14<>"",A14/(HGO!J51/100),"")) ->  | H26: =IF(AND(ISNUMBER(B10),ISNUMBER(A6)),((G31/A6)*B10),"") ->  | J26: =IF(I26="","",(IF(K26<>"",K26,(SUM(IF(OR(EM!C6="LBG I",EM!C6="LBG II",EM!C6="LBG III",EM!C6="LBG IV",EM!C6="LBG V"),(IF(EM!I26=DAZF!A4,DAZF!B4,IF(EM!I26=DAZF!A5,DAZF!B5,IF(EM!I26=DAZF!A6,DAZF!B6,IF(EM!I26=DAZF!A7,DAZF!B7,IF(EM!I26=DAZF!A8,DAZF!B8)))))),"")))))) ->  | L26: =IF(I26="","",(IF(M26<>"",M26,(SUM(IF(OR(EM!C6="LBG I",EM!C6="LBG II",EM!C6="LBG III",EM!C6="LBG IV",EM!C6="LBG V"),(IF(EM!I26=DAZF!A4,DAZF!B10,IF(EM!I26=DAZF!A5,DAZF!B11,IF(EM!I26=DAZF!A6,DAZF!B12,IF(EM!I26=DAZF!A7,DAZF!B13,IF(EM!I26=DAZF!A8,DAZF!B14)))))),"")))))) ->  | Q26: =IF(I26="","",(IF(R26<>"",R26,(SUM(IF(OR(EM!C6="LBG I",EM!C6="LBG II",EM!C6="LBG III",EM!C6="LBG IV",EM!C6="LBG V"),(IF(EM!I26=DAZF!A4,DAZF!F4,IF(EM!I26=DAZF!A5,DAZF!F5,IF(EM!I26=DAZF!A6,DAZF!F6,IF(EM!I26=DAZF!A7,DAZF!F7,IF(EM!I26=DAZF!A8,DAZF!F8)))))),"")))))) ->  | S26: =IF(I26="","",(IF(T26<>"",T26,(SUM(IF(OR(EM!C6="LBG I",EM!C6="LBG II",EM!C6="LBG III",EM!C6="LBG IV",EM!C6="LBG V"),(IF(EM!I26=DAZF!A4,DAZF!F10,IF(EM!I26=DAZF!A5,DAZF!F11,IF(EM!I26=DAZF!A6,DAZF!F12,IF(EM!I26=DAZF!A7,DAZF!F13,IF(EM!I26=DAZF!A8,DAZF!F14)))))),"")))))) ->  | V26: 0
A27: Individuell | B27: Individuell | D27: Individuell | E27: Individuell | G27: Individuell | H27: t/ha * a bei energet. Verwertung | I27: Gehölzertrag in Frischmasse
H28: =IF(A14<>"",A14/(HGO!J54/100),"") ->  | I28: =(IF(A14<>"",A14/(45/100),"")) -> 
A29: Einmessung | B29: Bodenvorbereitung | C29: Pflege | D29: Erntekosten für Verkauf | E29: Ernteksoten pro Zeitraum | F29: Rückwandlung | G29: Ertrag/Rotation | H29: Erlös/Rotation | I29: Gewinn aus Nebenprodukt
A30: =IF(A32<>"",A32*(IF(A20=0,1,IF(A20=5,1.05,IF(A20=10,1.1)))),(IF(A12="Mini Rotation",DGK!L6*(IF(A20=0,1,IF(A20=5,1.05,IF(A20=10,1.1)))),IF(A12="Midi Rotation",DGK!L13*(IF(A20=0,1,IF(A20=5,1.05,IF(A20=10,1.1)))),IF(A12="Maxi Rotation",DGK!L20*(IF(A20=0,1,IF(A20=5,1.05,IF(A20=10,1.1)))),IF(A12="Stammholz",DGK!L28*(IF(A20=0,1,IF(A20=5,1.05,IF(A20=10,1.1)))),"")))))) ->  | B30: =IF(B32<>"",B32*(IF(A20=0,1,IF(A20=5,1.05,IF(A20=10,1.1)))),(IF(A12="Mini Rotation",DGK!M6*(IF(A20=0,1,IF(A20=5,1.05,IF(A20=10,1.1)))),IF(A12="Midi Rotation",DGK!M13*(IF(A20=0,1,IF(A20=5,1.05,IF(A20=10,1.1)))),IF(A12="Maxi Rotation",DGK!M20*(IF(A20=0,1,IF(A20=5,1.05,IF(A20=10,1.1)))),IF(A12="Stammholz",DGK!M28*(IF(A20=0,1,IF(A20=5,1.05,IF(A20=10,1.1)))),"")))))) ->  | C30: =IF(C32<>"",C32*(IF(A20=0,1,IF(A20=5,1.05,IF(A20=10,1.1)))),IF(A16=6,DGK!T6*(IF(A20=0,1,IF(A20=5,1.05,IF(A20=10,1.1)))),IF(A16=5,5/6*DGK!T6*(IF(A20=0,1,IF(A20=5,1.05,IF(A20=10,1.1)))),IF(A16=4,4/6*DGK!T6*(IF(A20=0,1,IF(A20=5,1.05,IF(A20=10,1.1)))),IF(A16=3,3/6*DGK!T6*(IF(A20=0,1,IF(A20=5,1.05,IF(A20=10,1.1)))),IF(A16=2,2/6*DGK!T6*(IF(A20=0,1,IF(A20=5,1.05,IF(A20=10,1.1)))),IF(A16=1,1/6*DGK!T6*(IF(A20=0,1,IF(A20=5,1.05,IF(A20=10,1.1)))),""))))))) -> 65 | D30: =IF(D32<>"",(D32+(D35*G26))*(IF(A20=0,1,IF(A20=5,1.05,IF(A20=10,1.1)))),(IF(AND(A6<>"",A18<>""),(DGK!AD9+A18+(D35*I28))*(IF(A20=0,1,IF(A20=5,1.05,IF(A20=10,1.1)))),IF(AND(A6<>"",A18=""),(DGK!AD9+(D35*G26))*(IF(A20=0,1,IF(A20=5,1.05,IF(A20=10,1.1)))),"")))) ->  | E30: =IF(OR(D30="",A10=""),"",(D30*A10)) ->  | F30: =IF(B6="","",IF(F32<>"",F32*(IF(A20=0,1,IF(A20=5,1.05,IF(A20=10,1.1)))),DGK!X6*(IF(A20=0,1,IF(A20=5,1.05,IF(A20=10,1.1)))))) ->  | G30: t/ha | H30: €/ha | I30: €/ha | J30: Ab Jahr
A31: Individuell | B31: Individuell | C31: Individuell | D31: Individuell | E31: Erntekosten für E-Nutzung | F31: Individuell | G31: =IF(OR(G26="",A6=""),"",A6*(G26-(G26*(E37/100)))) ->  | H31: =IF(OR(G31="",B10=""),"",G31*B10) -> 
E32: =IF(D32<>"",(D32+(D39*H28))*(IF(A20=0,1,IF(A20=5,1.05,IF(A20=10,1.1)))),(IF(AND(A6<>"",A18<>""),(DGK!AD9+A18+(D39*I28))*(IF(A20=0,1,IF(A20=5,1.05,IF(A20=10,1.1)))),IF(AND(A6<>"",A18=""),(DGK!AD9+(D39*H28))*(IF(A20=0,1,IF(A20=5,1.05,IF(A20=10,1.1)))),"")))) ->  | G32: Ertrag/Laufzeit | H32: Erlös/Laufzeit | J32: Alle x Jahre
C33: Pflegemaßnahmen bis zum Jahr | F33: Ab Jahr | G33: t/ha | H33: t/ha
A34: Etablierungskosten gesamt | B34: Etablierungskosten (Jahr 1) | C34: 1 | D34: Trocknungskosten €/t bei Verkauf | E34: Pflegekosten wie Ästen | G34: =IF(OR(G31="",A10=""),"",G31*A10) ->  | H34: =IF(OR(H31="",A10=""),"",H31*A10) -> 
A35: =B35+(C30*C34) -> 130 | B35: =SUM(IF(C26<>"",C26,0))+(IF(F26<>"",F26,0))+(IF(A30<>"",A30,0)+(IF(B30<>"",B30)+(IF(AND(C30<>"",C34>0),C30,0)))) -> 65 | F35: Alle x jahre
D36: Investition Hackschnitzellagerung €/t bei Verkauf | E36: Trockenmasseverlust bei Lagerung/Trocknung in % bei Verkauf
D38: Trocknungskosten €/t bei E-Nutzung
D40: Investition Hackschnitzellagerung €/t bei E-Nutzung | E40: Trockenmasseverlust bei Lagerung/Trocknung in % bei E-Nutzung

Sheet HGO (hidden)
A1: Fruchtfolgen | B1: Umtriebszeit | C1: Umtriebszeit | D1: Dünger Koppel ja - nein | E1: Gehölzart | F1: Umtriebsart | G1: Nutzungsart der Hackschnitzel | H1: Erlös | I1: Mehraufwand | J1: Wassergehalt | L1: Laufzeit | M1: Anuitätenfaktor | N1: Erlöse Ackerfrucht | O1: Kosten Ackerfrucht | P1: Gewinn Ackerfrucht | Q1: Abzinsung | R1: Kapitalwert Ackerkultur | S1: Anuität Ackerkultur | T1: Kosten Gehölzkultur | U1: Kosten Gehölzkultur Verkauf | V1: Erlöse Gehölzkultur | W1: Gewinn Gehölzkultur | X1: Abzinsung Gehölzkultur | Y1: Kapitalwert Gehölzkultur | Z1: Anuität Gehölzkultur | AA1: Nebenprodukt | AB1: Nebenprodukt | AC1: Pflegemaßnahmen | AD1: Ästen | AE1: Ästen | AF1: Kosten Gehölzkultur E-Nutzung | AG1: Mögliche Umtriebszeit | AH1: Umtriebszeit Geordnet
A2: Mais/Futterroggen | B2: 1 | C2: =IF(((EM!A$4/HGO!B2)-INT(EM!A$4/HGO!B2))=0,HGO!B2,"") -> 1 | D2: ja | E2: Pappel | F2: Kurzumtrieb | G2: Verkauf | H2: =I11 ->  | I2: 0 | J2: 0 | L2: =IF(EM!$A$4>=1,1,"") ->  | M2: =IF(L2=1,(((1+EM!$C$4/100)^1)*EM!$C$4/100)/(((1+EM!$C$4/100)^1)-1),"") ->  | N2: =I11+J11 ->  | O2: =I20+J20 ->  | P2: =IF(AND(N2="",O2=""),"",N2-O2) ->  | Q2: =IF(ROW(P2)>COUNTA(P:P),"",INDEX(P:P,SMALL(IF(P$1:P$241<>"",ROW($1:$241)),ROW(P2))))/((1+(EM!$C$4/100))^HGO!L2) ->  | R2: =IF(Q2<>"",SUM(Q2),"") ->  | S2: =IF(R2<>"",R2*M2,"") ->  | T2: =IF(EM!$A$6=1,TRUE,MOD(ROW(),EM!$A$6)=1) ->  | U2: =IF(EM!A4>1,EM!B35,IF(EM!A4=1,EM!B35+EM!D30))+SUM(AE2)+(IF(L2=EM!A6,EM!D37)) -> 0 | V2: =IF(L2<>1,"",(IF(AND(T2=TRUE,L2=1),EM!$H$31,0))*(IF(L2=EM!$A$6,HGO!$C$40,IF(HGO!L2=2*EM!$A$6,HGO!$C$41,HGO!$C$42)))) ->  | W2: =IF(OR(V2="",U2=""),"",V2-U2+(IF(AB2<>"",AB2))) ->  | X2: =IF(W2<>"",W2/(1+(EM!$C$4/100))^HGO!L2,"") ->  | Y2: =IF(X2<>"",SUM(X2),"") ->  | Z2: =IF(Y2<>"",Y2*M2,"") ->  | AA2: =MOD(ROW(),EM!J33)=1 ->  | AB2: =IF(AND(EM!$J$33=1,$L2>=EM!$J$31),EM!$I$31,(IF(OR(EM!$I$31="",EM!$J$31="",EM!$J$33=""),"",IF(AND(EM!$I$31<>"",HGO!$AA2=TRUE,$L2>=EM!$J$31),EM!$I$31,"")))) ->  | AC2: =IF(HGO!L2="","",IF(VALUE(EM!$C$34)>=VALUE(HGO!L2),EM!$C$30,0)) ->  | AD2: =MOD(ROW(),EM!F36)=1 ->  | AE2: =IF(L2<>"",IF(AND(EM!$F$36=1,$L2>=EM!$F$34),EM!$E$35,(IF(OR(EM!$E$35="",EM!$F$34="",EM!$F$36=""),0,IF(AND(EM!$E$35<>"",HGO!$AD2=TRUE,$L2>=EM!$F$34),EM!$E$35,0)))),"") ->  | AF2: =IF(EM!A4>1,EM!B35,IF(EM!A4=1,EM!B35+EM!E32))+SUM(HGO!AE2)+(IF(HGO!L2=EM!A6,EM!D41)) -> 0 | AG2: =IF(MOD(EM!$A$4,HGO!B48)=0,HGO!B48,"") -> 1 | AH2: =INDEX(AG$2:AG$100,MATCH(LARGE(COUNTIF(AG$2:AG$100,">="&AG$2:AG$100)+100*ISNUMBER(AG$2:AG$100),ROWS(AG$2:AG2)),COUNTIF(AG$2:AG$100,">="&AG$2:AG$100)+100*ISNUMBER(AG$2:AG$100),0),1) -> 1
A3: Mais/ZF-Mischung | B3: 2 | C3: =IF(((EM!A$4/HGO!B3)-INT(EM!A$4/HGO!B3))=0,HGO!B3,"") -> 2 | D3: nein | E3: Weide | F3: Umtrieb mittelfristig | G3: energet. Eigenverwertung | H3: =I12 ->  | I3: 5 | J3: 20 | L3: =IF(EM!$A$4>=2,2,"") ->  | M3: =IF(L3=2,(((1+EM!$C$4/100)^2)*EM!$C$4/100)/(((1+EM!$C$4/100)^2)-1),"") ->  | N3: =I12+J12 ->  | O3: =I21+J21 ->  | P3: =IF(AND(N3="",O3=""),"",N3-O3) ->  | Q3: =IF(ROW(P3)>COUNTA(P:P),"",INDEX(P:P,SMALL(IF(P$1:P$241<>"",ROW($1:$241)),ROW(P3))))/((1+(EM!$C$4/100))^HGO!L3) ->  | R3: =IF(Q3<>"",SUM($Q$2:Q3),"") ->  | S3: =IF(R3<>"",R3*M3,"") ->  | T3: =IF(EM!$A$6=1,TRUE,MOD(ROW(),EM!$A$6)=1) ->  | U3: =IF(L3="","",((IF(AND(T3=TRUE,L4<>3,EM!$A$22="Nein"),EM!$D$30+EM!$F$30+AC3+AE3,IF(AND(T3=TRUE,L4<>3,EM!$A$22="Ja"),DGK!$AE$8+EM!$F$30+AC3+AE3,IF(AND(T3=TRUE,L4=3,EM!$A$22="Nein"),EM!$D$30+AC3+AE3,IF(AND(T3=TRUE,L4=3,EM!$A$22="Ja",(EM!$A$6/HGO!L3)=1),DGK!$AE$6+AC3+AE3,IF(AND(T3=TRUE,L4=3,EM!$A$22="Ja",((EM!$A$6*2)/HGO!L3)=1),DGK!$AE$7+AC3+AE3,IF(AND(T3=TRUE,L4=3,EM!$A$22="Ja",AND((EM!$A$6/HGO!L3)<>1,((EM!$A$6*2)/HGO!L3)<>1)),DGK!$AE$8+AC3+AE3,0+AC3+AE3))))))))+(IF(L3=EM!$A$6,EM!$D$37))) ->  | V3: =IF(L3<>2,"",(IF(AND(T3=TRUE,L3=2),EM!$H$31,0))*(IF(L3=EM!$A$6,HGO!$C$40,IF(HGO!L3=2*EM!$A$6,HGO!$C$41,HGO!$C$42)))) ->  | W3: =IF(OR(V3="",U3=""),"",V3-U3+(IF(AB3<>"",AB3))) ->  | X3: =IF(W3<>"",W3/(1+(EM!$C$4/100))^HGO!L3,"") ->  | Y3: =IF(X3<>"",SUM($X$2:X3),"") ->  | Z3: =IF(Y3<>"",Y3*M3,"") ->  | AB3: =IF(AND(EM!$J$33=1,$L3>=EM!$J$31),EM!$I$31,(IF(OR(EM!$I$31="",EM!$J$31="",EM!$J$33=""),"",IF(AND(EM!$I$31<>"",HGO!$AA3=TRUE,$L3>=EM!$J$31),EM!$I$31,"")))) ->  | AC3: =IF(HGO!L3="","",IF(VALUE(EM!$C$34)>=VALUE(HGO!L3),EM!$C$30,0)) ->  | AE3: =IF(L3<>"",IF(AND(EM!$F$36=1,$L3>=EM!$F$34),EM!$E$35,(IF(OR(EM!$E$35="",EM!$F$34="",EM!$F$36=""),0,IF(AND(EM!$E$35<>"",HGO!$AD3=TRUE,$L3>=EM!$F$34),EM!$E$35,0)))),"") ->  | AF3: =IF(L3="","",((IF(AND(T3=TRUE,L4<>3,EM!$A$22="Nein"),EM!$E$32+EM!$F$30+AC3+AE3,IF(AND(T3=TRUE,L4<>3,EM!$A$22="Ja"),DGK!$AE$8+EM!$F$30+AC3+AE3,IF(AND(T3=TRUE,L4=3,EM!$A$22="Nein"),EM!$E$32+AC3+AE3,IF(AND(T3=TRUE,L4=3,EM!$A$22="Ja",(EM!$A$6/HGO!L3)=1),DGK!$AE$6+AC3+AE3,IF(AND(T3=TRUE,L4=3,EM!$A$22="Ja",((EM!$A$6*2)/HGO!L3)=1),DGK!$AE$7+AC3+AE3,IF(AND(T3=TRUE,L4=3,EM!$A$22="Ja",AND((EM!$A$6/HGO!L3)<>1,((EM!$A$6*2)/HGO!L3)<>1)),DGK!$AE$8+AC3+AE3,0+AC3+AE3))))))))+(IF(L3=EM!$A$6,EM!$D$41))) ->  | AG3: =IF(MOD(EM!$A$4,HGO!B49)=0,HGO!B49,"") -> 2 | AH3: =INDEX(AG$2:AG$100,MATCH(LARGE(COUNTIF(AG$2:AG$100,">="&AG$2:AG$100)+100*ISNUMBER(AG$2:AG$100),ROWS(AG$2:AG3)),COUNTIF(AG$2:AG$100,">="&AG$2:AG$100)+100*ISNUMBER(AG$2:AG$100),0),1) -> 2
A4: Hafer | B4: 3 | C4: =IF(((EM!A$4/HGO!B4)-INT(EM!A$4/HGO!B4))=0,HGO!B4,"") -> 3 | D4: =IF(ROW(C2)>COUNTA(C:C),"",INDEX(C:C,SMALL(IF(C$1:C$7<>"",ROW($1:$7)),ROW(C2)))) -> 1 | E4: Robinie | F4: Stammholz | G4: =IF(I22>0,I22,"") ->  | H4: =IF(I13>0,I13,"") ->  | I4: 10 | J4: 55 | L4: =IF(EM!$A$4>=3,3,"") ->  | M4: =IF(L4=3,(((1+EM!$C$4/100)^3)*EM!$C$4/100)/(((1+EM!$C$4/100)^3)-1),"") ->  | N4: =IF(EM!$E$4<=2,"",I13+J13) ->  | O4: =IF(EM!$E$4<=2,"",I22+J22) ->  | P4: =IF(AND(N4="",O4=""),"",N4-O4) ->  | Q4: =IF(ROW(P4)>COUNTA(P:P),"",INDEX(P:P,SMALL(IF(P$1:P$241<>"",ROW($1:$241)),ROW(P4))))/((1+(EM!$C$4/100))^HGO!L4) ->  | R4: =IF(Q4<>"",SUM($Q$2:Q4),"") ->  | S4: =IF(R4<>"",R4*M4,"") ->  | T4: =IF(EM!$A$6=1,TRUE,MOD(ROW(),EM!$A$6)=1) ->  | U4: =IF(L4="","",((IF(AND(T4=TRUE,L5<>4,EM!$A$22="Nein"),EM!$D$30+EM!$F$30+AC4+AE4,IF(AND(T4=TRUE,L5<>4,EM!$A$22="Ja"),DGK!$AE$8+EM!$F$30+AC4+AE4,IF(AND(T4=TRUE,L5=4,EM!$A$22="Nein"),EM!$D$30+AC4+AE4,IF(AND(T4=TRUE,L5=4,EM!$A$22="Ja",(EM!$A$6/HGO!L4)=1),DGK!$AE$6+AC4+AE4,IF(AND(T4=TRUE,L5=4,EM!$A$22="Ja",((EM!$A$6*2)/HGO!L4)=1),DGK!$AE$7+AC4+AE4,IF(AND(T4=TRUE,L5=4,EM!$A$22="Ja",AND((EM!$A$6/HGO!L4)<>1,((EM!$A$6*2)/HGO!L4)<>1)),DGK!$AE$8+AC4+AE4,0+AC4+AE4))))))))+(IF(L4=EM!$A$6,EM!$D$37))) ->  | V4: =IF(L4<>3,"",(IF(AND(T4=TRUE,L4=3),EM!$H$31,0))*(IF(L4=EM!$A$6,HGO!$C$40,IF(HGO!L4=2*EM!$A$6,HGO!$C$41,HGO!$C$42)))) ->  | W4: =IF(OR(V4="",U4=""),"",V4-U4+(IF(AB4<>"",AB4))) ->  | X4: =IF(W4<>"",W4/(1+(EM!$C$4/100))^HGO!L4,"") ->  | Y4: =IF(X4<>"",SUM($X$2:X4),"") ->  | AB4: =IF(AND(EM!$J$33=1,$L4>=EM!$J$31),EM!$I$31,(IF(OR(EM!$I$31="",EM!$J$31="",EM!$J$33=""),"",IF(AND(EM!$I$31<>"",HGO!$AA4=TRUE,$L4>=EM!$J$31),EM!$I$31,"")))) ->  | AC4: =IF(HGO!L4="","",IF(VALUE(EM!$C$34)>=VALUE(HGO!L4),EM!$C$30,0)) ->  | AE4: =IF(L4<>"",IF(AND(EM!$F$36=1,$L4>=EM!$F$34),EM!$E$35,(IF(OR(EM!$E$35="",EM!$F$34="",EM!$F$36=""),0,IF(AND(EM!$E$35<>"",HGO!$AD4=TRUE,$L4>=EM!$F$34),EM!$E$35,0)))),"") ->  | AF4: =IF(L4="","",((IF(AND(T4=TRUE,L5<>4,EM!$A$22="Nein"),EM!$E$32+EM!$F$30+AC4+AE4,IF(AND(T4=TRUE,L5<>4,EM!$A$22="Ja"),DGK!$AE$8+EM!$F$30+AC4+AE4,IF(AND(T4=TRUE,L5=4,EM!$A$22="Nein"),EM!$E$32+AC4+AE4,IF(AND(T4=TRUE,L5=4,EM!$A$22="Ja",(EM!$A$6/HGO!L4)=1),DGK!$AE$6+AC4+AE4,IF(AND(T4=TRUE,L5=4,EM!$A$22="Ja",((EM!$A$6*2)/HGO!L4)=1),DGK!$AE$7+AC4+AE4,IF(AND(T4=TRUE,L5=4,EM!$A$22="Ja",AND((EM!$A$6/HGO!L4)<>1,((EM!$A$6*2)/HGO!L4)<>1)),DGK!$AE$8+AC4+AE4,0+AC4+AE4))))))))+(IF(L4=EM!$A$6,EM!$D$41))) ->  | AG4: =IF(MOD(EM!$A$4,HGO!B50)=0,HGO!B50,"") -> 3 | AH4: =INDEX(AG$2:AG$100,MATCH(LARGE(COUNTIF(AG$2:AG$100,">="&AG$2:AG$100)+100*ISNUMBER(AG$2:AG$100),ROWS(AG$2:AG4)),COUNTIF(AG$2:AG$100,">="&AG$2:AG$100)+100*ISNUMBER(AG$2:AG$100),0),1) -> 3
A5: Winterroggen/Futterroggen | B5: 4 | C5: =IF(((EM!A$4/HGO!B5)-INT(EM!A$4/HGO!B5))=0,HGO!B5,"") -> 4 | D5: =IF(ROW(C3)>COUNTA(C:C),"",INDEX(C:C,SMALL(IF(C$1:C$7<>"",ROW($1:$7)),ROW(C3)))) -> 2 | E5: andere Baumarten | F5: Pflege | G5: =IF(I23>0,I23,"") ->  | H5: =IF(I14>0,I14,"") ->  | L5: =IF(EM!$A$4>=4,4,"") ->  | M5: =IF(L5=4,(((1+EM!$C$4/100)^4)*EM!$C$4/100)/(((1+EM!$C$4/100)^4)-1),"") ->  | N5: =IF(EM!$E$4<=3,"",I14+J14) ->  | O5: =IF(EM!$E$4<=3,"",I23+J23) ->  | Q5: =IF(ROW(P5)>COUNTA(P:P),"",INDEX(P:P,SMALL(IF(P$1:P$241<>"",ROW($1:$241)),ROW(P5))))/((1+(EM!$C$4/100))^HGO!L5) ->  | R5: =IF(Q5<>"",SUM($Q$2:Q5),"") ->  | S5: =IF(R5<>"",R5*M5,"") ->  | T5: =IF(EM!$A$6=1,TRUE,MOD(ROW(),EM!$A$6)=1) ->  | U5: =IF(L5="","",((IF(AND(T5=TRUE,L6<>5,EM!$A$22="Nein"),EM!$D$30+EM!$F$30+AC5+AE5,IF(AND(T5=TRUE,L6<>5,EM!$A$22="Ja"),DGK!$AE$8+EM!$F$30+AC5+AE5,IF(AND(T5=TRUE,L6=5,EM!$A$22="Nein"),EM!$D$30+AC5+AE5,IF(AND(T5=TRUE,L6=5,EM!$A$22="Ja",(EM!$A$6/HGO!L5)=1),DGK!$AE$6+AC5+AE5,IF(AND(T5=TRUE,L6=5,EM!$A$22="Ja",((EM!$A$6*2)/HGO!L5)=1),DGK!$AE$7+AC5+AE5,IF(AND(T5=TRUE,L6=5,EM!$A$22="Ja",AND((EM!$A$6/HGO!L5)<>1,((EM!$A$6*2)/HGO!L5)<>1)),DGK!$AE$8+AC5+AE5,0+AC5+AE5))))))))+(IF(L5=EM!$A$6,EM!$D$37))) ->  | V5: =IF(L5<>4,"",(IF(AND(T5=TRUE,L5=4),EM!$H$31,0))*(IF(L5=EM!$A$6,HGO!$C$40,IF(HGO!L5=2*EM!$A$6,HGO!$C$41,HGO!$C$42)))) ->  | W5: =IF(OR(V5="",U5=""),"",V5-U5+(IF(AB5<>"",AB5))) ->  | X5: =IF(W5<>"",W5/(1+(EM!$C$4/100))^HGO!L5,"") ->  | Y5: =IF(X5<>"",SUM($X$2:X5),"") ->  | AB5: =IF(AND(EM!$J$33=1,$L5>=EM!$J$31),EM!$I$31,(IF(OR(EM!$I$31="",EM!$J$31="",EM!$J$33=""),"",IF(AND(EM!$I$31<>"",HGO!$AA5=TRUE,$L5>=EM!$J$31),EM!$I$31,"")))) ->  | AC5: =IF(HGO!L5="","",IF(VALUE(EM!$C$34)>=VALUE(HGO!L5),EM!$C$30,0)) ->  | AE5: =IF(L5<>"",IF(AND(EM!$F$36=1,$L5>=EM!$F$34),EM!$E$35,(IF(OR(EM!$E$35="",EM!$F$34="",EM!$F$36=""),0,IF(AND(EM!$E$35<>"",HGO!$AD5=TRUE,$L5>=EM!$F$34),EM!$E$35,0)))),"") ->  | AF5: =IF(L5="","",((IF(AND(T5=TRUE,L6<>5,EM!$A$22="Nein"),EM!$E$32+EM!$F$30+AC5+AE5,IF(AND(T5=TRUE,L6<>5,EM!$A$22="Ja"),DGK!$AE$8+EM!$F$30+AC5+AE5,IF(AND(T5=TRUE,L6=5,EM!$A$22="Nein"),EM!$E$32+AC5+AE5,IF(AND(T5=TRUE,L6=5,EM!$A$22="Ja",(EM!$A$6/HGO!L5)=1),DGK!$AE$6+AC5+AE5,IF(AND(T5=TRUE,L6=5,EM!$A$22="Ja",((EM!$A$6*2)/HGO!L5)=1),DGK!$AE$7+AC5+AE5,IF(AND(T5=TRUE,L6=5,EM!$A$22="Ja",AND((EM!$A$6/HGO!L5)<>1,((EM!$A$6*2)/HGO!L5)<>1)),DGK!$AE$8+AC5+AE5,0+AC5+AE5))))))))+(IF(L5=EM!$A$6,EM!$D$41))) ->  | AG5: =IF(MOD(EM!$A$4,HGO!B51)=0,HGO!B51,"") -> 4 | AH5: =INDEX(AG$2:AG$100,MATCH(LARGE(COUNTIF(AG$2:AG$100,">="&AG$2:AG$100)+100*ISNUMBER(AG$2:AG$100),ROWS(AG$2:AG5)),COUNTIF(AG$2:AG$100,">="&AG$2:AG$100)+100*ISNUMBER(AG$2:AG$100),0),1) -> 4
B6: 5 | C6: =IF(((EM!A$4/HGO!B6)-INT(EM!A$4/HGO!B6))=0,HGO!B6,"") -> 5 | D6: =IF(ROW(C4)>COUNTA(C:C),"",INDEX(C:C,SMALL(IF(C$1:C$7<>"",ROW($1:$7)),ROW(C4)))) -> 3 | E6: Transport Häcksler | F6: Scheibenegge o. Grubbern | G6: =IF(I24>0,I24,"") ->  | H6: =IF(I15>0,I15,"") ->  | L6: =IF(EM!$A$4>=5,5,"") ->  | M6: =IF(L6=5,(((1+EM!$C$4/100)^5)*EM!$C$4/100)/(((1+EM!$C$4/100)^5)-1),"") ->  | N6: =IF(EM!$E$4<=4,"",I15+J15) ->  | O6: =IF(EM!$E$4<=4,"",I24+J24) ->  | Q6: =IF(ROW(P6)>COUNTA(P:P),"",INDEX(P:P,SMALL(IF(P$1:P$241<>"",ROW($1:$241)),ROW(P6))))/((1+(EM!$C$4/100))^HGO!L6) ->  | R6: =IF(Q6<>"",SUM($Q$2:Q6),"") ->  | T6: =IF(EM!$A$6=1,TRUE,MOD(ROW(),EM!$A$6)=1) ->  | U6: =IF(L6="","",((IF(AND(T6=TRUE,L7<>6,EM!$A$22="Nein"),EM!$D$30+EM!$F$30+AC6+AE6,IF(AND(T6=TRUE,L7<>6,EM!$A$22="Ja"),DGK!$AE$8+EM!$F$30+AC6+AE6,IF(AND(T6=TRUE,L7=6,EM!$A$22="Nein"),EM!$D$30+AC6+AE6,IF(AND(T6=TRUE,L7=6,EM!$A$22="Ja",(EM!$A$6/HGO!L6)=1),DGK!$AE$6+AC6+AE6,IF(AND(T6=TRUE,L7=6,EM!$A$22="Ja",((EM!$A$6*2)/HGO!L6)=1),DGK!$AE$7+AC6+AE6,IF(AND(T6=TRUE,L7=6,EM!$A$22="Ja",AND((EM!$A$6/HGO!L6)<>1,((EM!$A$6*2)/HGO!L6)<>1)),DGK!$AE$8+AC6+AE6,0+AC6+AE6))))))))+(IF(L6=EM!$A$6,EM!$D$37))) ->  | V6: =IF(L6<>5,"",(IF(AND(T6=TRUE,L6=5),EM!$H$31,0))*(IF(L6=EM!$A$6,HGO!$C$40,IF(HGO!L6=2*EM!$A$6,HGO!$C$41,HGO!$C$42)))) ->  | X6: =IF(W6<>"",W6/(1+(EM!$C$4/100))^HGO!L6,"") ->  | Y6: =IF(X6<>"",SUM($X$2:X6),"") ->  | AB6: =IF(AND(EM!$J$33=1,$L6>=EM!$J$31),EM!$I$31,(IF(OR(EM!$I$31="",EM!$J$31="",EM!$J$33=""),"",IF(AND(EM!$I$31<>"",HGO!$AA6=TRUE,$L6>=EM!$J$31),EM!$I$31,"")))) ->  | AE6: =IF(L6<>"",IF(AND(EM!$F$36=1,$L6>=EM!$F$34),EM!$E$35,(IF(OR(EM!$E$35="",EM!$F$34="",EM!$F$36=""),0,IF(AND(EM!$E$35<>"",HGO!$AD6=TRUE,$L6>=EM!$F$34),EM!$E$35,0)))),"") ->  | AF6: =IF(L6="","",((IF(AND(T6=TRUE,L7<>6,EM!$A$22="Nein"),EM!$E$32+EM!$F$30+AC6+AE6,IF(AND(T6=TRUE,L7<>6,EM!$A$22="Ja"),DGK!$AE$8+EM!$F$30+AC6+AE6,IF(AND(T6=TRUE,L7=6,EM!$A$22="Nein"),EM!$E$32+AC6+AE6,IF(AND(T6=TRUE,L7=6,EM!$A$22="Ja",(EM!$A$6/HGO!L6)=1),DGK!$AE$6+AC6+AE6,IF(AND(T6=TRUE,L7=6,EM!$A$22="Ja",((EM!$A$6*2)/HGO!L6)=1),DGK!$AE$7+AC6+AE6,IF(AND(T6=TRUE,L7=6,EM!$A$22="Ja",AND((EM!$A$6/HGO!L6)<>1,((EM!$A$6*2)/HGO!L6)<>1)),DGK!$AE$8+AC6+AE6,0+AC6+AE6))))))))+(IF(L6=EM!$A$6,EM!$D$41))) ->  | AG6: =IF(MOD(EM!$A$4,HGO!B52)=0,HGO!B52,"") -> 5 | AH6: =INDEX(AG$2:AG$100,MATCH(LARGE(COUNTIF(AG$2:AG$100,">="&AG$2:AG$100)+100*ISNUMBER(AG$2:AG$100),ROWS(AG$2:AG6)),COUNTIF(AG$2:AG$100,">="&AG$2:AG$100)+100*ISNUMBER(AG$2:AG$100),0),1) -> 5
A7: LBG | B7: 6 | C7: =IF(((EM!A$4/HGO!B7)-INT(EM!A$4/HGO!B7))=0,HGO!B7,"") -> 6 | D7: =IF(ROW(C5)>COUNTA(C:C),"",INDEX(C:C,SMALL(IF(C$1:C$7<>"",ROW($1:$7)),ROW(C5)))) -> 4 | E7: Ja | F7: Fräsen | G7: =IF(I25>0,I25,"") ->  | H7: =IF(I16>0,I16,"") ->  | L7: =IF(EM!$A$4>=6,6,"") ->  | M7: =IF(L7=6,(((1+EM!$C$4/100)^6)*EM!$C$4/100)/(((1+EM!$C$4/100)^6)-1),"") ->  | N7: =IF(EM!$E$4<=4,"",I16+J16) ->  | O7: =IF(EM!$E$4<=4,"",I25+J25) ->  | Q7: =IF(ROW(P7)>COUNTA(P:P),"",INDEX(P:P,SMALL(IF(P$1:P$241<>"",ROW($1:$241)),ROW(P7))))/((1+(EM!$C$4/100))^HGO!L7) ->  | R7: =IF(Q7<>"",SUM($Q$2:Q7),"") ->  | T7: =IF(EM!$A$6=1,TRUE,MOD(ROW(),EM!$A$6)=1) ->  | U7: =IF(L7="","",((IF(AND(T7=TRUE,L8<>7,EM!$A$22="Nein"),EM!$D$30+EM!$F$30+AC7+AE7,IF(AND(T7=TRUE,L8<>7,EM!$A$22="Ja"),DGK!$AE$8+EM!$F$30+AC7+AE7,IF(AND(T7=TRUE,L8=7,EM!$A$22="Nein"),EM!$D$30+AC7+AE7,IF(AND(T7=TRUE,L8=7,EM!$A$22="Ja",(EM!$A$6/HGO!L7)=1),DGK!$AE$6+AC7+AE7,IF(AND(T7=TRUE,L8=7,EM!$A$22="Ja",((EM!$A$6*2)/HGO!L7)=1),DGK!$AE$7+AC7+AE7,IF(AND(T7=TRUE,L8=7,EM!$A$22="Ja",AND((EM!$A$6/HGO!L7)<>1,((EM!$A$6*2)/HGO!L7)<>1)),DGK!$AE$8+AC7+AE7,0+AC7+AE7))))))))+(IF(L7=EM!$A$6,EM!$D$37))) ->  | V7: =IF(L7<>6,"",(IF(AND(T7=TRUE,L7=6),EM!$H$31,0))*(IF(L7=EM!$A$6,HGO!$C$40,IF(HGO!L7=2*EM!$A$6,HGO!$C$41,HGO!$C$42)))) ->  | X7: =IF(W7<>"",W7/(1+(EM!$C$4/100))^HGO!L7,"") ->  | Y7: =IF(X7<>"",SUM($X$2:X7),"") ->  | AB7: =IF(AND(EM!$J$33=1,$L7>=EM!$J$31),EM!$I$31,(IF(OR(EM!$I$31="",EM!$J$31="",EM!$J$33=""),"",IF(AND(EM!$I$31<>"",HGO!$AA7=TRUE,$L7>=EM!$J$31),EM!$I$31,"")))) ->  | AE7: =IF(L7<>"",IF(AND(EM!$F$36=1,$L7>=EM!$F$34),EM!$E$35,(IF(OR(EM!$E$35="",EM!$F$34="",EM!$F$36=""),0,IF(AND(EM!$E$35<>"",HGO!$AD7=TRUE,$L7>=EM!$F$34),EM!$E$35,0)))),"") ->  | AF7: =IF(L7="","",((IF(AND(T7=TRUE,L8<>7,EM!$A$22="Nein"),EM!$E$32+EM!$F$30+AC7+AE7,IF(AND(T7=TRUE,L8<>7,EM!$A$22="Ja"),DGK!$AE$8+EM!$F$30+AC7+AE7,IF(AND(T7=TRUE,L8=7,EM!$A$22="Nein"),EM!$E$32+AC7+AE7,IF(AND(T7=TRUE,L8=7,EM!$A$22="Ja",(EM!$A$6/HGO!L7)=1),DGK!$AE$6+AC7+AE7,IF(AND(T7=TRUE,L8=7,EM!$A$22="Ja",((EM!$A$6*2)/HGO!L7)=1),DGK!$AE$7+AC7+AE7,IF(AND(T7=TRUE,L8=7,EM!$A$22="Ja",AND((EM!$A$6/HGO!L7)<>1,((EM!$A$6*2)/HGO!L7)<>1)),DGK!$AE$8+AC7+AE7,0+AC7+AE7))))))))+(IF(L7=EM!$A$6,EM!$D$41))) ->  | AG7: =IF(MOD(EM!$A$4,HGO!B53)=0,HGO!B53,"") -> 6 | AH7: =INDEX(AG$2:AG$100,MATCH(LARGE(COUNTIF(AG$2:AG$100,">="&AG$2:AG$100)+100*ISNUMBER(AG$2:AG$100),ROWS(AG$2:AG7)),COUNTIF(AG$2:AG$100,">="&AG$2:AG$100)+100*ISNUMBER(AG$2:AG$100),0),1) -> 6
A8: LBG I | B8: Zählt leerstellen: | C8: =COUNTIFS(C3:C7,"") -> 0 | D8: =IF(ROW(C6)>COUNTA(C:C),"",INDEX(C:C,SMALL(IF(C$1:C$7<>"",ROW($1:$7)),ROW(C6)))) -> 5 | E8: Nein | L8: =IF(EM!$A$4>=7,7,"") ->  | M8: =IF(L8=7,(((1+EM!$C$4/100)^7)*EM!$C$4/100)/(((1+EM!$C$4/100)^7)-1),"") ->  | N8: =IF(EM!$A$8>=2,HGO!N2,"") ->  | O8: =IF(EM!$A$8>=2,HGO!O2,"") ->  | Q8: =IF(ROW(P8)>COUNTA(P:P),"",INDEX(P:P,SMALL(IF(P$1:P$241<>"",ROW($1:$241)),ROW(P8))))/((1+(EM!$C$4/100))^HGO!L8) ->  | R8: =IF(Q8<>"",SUM($Q$2:Q8),"") ->  | T8: =IF(EM!$A$6=1,TRUE,MOD(ROW(),EM!$A$6)=1) ->  | U8: =IF(L8="","",((IF(AND(T8=TRUE,L9<>8,EM!$A$22="Nein"),EM!$D$30+EM!$F$30+AC8+AE8,IF(AND(T8=TRUE,L9<>8,EM!$A$22="Ja"),DGK!$AE$8+EM!$F$30+AC8+AE8,IF(AND(T8=TRUE,L9=8,EM!$A$22="Nein"),EM!$D$30+AC8+AE8,IF(AND(T8=TRUE,L9=8,EM!$A$22="Ja",(EM!$A$6/HGO!L8)=1),DGK!$AE$6+AC8+AE8,IF(AND(T8=TRUE,L9=8,EM!$A$22="Ja",((EM!$A$6*2)/HGO!L8)=1),DGK!$AE$7+AC8+AE8,IF(AND(T8=TRUE,L9=8,EM!$A$22="Ja",AND((EM!$A$6/HGO!L8)<>1,((EM!$A$6*2)/HGO!L8)<>1)),DGK!$AE$8+AC8+AE8,0+AC8+AE8))))))))+(IF(L8=EM!$A$6,EM!$D$37))) ->  | V8: =IF(L8<>7,"",(IF(AND(T8=TRUE,L8=7),EM!$H$31,0))*(IF(L8=EM!$A$6,HGO!$C$40,IF(HGO!L8=2*EM!$A$6,HGO!$C$41,HGO!$C$42)))) ->  | X8: =IF(W8<>"",W8/(1+(EM!$C$4/100))^HGO!L8,"") ->  | Y8: =IF(X8<>"",SUM($X$2:X8),"") ->  | AB8: =IF(AND(EM!$J$33=1,$L8>=EM!$J$31),EM!$I$31,(IF(OR(EM!$I$31="",EM!$J$31="",EM!$J$33=""),"",IF(AND(EM!$I$31<>"",HGO!$AA8=TRUE,$L8>=EM!$J$31),EM!$I$31,"")))) ->  | AE8: =IF(L8<>"",IF(AND(EM!$F$36=1,$L8>=EM!$F$34),EM!$E$35,(IF(OR(EM!$E$35="",EM!$F$34="",EM!$F$36=""),0,IF(AND(EM!$E$35<>"",HGO!$AD8=TRUE,$L8>=EM!$F$34),EM!$E$35,0)))),"") ->  | AF8: =IF(L8="","",((IF(AND(T8=TRUE,L9<>8,EM!$A$22="Nein"),EM!$E$32+EM!$F$30+AC8+AE8,IF(AND(T8=TRUE,L9<>8,EM!$A$22="Ja"),DGK!$AE$8+EM!$F$30+AC8+AE8,IF(AND(T8=TRUE,L9=8,EM!$A$22="Nein"),EM!$E$32+AC8+AE8,IF(AND(T8=TRUE,L9=8,EM!$A$22="Ja",(EM!$A$6/HGO!L8)=1),DGK!$AE$6+AC8+AE8,IF(AND(T8=TRUE,L9=8,EM!$A$22="Ja",((EM!$A$6*2)/HGO!L8)=1),DGK!$AE$7+AC8+AE8,IF(AND(T8=TRUE,L9=8,EM!$A$22="Ja",AND((EM!$A$6/HGO!L8)<>1,((EM!$A$6*2)/HGO!L8)<>1)),DGK!$AE$8+AC8+AE8,0+AC8+AE8))))))))+(IF(L8=EM!$A$6,EM!$D$41))) ->  | AG8: =IF(MOD(EM!$A$4,HGO!B54)=0,HGO!B54,"") -> 7 | AH8: =INDEX(AG$2:AG$100,MATCH(LARGE(COUNTIF(AG$2:AG$100,">="&AG$2:AG$100)+100*ISNUMBER(AG$2:AG$100),ROWS(AG$2:AG8)),COUNTIF(AG$2:AG$100,">="&AG$2:AG$100)+100*ISNUMBER(AG$2:AG$100),0),1) -> 7
A9: LBG II | B9: Größter Wert: | C9: Hauptfrucht | H9: Erlöse aus Fruchtfolge | J9: Erlöse aus Zwischenfrucht | L9: =IF(EM!$A$4>=8,8,"") ->  | M9: =IF(L9=8,(((1+EM!$C$4/100)^8)*EM!$C$4/100)/(((1+EM!$C$4/100)^8)-1),"") ->  | N9: =IF(EM!$A$8>=2,HGO!N3,"") ->  | O9: =IF(EM!$A$8>=2,HGO!O3,"") ->  | Q9: =IF(ROW(P9)>COUNTA(P:P),"",INDEX(P:P,SMALL(IF(P$1:P$241<>"",ROW($1:$241)),ROW(P9))))/((1+(EM!$C$4/100))^HGO!L9) ->  | R9: =IF(Q9<>"",SUM($Q$2:Q9),"") ->  | T9: =IF(EM!$A$6=1,TRUE,MOD(ROW(),EM!$A$6)=1) ->  | U9: =IF(L9="","",((IF(AND(T9=TRUE,L10<>9,EM!$A$22="Nein"),EM!$D$30+EM!$F$30+AC9+AE9,IF(AND(T9=TRUE,L10<>9,EM!$A$22="Ja"),DGK!$AE$8+EM!$F$30+AC9+AE9,IF(AND(T9=TRUE,L10=9,EM!$A$22="Nein"),EM!$D$30+AC9+AE9,IF(AND(T9=TRUE,L10=9,EM!$A$22="Ja",(EM!$A$6/HGO!L9)=1),DGK!$AE$6+AC9+AE9,IF(AND(T9=TRUE,L10=9,EM!$A$22="Ja",((EM!$A$6*2)/HGO!L9)=1),DGK!$AE$7+AC9+AE9,IF(AND(T9=TRUE,L10=9,EM!$A$22="Ja",AND((EM!$A$6/HGO!L9)<>1,((EM!$A$6*2)/HGO!L9)<>1)),DGK!$AE$8+AC9+AE9,0+AC9+AE9))))))))+(IF(L9=EM!$A$6,EM!$D$37))) ->  | V9: =IF(L9<>8,"",(IF(AND(T9=TRUE,L9=8),EM!$H$31,0))*(IF(L9=EM!$A$6,HGO!$C$40,IF(HGO!L9=2*EM!$A$6,HGO!$C$41,HGO!$C$42)))) ->  | X9: =IF(W9<>"",W9/(1+(EM!$C$4/100))^HGO!L9,"") ->  | Y9: =IF(X9<>"",SUM($X$2:X9),"") ->  | AB9: =IF(AND(EM!$J$33=1,$L9>=EM!$J$31),EM!$I$31,(IF(OR(EM!$I$31="",EM!$J$31="",EM!$J$33=""),"",IF(AND(EM!$I$31<>"",HGO!$AA9=TRUE,$L9>=EM!$J$31),EM!$I$31,"")))) ->  | AE9: =IF(L9<>"",IF(AND(EM!$F$36=1,$L9>=EM!$F$34),EM!$E$35,(IF(OR(EM!$E$35="",EM!$F$34="",EM!$F$36=""),0,IF(AND(EM!$E$35<>"",HGO!$AD9=TRUE,$L9>=EM!$F$34),EM!$E$35,0)))),"") ->  | AF9: =IF(L9="","",((IF(AND(T9=TRUE,L10<>9,EM!$A$22="Nein"),EM!$E$32+EM!$F$30+AC9+AE9,IF(AND(T9=TRUE,L10<>9,EM!$A$22="Ja"),DGK!$AE$8+EM!$F$30+AC9+AE9,IF(AND(T9=TRUE,L10=9,EM!$A$22="Nein"),EM!$E$32+AC9+AE9,IF(AND(T9=TRUE,L10=9,EM!$A$22="Ja",(EM!$A$6/HGO!L9)=1),DGK!$AE$6+AC9+AE9,IF(AND(T9=TRUE,L10=9,EM!$A$22="Ja",((EM!$A$6*2)/HGO!L9)=1),DGK!$AE$7+AC9+AE9,IF(AND(T9=TRUE,L10=9,EM!$A$22="Ja",AND((EM!$A$6/HGO!L9)<>1,((EM!$A$6*2)/HGO!L9)<>1)),DGK!$AE$8+AC9+AE9,0+AC9+AE9))))))))+(IF(L9=EM!$A$6,EM!$D$41))) ->  | AG9: =IF(MOD(EM!$A$4,HGO!B55)=0,HGO!B55,"") -> 8 | AH9: =INDEX(AG$2:AG$100,MATCH(LARGE(COUNTIF(AG$2:AG$100,">="&AG$2:AG$100)+100*ISNUMBER(AG$2:AG$100),ROWS(AG$2:AG9)),COUNTIF(AG$2:AG$100,">="&AG$2:AG$100)+100*ISNUMBER(AG$2:AG$100),0),1) -> 8
A10: LBG III | B10: =LARGE(C2:C7,1) -> 6 | C10: LBG I | D10: LBG II | E10: LBG III | F10: LBG IV | G10: LBG V | H10: Jahr | I10: Erlös | J10: Erlös | L10: =IF(EM!$A$4>=9,9,"") ->  | M10: =IF(L10=9,(((1+EM!$C$4/100)^9)*EM!$C$4/100)/(((1+EM!$C$4/100)^9)-1),"") ->  | N10: =IF(EM!$A$8>=2,HGO!N4,"") ->  | O10: =IF(EM!$A$8>=2,HGO!O4,"") ->  | Q10: =IF(ROW(P10)>COUNTA(P:P),"",INDEX(P:P,SMALL(IF(P$1:P$241<>"",ROW($1:$241)),ROW(P10))))/((1+(EM!$C$4/100))^HGO!L10) ->  | R10: =IF(Q10<>"",SUM($Q$2:Q10),"") ->  | T10: =IF(EM!$A$6=1,TRUE,MOD(ROW(),EM!$A$6)=1) ->  | U10: =IF(L10="","",((IF(AND(T10=TRUE,L11<>10,EM!$A$22="Nein"),EM!$D$30+EM!$F$30+AC10+AE10,IF(AND(T10=TRUE,L11<>10,EM!$A$22="Ja"),DGK!$AE$8+EM!$F$30+AC10+AE10,IF(AND(T10=TRUE,L11=10,EM!$A$22="Nein"),EM!$D$30+AC10+AE10,IF(AND(T10=TRUE,L11=10,EM!$A$22="Ja",(EM!$A$6/HGO!L10)=1),DGK!$AE$6+AC10+AE10,IF(AND(T10=TRUE,L11=10,EM!$A$22="Ja",((EM!$A$6*2)/HGO!L10)=1),DGK!$AE$7+AC10+AE10,IF(AND(T10=TRUE,L11=10,EM!$A$22="Ja",AND((EM!$A$6/HGO!L10)<>1,((EM!$A$6*2)/HGO!L10)<>1)),DGK!$AE$8+AC10+AE10,0+AC10+AE10))))))))+(IF(L10=EM!$A$6,EM!$D$37))) ->  | V10: =IF(L10<>9,"",(IF(AND(T10=TRUE,L10=9),EM!$H$31,0))*(IF(L10=EM!$A$6,HGO!$C$40,IF(HGO!L10=2*EM!$A$6,HGO!$C$41,HGO!$C$42)))) ->  | X10: =IF(W10<>"",W10/(1+(EM!$C$4/100))^HGO!L10,"") ->  | Y10: =IF(X10<>"",SUM($X$2:X10),"") ->  | AB10: =IF(AND(EM!$J$33=1,$L10>=EM!$J$31),EM!$I$31,(IF(OR(EM!$I$31="",EM!$J$31="",EM!$J$33=""),"",IF(AND(EM!$I$31<>"",HGO!$AA10=TRUE,$L10>=EM!$J$31),EM!$I$31,"")))) ->  | AE10: =IF(L10<>"",IF(AND(EM!$F$36=1,$L10>=EM!$F$34),EM!$E$35,(IF(OR(EM!$E$35="",EM!$F$34="",EM!$F$36=""),0,IF(AND(EM!$E$35<>"",HGO!$AD10=TRUE,$L10>=EM!$F$34),EM!$E$35,0)))),"") ->  | AF10: =IF(L10="","",((IF(AND(T10=TRUE,L11<>10,EM!$A$22="Nein"),EM!$E$32+EM!$F$30+AC10+AE10,IF(AND(T10=TRUE,L11<>10,EM!$A$22="Ja"),DGK!$AE$8+EM!$F$30+AC10+AE10,IF(AND(T10=TRUE,L11=10,EM!$A$22="Nein"),EM!$E$32+AC10+AE10,IF(AND(T10=TRUE,L11=10,EM!$A$22="Ja",(EM!$A$6/HGO!L10)=1),DGK!$AE$6+AC10+AE10,IF(AND(T10=TRUE,L11=10,EM!$A$22="Ja",((EM!$A$6*2)/HGO!L10)=1),DGK!$AE$7+AC10+AE10,IF(AND(T10=TRUE,L11=10,EM!$A$22="Ja",AND((EM!$A$6/HGO!L10)<>1,((EM!$A$6*2)/HGO!L10)<>1)),DGK!$AE$8+AC10+AE10,0+AC10+AE10))))))))+(IF(L10=EM!$A$6,EM!$D$41))) ->  | AG10: =IF(MOD(EM!$A$4,HGO!B56)=0,HGO!B56,"") -> 9 | AH10: =INDEX(AG$2:AG$100,MATCH(LARGE(COUNTIF(AG$2:AG$100,">="&AG$2:AG$100)+100*ISNUMBER(AG$2:AG$100),ROWS(AG$2:AG10)),COUNTIF(AG$2:AG$100,">="&AG$2:AG$100)+100*ISNUMBER(AG$2:AG$100),0),1) -> 9
A11: LBG IV | C11: Hafer | D11: Hafer | E11: Buchweizen | F11: Buchweizen | G11: Buchweizen | H11: 1 | I11: =EM!J6 ->  | J11: =EM!W21 -> 0 | L11: =IF(EM!$A$4>=10,10,"") ->  | M11: =IF(L11=10,(((1+EM!$C$4/100)^10)*EM!$C$4/100)/(((1+EM!$C$4/100)^10)-1),"") ->  | N11: =IF(EM!$A$8>=2,HGO!N5,"") ->  | O11: =IF(EM!$A$8>=2,HGO!O5,"") ->  | Q11: =IF(ROW(P11)>COUNTA(P:P),"",INDEX(P:P,SMALL(IF(P$1:P$241<>"",ROW($1:$241)),ROW(P11))))/((1+(EM!$C$4/100))^HGO!L11) ->  | R11: =IF(Q11<>"",SUM($Q$2:Q11),"") ->  | T11: =IF(EM!$A$6=1,TRUE,MOD(ROW(),EM!$A$6)=1) ->  | U11: =IF(L11="","",((IF(AND(T11=TRUE,L12<>11,EM!$A$22="Nein"),EM!$D$30+EM!$F$30+AC11+AE11,IF(AND(T11=TRUE,L12<>11,EM!$A$22="Ja"),DGK!$AE$8+EM!$F$30+AC11+AE11,IF(AND(T11=TRUE,L12=11,EM!$A$22="Nein"),EM!$D$30+AC11+AE11,IF(AND(T11=TRUE,L12=11,EM!$A$22="Ja",(EM!$A$6/HGO!L11)=1),DGK!$AE$6+AC11+AE11,IF(AND(T11=TRUE,L12=11,EM!$A$22="Ja",((EM!$A$6*2)/HGO!L11)=1),DGK!$AE$7+AC11+AE11,IF(AND(T11=TRUE,L12=11,EM!$A$22="Ja",AND((EM!$A$6/HGO!L11)<>1,((EM!$A$6*2)/HGO!L11)<>1)),DGK!$AE$8+AC11+AE11,0+AC11+AE11))))))))+(IF(L11=EM!$A$6,EM!$D$37))) ->  | V11: =IF(L11<>10,"",(IF(AND(T11=TRUE,L11=10),EM!$H$31,0))*(IF(L11=EM!$A$6,HGO!$C$40,IF(HGO!L11=2*EM!$A$6,HGO!$C$41,HGO!$C$42)))) ->  | X11: =IF(W11<>"",W11/(1+(EM!$C$4/100))^HGO!L11,"") ->  | Y11: =IF(X11<>"",SUM($X$2:X11),"") ->  | AB11: =IF(AND(EM!$J$33=1,$L11>=EM!$J$31),EM!$I$31,(IF(OR(EM!$I$31="",EM!$J$31="",EM!$J$33=""),"",IF(AND(EM!$I$31<>"",HGO!$AA11=TRUE,$L11>=EM!$J$31),EM!$I$31,"")))) ->  | AE11: =IF(L11<>"",IF(AND(EM!$F$36=1,$L11>=EM!$F$34),EM!$E$35,(IF(OR(EM!$E$35="",EM!$F$34="",EM!$F$36=""),0,IF(AND(EM!$E$35<>"",HGO!$AD11=TRUE,$L11>=EM!$F$34),EM!$E$35,0)))),"") ->  | AF11: =IF(L11="","",((IF(AND(T11=TRUE,L12<>11,EM!$A$22="Nein"),EM!$E$32+EM!$F$30+AC11+AE11,IF(AND(T11=TRUE,L12<>11,EM!$A$22="Ja"),DGK!$AE$8+EM!$F$30+AC11+AE11,IF(AND(T11=TRUE,L12=11,EM!$A$22="Nein"),EM!$E$32+AC11+AE11,IF(AND(T11=TRUE,L12=11,EM!$A$22="Ja",(EM!$A$6/HGO!L11)=1),DGK!$AE$6+AC11+AE11,IF(AND(T11=TRUE,L12=11,EM!$A$22="Ja",((EM!$A$6*2)/HGO!L11)=1),DGK!$AE$7+AC11+AE11,IF(AND(T11=TRUE,L12=11,EM!$A$22="Ja",AND((EM!$A$6/HGO!L11)<>1,((EM!$A$6*2)/HGO!L11)<>1)),DGK!$AE$8+AC11+AE11,0+AC11+AE11))))))))+(IF(L11=EM!$A$6,EM!$D$41))) ->  | AG11: =IF(MOD(EM!$A$4,HGO!B57)=0,HGO!B57,"") -> 10 | AH11: =INDEX(AG$2:AG$100,MATCH(LARGE(COUNTIF(AG$2:AG$100,">="&AG$2:AG$100)+100*ISNUMBER(AG$2:AG$100),ROWS(AG$2:AG11)),COUNTIF(AG$2:AG$100,">="&AG$2:AG$100)+100*ISNUMBER(AG$2:AG$100),0),1) -> 10
A12: LBG V | C12: Körnererbsen | D12: Körnererbsen | E12: Hafer | F12: Hafer | G12: Hafer | H12: 2 | I12: =EM!J7 ->  | J12: =EM!W22 -> 0 | L12: =IF(EM!$A$4>=11,11,"") ->  | M12: =IF(L12=11,(((1+EM!$C$4/100)^11)*EM!$C$4/100)/(((1+EM!$C$4/100)^11)-1),"") ->  | N12: =IF(EM!$A$8>=2,HGO!N6,"") ->  | O12: =IF(EM!$A$8>=2,HGO!O6,"") ->  | Q12: =IF(ROW(P12)>COUNTA(P:P),"",INDEX(P:P,SMALL(IF(P$1:P$241<>"",ROW($1:$241)),ROW(P12))))/((1+(EM!$C$4/100))^HGO!L12) ->  | R12: =IF(Q12<>"",SUM($Q$2:Q12),"") ->  | T12: =IF(EM!$A$6=1,TRUE,MOD(ROW(),EM!$A$6)=1) ->  | U12: =IF(L12="","",((IF(AND(T12=TRUE,L13<>12,EM!$A$22="Nein"),EM!$D$30+EM!$F$30+AC12+AE12,IF(AND(T12=TRUE,L13<>12,EM!$A$22="Ja"),DGK!$AE$8+EM!$F$30+AC12+AE12,IF(AND(T12=TRUE,L13=12,EM!$A$22="Nein"),EM!$D$30+AC12+AE12,IF(AND(T12=TRUE,L13=12,EM!$A$22="Ja",(EM!$A$6/HGO!L12)=1),DGK!$AE$6+AC12+AE12,IF(AND(T12=TRUE,L13=12,EM!$A$22="Ja",((EM!$A$6*2)/HGO!L12)=1),DGK!$AE$7+AC12+AE12,IF(AND(T12=TRUE,L13=12,EM!$A$22="Ja",AND((EM!$A$6/HGO!L12)<>1,((EM!$A$6*2)/HGO!L12)<>1)),DGK!$AE$8+AC12+AE12,0+AC12+AE12))))))))+(IF(L12=EM!$A$6,EM!$D$37))) ->  | V12: =IF(L12<>11,"",(IF(AND(T12=TRUE,L12=11),EM!$H$31,0))*(IF(L12=EM!$A$6,HGO!$C$40,IF(HGO!L12=2*EM!$A$6,HGO!$C$41,HGO!$C$42)))) ->  | X12: =IF(W12<>"",W12/(1+(EM!$C$4/100))^HGO!L12,"") ->  | Y12: =IF(X12<>"",SUM($X$2:X12),"") ->  | AB12: =IF(AND(EM!$J$33=1,$L12>=EM!$J$31),EM!$I$31,(IF(OR(EM!$I$31="",EM!$J$31="",EM!$J$33=""),"",IF(AND(EM!$I$31<>"",HGO!$AA12=TRUE,$L12>=EM!$J$31),EM!$I$31,"")))) ->  | AE12: =IF(L12<>"",IF(AND(EM!$F$36=1,$L12>=EM!$F$34),EM!$E$35,(IF(OR(EM!$E$35="",EM!$F$34="",EM!$F$36=""),0,IF(AND(EM!$E$35<>"",HGO!$AD12=TRUE,$L12>=EM!$F$34),EM!$E$35,0)))),"") ->  | AF12: =IF(L12="","",((IF(AND(T12=TRUE,L13<>12,EM!$A$22="Nein"),EM!$E$32+EM!$F$30+AC12+AE12,IF(AND(T12=TRUE,L13<>12,EM!$A$22="Ja"),DGK!$AE$8+EM!$F$30+AC12+AE12,IF(AND(T12=TRUE,L13=12,EM!$A$22="Nein"),EM!$E$32+AC12+AE12,IF(AND(T12=TRUE,L13=12,EM!$A$22="Ja",(EM!$A$6/HGO!L12)=1),DGK!$AE$6+AC12+AE12,IF(AND(T12=TRUE,L13=12,EM!$A$22="Ja",((EM!$A$6*2)/HGO!L12)=1),DGK!$AE$7+AC12+AE12,IF(AND(T12=TRUE,L13=12,EM!$A$22="Ja",AND((EM!$A$6/HGO!L12)<>1,((EM!$A$6*2)/HGO!L12)<>1)),DGK!$AE$8+AC12+AE12,0+AC12+AE12))))))))+(IF(L12=EM!$A$6,EM!$D$41))) ->  | AG12: =IF(MOD(EM!$A$4,HGO!B58)=0,HGO!B58,"") -> 11 | AH12: =INDEX(AG$2:AG$100,MATCH(LARGE(COUNTIF(AG$2:AG$100,">="&AG$2:AG$100)+100*ISNUMBER(AG$2:AG$100),ROWS(AG$2:AG12)),COUNTIF(AG$2:AG$100,">="&AG$2:AG$100)+100*ISNUMBER(AG$2:AG$100),0),1) -> 11
C13: Körnermais | D13: Körnerlupinen | E13: Körnererbsen | F13: Körnererbsen | G13: Körnererbsen | H13: 3 | I13: =EM!J8 ->  | J13: =EM!W23 -> 0 | L13: =IF(EM!$A$4>=12,12,"") ->  | M13: =IF(L13=12,(((1+EM!$C$4/100)^12)*EM!$C$4/100)/(((1+EM!$C$4/100)^12)-1),"") ->  | N13: =IF(EM!$A$8>=2,HGO!N7,"") ->  | O13: =IF(EM!$A$8>=2,HGO!O7,"") ->  | Q13: =IF(ROW(P13)>COUNTA(P:P),"",INDEX(P:P,SMALL(IF(P$1:P$241<>"",ROW($1:$241)),ROW(P13))))/((1+(EM!$C$4/100))^HGO!L13) ->  | R13: =IF(Q13<>"",SUM($Q$2:Q13),"") ->  | T13: =IF(EM!$A$6=1,TRUE,MOD(ROW(),EM!$A$6)=1) ->  | U13: =IF(L13="","",((IF(AND(T13=TRUE,L14<>13,EM!$A$22="Nein"),EM!$D$30+EM!$F$30+AC13+AE13,IF(AND(T13=TRUE,L14<>13,EM!$A$22="Ja"),DGK!$AE$8+EM!$F$30+AC13+AE13,IF(AND(T13=TRUE,L14=13,EM!$A$22="Nein"),EM!$D$30+AC13+AE13,IF(AND(T13=TRUE,L14=13,EM!$A$22="Ja",(EM!$A$6/HGO!L13)=1),DGK!$AE$6+AC13+AE13,IF(AND(T13=TRUE,L14=13,EM!$A$22="Ja",((EM!$A$6*2)/HGO!L13)=1),DGK!$AE$7+AC13+AE13,IF(AND(T13=TRUE,L14=13,EM!$A$22="Ja",AND((EM!$A$6/HGO!L13)<>1,((EM!$A$6*2)/HGO!L13)<>1)),DGK!$AE$8+AC13+AE13,0+AC13+AE13))))))))+(IF(L13=EM!$A$6,EM!$D$37))) ->  | V13: =IF(L13<>12,"",(IF(AND(T13=TRUE,L13=12),EM!$H$31,0))*(IF(L13=EM!$A$6,HGO!$C$40,IF(HGO!L13=2*EM!$A$6,HGO!$C$41,HGO!$C$42)))) ->  | X13: =IF(W13<>"",W13/(1+(EM!$C$4/100))^HGO!L13,"") ->  | Y13: =IF(X13<>"",SUM($X$2:X13),"") ->  | AB13: =IF(AND(EM!$J$33=1,$L13>=EM!$J$31),EM!$I$31,(IF(OR(EM!$I$31="",EM!$J$31="",EM!$J$33=""),"",IF(AND(EM!$I$31<>"",HGO!$AA13=TRUE,$L13>=EM!$J$31),EM!$I$31,"")))) ->  | AE13: =IF(L13<>"",IF(AND(EM!$F$36=1,$L13>=EM!$F$34),EM!$E$35,(IF(OR(EM!$E$35="",EM!$F$34="",EM!$F$36=""),0,IF(AND(EM!$E$35<>"",HGO!$AD13=TRUE,$L13>=EM!$F$34),EM!$E$35,0)))),"") ->  | AF13: =IF(L13="","",((IF(AND(T13=TRUE,L14<>13,EM!$A$22="Nein"),EM!$E$32+EM!$F$30+AC13+AE13,IF(AND(T13=TRUE,L14<>13,EM!$A$22="Ja"),DGK!$AE$8+EM!$F$30+AC13+AE13,IF(AND(T13=TRUE,L14=13,EM!$A$22="Nein"),EM!$E$32+AC13+AE13,IF(AND(T13=TRUE,L14=13,EM!$A$22="Ja",(EM!$A$6/HGO!L13)=1),DGK!$AE$6+AC13+AE13,IF(AND(T13=TRUE,L14=13,EM!$A$22="Ja",((EM!$A$6*2)/HGO!L13)=1),DGK!$AE$7+AC13+AE13,IF(AND(T13=TRUE,L14=13,EM!$A$22="Ja",AND((EM!$A$6/HGO!L13)<>1,((EM!$A$6*2)/HGO!L13)<>1)),DGK!$AE$8+AC13+AE13,0+AC13+AE13))))))))+(IF(L13=EM!$A$6,EM!$D$41))) ->  | AG13: =IF(MOD(EM!$A$4,HGO!B59)=0,HGO!B59,"") -> 12 | AH13: =INDEX(AG$2:AG$100,MATCH(LARGE(COUNTIF(AG$2:AG$100,">="&AG$2:AG$100)+100*ISNUMBER(AG$2:AG$100),ROWS(AG$2:AG13)),COUNTIF(AG$2:AG$100,">="&AG$2:AG$100)+100*ISNUMBER(AG$2:AG$100),0),1) -> 12
A14: LBG | C14: Silomais | D14: Körnermais | E14: Körnerlupinen | F14: Körnerlupinen | G14: Körnerlupinen | H14: 4 | I14: =EM!J9 ->  | J14: =EM!W24 -> 0 | L14: =IF(EM!$A$4>=13,13,"") ->  | M14: =IF(L14=13,(((1+EM!$C$4/100)^13)*EM!$C$4/100)/(((1+EM!$C$4/100)^13)-1),"") ->  | N14: =IF(EM!$A$8>=3,HGO!N2,"") ->  | O14: =IF(EM!$A$8>=3,HGO!O2,"") ->  | Q14: =IF(ROW(P14)>COUNTA(P:P),"",INDEX(P:P,SMALL(IF(P$1:P$241<>"",ROW($1:$241)),ROW(P14))))/((1+(EM!$C$4/100))^HGO!L14) ->  | R14: =IF(Q14<>"",SUM($Q$2:Q14),"") ->  | T14: =IF(EM!$A$6=1,TRUE,MOD(ROW(),EM!$A$6)=1) ->  | U14: =IF(L14="","",((IF(AND(T14=TRUE,L15<>14,EM!$A$22="Nein"),EM!$D$30+EM!$F$30+AC14+AE14,IF(AND(T14=TRUE,L15<>14,EM!$A$22="Ja"),DGK!$AE$8+EM!$F$30+AC14+AE14,IF(AND(T14=TRUE,L15=14,EM!$A$22="Nein"),EM!$D$30+AC14+AE14,IF(AND(T14=TRUE,L15=14,EM!$A$22="Ja",(EM!$A$6/HGO!L14)=1),DGK!$AE$6+AC14+AE14,IF(AND(T14=TRUE,L15=14,EM!$A$22="Ja",((EM!$A$6*2)/HGO!L14)=1),DGK!$AE$7+AC14+AE14,IF(AND(T14=TRUE,L15=14,EM!$A$22="Ja",AND((EM!$A$6/HGO!L14)<>1,((EM!$A$6*2)/HGO!L14)<>1)),DGK!$AE$8+AC14+AE14,0+AC14+AE14))))))))+(IF(L14=EM!$A$6,EM!$D$37))) ->  | V14: =IF(L14<>13,"",(IF(AND(T14=TRUE,L14=13),EM!$H$31,0))*(IF(L14=EM!$A$6,HGO!$C$40,IF(HGO!L14=2*EM!$A$6,HGO!$C$41,HGO!$C$42)))) ->  | X14: =IF(W14<>"",W14/(1+(EM!$C$4/100))^HGO!L14,"") ->  | Y14: =IF(X14<>"",SUM($X$2:X14),"") ->  | AB14: =IF(AND(EM!$J$33=1,$L14>=EM!$J$31),EM!$I$31,(IF(OR(EM!$I$31="",EM!$J$31="",EM!$J$33=""),"",IF(AND(EM!$I$31<>"",HGO!$AA14=TRUE,$L14>=EM!$J$31),EM!$I$31,"")))) ->  | AE14: =IF(L14<>"",IF(AND(EM!$F$36=1,$L14>=EM!$F$34),EM!$E$35,(IF(OR(EM!$E$35="",EM!$F$34="",EM!$F$36=""),0,IF(AND(EM!$E$35<>"",HGO!$AD14=TRUE,$L14>=EM!$F$34),EM!$E$35,0)))),"") ->  | AF14: =IF(L14="","",((IF(AND(T14=TRUE,L15<>14,EM!$A$22="Nein"),EM!$E$32+EM!$F$30+AC14+AE14,IF(AND(T14=TRUE,L15<>14,EM!$A$22="Ja"),DGK!$AE$8+EM!$F$30+AC14+AE14,IF(AND(T14=TRUE,L15=14,EM!$A$22="Nein"),EM!$E$32+AC14+AE14,IF(AND(T14=TRUE,L15=14,EM!$A$22="Ja",(EM!$A$6/HGO!L14)=1),DGK!$AE$6+AC14+AE14,IF(AND(T14=TRUE,L15=14,EM!$A$22="Ja",((EM!$A$6*2)/HGO!L14)=1),DGK!$AE$7+AC14+AE14,IF(AND(T14=TRUE,L15=14,EM!$A$22="Ja",AND((EM!$A$6/HGO!L14)<>1,((EM!$A$6*2)/HGO!L14)<>1)),DGK!$AE$8+AC14+AE14,0+AC14+AE14))))))))+(IF(L14=EM!$A$6,EM!$D$41))) ->  | AG14: =IF(MOD(EM!$A$4,HGO!B60)=0,HGO!B60,"") -> 13 | AH14: =INDEX(AG$2:AG$100,MATCH(LARGE(COUNTIF(AG$2:AG$100,">="&AG$2:AG$100)+100*ISNUMBER(AG$2:AG$100),ROWS(AG$2:AG14)),COUNTIF(AG$2:AG$100,">="&AG$2:AG$100)+100*ISNUMBER(AG$2:AG$100),0),1) -> 13
A15: =IF(EM!$C$6="LBG I",HGO!C11,IF(EM!$C$6="LBG II",HGO!D11,IF(EM!$C$6="LBG III",HGO!E11,IF(EM!$C$6="LBG IV",HGO!F11,IF(EM!$C$6="LBG V",HGO!G11))))) -> FALSE | C15: Sommerfuttergerste | D15: Öllein | E15: Körnermais | F15: Körnermais | G15: Körnermais | H15: 5 | I15: =EM!J10 ->  | J15: =EM!W25 -> 0 | L15: =IF(EM!$A$4>=14,14,"") ->  | M15: =IF(L15=14,(((1+EM!$C$4/100)^14)*EM!$C$4/100)/(((1+EM!$C$4/100)^14)-1),"") ->  | N15: =IF(EM!$A$8>=3,HGO!N3,"") ->  | O15: =IF(EM!$A$8>=3,HGO!O3,"") ->  | Q15: =IF(ROW(P15)>COUNTA(P:P),"",INDEX(P:P,SMALL(IF(P$1:P$241<>"",ROW($1:$241)),ROW(P15))))/((1+(EM!$C$4/100))^HGO!L15) ->  | R15: =IF(Q15<>"",SUM($Q$2:Q15),"") ->  | T15: =IF(EM!$A$6=1,TRUE,MOD(ROW(),EM!$A$6)=1) ->  | U15: =IF(L15="","",((IF(AND(T15=TRUE,L16<>15,EM!$A$22="Nein"),EM!$D$30+EM!$F$30+AC15+AE15,IF(AND(T15=TRUE,L16<>15,EM!$A$22="Ja"),DGK!$AE$8+EM!$F$30+AC15+AE15,IF(AND(T15=TRUE,L16=15,EM!$A$22="Nein"),EM!$D$30+AC15+AE15,IF(AND(T15=TRUE,L16=15,EM!$A$22="Ja",(EM!$A$6/HGO!L15)=1),DGK!$AE$6+AC15+AE15,IF(AND(T15=TRUE,L16=15,EM!$A$22="Ja",((EM!$A$6*2)/HGO!L15)=1),DGK!$AE$7+AC15+AE15,IF(AND(T15=TRUE,L16=15,EM!$A$22="Ja",AND((EM!$A$6/HGO!L15)<>1,((EM!$A$6*2)/HGO!L15)<>1)),DGK!$AE$8+AC15+AE15,0+AC15+AE15))))))))+(IF(L15=EM!$A$6,EM!$D$37))) ->  | V15: =IF(L15<>14,"",(IF(AND(T15=TRUE,L15=14),EM!$H$31,0))*(IF(L15=EM!$A$6,HGO!$C$40,IF(HGO!L15=2*EM!$A$6,HGO!$C$41,HGO!$C$42)))) ->  | X15: =IF(W15<>"",W15/(1+(EM!$C$4/100))^HGO!L15,"") ->  | Y15: =IF(X15<>"",SUM($X$2:X15),"") ->  | AB15: =IF(AND(EM!$J$33=1,$L15>=EM!$J$31),EM!$I$31,(IF(OR(EM!$I$31="",EM!$J$31="",EM!$J$33=""),"",IF(AND(EM!$I$31<>"",HGO!$AA15=TRUE,$L15>=EM!$J$31),EM!$I$31,"")))) ->  | AE15: =IF(L15<>"",IF(AND(EM!$F$36=1,$L15>=EM!$F$34),EM!$E$35,(IF(OR(EM!$E$35="",EM!$F$34="",EM!$F$36=""),0,IF(AND(EM!$E$35<>"",HGO!$AD15=TRUE,$L15>=EM!$F$34),EM!$E$35,0)))),"") ->  | AF15: =IF(L15="","",((IF(AND(T15=TRUE,L16<>15,EM!$A$22="Nein"),EM!$E$32+EM!$F$30+AC15+AE15,IF(AND(T15=TRUE,L16<>15,EM!$A$22="Ja"),DGK!$AE$8+EM!$F$30+AC15+AE15,IF(AND(T15=TRUE,L16=15,EM!$A$22="Nein"),EM!$E$32+AC15+AE15,IF(AND(T15=TRUE,L16=15,EM!$A$22="Ja",(EM!$A$6/HGO!L15)=1),DGK!$AE$6+AC15+AE15,IF(AND(T15=TRUE,L16=15,EM!$A$22="Ja",((EM!$A$6*2)/HGO!L15)=1),DGK!$AE$7+AC15+AE15,IF(AND(T15=TRUE,L16=15,EM!$A$22="Ja",AND((EM!$A$6/HGO!L15)<>1,((EM!$A$6*2)/HGO!L15)<>1)),DGK!$AE$8+AC15+AE15,0+AC15+AE15))))))))+(IF(L15=EM!$A$6,EM!$D$41))) ->  | AG15: =IF(MOD(EM!$A$4,HGO!B61)=0,HGO!B61,"") -> 14 | AH15: =INDEX(AG$2:AG$100,MATCH(LARGE(COUNTIF(AG$2:AG$100,">="&AG$2:AG$100)+100*ISNUMBER(AG$2:AG$100),ROWS(AG$2:AG15)),COUNTIF(AG$2:AG$100,">="&AG$2:AG$100)+100*ISNUMBER(AG$2:AG$100),0),1) -> 14
A16: =IF(EM!$C$6="LBG I",HGO!C12,IF(EM!$C$6="LBG II",HGO!D12,IF(EM!$C$6="LBG III",HGO!E12,IF(EM!$C$6="LBG IV",HGO!F12,IF(EM!$C$6="LBG V",HGO!G12))))) -> FALSE | C16: Sommerraps | D16: Silomais | E16: Öllein | F16: Öllein | G16: Öllein | H16: 6 | I16: =EM!J11 ->  | J16: =EM!W26 -> 0 | L16: =IF(EM!$A$4>=15,15,"") ->  | M16: =IF(L16=15,(((1+EM!$C$4/100)^15)*EM!$C$4/100)/(((1+EM!$C$4/100)^15)-1),"") ->  | N16: =IF(EM!$A$8>=3,HGO!N4,"") ->  | O16: =IF(EM!$A$8>=3,HGO!O4,"") ->  | Q16: =IF(ROW(P16)>COUNTA(P:P),"",INDEX(P:P,SMALL(IF(P$1:P$241<>"",ROW($1:$241)),ROW(P16))))/((1+(EM!$C$4/100))^HGO!L16) ->  | R16: =IF(Q16<>"",SUM($Q$2:Q16),"") ->  | T16: =IF(EM!$A$6=1,TRUE,MOD(ROW(),EM!$A$6)=1) ->  | U16: =IF(L16="","",((IF(AND(T16=TRUE,L17<>16,EM!$A$22="Nein"),EM!$D$30+EM!$F$30+AC16+AE16,IF(AND(T16=TRUE,L17<>16,EM!$A$22="Ja"),DGK!$AE$8+EM!$F$30+AC16+AE16,IF(AND(T16=TRUE,L17=16,EM!$A$22="Nein"),EM!$D$30+AC16+AE16,IF(AND(T16=TRUE,L17=16,EM!$A$22="Ja",(EM!$A$6/HGO!L16)=1),DGK!$AE$6+AC16+AE16,IF(AND(T16=TRUE,L17=16,EM!$A$22="Ja",((EM!$A$6*2)/HGO!L16)=1),DGK!$AE$7+AC16+AE16,IF(AND(T16=TRUE,L17=16,EM!$A$22="Ja",AND((EM!$A$6/HGO!L16)<>1,((EM!$A$6*2)/HGO!L16)<>1)),DGK!$AE$8+AC16+AE16,0+AC16+AE16))))))))+(IF(L16=EM!$A$6,EM!$D$37))) ->  | V16: =IF(L16<>15,"",(IF(AND(T16=TRUE,L16=15),EM!$H$31,0))*(IF(L16=EM!$A$6,HGO!$C$40,IF(HGO!L16=2*EM!$A$6,HGO!$C$41,HGO!$C$42)))) ->  | X16: =IF(W16<>"",W16/(1+(EM!$C$4/100))^HGO!L16,"") ->  | Y16: =IF(X16<>"",SUM($X$2:X16),"") ->  | AB16: =IF(AND(EM!$J$33=1,$L16>=EM!$J$31),EM!$I$31,(IF(OR(EM!$I$31="",EM!$J$31="",EM!$J$33=""),"",IF(AND(EM!$I$31<>"",HGO!$AA16=TRUE,$L16>=EM!$J$31),EM!$I$31,"")))) ->  | AE16: =IF(L16<>"",IF(AND(EM!$F$36=1,$L16>=EM!$F$34),EM!$E$35,(IF(OR(EM!$E$35="",EM!$F$34="",EM!$F$36=""),0,IF(AND(EM!$E$35<>"",HGO!$AD16=TRUE,$L16>=EM!$F$34),EM!$E$35,0)))),"") ->  | AF16: =IF(L16="","",((IF(AND(T16=TRUE,L17<>16,EM!$A$22="Nein"),EM!$E$32+EM!$F$30+AC16+AE16,IF(AND(T16=TRUE,L17<>16,EM!$A$22="Ja"),DGK!$AE$8+EM!$F$30+AC16+AE16,IF(AND(T16=TRUE,L17=16,EM!$A$22="Nein"),EM!$E$32+AC16+AE16,IF(AND(T16=TRUE,L17=16,EM!$A$22="Ja",(EM!$A$6/HGO!L16)=1),DGK!$AE$6+AC16+AE16,IF(AND(T16=TRUE,L17=16,EM!$A$22="Ja",((EM!$A$6*2)/HGO!L16)=1),DGK!$AE$7+AC16+AE16,IF(AND(T16=TRUE,L17=16,EM!$A$22="Ja",AND((EM!$A$6/HGO!L16)<>1,((EM!$A$6*2)/HGO!L16)<>1)),DGK!$AE$8+AC16+AE16,0+AC16+AE16))))))))+(IF(L16=EM!$A$6,EM!$D$41))) ->  | AG16: =IF(MOD(EM!$A$4,HGO!B62)=0,HGO!B62,"") -> 15 | AH16: =INDEX(AG$2:AG$100,MATCH(LARGE(COUNTIF(AG$2:AG$100,">="&AG$2:AG$100)+100*ISNUMBER(AG$2:AG$100),ROWS(AG$2:AG16)),COUNTIF(AG$2:AG$100,">="&AG$2:AG$100)+100*ISNUMBER(AG$2:AG$100),0),1) -> 15
A17: =IF(EM!$C$6="LBG I",HGO!C13,IF(EM!$C$6="LBG II",HGO!D13,IF(EM!$C$6="LBG III",HGO!E13,IF(EM!$C$6="LBG IV",HGO!F13,IF(EM!$C$6="LBG V",HGO!G13))))) -> FALSE | C17: Sonnenblumen | D17: Sommerfuttergerste | E17: Silomais | F17: Silomais | G17: Sonnenblumen | H17: Summe | I17: =SUM(I11:I16) -> 0 | L17: =IF(EM!$A$4>=16,16,"") ->  | M17: =IF(L17=16,(((1+EM!$C$4/100)^16)*EM!$C$4/100)/(((1+EM!$C$4/100)^16)-1),"") ->  | N17: =IF(EM!$A$8>=3,HGO!N5,"") ->  | O17: =IF(EM!$A$8>=3,HGO!O5,"") ->  | Q17: =IF(ROW(P17)>COUNTA(P:P),"",INDEX(P:P,SMALL(IF(P$1:P$241<>"",ROW($1:$241)),ROW(P17))))/((1+(EM!$C$4/100))^HGO!L17) ->  | R17: =IF(Q17<>"",SUM($Q$2:Q17),"") ->  | T17: =IF(EM!$A$6=1,TRUE,MOD(ROW(),EM!$A$6)=1) ->  | U17: =IF(L17="","",((IF(AND(T17=TRUE,L18<>17,EM!$A$22="Nein"),EM!$D$30+EM!$F$30+AC17+AE17,IF(AND(T17=TRUE,L18<>17,EM!$A$22="Ja"),DGK!$AE$8+EM!$F$30+AC17+AE17,IF(AND(T17=TRUE,L18=17,EM!$A$22="Nein"),EM!$D$30+AC17+AE17,IF(AND(T17=TRUE,L18=17,EM!$A$22="Ja",(EM!$A$6/HGO!L17)=1),DGK!$AE$6+AC17+AE17,IF(AND(T17=TRUE,L18=17,EM!$A$22="Ja",((EM!$A$6*2)/HGO!L17)=1),DGK!$AE$7+AC17+AE17,IF(AND(T17=TRUE,L18=17,EM!$A$22="Ja",AND((EM!$A$6/HGO!L17)<>1,((EM!$A$6*2)/HGO!L17)<>1)),DGK!$AE$8+AC17+AE17,0+AC17+AE17))))))))+(IF(L17=EM!$A$6,EM!$D$37))) ->  | V17: =IF(L17<>16,"",(IF(AND(T17=TRUE,L17=16),EM!$H$31,0))*(IF(L17=EM!$A$6,HGO!$C$40,IF(HGO!L17=2*EM!$A$6,HGO!$C$41,HGO!$C$42)))) ->  | X17: =IF(W17<>"",W17/(1+(EM!$C$4/100))^HGO!L17,"") ->  | Y17: =IF(X17<>"",SUM($X$2:X17),"") ->  | AB17: =IF(AND(EM!$J$33=1,$L17>=EM!$J$31),EM!$I$31,(IF(OR(EM!$I$31="",EM!$J$31="",EM!$J$33=""),"",IF(AND(EM!$I$31<>"",HGO!$AA17=TRUE,$L17>=EM!$J$31),EM!$I$31,"")))) ->  | AE17: =IF(L17<>"",IF(AND(EM!$F$36=1,$L17>=EM!$F$34),EM!$E$35,(IF(OR(EM!$E$35="",EM!$F$34="",EM!$F$36=""),0,IF(AND(EM!$E$35<>"",HGO!$AD17=TRUE,$L17>=EM!$F$34),EM!$E$35,0)))),"") ->  | AF17: =IF(L17="","",((IF(AND(T17=TRUE,L18<>17,EM!$A$22="Nein"),EM!$E$32+EM!$F$30+AC17+AE17,IF(AND(T17=TRUE,L18<>17,EM!$A$22="Ja"),DGK!$AE$8+EM!$F$30+AC17+AE17,IF(AND(T17=TRUE,L18=17,EM!$A$22="Nein"),EM!$E$32+AC17+AE17,IF(AND(T17=TRUE,L18=17,EM!$A$22="Ja",(EM!$A$6/HGO!L17)=1),DGK!$AE$6+AC17+AE17,IF(AND(T17=TRUE,L18=17,EM!$A$22="Ja",((EM!$A$6*2)/HGO!L17)=1),DGK!$AE$7+AC17+AE17,IF(AND(T17=TRUE,L18=17,EM!$A$22="Ja",AND((EM!$A$6/HGO!L17)<>1,((EM!$A$6*2)/HGO!L17)<>1)),DGK!$AE$8+AC17+AE17,0+AC17+AE17))))))))+(IF(L17=EM!$A$6,EM!$D$41))) ->  | AG17: =IF(MOD(EM!$A$4,HGO!B63)=0,HGO!B63,"") -> 16 | AH17: =INDEX(AG$2:AG$100,MATCH(LARGE(COUNTIF(AG$2:AG$100,">="&AG$2:AG$100)+100*ISNUMBER(AG$2:AG$100),ROWS(AG$2:AG17)),COUNTIF(AG$2:AG$100,">="&AG$2:AG$100)+100*ISNUMBER(AG$2:AG$100),0),1) -> 16
A18: =IF(EM!$C$6="LBG I",HGO!C14,IF(EM!$C$6="LBG II",HGO!D14,IF(EM!$C$6="LBG III",HGO!E14,IF(EM!$C$6="LBG IV",HGO!F14,IF(EM!$C$6="LBG V",HGO!G14))))) -> FALSE | C18: Speisekartoffeln | D18: Sommerraps | E18: Sommerfuttergerste | F18: Sommerfuttergerste | G18: Speisekartoffeln | H18: Gesamtkosten aus Fruchtfolge | J18: Gesamtkosten aus Zw.frucht | L18: =IF(EM!$A$4>=17,17,"") ->  | M18: =IF(L18=17,(((1+EM!$C$4/100)^17)*EM!$C$4/100)/(((1+EM!$C$4/100)^17)-1),"") ->  | N18: =IF(EM!$A$8>=3,HGO!N6,"") ->  | O18: =IF(EM!$A$8>=3,HGO!O6,"") ->  | Q18: =IF(ROW(P18)>COUNTA(P:P),"",INDEX(P:P,SMALL(IF(P$1:P$241<>"",ROW($1:$241)),ROW(P18))))/((1+(EM!$C$4/100))^HGO!L18) ->  | R18: =IF(Q18<>"",SUM($Q$2:Q18),"") ->  | T18: =IF(EM!$A$6=1,TRUE,MOD(ROW(),EM!$A$6)=1) ->  | U18: =IF(L18="","",((IF(AND(T18=TRUE,L19<>18,EM!$A$22="Nein"),EM!$D$30+EM!$F$30+AC18+AE18,IF(AND(T18=TRUE,L19<>18,EM!$A$22="Ja"),DGK!$AE$8+EM!$F$30+AC18+AE18,IF(AND(T18=TRUE,L19=18,EM!$A$22="Nein"),EM!$D$30+AC18+AE18,IF(AND(T18=TRUE,L19=18,EM!$A$22="Ja",(EM!$A$6/HGO!L18)=1),DGK!$AE$6+AC18+AE18,IF(AND(T18=TRUE,L19=18,EM!$A$22="Ja",((EM!$A$6*2)/HGO!L18)=1),DGK!$AE$7+AC18+AE18,IF(AND(T18=TRUE,L19=18,EM!$A$22="Ja",AND((EM!$A$6/HGO!L18)<>1,((EM!$A$6*2)/HGO!L18)<>1)),DGK!$AE$8+AC18+AE18,0+AC18+AE18))))))))+(IF(L18=EM!$A$6,EM!$D$37))) ->  | V18: =IF(L18<>17,"",(IF(AND(T18=TRUE,L18=17),EM!$H$31,0))*(IF(L18=EM!$A$6,HGO!$C$40,IF(HGO!L18=2*EM!$A$6,HGO!$C$41,HGO!$C$42)))) ->  | X18: =IF(W18<>"",W18/(1+(EM!$C$4/100))^HGO!L18,"") ->  | Y18: =IF(X18<>"",SUM($X$2:X18),"") ->  | AB18: =IF(AND(EM!$J$33=1,$L18>=EM!$J$31),EM!$I$31,(IF(OR(EM!$I$31="",EM!$J$31="",EM!$J$33=""),"",IF(AND(EM!$I$31<>"",HGO!$AA18=TRUE,$L18>=EM!$J$31),EM!$I$31,"")))) ->  | AE18: =IF(L18<>"",IF(AND(EM!$F$36=1,$L18>=EM!$F$34),EM!$E$35,(IF(OR(EM!$E$35="",EM!$F$34="",EM!$F$36=""),0,IF(AND(EM!$E$35<>"",HGO!$AD18=TRUE,$L18>=EM!$F$34),EM!$E$35,0)))),"") ->  | AF18: =IF(L18="","",((IF(AND(T18=TRUE,L19<>18,EM!$A$22="Nein"),EM!$E$32+EM!$F$30+AC18+AE18,IF(AND(T18=TRUE,L19<>18,EM!$A$22="Ja"),DGK!$AE$8+EM!$F$30+AC18+AE18,IF(AND(T18=TRUE,L19=18,EM!$A$22="Nein"),EM!$E$32+AC18+AE18,IF(AND(T18=TRUE,L19=18,EM!$A$22="Ja",(EM!$A$6/HGO!L18)=1),DGK!$AE$6+AC18+AE18,IF(AND(T18=TRUE,L19=18,EM!$A$22="Ja",((EM!$A$6*2)/HGO!L18)=1),DGK!$AE$7+AC18+AE18,IF(AND(T18=TRUE,L19=18,EM!$A$22="Ja",AND((EM!$A$6/HGO!L18)<>1,((EM!$A$6*2)/HGO!L18)<>1)),DGK!$AE$8+AC18+AE18,0+AC18+AE18))))))))+(IF(L18=EM!$A$6,EM!$D$41))) ->  | AG18: =IF(MOD(EM!$A$4,HGO!B64)=0,HGO!B64,"") -> 17 | AH18: =INDEX(AG$2:AG$100,MATCH(LARGE(COUNTIF(AG$2:AG$100,">="&AG$2:AG$100)+100*ISNUMBER(AG$2:AG$100),ROWS(AG$2:AG18)),COUNTIF(AG$2:AG$100,">="&AG$2:AG$100)+100*ISNUMBER(AG$2:AG$100),0),1) -> 17
A19: =IF(EM!$C$6="LBG I",HGO!C15,IF(EM!$C$6="LBG II",HGO!D15,IF(EM!$C$6="LBG III",HGO!E15,IF(EM!$C$6="LBG IV",HGO!F15,IF(EM!$C$6="LBG V",HGO!G15))))) -> FALSE | C19: Stärkekartoffeln | D19: Sonnenblumen | E19: Sommerraps | F19: Sommerraps | G19: Stärkekartoffeln | H19: Jahr | I19: Kosten | J19: Kosten | L19: =IF(EM!$A$4>=18,18,"") ->  | M19: =IF(L19=18,(((1+EM!$C$4/100)^18)*EM!$C$4/100)/(((1+EM!$C$4/100)^18)-1),"") ->  | N19: =IF(EM!$A$8>=3,HGO!N7,"") ->  | O19: =IF(EM!$A$8>=3,HGO!O7,"") ->  | Q19: =IF(ROW(P19)>COUNTA(P:P),"",INDEX(P:P,SMALL(IF(P$1:P$241<>"",ROW($1:$241)),ROW(P19))))/((1+(EM!$C$4/100))^HGO!L19) ->  | R19: =IF(Q19<>"",SUM($Q$2:Q19),"") ->  | T19: =IF(EM!$A$6=1,TRUE,MOD(ROW(),EM!$A$6)=1) ->  | U19: =IF(L19="","",((IF(AND(T19=TRUE,L20<>19,EM!$A$22="Nein"),EM!$D$30+EM!$F$30+AC19+AE19,IF(AND(T19=TRUE,L20<>19,EM!$A$22="Ja"),DGK!$AE$8+EM!$F$30+AC19+AE19,IF(AND(T19=TRUE,L20=19,EM!$A$22="Nein"),EM!$D$30+AC19+AE19,IF(AND(T19=TRUE,L20=19,EM!$A$22="Ja",(EM!$A$6/HGO!L19)=1),DGK!$AE$6+AC19+AE19,IF(AND(T19=TRUE,L20=19,EM!$A$22="Ja",((EM!$A$6*2)/HGO!L19)=1),DGK!$AE$7+AC19+AE19,IF(AND(T19=TRUE,L20=19,EM!$A$22="Ja",AND((EM!$A$6/HGO!L19)<>1,((EM!$A$6*2)/HGO!L19)<>1)),DGK!$AE$8+AC19+AE19,0+AC19+AE19))))))))+(IF(L19=EM!$A$6,EM!$D$37))) ->  | V19: =IF(L19<>18,"",(IF(AND(T19=TRUE,L19=18),EM!$H$31,0))*(IF(L19=EM!$A$6,HGO!$C$40,IF(HGO!L19=2*EM!$A$6,HGO!$C$41,HGO!$C$42)))) ->  | X19: =IF(W19<>"",W19/(1+(EM!$C$4/100))^HGO!L19,"") ->  | Y19: =IF(X19<>"",SUM($X$2:X19),"") ->  | AB19: =IF(AND(EM!$J$33=1,$L19>=EM!$J$31),EM!$I$31,(IF(OR(EM!$I$31="",EM!$J$31="",EM!$J$33=""),"",IF(AND(EM!$I$31<>"",HGO!$AA19=TRUE,$L19>=EM!$J$31),EM!$I$31,"")))) ->  | AE19: =IF(L19<>"",IF(AND(EM!$F$36=1,$L19>=EM!$F$34),EM!$E$35,(IF(OR(EM!$E$35="",EM!$F$34="",EM!$F$36=""),0,IF(AND(EM!$E$35<>"",HGO!$AD19=TRUE,$L19>=EM!$F$34),EM!$E$35,0)))),"") ->  | AF19: =IF(L19="","",((IF(AND(T19=TRUE,L20<>19,EM!$A$22="Nein"),EM!$E$32+EM!$F$30+AC19+AE19,IF(AND(T19=TRUE,L20<>19,EM!$A$22="Ja"),DGK!$AE$8+EM!$F$30+AC19+AE19,IF(AND(T19=TRUE,L20=19,EM!$A$22="Nein"),EM!$E$32+AC19+AE19,IF(AND(T19=TRUE,L20=19,EM!$A$22="Ja",(EM!$A$6/HGO!L19)=1),DGK!$AE$6+AC19+AE19,IF(AND(T19=TRUE,L20=19,EM!$A$22="Ja",((EM!$A$6*2)/HGO!L19)=1),DGK!$AE$7+AC19+AE19,IF(AND(T19=TRUE,L20=19,EM!$A$22="Ja",AND((EM!$A$6/HGO!L19)<>1,((EM!$A$6*2)/HGO!L19)<>1)),DGK!$AE$8+AC19+AE19,0+AC19+AE19))))))))+(IF(L19=EM!$A$6,EM!$D$41))) ->  | AG19: =IF(MOD(EM!$A$4,HGO!B65)=0,HGO!B65,"") -> 18 | AH19: =INDEX(AG$2:AG$100,MATCH(LARGE(COUNTIF(AG$2:AG$100,">="&AG$2:AG$100)+100*ISNUMBER(AG$2:AG$100),ROWS(AG$2:AG19)),COUNTIF(AG$2:AG$100,">="&AG$2:AG$100)+100*ISNUMBER(AG$2:AG$100),0),1) -> 18
A20: =IF(EM!$C$6="LBG I",HGO!C16,IF(EM!$C$6="LBG II",HGO!D16,IF(EM!$C$6="LBG III",HGO!E16,IF(EM!$C$6="LBG IV",HGO!F16,IF(EM!$C$6="LBG V",HGO!G16))))) -> FALSE | C20: Wintergerste | D20: Speisekartoffeln | E20: Sonnenblumen | F20: Sonnenblumen | G20: Wintergerste | H20: 1 | I20: =EM!X6 ->  | J20: =EM!V21 -> 0 | L20: =IF(EM!$A$4>=19,19,"") ->  | M20: =IF(L20=19,(((1+EM!$C$4/100)^19)*EM!$C$4/100)/(((1+EM!$C$4/100)^19)-1),"") ->  | N20: =IF(EM!$A$8>=4,HGO!N2,"") ->  | O20: =IF(EM!$A$8>=4,HGO!O2,"") ->  | Q20: =IF(ROW(P20)>COUNTA(P:P),"",INDEX(P:P,SMALL(IF(P$1:P$241<>"",ROW($1:$241)),ROW(P20))))/((1+(EM!$C$4/100))^HGO!L20) ->  | R20: =IF(Q20<>"",SUM($Q$2:Q20),"") ->  | T20: =IF(EM!$A$6=1,TRUE,MOD(ROW(),EM!$A$6)=1) ->  | U20: =IF(L20="","",((IF(AND(T20=TRUE,L21<>20,EM!$A$22="Nein"),EM!$D$30+EM!$F$30+AC20+AE20,IF(AND(T20=TRUE,L21<>20,EM!$A$22="Ja"),DGK!$AE$8+EM!$F$30+AC20+AE20,IF(AND(T20=TRUE,L21=20,EM!$A$22="Nein"),EM!$D$30+AC20+AE20,IF(AND(T20=TRUE,L21=20,EM!$A$22="Ja",(EM!$A$6/HGO!L20)=1),DGK!$AE$6+AC20+AE20,IF(AND(T20=TRUE,L21=20,EM!$A$22="Ja",((EM!$A$6*2)/HGO!L20)=1),DGK!$AE$7+AC20+AE20,IF(AND(T20=TRUE,L21=20,EM!$A$22="Ja",AND((EM!$A$6/HGO!L20)<>1,((EM!$A$6*2)/HGO!L20)<>1)),DGK!$AE$8+AC20+AE20,0+AC20+AE20))))))))+(IF(L20=EM!$A$6,EM!$D$37))) ->  | V20: =IF(L20<>19,"",(IF(AND(T20=TRUE,L20=19),EM!$H$31,0))*(IF(L20=EM!$A$6,HGO!$C$40,IF(HGO!L20=2*EM!$A$6,HGO!$C$41,HGO!$C$42)))) ->  | X20: =IF(W20<>"",W20/(1+(EM!$C$4/100))^HGO!L20,"") ->  | Y20: =IF(X20<>"",SUM($X$2:X20),"") ->  | AB20: =IF(AND(EM!$J$33=1,$L20>=EM!$J$31),EM!$I$31,(IF(OR(EM!$I$31="",EM!$J$31="",EM!$J$33=""),"",IF(AND(EM!$I$31<>"",HGO!$AA20=TRUE,$L20>=EM!$J$31),EM!$I$31,"")))) ->  | AE20: =IF(L20<>"",IF(AND(EM!$F$36=1,$L20>=EM!$F$34),EM!$E$35,(IF(OR(EM!$E$35="",EM!$F$34="",EM!$F$36=""),0,IF(AND(EM!$E$35<>"",HGO!$AD20=TRUE,$L20>=EM!$F$34),EM!$E$35,0)))),"") ->  | AF20: =IF(L20="","",((IF(AND(T20=TRUE,L21<>20,EM!$A$22="Nein"),EM!$E$32+EM!$F$30+AC20+AE20,IF(AND(T20=TRUE,L21<>20,EM!$A$22="Ja"),DGK!$AE$8+EM!$F$30+AC20+AE20,IF(AND(T20=TRUE,L21=20,EM!$A$22="Nein"),EM!$E$32+AC20+AE20,IF(AND(T20=TRUE,L21=20,EM!$A$22="Ja",(EM!$A$6/HGO!L20)=1),DGK!$AE$6+AC20+AE20,IF(AND(T20=TRUE,L21=20,EM!$A$22="Ja",((EM!$A$6*2)/HGO!L20)=1),DGK!$AE$7+AC20+AE20,IF(AND(T20=TRUE,L21=20,EM!$A$22="Ja",AND((EM!$A$6/HGO!L20)<>1,((EM!$A$6*2)/HGO!L20)<>1)),DGK!$AE$8+AC20+AE20,0+AC20+AE20))))))))+(IF(L20=EM!$A$6,EM!$D$41))) ->  | AG20: =IF(MOD(EM!$A$4,HGO!B66)=0,HGO!B66,"") -> 19 | AH20: =INDEX(AG$2:AG$100,MATCH(LARGE(COUNTIF(AG$2:AG$100,">="&AG$2:AG$100)+100*ISNUMBER(AG$2:AG$100),ROWS(AG$2:AG20)),COUNTIF(AG$2:AG$100,">="&AG$2:AG$100)+100*ISNUMBER(AG$2:AG$100),0),1) -> 19
A21: =IF(EM!$C$6="LBG I",HGO!C17,IF(EM!$C$6="LBG II",HGO!D17,IF(EM!$C$6="LBG III",HGO!E17,IF(EM!$C$6="LBG IV",HGO!F17,IF(EM!$C$6="LBG V",HGO!G17))))) -> FALSE | C21: Winterraps | D21: Stärkekartoffeln | E21: Speisekartoffeln | F21: Speisekartoffeln | G21: Winterraps | H21: 2 | I21: =EM!X7 ->  | J21: =EM!V22 -> 0 | L21: =IF(EM!$A$4>=20,20,"") ->  | M21: =IF(L21=20,(((1+EM!$C$4/100)^20)*EM!$C$4/100)/(((1+EM!$C$4/100)^20)-1),"") ->  | N21: =IF(EM!$A$8>=4,HGO!N3,"") ->  | O21: =IF(EM!$A$8>=4,HGO!O3,"") ->  | Q21: =IF(ROW(P21)>COUNTA(P:P),"",INDEX(P:P,SMALL(IF(P$1:P$241<>"",ROW($1:$241)),ROW(P21))))/((1+(EM!$C$4/100))^HGO!L21) ->  | R21: =IF(Q21<>"",SUM($Q$2:Q21),"") ->  | T21: =IF(EM!$A$6=1,TRUE,MOD(ROW(),EM!$A$6)=1) ->  | U21: =IF(L21="","",((IF(AND(T21=TRUE,L22<>21,EM!$A$22="Nein"),EM!$D$30+EM!$F$30+AC21+AE21,IF(AND(T21=TRUE,L22<>21,EM!$A$22="Ja"),DGK!$AE$8+EM!$F$30+AC21+AE21,IF(AND(T21=TRUE,L22=21,EM!$A$22="Nein"),EM!$D$30+AC21+AE21,IF(AND(T21=TRUE,L22=21,EM!$A$22="Ja",(EM!$A$6/HGO!L21)=1),DGK!$AE$6+AC21+AE21,IF(AND(T21=TRUE,L22=21,EM!$A$22="Ja",((EM!$A$6*2)/HGO!L21)=1),DGK!$AE$7+AC21+AE21,IF(AND(T21=TRUE,L22=21,EM!$A$22="Ja",AND((EM!$A$6/HGO!L21)<>1,((EM!$A$6*2)/HGO!L21)<>1)),DGK!$AE$8+AC21+AE21,0+AC21+AE21))))))))+(IF(L21=EM!$A$6,EM!$D$37))) ->  | V21: =IF(L21<>20,"",(IF(AND(T21=TRUE,L21=20),EM!$H$31,0))*(IF(L21=EM!$A$6,HGO!$C$40,IF(HGO!L21=2*EM!$A$6,HGO!$C$41,HGO!$C$42)))) ->  | X21: =IF(W21<>"",W21/(1+(EM!$C$4/100))^HGO!L21,"") ->  | Y21: =IF(X21<>"",SUM($X$2:X21),"") ->  | AB21: =IF(AND(EM!$J$33=1,$L21>=EM!$J$31),EM!$I$31,(IF(OR(EM!$I$31="",EM!$J$31="",EM!$J$33=""),"",IF(AND(EM!$I$31<>"",HGO!$AA21=TRUE,$L21>=EM!$J$31),EM!$I$31,"")))) ->  | AE21: =IF(L21<>"",IF(AND(EM!$F$36=1,$L21>=EM!$F$34),EM!$E$35,(IF(OR(EM!$E$35="",EM!$F$34="",EM!$F$36=""),0,IF(AND(EM!$E$35<>"",HGO!$AD21=TRUE,$L21>=EM!$F$34),EM!$E$35,0)))),"") ->  | AF21: =IF(L21="","",((IF(AND(T21=TRUE,L22<>21,EM!$A$22="Nein"),EM!$E$32+EM!$F$30+AC21+AE21,IF(AND(T21=TRUE,L22<>21,EM!$A$22="Ja"),DGK!$AE$8+EM!$F$30+AC21+AE21,IF(AND(T21=TRUE,L22=21,EM!$A$22="Nein"),EM!$E$32+AC21+AE21,IF(AND(T21=TRUE,L22=21,EM!$A$22="Ja",(EM!$A$6/HGO!L21)=1),DGK!$AE$6+AC21+AE21,IF(AND(T21=TRUE,L22=21,EM!$A$22="Ja",((EM!$A$6*2)/HGO!L21)=1),DGK!$AE$7+AC21+AE21,IF(AND(T21=TRUE,L22=21,EM!$A$22="Ja",AND((EM!$A$6/HGO!L21)<>1,((EM!$A$6*2)/HGO!L21)<>1)),DGK!$AE$8+AC21+AE21,0+AC21+AE21))))))))+(IF(L21=EM!$A$6,EM!$D$41))) ->  | AG21: =IF(MOD(EM!$A$4,HGO!B67)=0,HGO!B67,"") -> 20 | AH21: =INDEX(AG$2:AG$100,MATCH(LARGE(COUNTIF(AG$2:AG$100,">="&AG$2:AG$100)+100*ISNUMBER(AG$2:AG$100),ROWS(AG$2:AG21)),COUNTIF(AG$2:AG$100,">="&AG$2:AG$100)+100*ISNUMBER(AG$2:AG$100),0),1) -> 20
A22: =IF(EM!$C$6="LBG I",HGO!C18,IF(EM!$C$6="LBG II",HGO!D18,IF(EM!$C$6="LBG III",HGO!E18,IF(EM!$C$6="LBG IV",HGO!F18,IF(EM!$C$6="LBG V",HGO!G18))))) -> FALSE | C22: Winterroggen (Hybridsorte) | D22: Wintergerste | E22: Stärkekartoffeln | F22: Stärkekartoffeln | G22: Winterroggen (Hybridsorte) | H22: 3 | I22: =EM!X8 ->  | J22: =EM!V23 -> 0 | L22: =IF(EM!$A$4>=21,21,"") ->  | M22: =IF(L22=21,(((1+EM!$C$4/100)^21)*EM!$C$4/100)/(((1+EM!$C$4/100)^21)-1),"") ->  | N22: =IF(EM!$A$8>=4,HGO!N4,"") ->  | O22: =IF(EM!$A$8>=4,HGO!O4,"") ->  | Q22: =IF(ROW(P22)>COUNTA(P:P),"",INDEX(P:P,SMALL(IF(P$1:P$241<>"",ROW($1:$241)),ROW(P22))))/((1+(EM!$C$4/100))^HGO!L22) ->  | R22: =IF(Q22<>"",SUM($Q$2:Q22),"") ->  | T22: =IF(EM!$A$6=1,TRUE,MOD(ROW(),EM!$A$6)=1) ->  | U22: =IF(L22="","",((IF(AND(T22=TRUE,L23<>22,EM!$A$22="Nein"),EM!$D$30+EM!$F$30+AC22+AE22,IF(AND(T22=TRUE,L23<>22,EM!$A$22="Ja"),DGK!$AE$8+EM!$F$30+AC22+AE22,IF(AND(T22=TRUE,L23=22,EM!$A$22="Nein"),EM!$D$30+AC22+AE22,IF(AND(T22=TRUE,L23=22,EM!$A$22="Ja",(EM!$A$6/HGO!L22)=1),DGK!$AE$6+AC22+AE22,IF(AND(T22=TRUE,L23=22,EM!$A$22="Ja",((EM!$A$6*2)/HGO!L22)=1),DGK!$AE$7+AC22+AE22,IF(AND(T22=TRUE,L23=22,EM!$A$22="Ja",AND((EM!$A$6/HGO!L22)<>1,((EM!$A$6*2)/HGO!L22)<>1)),DGK!$AE$8+AC22+AE22,0+AC22+AE22))))))))+(IF(L22=EM!$A$6,EM!$D$37))) ->  | V22: =IF(L22<>21,"",(IF(AND(T22=TRUE,L22=21),EM!$H$31,0))*(IF(L22=EM!$A$6,HGO!$C$40,IF(HGO!L22=2*EM!$A$6,HGO!$C$41,HGO!$C$42)))) ->  | X22: =IF(W22<>"",W22/(1+(EM!$C$4/100))^HGO!L22,"") ->  | Y22: =IF(X22<>"",SUM($X$2:X22),"") ->  | AB22: =IF(AND(EM!$J$33=1,$L22>=EM!$J$31),EM!$I$31,(IF(OR(EM!$I$31="",EM!$J$31="",EM!$J$33=""),"",IF(AND(EM!$I$31<>"",HGO!$AA22=TRUE,$L22>=EM!$J$31),EM!$I$31,"")))) ->  | AE22: =IF(L22<>"",IF(AND(EM!$F$36=1,$L22>=EM!$F$34),EM!$E$35,(IF(OR(EM!$E$35="",EM!$F$34="",EM!$F$36=""),0,IF(AND(EM!$E$35<>"",HGO!$AD22=TRUE,$L22>=EM!$F$34),EM!$E$35,0)))),"") ->  | AF22: =IF(L22="","",((IF(AND(T22=TRUE,L23<>22,EM!$A$22="Nein"),EM!$E$32+EM!$F$30+AC22+AE22,IF(AND(T22=TRUE,L23<>22,EM!$A$22="Ja"),DGK!$AE$8+EM!$F$30+AC22+AE22,IF(AND(T22=TRUE,L23=22,EM!$A$22="Nein"),EM!$E$32+AC22+AE22,IF(AND(T22=TRUE,L23=22,EM!$A$22="Ja",(EM!$A$6/HGO!L22)=1),DGK!$AE$6+AC22+AE22,IF(AND(T22=TRUE,L23=22,EM!$A$22="Ja",((EM!$A$6*2)/HGO!L22)=1),DGK!$AE$7+AC22+AE22,IF(AND(T22=TRUE,L23=22,EM!$A$22="Ja",AND((EM!$A$6/HGO!L22)<>1,((EM!$A$6*2)/HGO!L22)<>1)),DGK!$AE$8+AC22+AE22,0+AC22+AE22))))))))+(IF(L22=EM!$A$6,EM!$D$41))) ->  | AG22: =IF(MOD(EM!$A$4,HGO!B68)=0,HGO!B68,"") -> 21 | AH22: =INDEX(AG$2:AG$100,MATCH(LARGE(COUNTIF(AG$2:AG$100,">="&AG$2:AG$100)+100*ISNUMBER(AG$2:AG$100),ROWS(AG$2:AG22)),COUNTIF(AG$2:AG$100,">="&AG$2:AG$100)+100*ISNUMBER(AG$2:AG$100),0),1) -> 21
A23: =IF(EM!$C$6="LBG I",HGO!C19,IF(EM!$C$6="LBG II",HGO!D19,IF(EM!$C$6="LBG III",HGO!E19,IF(EM!$C$6="LBG IV",HGO!F19,IF(EM!$C$6="LBG V",HGO!G19))))) -> FALSE | C23: Winterroggen (Populationssorte) | D23: Winterraps | E23: Wintergerste | F23: Wintergerste | G23: Winterroggen (Populationssorte) | H23: 4 | I23: =EM!X9 ->  | J23: =EM!V24 -> 0 | L23: =IF(EM!$A$4>=22,22,"") ->  | M23: =IF(L23=22,(((1+EM!$C$4/100)^22)*EM!$C$4/100)/(((1+EM!$C$4/100)^22)-1),"") ->  | N23: =IF(EM!$A$8>=4,HGO!N5,"") ->  | O23: =IF(EM!$A$8>=4,HGO!O5,"") ->  | Q23: =IF(ROW(P23)>COUNTA(P:P),"",INDEX(P:P,SMALL(IF(P$1:P$241<>"",ROW($1:$241)),ROW(P23))))/((1+(EM!$C$4/100))^HGO!L23) ->  | R23: =IF(Q23<>"",SUM($Q$2:Q23),"") ->  | T23: =IF(EM!$A$6=1,TRUE,MOD(ROW(),EM!$A$6)=1) ->  | U23: =IF(L23="","",((IF(AND(T23=TRUE,L24<>23,EM!$A$22="Nein"),EM!$D$30+EM!$F$30+AC23+AE23,IF(AND(T23=TRUE,L24<>23,EM!$A$22="Ja"),DGK!$AE$8+EM!$F$30+AC23+AE23,IF(AND(T23=TRUE,L24=23,EM!$A$22="Nein"),EM!$D$30+AC23+AE23,IF(AND(T23=TRUE,L24=23,EM!$A$22="Ja",(EM!$A$6/HGO!L23)=1),DGK!$AE$6+AC23+AE23,IF(AND(T23=TRUE,L24=23,EM!$A$22="Ja",((EM!$A$6*2)/HGO!L23)=1),DGK!$AE$7+AC23+AE23,IF(AND(T23=TRUE,L24=23,EM!$A$22="Ja",AND((EM!$A$6/HGO!L23)<>1,((EM!$A$6*2)/HGO!L23)<>1)),DGK!$AE$8+AC23+AE23,0+AC23+AE23))))))))+(IF(L23=EM!$A$6,EM!$D$37))) ->  | V23: =IF(L23<>22,"",(IF(AND(T23=TRUE,L23=22),EM!$H$31,0))*(IF(L23=EM!$A$6,HGO!$C$40,IF(HGO!L23=2*EM!$A$6,HGO!$C$41,HGO!$C$42)))) ->  | X23: =IF(W23<>"",W23/(1+(EM!$C$4/100))^HGO!L23,"") ->  | Y23: =IF(X23<>"",SUM($X$2:X23),"") ->  | AB23: =IF(AND(EM!$J$33=1,$L23>=EM!$J$31),EM!$I$31,(IF(OR(EM!$I$31="",EM!$J$31="",EM!$J$33=""),"",IF(AND(EM!$I$31<>"",HGO!$AA23=TRUE,$L23>=EM!$J$31),EM!$I$31,"")))) ->  | AE23: =IF(L23<>"",IF(AND(EM!$F$36=1,$L23>=EM!$F$34),EM!$E$35,(IF(OR(EM!$E$35="",EM!$F$34="",EM!$F$36=""),0,IF(AND(EM!$E$35<>"",HGO!$AD23=TRUE,$L23>=EM!$F$34),EM!$E$35,0)))),"") ->  | AF23: =IF(L23="","",((IF(AND(T23=TRUE,L24<>23,EM!$A$22="Nein"),EM!$E$32+EM!$F$30+AC23+AE23,IF(AND(T23=TRUE,L24<>23,EM!$A$22="Ja"),DGK!$AE$8+EM!$F$30+AC23+AE23,IF(AND(T23=TRUE,L24=23,EM!$A$22="Nein"),EM!$E$32+AC23+AE23,IF(AND(T23=TRUE,L24=23,EM!$A$22="Ja",(EM!$A$6/HGO!L23)=1),DGK!$AE$6+AC23+AE23,IF(AND(T23=TRUE,L24=23,EM!$A$22="Ja",((EM!$A$6*2)/HGO!L23)=1),DGK!$AE$7+AC23+AE23,IF(AND(T23=TRUE,L24=23,EM!$A$22="Ja",AND((EM!$A$6/HGO!L23)<>1,((EM!$A$6*2)/HGO!L23)<>1)),DGK!$AE$8+AC23+AE23,0+AC23+AE23))))))))+(IF(L23=EM!$A$6,EM!$D$41))) ->  | AG23: =IF(MOD(EM!$A$4,HGO!B69)=0,HGO!B69,"") -> 22 | AH23: =INDEX(AG$2:AG$100,MATCH(LARGE(COUNTIF(AG$2:AG$100,">="&AG$2:AG$100)+100*ISNUMBER(AG$2:AG$100),ROWS(AG$2:AG23)),COUNTIF(AG$2:AG$100,">="&AG$2:AG$100)+100*ISNUMBER(AG$2:AG$100),0),1) -> 22
A24: =IF(EM!$C$6="LBG I",HGO!C20,IF(EM!$C$6="LBG II",HGO!D20,IF(EM!$C$6="LBG III",HGO!E20,IF(EM!$C$6="LBG IV",HGO!F20,IF(EM!$C$6="LBG V",HGO!G20))))) -> FALSE | C24: Wintertriticale | D24: Winterroggen (Hybridsorte) | E24: Winterraps | F24: Winterraps | G24: Wintertriticale | H24: 5 | I24: =EM!X10 ->  | J24: =EM!V25 -> 0 | L24: =IF(EM!$A$4>=23,23,"") ->  | M24: =IF(L24=23,(((1+EM!$C$4/100)^23)*EM!$C$4/100)/(((1+EM!$C$4/100)^23)-1),"") ->  | N24: =IF(EM!$A$8>=4,HGO!N6,"") ->  | O24: =IF(EM!$A$8>=4,HGO!O6,"") ->  | Q24: =IF(ROW(P24)>COUNTA(P:P),"",INDEX(P:P,SMALL(IF(P$1:P$241<>"",ROW($1:$241)),ROW(P24))))/((1+(EM!$C$4/100))^HGO!L24) ->  | R24: =IF(Q24<>"",SUM($Q$2:Q24),"") ->  | T24: =IF(EM!$A$6=1,TRUE,MOD(ROW(),EM!$A$6)=1) ->  | U24: =IF(L24="","",((IF(AND(T24=TRUE,L25<>24,EM!$A$22="Nein"),EM!$D$30+EM!$F$30+AC24+AE24,IF(AND(T24=TRUE,L25<>24,EM!$A$22="Ja"),DGK!$AE$8+EM!$F$30+AC24+AE24,IF(AND(T24=TRUE,L25=24,EM!$A$22="Nein"),EM!$D$30+AC24+AE24,IF(AND(T24=TRUE,L25=24,EM!$A$22="Ja",(EM!$A$6/HGO!L24)=1),DGK!$AE$6+AC24+AE24,IF(AND(T24=TRUE,L25=24,EM!$A$22="Ja",((EM!$A$6*2)/HGO!L24)=1),DGK!$AE$7+AC24+AE24,IF(AND(T24=TRUE,L25=24,EM!$A$22="Ja",AND((EM!$A$6/HGO!L24)<>1,((EM!$A$6*2)/HGO!L24)<>1)),DGK!$AE$8+AC24+AE24,0+AC24+AE24))))))))+(IF(L24=EM!$A$6,EM!$D$37))) ->  | V24: =IF(L24<>23,"",(IF(AND(T24=TRUE,L24=23),EM!$H$31,0))*(IF(L24=EM!$A$6,HGO!$C$40,IF(HGO!L24=2*EM!$A$6,HGO!$C$41,HGO!$C$42)))) ->  | X24: =IF(W24<>"",W24/(1+(EM!$C$4/100))^HGO!L24,"") ->  | Y24: =IF(X24<>"",SUM($X$2:X24),"") ->  | AB24: =IF(AND(EM!$J$33=1,$L24>=EM!$J$31),EM!$I$31,(IF(OR(EM!$I$31="",EM!$J$31="",EM!$J$33=""),"",IF(AND(EM!$I$31<>"",HGO!$AA24=TRUE,$L24>=EM!$J$31),EM!$I$31,"")))) ->  | AE24: =IF(L24<>"",IF(AND(EM!$F$36=1,$L24>=EM!$F$34),EM!$E$35,(IF(OR(EM!$E$35="",EM!$F$34="",EM!$F$36=""),0,IF(AND(EM!$E$35<>"",HGO!$AD24=TRUE,$L24>=EM!$F$34),EM!$E$35,0)))),"") ->  | AF24: =IF(L24="","",((IF(AND(T24=TRUE,L25<>24,EM!$A$22="Nein"),EM!$E$32+EM!$F$30+AC24+AE24,IF(AND(T24=TRUE,L25<>24,EM!$A$22="Ja"),DGK!$AE$8+EM!$F$30+AC24+AE24,IF(AND(T24=TRUE,L25=24,EM!$A$22="Nein"),EM!$E$32+AC24+AE24,IF(AND(T24=TRUE,L25=24,EM!$A$22="Ja",(EM!$A$6/HGO!L24)=1),DGK!$AE$6+AC24+AE24,IF(AND(T24=TRUE,L25=24,EM!$A$22="Ja",((EM!$A$6*2)/HGO!L24)=1),DGK!$AE$7+AC24+AE24,IF(AND(T24=TRUE,L25=24,EM!$A$22="Ja",AND((EM!$A$6/HGO!L24)<>1,((EM!$A$6*2)/HGO!L24)<>1)),DGK!$AE$8+AC24+AE24,0+AC24+AE24))))))))+(IF(L24=EM!$A$6,EM!$D$41))) ->  | AG24: =IF(MOD(EM!$A$4,HGO!B70)=0,HGO!B70,"") -> 23 | AH24: =INDEX(AG$2:AG$100,MATCH(LARGE(COUNTIF(AG$2:AG$100,">="&AG$2:AG$100)+100*ISNUMBER(AG$2:AG$100),ROWS(AG$2:AG24)),COUNTIF(AG$2:AG$100,">="&AG$2:AG$100)+100*ISNUMBER(AG$2:AG$100),0),1) -> 23
A25: =IF(EM!$C$6="LBG I",HGO!C21,IF(EM!$C$6="LBG II",HGO!D21,IF(EM!$C$6="LBG III",HGO!E21,IF(EM!$C$6="LBG IV",HGO!F21,IF(EM!$C$6="LBG V",HGO!G21))))) -> FALSE | C25: Winterweizen | D25: Winterroggen (Populationssorte) | E25: Winterroggen (Hybridsorte) | F25: Winterroggen (Hybridsorte) | G25: Winterweizen | H25: 6 | I25: =EM!X11 ->  | J25: =EM!V26 -> 0 | L25: =IF(EM!$A$4>=24,24,"") ->  | M25: =IF(L25=24,(((1+EM!$C$4/100)^24)*EM!$C$4/100)/(((1+EM!$C$4/100)^24)-1),"") ->  | N25: =IF(EM!$A$8>=4,HGO!N7,"") ->  | O25: =IF(EM!$A$8>=4,HGO!O7,"") ->  | Q25: =IF(ROW(P25)>COUNTA(P:P),"",INDEX(P:P,SMALL(IF(P$1:P$241<>"",ROW($1:$241)),ROW(P25))))/((1+(EM!$C$4/100))^HGO!L25) ->  | R25: =IF(Q25<>"",SUM($Q$2:Q25),"") ->  | T25: =IF(EM!$A$6=1,TRUE,MOD(ROW(),EM!$A$6)=1) ->  | U25: =IF(L25="","",((IF(AND(T25=TRUE,L26<>25,EM!$A$22="Nein"),EM!$D$30+EM!$F$30+AC25+AE25,IF(AND(T25=TRUE,L26<>25,EM!$A$22="Ja"),DGK!$AE$8+EM!$F$30+AC25+AE25,IF(AND(T25=TRUE,L26=25,EM!$A$22="Nein"),EM!$D$30+AC25+AE25,IF(AND(T25=TRUE,L26=25,EM!$A$22="Ja",(EM!$A$6/HGO!L25)=1),DGK!$AE$6+AC25+AE25,IF(AND(T25=TRUE,L26=25,EM!$A$22="Ja",((EM!$A$6*2)/HGO!L25)=1),DGK!$AE$7+AC25+AE25,IF(AND(T25=TRUE,L26=25,EM!$A$22="Ja",AND((EM!$A$6/HGO!L25)<>1,((EM!$A$6*2)/HGO!L25)<>1)),DGK!$AE$8+AC25+AE25,0+AC25+AE25))))))))+(IF(L25=EM!$A$6,EM!$D$37))) ->  | V25: =IF(L25<>24,"",(IF(AND(T25=TRUE,L25=24),EM!$H$31,0))*(IF(L25=EM!$A$6,HGO!$C$40,IF(HGO!L25=2*EM!$A$6,HGO!$C$41,HGO!$C$42)))) ->  | X25: =IF(W25<>"",W25/(1+(EM!$C$4/100))^HGO!L25,"") ->  | Y25: =IF(X25<>"",SUM($X$2:X25),"") ->  | AB25: =IF(AND(EM!$J$33=1,$L25>=EM!$J$31),EM!$I$31,(IF(OR(EM!$I$31="",EM!$J$31="",EM!$J$33=""),"",IF(AND(EM!$I$31<>"",HGO!$AA25=TRUE,$L25>=EM!$J$31),EM!$I$31,"")))) ->  | AE25: =IF(L25<>"",IF(AND(EM!$F$36=1,$L25>=EM!$F$34),EM!$E$35,(IF(OR(EM!$E$35="",EM!$F$34="",EM!$F$36=""),0,IF(AND(EM!$E$35<>"",HGO!$AD25=TRUE,$L25>=EM!$F$34),EM!$E$35,0)))),"") ->  | AF25: =IF(L25="","",((IF(AND(T25=TRUE,L26<>25,EM!$A$22="Nein"),EM!$E$32+EM!$F$30+AC25+AE25,IF(AND(T25=TRUE,L26<>25,EM!$A$22="Ja"),DGK!$AE$8+EM!$F$30+AC25+AE25,IF(AND(T25=TRUE,L26=25,EM!$A$22="Nein"),EM!$E$32+AC25+AE25,IF(AND(T25=TRUE,L26=25,EM!$A$22="Ja",(EM!$A$6/HGO!L25)=1),DGK!$AE$6+AC25+AE25,IF(AND(T25=TRUE,L26=25,EM!$A$22="Ja",((EM!$A$6*2)/HGO!L25)=1),DGK!$AE$7+AC25+AE25,IF(AND(T25=TRUE,L26=25,EM!$A$22="Ja",AND((EM!$A$6/HGO!L25)<>1,((EM!$A$6*2)/HGO!L25)<>1)),DGK!$AE$8+AC25+AE25,0+AC25+AE25))))))))+(IF(L25=EM!$A$6,EM!$D$41))) ->  | AG25: =IF(MOD(EM!$A$4,HGO!B71)=0,HGO!B71,"") -> 24 | AH25: =INDEX(AG$2:AG$100,MATCH(LARGE(COUNTIF(AG$2:AG$100,">="&AG$2:AG$100)+100*ISNUMBER(AG$2:AG$100),ROWS(AG$2:AG25)),COUNTIF(AG$2:AG$100,">="&AG$2:AG$100)+100*ISNUMBER(AG$2:AG$100),0),1) -> 24
A26: =IF(EM!$C$6="LBG I",HGO!C22,IF(EM!$C$6="LBG II",HGO!D22,IF(EM!$C$6="LBG III",HGO!E22,IF(EM!$C$6="LBG IV",HGO!F22,IF(EM!$C$6="LBG V",HGO!G22))))) -> FALSE | C26: Zuckerrüben | D26: Wintertriticale | E26: Winterroggen (Populationssorte) | F26: Winterroggen (Populationssorte) | H26: Summe | I26: =SUM(I20:I25) -> 0 | L26: =IF(EM!$A$4>=25,25,"") ->  | M26: =IF(L26=25,(((1+EM!$C$4/100)^25)*EM!$C$4/100)/(((1+EM!$C$4/100)^25)-1),"") ->  | N26: =IF(EM!$A$8>=5,HGO!N2,"") ->  | O26: =IF(EM!$A$8>=5,HGO!O2,"") ->  | Q26: =IF(ROW(P26)>COUNTA(P:P),"",INDEX(P:P,SMALL(IF(P$1:P$241<>"",ROW($1:$241)),ROW(P26))))/((1+(EM!$C$4/100))^HGO!L26) ->  | R26: =IF(Q26<>"",SUM($Q$2:Q26),"") ->  | T26: =IF(EM!$A$6=1,TRUE,MOD(ROW(),EM!$A$6)=1) ->  | U26: =IF(L26="","",((IF(AND(T26=TRUE,L27<>26,EM!$A$22="Nein"),EM!$D$30+EM!$F$30+AC26+AE26,IF(AND(T26=TRUE,L27<>26,EM!$A$22="Ja"),DGK!$AE$8+EM!$F$30+AC26+AE26,IF(AND(T26=TRUE,L27=26,EM!$A$22="Nein"),EM!$D$30+AC26+AE26,IF(AND(T26=TRUE,L27=26,EM!$A$22="Ja",(EM!$A$6/HGO!L26)=1),DGK!$AE$6+AC26+AE26,IF(AND(T26=TRUE,L27=26,EM!$A$22="Ja",((EM!$A$6*2)/HGO!L26)=1),DGK!$AE$7+AC26+AE26,IF(AND(T26=TRUE,L27=26,EM!$A$22="Ja",AND((EM!$A$6/HGO!L26)<>1,((EM!$A$6*2)/HGO!L26)<>1)),DGK!$AE$8+AC26+AE26,0+AC26+AE26))))))))+(IF(L26=EM!$A$6,EM!$D$37))) ->  | V26: =IF(L26<>25,"",(IF(AND(T26=TRUE,L26=25),EM!$H$31,0))*(IF(L26=EM!$A$6,HGO!$C$40,IF(HGO!L26=2*EM!$A$6,HGO!$C$41,HGO!$C$42)))) ->  | X26: =IF(W26<>"",W26/(1+(EM!$C$4/100))^HGO!L26,"") ->  | Y26: =IF(X26<>"",SUM($X$2:X26),"") ->  | AB26: =IF(AND(EM!$J$33=1,$L26>=EM!$J$31),EM!$I$31,(IF(OR(EM!$I$31="",EM!$J$31="",EM!$J$33=""),"",IF(AND(EM!$I$31<>"",HGO!$AA26=TRUE,$L26>=EM!$J$31),EM!$I$31,"")))) ->  | AE26: =IF(L26<>"",IF(AND(EM!$F$36=1,$L26>=EM!$F$34),EM!$E$35,(IF(OR(EM!$E$35="",EM!$F$34="",EM!$F$36=""),0,IF(AND(EM!$E$35<>"",HGO!$AD26=TRUE,$L26>=EM!$F$34),EM!$E$35,0)))),"") ->  | AF26: =IF(L26="","",((IF(AND(T26=TRUE,L27<>26,EM!$A$22="Nein"),EM!$E$32+EM!$F$30+AC26+AE26,IF(AND(T26=TRUE,L27<>26,EM!$A$22="Ja"),DGK!$AE$8+EM!$F$30+AC26+AE26,IF(AND(T26=TRUE,L27=26,EM!$A$22="Nein"),EM!$E$32+AC26+AE26,IF(AND(T26=TRUE,L27=26,EM!$A$22="Ja",(EM!$A$6/HGO!L26)=1),DGK!$AE$6+AC26+AE26,IF(AND(T26=TRUE,L27=26,EM!$A$22="Ja",((EM!$A$6*2)/HGO!L26)=1),DGK!$AE$7+AC26+AE26,IF(AND(T26=TRUE,L27=26,EM!$A$22="Ja",AND((EM!$A$6/HGO!L26)<>1,((EM!$A$6*2)/HGO!L26)<>1)),DGK!$AE$8+AC26+AE26,0+AC26+AE26))))))))+(IF(L26=EM!$A$6,EM!$D$41))) ->  | AG26: =IF(MOD(EM!$A$4,HGO!B72)=0,HGO!B72,"") -> 25 | AH26: =INDEX(AG$2:AG$100,MATCH(LARGE(COUNTIF(AG$2:AG$100,">="&AG$2:AG$100)+100*ISNUMBER(AG$2:AG$100),ROWS(AG$2:AG26)),COUNTIF(AG$2:AG$100,">="&AG$2:AG$100)+100*ISNUMBER(AG$2:AG$100),0),1) -> 25
A27: =IF(EM!$C$6="LBG I",HGO!C23,IF(EM!$C$6="LBG II",HGO!D23,IF(EM!$C$6="LBG III",HGO!E23,IF(EM!$C$6="LBG IV",HGO!F23,IF(EM!$C$6="LBG V",HGO!G23))))) -> FALSE | D27: Winterweizen | E27: Wintertriticale | F27: Wintertriticale | L27: =IF(EM!$A$4>=26,26,"") ->  | M27: =IF(L27=26,(((1+EM!$C$4/100)^26)*EM!$C$4/100)/(((1+EM!$C$4/100)^26)-1),"") ->  | N27: =IF(EM!$A$8>=5,HGO!N3,"") ->  | O27: =IF(EM!$A$8>=5,HGO!O3,"") ->  | Q27: =IF(ROW(P27)>COUNTA(P:P),"",INDEX(P:P,SMALL(IF(P$1:P$241<>"",ROW($1:$241)),ROW(P27))))/((1+(EM!$C$4/100))^HGO!L27) ->  | R27: =IF(Q27<>"",SUM($Q$2:Q27),"") ->  | T27: =IF(EM!$A$6=1,TRUE,MOD(ROW(),EM!$A$6)=1) ->  | U27: =IF(L27="","",((IF(AND(T27=TRUE,L28<>27,EM!$A$22="Nein"),EM!$D$30+EM!$F$30+AC27+AE27,IF(AND(T27=TRUE,L28<>27,EM!$A$22="Ja"),DGK!$AE$8+EM!$F$30+AC27+AE27,IF(AND(T27=TRUE,L28=27,EM!$A$22="Nein"),EM!$D$30+AC27+AE27,IF(AND(T27=TRUE,L28=27,EM!$A$22="Ja",(EM!$A$6/HGO!L27)=1),DGK!$AE$6+AC27+AE27,IF(AND(T27=TRUE,L28=27,EM!$A$22="Ja",((EM!$A$6*2)/HGO!L27)=1),DGK!$AE$7+AC27+AE27,IF(AND(T27=TRUE,L28=27,EM!$A$22="Ja",AND((EM!$A$6/HGO!L27)<>1,((EM!$A$6*2)/HGO!L27)<>1)),DGK!$AE$8+AC27+AE27,0+AC27+AE27))))))))+(IF(L27=EM!$A$6,EM!$D$37))) ->  | V27: =IF(L27<>26,"",(IF(AND(T27=TRUE,L27=26),EM!$H$31,0))*(IF(L27=EM!$A$6,HGO!$C$40,IF(HGO!L27=2*EM!$A$6,HGO!$C$41,HGO!$C$42)))) ->  | X27: =IF(W27<>"",W27/(1+(EM!$C$4/100))^HGO!L27,"") ->  | Y27: =IF(X27<>"",SUM($X$2:X27),"") ->  | AB27: =IF(AND(EM!$J$33=1,$L27>=EM!$J$31),EM!$I$31,(IF(OR(EM!$I$31="",EM!$J$31="",EM!$J$33=""),"",IF(AND(EM!$I$31<>"",HGO!$AA27=TRUE,$L27>=EM!$J$31),EM!$I$31,"")))) ->  | AE27: =IF(L27<>"",IF(AND(EM!$F$36=1,$L27>=EM!$F$34),EM!$E$35,(IF(OR(EM!$E$35="",EM!$F$34="",EM!$F$36=""),0,IF(AND(EM!$E$35<>"",HGO!$AD27=TRUE,$L27>=EM!$F$34),EM!$E$35,0)))),"") ->  | AF27: =IF(L27="","",((IF(AND(T27=TRUE,L28<>27,EM!$A$22="Nein"),EM!$E$32+EM!$F$30+AC27+AE27,IF(AND(T27=TRUE,L28<>27,EM!$A$22="Ja"),DGK!$AE$8+EM!$F$30+AC27+AE27,IF(AND(T27=TRUE,L28=27,EM!$A$22="Nein"),EM!$E$32+AC27+AE27,IF(AND(T27=TRUE,L28=27,EM!$A$22="Ja",(EM!$A$6/HGO!L27)=1),DGK!$AE$6+AC27+AE27,IF(AND(T27=TRUE,L28=27,EM!$A$22="Ja",((EM!$A$6*2)/HGO!L27)=1),DGK!$AE$7+AC27+AE27,IF(AND(T27=TRUE,L28=27,EM!$A$22="Ja",AND((EM!$A$6/HGO!L27)<>1,((EM!$A$6*2)/HGO!L27)<>1)),DGK!$AE$8+AC27+AE27,0+AC27+AE27))))))))+(IF(L27=EM!$A$6,EM!$D$41))) ->  | AG27: =IF(MOD(EM!$A$4,HGO!B73)=0,HGO!B73,"") -> 26 | AH27: =INDEX(AG$2:AG$100,MATCH(LARGE(COUNTIF(AG$2:AG$100,">="&AG$2:AG$100)+100*ISNUMBER(AG$2:AG$100),ROWS(AG$2:AG27)),COUNTIF(AG$2:AG$100,">="&AG$2:AG$100)+100*ISNUMBER(AG$2:AG$100),0),1) -> 26
A28: =IF(EM!$C$6="LBG I",HGO!C24,IF(EM!$C$6="LBG II",HGO!D24,IF(EM!$C$6="LBG III",HGO!E24,IF(EM!$C$6="LBG IV",HGO!F24,IF(EM!$C$6="LBG V",HGO!G24))))) -> FALSE | D28: Zuckerrüben | E28: Winterweizen | F28: Winterweizen | L28: =IF(EM!$A$4>=27,27,"") ->  | M28: =IF(L28=27,(((1+EM!$C$4/100)^27)*EM!$C$4/100)/(((1+EM!$C$4/100)^27)-1),"") ->  | N28: =IF(EM!$A$8>=5,HGO!N4,"") ->  | O28: =IF(EM!$A$8>=5,HGO!O4,"") ->  | Q28: =IF(ROW(P28)>COUNTA(P:P),"",INDEX(P:P,SMALL(IF(P$1:P$241<>"",ROW($1:$241)),ROW(P28))))/((1+(EM!$C$4/100))^HGO!L28) ->  | R28: =IF(Q28<>"",SUM($Q$2:Q28),"") ->  | T28: =IF(EM!$A$6=1,TRUE,MOD(ROW(),EM!$A$6)=1) ->  | U28: =IF(L28="","",((IF(AND(T28=TRUE,L29<>28,EM!$A$22="Nein"),EM!$D$30+EM!$F$30+AC28+AE28,IF(AND(T28=TRUE,L29<>28,EM!$A$22="Ja"),DGK!$AE$8+EM!$F$30+AC28+AE28,IF(AND(T28=TRUE,L29=28,EM!$A$22="Nein"),EM!$D$30+AC28+AE28,IF(AND(T28=TRUE,L29=28,EM!$A$22="Ja",(EM!$A$6/HGO!L28)=1),DGK!$AE$6+AC28+AE28,IF(AND(T28=TRUE,L29=28,EM!$A$22="Ja",((EM!$A$6*2)/HGO!L28)=1),DGK!$AE$7+AC28+AE28,IF(AND(T28=TRUE,L29=28,EM!$A$22="Ja",AND((EM!$A$6/HGO!L28)<>1,((EM!$A$6*2)/HGO!L28)<>1)),DGK!$AE$8+AC28+AE28,0+AC28+AE28))))))))+(IF(L28=EM!$A$6,EM!$D$37))) ->  | V28: =IF(L28<>27,"",(IF(AND(T28=TRUE,L28=27),EM!$H$31,0))*(IF(L28=EM!$A$6,HGO!$C$40,IF(HGO!L28=2*EM!$A$6,HGO!$C$41,HGO!$C$42)))) ->  | X28: =IF(W28<>"",W28/(1+(EM!$C$4/100))^HGO!L28,"") ->  | Y28: =IF(X28<>"",SUM($X$2:X28),"") ->  | AB28: =IF(AND(EM!$J$33=1,$L28>=EM!$J$31),EM!$I$31,(IF(OR(EM!$I$31="",EM!$J$31="",EM!$J$33=""),"",IF(AND(EM!$I$31<>"",HGO!$AA28=TRUE,$L28>=EM!$J$31),EM!$I$31,"")))) ->  | AE28: =IF(L28<>"",IF(AND(EM!$F$36=1,$L28>=EM!$F$34),EM!$E$35,(IF(OR(EM!$E$35="",EM!$F$34="",EM!$F$36=""),0,IF(AND(EM!$E$35<>"",HGO!$AD28=TRUE,$L28>=EM!$F$34),EM!$E$35,0)))),"") ->  | AF28: =IF(L28="","",((IF(AND(T28=TRUE,L29<>28,EM!$A$22="Nein"),EM!$E$32+EM!$F$30+AC28+AE28,IF(AND(T28=TRUE,L29<>28,EM!$A$22="Ja"),DGK!$AE$8+EM!$F$30+AC28+AE28,IF(AND(T28=TRUE,L29=28,EM!$A$22="Nein"),EM!$E$32+AC28+AE28,IF(AND(T28=TRUE,L29=28,EM!$A$22="Ja",(EM!$A$6/HGO!L28)=1),DGK!$AE$6+AC28+AE28,IF(AND(T28=TRUE,L29=28,EM!$A$22="Ja",((EM!$A$6*2)/HGO!L28)=1),DGK!$AE$7+AC28+AE28,IF(AND(T28=TRUE,L29=28,EM!$A$22="Ja",AND((EM!$A$6/HGO!L28)<>1,((EM!$A$6*2)/HGO!L28)<>1)),DGK!$AE$8+AC28+AE28,0+AC28+AE28))))))))+(IF(L28=EM!$A$6,EM!$D$41))) ->  | AG28: =IF(MOD(EM!$A$4,HGO!B74)=0,HGO!B74,"") -> 27 | AH28: =INDEX(AG$2:AG$100,MATCH(LARGE(COUNTIF(AG$2:AG$100,">="&AG$2:AG$100)+100*ISNUMBER(AG$2:AG$100),ROWS(AG$2:AG28)),COUNTIF(AG$2:AG$100,">="&AG$2:AG$100)+100*ISNUMBER(AG$2:AG$100),0),1) -> 27
A29: =IF(EM!$C$6="LBG I",HGO!C25,IF(EM!$C$6="LBG II",HGO!D25,IF(EM!$C$6="LBG III",HGO!E25,IF(EM!$C$6="LBG IV",HGO!F25,IF(EM!$C$6="LBG V",HGO!G25))))) -> FALSE | E29: Zuckerrüben | I29: Anteile Acker/Gehölz | L29: =IF(EM!$A$4>=28,28,"") ->  | M29: =IF(L29=28,(((1+EM!$C$4/100)^28)*EM!$C$4/100)/(((1+EM!$C$4/100)^28)-1),"") ->  | N29: =IF(EM!$A$8>=5,HGO!N5,"") ->  | O29: =IF(EM!$A$8>=5,HGO!O5,"") ->  | Q29: =IF(ROW(P29)>COUNTA(P:P),"",INDEX(P:P,SMALL(IF(P$1:P$241<>"",ROW($1:$241)),ROW(P29))))/((1+(EM!$C$4/100))^HGO!L29) ->  | R29: =IF(Q29<>"",SUM($Q$2:Q29),"") ->  | T29: =IF(EM!$A$6=1,TRUE,MOD(ROW(),EM!$A$6)=1) ->  | U29: =IF(L29="","",((IF(AND(T29=TRUE,L30<>29,EM!$A$22="Nein"),EM!$D$30+EM!$F$30+AC29+AE29,IF(AND(T29=TRUE,L30<>29,EM!$A$22="Ja"),DGK!$AE$8+EM!$F$30+AC29+AE29,IF(AND(T29=TRUE,L30=29,EM!$A$22="Nein"),EM!$D$30+AC29+AE29,IF(AND(T29=TRUE,L30=29,EM!$A$22="Ja",(EM!$A$6/HGO!L29)=1),DGK!$AE$6+AC29+AE29,IF(AND(T29=TRUE,L30=29,EM!$A$22="Ja",((EM!$A$6*2)/HGO!L29)=1),DGK!$AE$7+AC29+AE29,IF(AND(T29=TRUE,L30=29,EM!$A$22="Ja",AND((EM!$A$6/HGO!L29)<>1,((EM!$A$6*2)/HGO!L29)<>1)),DGK!$AE$8+AC29+AE29,0+AC29+AE29))))))))+(IF(L29=EM!$A$6,EM!$D$37))) ->  | V29: =IF(L29<>28,"",(IF(AND(T29=TRUE,L29=28),EM!$H$31,0))*(IF(L29=EM!$A$6,HGO!$C$40,IF(HGO!L29=2*EM!$A$6,HGO!$C$41,HGO!$C$42)))) ->  | X29: =IF(W29<>"",W29/(1+(EM!$C$4/100))^HGO!L29,"") ->  | Y29: =IF(X29<>"",SUM($X$2:X29),"") ->  | AB29: =IF(AND(EM!$J$33=1,$L29>=EM!$J$31),EM!$I$31,(IF(OR(EM!$I$31="",EM!$J$31="",EM!$J$33=""),"",IF(AND(EM!$I$31<>"",HGO!$AA29=TRUE,$L29>=EM!$J$31),EM!$I$31,"")))) ->  | AE29: =IF(L29<>"",IF(AND(EM!$F$36=1,$L29>=EM!$F$34),EM!$E$35,(IF(OR(EM!$E$35="",EM!$F$34="",EM!$F$36=""),0,IF(AND(EM!$E$35<>"",HGO!$AD29=TRUE,$L29>=EM!$F$34),EM!$E$35,0)))),"") ->  | AF29: =IF(L29="","",((IF(AND(T29=TRUE,L30<>29,EM!$A$22="Nein"),EM!$E$32+EM!$F$30+AC29+AE29,IF(AND(T29=TRUE,L30<>29,EM!$A$22="Ja"),DGK!$AE$8+EM!$F$30+AC29+AE29,IF(AND(T29=TRUE,L30=29,EM!$A$22="Nein"),EM!$E$32+AC29+AE29,IF(AND(T29=TRUE,L30=29,EM!$A$22="Ja",(EM!$A$6/HGO!L29)=1),DGK!$AE$6+AC29+AE29,IF(AND(T29=TRUE,L30=29,EM!$A$22="Ja",((EM!$A$6*2)/HGO!L29)=1),DGK!$AE$7+AC29+AE29,IF(AND(T29=TRUE,L30=29,EM!$A$22="Ja",AND((EM!$A$6/HGO!L29)<>1,((EM!$A$6*2)/HGO!L29)<>1)),DGK!$AE$8+AC29+AE29,0+AC29+AE29))))))))+(IF(L29=EM!$A$6,EM!$D$41))) ->  | AG29: =IF(MOD(EM!$A$4,HGO!B75)=0,HGO!B75,"") -> 28 | AH29: =INDEX(AG$2:AG$100,MATCH(LARGE(COUNTIF(AG$2:AG$100,">="&AG$2:AG$100)+100*ISNUMBER(AG$2:AG$100),ROWS(AG$2:AG29)),COUNTIF(AG$2:AG$100,">="&AG$2:AG$100)+100*ISNUMBER(AG$2:AG$100),0),1) -> 28
A30: =IF(EM!$C$6="LBG I",C26,IF(EM!$C$6="LBG II",HGO!D26,IF(EM!$C$6="LBG III",HGO!E26,IF(EM!$C$6="LBG IV",HGO!F26,IF(EM!$C$6="LBG V",""))))) -> FALSE | I30: 0 | J30: Wert des Reglers | L30: =IF(EM!$A$4>=29,29,"") ->  | M30: =IF(L30=29,(((1+EM!$C$4/100)^29)*EM!$C$4/100)/(((1+EM!$C$4/100)^29)-1),"") ->  | N30: =IF(EM!$A$8>=5,HGO!N6,"") ->  | O30: =IF(EM!$A$8>=5,HGO!O6,"") ->  | Q30: =IF(ROW(P30)>COUNTA(P:P),"",INDEX(P:P,SMALL(IF(P$1:P$241<>"",ROW($1:$241)),ROW(P30))))/((1+(EM!$C$4/100))^HGO!L30) ->  | R30: =IF(Q30<>"",SUM($Q$2:Q30),"") ->  | T30: =IF(EM!$A$6=1,TRUE,MOD(ROW(),EM!$A$6)=1) ->  | U30: =IF(L30="","",((IF(AND(T30=TRUE,L31<>30,EM!$A$22="Nein"),EM!$D$30+EM!$F$30+AC30+AE30,IF(AND(T30=TRUE,L31<>30,EM!$A$22="Ja"),DGK!$AE$8+EM!$F$30+AC30+AE30,IF(AND(T30=TRUE,L31=30,EM!$A$22="Nein"),EM!$D$30+AC30+AE30,IF(AND(T30=TRUE,L31=30,EM!$A$22="Ja",(EM!$A$6/HGO!L30)=1),DGK!$AE$6+AC30+AE30,IF(AND(T30=TRUE,L31=30,EM!$A$22="Ja",((EM!$A$6*2)/HGO!L30)=1),DGK!$AE$7+AC30+AE30,IF(AND(T30=TRUE,L31=30,EM!$A$22="Ja",AND((EM!$A$6/HGO!L30)<>1,((EM!$A$6*2)/HGO!L30)<>1)),DGK!$AE$8+AC30+AE30,0+AC30+AE30))))))))+(IF(L30=EM!$A$6,EM!$D$37))) ->  | V30: =IF(L30<>29,"",(IF(AND(T30=TRUE,L30=29),EM!$H$31,0))*(IF(L30=EM!$A$6,HGO!$C$40,IF(HGO!L30=2*EM!$A$6,HGO!$C$41,HGO!$C$42)))) ->  | X30: =IF(W30<>"",W30/(1+(EM!$C$4/100))^HGO!L30,"") ->  | Y30: =IF(X30<>"",SUM($X$2:X30),"") ->  | AB30: =IF(AND(EM!$J$33=1,$L30>=EM!$J$31),EM!$I$31,(IF(OR(EM!$I$31="",EM!$J$31="",EM!$J$33=""),"",IF(AND(EM!$I$31<>"",HGO!$AA30=TRUE,$L30>=EM!$J$31),EM!$I$31,"")))) ->  | AE30: =IF(L30<>"",IF(AND(EM!$F$36=1,$L30>=EM!$F$34),EM!$E$35,(IF(OR(EM!$E$35="",EM!$F$34="",EM!$F$36=""),0,IF(AND(EM!$E$35<>"",HGO!$AD30=TRUE,$L30>=EM!$F$34),EM!$E$35,0)))),"") ->  | AF30: =IF(L30="","",((IF(AND(T30=TRUE,L31<>30,EM!$A$22="Nein"),EM!$E$32+EM!$F$30+AC30+AE30,IF(AND(T30=TRUE,L31<>30,EM!$A$22="Ja"),DGK!$AE$8+EM!$F$30+AC30+AE30,IF(AND(T30=TRUE,L31=30,EM!$A$22="Nein"),EM!$E$32+AC30+AE30,IF(AND(T30=TRUE,L31=30,EM!$A$22="Ja",(EM!$A$6/HGO!L30)=1),DGK!$AE$6+AC30+AE30,IF(AND(T30=TRUE,L31=30,EM!$A$22="Ja",((EM!$A$6*2)/HGO!L30)=1),DGK!$AE$7+AC30+AE30,IF(AND(T30=TRUE,L31=30,EM!$A$22="Ja",AND((EM!$A$6/HGO!L30)<>1,((EM!$A$6*2)/HGO!L30)<>1)),DGK!$AE$8+AC30+AE30,0+AC30+AE30))))))))+(IF(L30=EM!$A$6,EM!$D$41))) ->  | AG30: =IF(MOD(EM!$A$4,HGO!B76)=0,HGO!B76,"") -> 29 | AH30: =INDEX(AG$2:AG$100,MATCH(LARGE(COUNTIF(AG$2:AG$100,">="&AG$2:AG$100)+100*ISNUMBER(AG$2:AG$100),ROWS(AG$2:AG30)),COUNTIF(AG$2:AG$100,">="&AG$2:AG$100)+100*ISNUMBER(AG$2:AG$100),0),1) -> 29
A31: =IF(EM!$C$6="LBG I","",IF(EM!$C$6="LBG II",HGO!D27,IF(EM!$C$6="LBG III",HGO!E27,IF(EM!$C$6="LBG IV",HGO!F27,IF(EM!$C$6="LBG V",""))))) -> FALSE | I31: =IF(I30="",1,IF(I30<0,0.5-I30,IF(I30>0,0.5-I30,0.5))) -> 0.5 | J31: ha Acker | L31: =IF(EM!$A$4>=30,30,"") ->  | M31: =IF(L31=30,(((1+EM!$C$4/100)^30)*EM!$C$4/100)/(((1+EM!$C$4/100)^30)-1),"") ->  | N31: =IF(EM!$A$8>=5,HGO!N7,"") ->  | O31: =IF(EM!$A$8>=5,HGO!O7,"") ->  | Q31: =IF(ROW(P31)>COUNTA(P:P),"",INDEX(P:P,SMALL(IF(P$1:P$241<>"",ROW($1:$241)),ROW(P31))))/((1+(EM!$C$4/100))^HGO!L31) ->  | R31: =IF(Q31<>"",SUM($Q$2:Q31),"") ->  | T31: =IF(EM!$A$6=1,TRUE,MOD(ROW(),EM!$A$6)=1) ->  | U31: =IF(L31="","",((IF(AND(T31=TRUE,L32<>31,EM!$A$22="Nein"),EM!$D$30+EM!$F$30+AC31+AE31,IF(AND(T31=TRUE,L32<>31,EM!$A$22="Ja"),DGK!$AE$8+EM!$F$30+AC31+AE31,IF(AND(T31=TRUE,L32=31,EM!$A$22="Nein"),EM!$D$30+AC31+AE31,IF(AND(T31=TRUE,L32=31,EM!$A$22="Ja",(EM!$A$6/HGO!L31)=1),DGK!$AE$6+AC31+AE31,IF(AND(T31=TRUE,L32=31,EM!$A$22="Ja",((EM!$A$6*2)/HGO!L31)=1),DGK!$AE$7+AC31+AE31,IF(AND(T31=TRUE,L32=31,EM!$A$22="Ja",AND((EM!$A$6/HGO!L31)<>1,((EM!$A$6*2)/HGO!L31)<>1)),DGK!$AE$8+AC31+AE31,0+AC31+AE31))))))))+(IF(L31=EM!$A$6,EM!$D$37))) ->  | V31: =IF(L31<>30,"",(IF(AND(T31=TRUE,L31=30),EM!$H$31,0))*(IF(L31=EM!$A$6,HGO!$C$40,IF(HGO!L31=2*EM!$A$6,HGO!$C$41,HGO!$C$42)))) ->  | X31: =IF(W31<>"",W31/(1+(EM!$C$4/100))^HGO!L31,"") ->  | Y31: =IF(X31<>"",SUM($X$2:X31),"") ->  | AB31: =IF(AND(EM!$J$33=1,$L31>=EM!$J$31),EM!$I$31,(IF(OR(EM!$I$31="",EM!$J$31="",EM!$J$33=""),"",IF(AND(EM!$I$31<>"",HGO!$AA31=TRUE,$L31>=EM!$J$31),EM!$I$31,"")))) ->  | AE31: =IF(L31<>"",IF(AND(EM!$F$36=1,$L31>=EM!$F$34),EM!$E$35,(IF(OR(EM!$E$35="",EM!$F$34="",EM!$F$36=""),0,IF(AND(EM!$E$35<>"",HGO!$AD31=TRUE,$L31>=EM!$F$34),EM!$E$35,0)))),"") ->  | AF31: =IF(L31="","",((IF(AND(T31=TRUE,L32<>31,EM!$A$22="Nein"),EM!$E$32+EM!$F$30+AC31+AE31,IF(AND(T31=TRUE,L32<>31,EM!$A$22="Ja"),DGK!$AE$8+EM!$F$30+AC31+AE31,IF(AND(T31=TRUE,L32=31,EM!$A$22="Nein"),EM!$E$32+AC31+AE31,IF(AND(T31=TRUE,L32=31,EM!$A$22="Ja",(EM!$A$6/HGO!L31)=1),DGK!$AE$6+AC31+AE31,IF(AND(T31=TRUE,L32=31,EM!$A$22="Ja",((EM!$A$6*2)/HGO!L31)=1),DGK!$AE$7+AC31+AE31,IF(AND(T31=TRUE,L32=31,EM!$A$22="Ja",AND((EM!$A$6/HGO!L31)<>1,((EM!$A$6*2)/HGO!L31)<>1)),DGK!$AE$8+AC31+AE31,0+AC31+AE31))))))))+(IF(L31=EM!$A$6,EM!$D$41))) ->  | AG31: =IF(MOD(EM!$A$4,HGO!B77)=0,HGO!B77,"") -> 30 | AH31: =INDEX(AG$2:AG$100,MATCH(LARGE(COUNTIF(AG$2:AG$100,">="&AG$2:AG$100)+100*ISNUMBER(AG$2:AG$100),ROWS(AG$2:AG31)),COUNTIF(AG$2:AG$100,">="&AG$2:AG$100)+100*ISNUMBER(AG$2:AG$100),0),1) -> 30
A32: =IF(EM!$C$6="LBG I","",IF(EM!$C$6="LBG II",D28,IF(EM!$C$6="LBG III",HGO!E28,IF(EM!$C$6="LBG IV",F28,IF(EM!$C$6="LBG V",""))))) -> FALSE | C32: Zwischenfrucht | I32: =IF(I30="",1,IF(I30<0,0.5+I30,IF(I30>0,0.5+I30,0.5))) -> 0.5 | J32: ha Gehölz | L32: =IF(EM!$A$4>=31,31,"") ->  | M32: =IF(L32=31,(((1+EM!$C$4/100)^31)*EM!$C$4/100)/(((1+EM!$C$4/100)^31)-1),"") ->  | N32: =IF(EM!$A$8>=6,HGO!N2,"") ->  | O32: =IF(EM!$A$8>=6,HGO!O2,"") ->  | Q32: =IF(ROW(P32)>COUNTA(P:P),"",INDEX(P:P,SMALL(IF(P$1:P$241<>"",ROW($1:$241)),ROW(P32))))/((1+(EM!$C$4/100))^HGO!L32) ->  | R32: =IF(Q32<>"",SUM($Q$2:Q32),"") ->  | T32: =IF(EM!$A$6=1,TRUE,MOD(ROW(),EM!$A$6)=1) ->  | U32: =IF(L32="","",((IF(AND(T32=TRUE,L33<>32,EM!$A$22="Nein"),EM!$D$30+EM!$F$30+AC32+AE32,IF(AND(T32=TRUE,L33<>32,EM!$A$22="Ja"),DGK!$AE$8+EM!$F$30+AC32+AE32,IF(AND(T32=TRUE,L33=32,EM!$A$22="Nein"),EM!$D$30+AC32+AE32,IF(AND(T32=TRUE,L33=32,EM!$A$22="Ja",(EM!$A$6/HGO!L32)=1),DGK!$AE$6+AC32+AE32,IF(AND(T32=TRUE,L33=32,EM!$A$22="Ja",((EM!$A$6*2)/HGO!L32)=1),DGK!$AE$7+AC32+AE32,IF(AND(T32=TRUE,L33=32,EM!$A$22="Ja",AND((EM!$A$6/HGO!L32)<>1,((EM!$A$6*2)/HGO!L32)<>1)),DGK!$AE$8+AC32+AE32,0+AC32+AE32))))))))+(IF(L32=EM!$A$6,EM!$D$37))) ->  | V32: =IF(L32<>31,"",(IF(AND(T32=TRUE,L32=31),EM!$H$31,0))*(IF(L32=EM!$A$6,HGO!$C$40,IF(HGO!L32=2*EM!$A$6,HGO!$C$41,HGO!$C$42)))) ->  | X32: =IF(W32<>"",W32/(1+(EM!$C$4/100))^HGO!L32,"") ->  | Y32: =IF(X32<>"",SUM($X$2:X32),"") ->  | AB32: =IF(AND(EM!$J$33=1,$L32>=EM!$J$31),EM!$I$31,(IF(OR(EM!$I$31="",EM!$J$31="",EM!$J$33=""),"",IF(AND(EM!$I$31<>"",HGO!$AA32=TRUE,$L32>=EM!$J$31),EM!$I$31,"")))) ->  | AE32: =IF(L32<>"",IF(AND(EM!$F$36=1,$L32>=EM!$F$34),EM!$E$35,(IF(OR(EM!$E$35="",EM!$F$34="",EM!$F$36=""),0,IF(AND(EM!$E$35<>"",HGO!$AD32=TRUE,$L32>=EM!$F$34),EM!$E$35,0)))),"") ->  | AF32: =IF(L32="","",((IF(AND(T32=TRUE,L33<>32,EM!$A$22="Nein"),EM!$E$32+EM!$F$30+AC32+AE32,IF(AND(T32=TRUE,L33<>32,EM!$A$22="Ja"),DGK!$AE$8+EM!$F$30+AC32+AE32,IF(AND(T32=TRUE,L33=32,EM!$A$22="Nein"),EM!$E$32+AC32+AE32,IF(AND(T32=TRUE,L33=32,EM!$A$22="Ja",(EM!$A$6/HGO!L32)=1),DGK!$AE$6+AC32+AE32,IF(AND(T32=TRUE,L33=32,EM!$A$22="Ja",((EM!$A$6*2)/HGO!L32)=1),DGK!$AE$7+AC32+AE32,IF(AND(T32=TRUE,L33=32,EM!$A$22="Ja",AND((EM!$A$6/HGO!L32)<>1,((EM!$A$6*2)/HGO!L32)<>1)),DGK!$AE$8+AC32+AE32,0+AC32+AE32))))))))+(IF(L32=EM!$A$6,EM!$D$41))) ->  | AG32: =IF(MOD(EM!$A$4,HGO!B78)=0,HGO!B78,"") -> 31 | AH32: =INDEX(AG$2:AG$100,MATCH(LARGE(COUNTIF(AG$2:AG$100,">="&AG$2:AG$100)+100*ISNUMBER(AG$2:AG$100),ROWS(AG$2:AG32)),COUNTIF(AG$2:AG$100,">="&AG$2:AG$100)+100*ISNUMBER(AG$2:AG$100),0),1) -> 31
A33: =IF(EM!$C$6="LBG I","",IF(EM!$C$6="LBG II","",IF(EM!$C$6="LBG III",HGO!E29,IF(EM!$C$6="LBG IV","",IF(EM!$C$6="LBG V",""))))) -> FALSE | C33: Kleegras (frische Lagen) | D33: Kleegras (frische Lagen) | E33: Kleegras (frische Lagen) | F33: Kleegras (frische Lagen) | L33: =IF(EM!$A$4>=32,32,"") ->  | M33: =IF(L33=32,(((1+EM!$C$4/100)^32)*EM!$C$4/100)/(((1+EM!$C$4/100)^32)-1),"") ->  | N33: =IF(EM!$A$8>=6,HGO!N3,"") ->  | O33: =IF(EM!$A$8>=6,HGO!O3,"") ->  | Q33: =IF(ROW(P33)>COUNTA(P:P),"",INDEX(P:P,SMALL(IF(P$1:P$241<>"",ROW($1:$241)),ROW(P33))))/((1+(EM!$C$4/100))^HGO!L33) ->  | R33: =IF(Q33<>"",SUM($Q$2:Q33),"") ->  | T33: =IF(EM!$A$6=1,TRUE,MOD(ROW(),EM!$A$6)=1) ->  | U33: =IF(L33="","",((IF(AND(T33=TRUE,L34<>33,EM!$A$22="Nein"),EM!$D$30+EM!$F$30+AC33+AE33,IF(AND(T33=TRUE,L34<>33,EM!$A$22="Ja"),DGK!$AE$8+EM!$F$30+AC33+AE33,IF(AND(T33=TRUE,L34=33,EM!$A$22="Nein"),EM!$D$30+AC33+AE33,IF(AND(T33=TRUE,L34=33,EM!$A$22="Ja",(EM!$A$6/HGO!L33)=1),DGK!$AE$6+AC33+AE33,IF(AND(T33=TRUE,L34=33,EM!$A$22="Ja",((EM!$A$6*2)/HGO!L33)=1),DGK!$AE$7+AC33+AE33,IF(AND(T33=TRUE,L34=33,EM!$A$22="Ja",AND((EM!$A$6/HGO!L33)<>1,((EM!$A$6*2)/HGO!L33)<>1)),DGK!$AE$8+AC33+AE33,0+AC33+AE33))))))))+(IF(L33=EM!$A$6,EM!$D$37))) ->  | V33: =IF(L33<>32,"",(IF(AND(T33=TRUE,L33=32),EM!$H$31,0))*(IF(L33=EM!$A$6,HGO!$C$40,IF(HGO!L33=2*EM!$A$6,HGO!$C$41,HGO!$C$42)))) ->  | X33: =IF(W33<>"",W33/(1+(EM!$C$4/100))^HGO!L33,"") ->  | Y33: =IF(X33<>"",SUM($X$2:X33),"") ->  | AB33: =IF(AND(EM!$J$33=1,$L33>=EM!$J$31),EM!$I$31,(IF(OR(EM!$I$31="",EM!$J$31="",EM!$J$33=""),"",IF(AND(EM!$I$31<>"",HGO!$AA33=TRUE,$L33>=EM!$J$31),EM!$I$31,"")))) ->  | AE33: =IF(L33<>"",IF(AND(EM!$F$36=1,$L33>=EM!$F$34),EM!$E$35,(IF(OR(EM!$E$35="",EM!$F$34="",EM!$F$36=""),0,IF(AND(EM!$E$35<>"",HGO!$AD33=TRUE,$L33>=EM!$F$34),EM!$E$35,0)))),"") ->  | AF33: =IF(L33="","",((IF(AND(T33=TRUE,L34<>33,EM!$A$22="Nein"),EM!$E$32+EM!$F$30+AC33+AE33,IF(AND(T33=TRUE,L34<>33,EM!$A$22="Ja"),DGK!$AE$8+EM!$F$30+AC33+AE33,IF(AND(T33=TRUE,L34=33,EM!$A$22="Nein"),EM!$E$32+AC33+AE33,IF(AND(T33=TRUE,L34=33,EM!$A$22="Ja",(EM!$A$6/HGO!L33)=1),DGK!$AE$6+AC33+AE33,IF(AND(T33=TRUE,L34=33,EM!$A$22="Ja",((EM!$A$6*2)/HGO!L33)=1),DGK!$AE$7+AC33+AE33,IF(AND(T33=TRUE,L34=33,EM!$A$22="Ja",AND((EM!$A$6/HGO!L33)<>1,((EM!$A$6*2)/HGO!L33)<>1)),DGK!$AE$8+AC33+AE33,0+AC33+AE33))))))))+(IF(L33=EM!$A$6,EM!$D$41))) ->  | AG33: =IF(MOD(EM!$A$4,HGO!B79)=0,HGO!B79,"") -> 32 | AH33: =INDEX(AG$2:AG$100,MATCH(LARGE(COUNTIF(AG$2:AG$100,">="&AG$2:AG$100)+100*ISNUMBER(AG$2:AG$100),ROWS(AG$2:AG33)),COUNTIF(AG$2:AG$100,">="&AG$2:AG$100)+100*ISNUMBER(AG$2:AG$100),0),1) -> 32
A34: =IF(EM!$C$6="LBG I",HGO!C33,IF(EM!$C$6="LBG II",HGO!D33,IF(EM!$C$6="LBG III",HGO!E33,IF(EM!$C$6="LBG IV",HGO!F33,IF(EM!$C$6="LBG V",""))))) -> FALSE | C34: Kleegras | D34: Kleegras | E34: Kleegras | F34: Futterroggen | I34: Für Speicheroption Verkauf - Häkchen Ja-Nein (1-0) | L34: =IF(EM!$A$4>=33,33,"") ->  | M34: =IF(L34=33,(((1+EM!$C$4/100)^33)*EM!$C$4/100)/(((1+EM!$C$4/100)^33)-1),"") ->  | N34: =IF(EM!$A$8>=6,HGO!N4,"") ->  | O34: =IF(EM!$A$8>=6,HGO!O4,"") ->  | Q34: =IF(ROW(P34)>COUNTA(P:P),"",INDEX(P:P,SMALL(IF(P$1:P$241<>"",ROW($1:$241)),ROW(P34))))/((1+(EM!$C$4/100))^HGO!L34) ->  | R34: =IF(Q34<>"",SUM($Q$2:Q34),"") ->  | T34: =IF(EM!$A$6=1,TRUE,MOD(ROW(),EM!$A$6)=1) ->  | U34: =IF(L34="","",((IF(AND(T34=TRUE,L35<>34,EM!$A$22="Nein"),EM!$D$30+EM!$F$30+AC34+AE34,IF(AND(T34=TRUE,L35<>34,EM!$A$22="Ja"),DGK!$AE$8+EM!$F$30+AC34+AE34,IF(AND(T34=TRUE,L35=34,EM!$A$22="Nein"),EM!$D$30+AC34+AE34,IF(AND(T34=TRUE,L35=34,EM!$A$22="Ja",(EM!$A$6/HGO!L34)=1),DGK!$AE$6+AC34+AE34,IF(AND(T34=TRUE,L35=34,EM!$A$22="Ja",((EM!$A$6*2)/HGO!L34)=1),DGK!$AE$7+AC34+AE34,IF(AND(T34=TRUE,L35=34,EM!$A$22="Ja",AND((EM!$A$6/HGO!L34)<>1,((EM!$A$6*2)/HGO!L34)<>1)),DGK!$AE$8+AC34+AE34,0+AC34+AE34))))))))+(IF(L34=EM!$A$6,EM!$D$37))) ->  | V34: =IF(L34<>33,"",(IF(AND(T34=TRUE,L34=33),EM!$H$31,0))*(IF(L34=EM!$A$6,HGO!$C$40,IF(HGO!L34=2*EM!$A$6,HGO!$C$41,HGO!$C$42)))) ->  | W34: =IF(OR(V34="",U34=""),"",V34-U34+(IF(AB34<>"",AB34))) ->  | X34: =IF(W34<>"",W34/(1+(EM!$C$4/100))^HGO!L34,"") ->  | Y34: =IF(X34<>"",SUM($X$2:X34),"") ->  | AB34: =IF(AND(EM!$J$33=1,$L34>=EM!$J$31),EM!$I$31,(IF(OR(EM!$I$31="",EM!$J$31="",EM!$J$33=""),"",IF(AND(EM!$I$31<>"",HGO!$AA34=TRUE,$L34>=EM!$J$31),EM!$I$31,"")))) ->  | AE34: =IF(L34<>"",IF(AND(EM!$F$36=1,$L34>=EM!$F$34),EM!$E$35,(IF(OR(EM!$E$35="",EM!$F$34="",EM!$F$36=""),0,IF(AND(EM!$E$35<>"",HGO!$AD34=TRUE,$L34>=EM!$F$34),EM!$E$35,0)))),"") ->  | AF34: =IF(L34="","",((IF(AND(T34=TRUE,L35<>34,EM!$A$22="Nein"),EM!$E$32+EM!$F$30+AC34+AE34,IF(AND(T34=TRUE,L35<>34,EM!$A$22="Ja"),DGK!$AE$8+EM!$F$30+AC34+AE34,IF(AND(T34=TRUE,L35=34,EM!$A$22="Nein"),EM!$E$32+AC34+AE34,IF(AND(T34=TRUE,L35=34,EM!$A$22="Ja",(EM!$A$6/HGO!L34)=1),DGK!$AE$6+AC34+AE34,IF(AND(T34=TRUE,L35=34,EM!$A$22="Ja",((EM!$A$6*2)/HGO!L34)=1),DGK!$AE$7+AC34+AE34,IF(AND(T34=TRUE,L35=34,EM!$A$22="Ja",AND((EM!$A$6/HGO!L34)<>1,((EM!$A$6*2)/HGO!L34)<>1)),DGK!$AE$8+AC34+AE34,0+AC34+AE34))))))))+(IF(L34=EM!$A$6,EM!$D$41))) ->  | AG34: =IF(MOD(EM!$A$4,HGO!B80)=0,HGO!B80,"") -> 33 | AH34: =INDEX(AG$2:AG$100,MATCH(LARGE(COUNTIF(AG$2:AG$100,">="&AG$2:AG$100)+100*ISNUMBER(AG$2:AG$100),ROWS(AG$2:AG34)),COUNTIF(AG$2:AG$100,">="&AG$2:AG$100)+100*ISNUMBER(AG$2:AG$100),0),1) -> 33
A35: =IF(EM!$C$6="LBG I",HGO!C34,IF(EM!$C$6="LBG II",HGO!D34,IF(EM!$C$6="LBG III",HGO!E34,IF(EM!$C$6="LBG IV",HGO!F34,IF(EM!$C$6="LBG V",""))))) -> FALSE | C35: Futterroggen | D35: Futterroggen | E35: Futterroggen | F35: Senf-Gründüngung | I35: Trockenmasseverlust | J35: 0 | L35: =IF(EM!$A$4>=34,34,"") ->  | M35: =IF(L35=34,(((1+EM!$C$4/100)^34)*EM!$C$4/100)/(((1+EM!$C$4/100)^34)-1),"") ->  | N35: =IF(EM!$A$8>=6,HGO!N5,"") ->  | O35: =IF(EM!$A$8>=6,HGO!O5,"") ->  | Q35: =IF(ROW(P35)>COUNTA(P:P),"",INDEX(P:P,SMALL(IF(P$1:P$241<>"",ROW($1:$241)),ROW(P35))))/((1+(EM!$C$4/100))^HGO!L35) ->  | R35: =IF(Q35<>"",SUM($Q$2:Q35),"") ->  | T35: =IF(EM!$A$6=1,TRUE,MOD(ROW(),EM!$A$6)=1) ->  | U35: =IF(L35="","",((IF(AND(T35=TRUE,L36<>35,EM!$A$22="Nein"),EM!$D$30+EM!$F$30+AC35+AE35,IF(AND(T35=TRUE,L36<>35,EM!$A$22="Ja"),DGK!$AE$8+EM!$F$30+AC35+AE35,IF(AND(T35=TRUE,L36=35,EM!$A$22="Nein"),EM!$D$30+AC35+AE35,IF(AND(T35=TRUE,L36=35,EM!$A$22="Ja",(EM!$A$6/HGO!L35)=1),DGK!$AE$6+AC35+AE35,IF(AND(T35=TRUE,L36=35,EM!$A$22="Ja",((EM!$A$6*2)/HGO!L35)=1),DGK!$AE$7+AC35+AE35,IF(AND(T35=TRUE,L36=35,EM!$A$22="Ja",AND((EM!$A$6/HGO!L35)<>1,((EM!$A$6*2)/HGO!L35)<>1)),DGK!$AE$8+AC35+AE35,0+AC35+AE35))))))))+(IF(L35=EM!$A$6,EM!$D$37))) ->  | V35: =IF(L35<>34,"",(IF(AND(T35=TRUE,L35=34),EM!$H$31,0))*(IF(L35=EM!$A$6,HGO!$C$40,IF(HGO!L35=2*EM!$A$6,HGO!$C$41,HGO!$C$42)))) ->  | X35: =IF(W35<>"",W35/(1+(EM!$C$4/100))^HGO!L35,"") ->  | Y35: =IF(X35<>"",SUM($X$2:X35),"") ->  | AB35: =IF(AND(EM!$J$33=1,$L35>=EM!$J$31),EM!$I$31,(IF(OR(EM!$I$31="",EM!$J$31="",EM!$J$33=""),"",IF(AND(EM!$I$31<>"",HGO!$AA35=TRUE,$L35>=EM!$J$31),EM!$I$31,"")))) ->  | AE35: =IF(L35<>"",IF(AND(EM!$F$36=1,$L35>=EM!$F$34),EM!$E$35,(IF(OR(EM!$E$35="",EM!$F$34="",EM!$F$36=""),0,IF(AND(EM!$E$35<>"",HGO!$AD35=TRUE,$L35>=EM!$F$34),EM!$E$35,0)))),"") ->  | AF35: =IF(L35="","",((IF(AND(T35=TRUE,L36<>35,EM!$A$22="Nein"),EM!$E$32+EM!$F$30+AC35+AE35,IF(AND(T35=TRUE,L36<>35,EM!$A$22="Ja"),DGK!$AE$8+EM!$F$30+AC35+AE35,IF(AND(T35=TRUE,L36=35,EM!$A$22="Nein"),EM!$E$32+AC35+AE35,IF(AND(T35=TRUE,L36=35,EM!$A$22="Ja",(EM!$A$6/HGO!L35)=1),DGK!$AE$6+AC35+AE35,IF(AND(T35=TRUE,L36=35,EM!$A$22="Ja",((EM!$A$6*2)/HGO!L35)=1),DGK!$AE$7+AC35+AE35,IF(AND(T35=TRUE,L36=35,EM!$A$22="Ja",AND((EM!$A$6/HGO!L35)<>1,((EM!$A$6*2)/HGO!L35)<>1)),DGK!$AE$8+AC35+AE35,0+AC35+AE35))))))))+(IF(L35=EM!$A$6,EM!$D$41))) ->  | AG35: =IF(MOD(EM!$A$4,HGO!B81)=0,HGO!B81,"") -> 34 | AH35: =INDEX(AG$2:AG$100,MATCH(LARGE(COUNTIF(AG$2:AG$100,">="&AG$2:AG$100)+100*ISNUMBER(AG$2:AG$100),ROWS(AG$2:AG35)),COUNTIF(AG$2:AG$100,">="&AG$2:AG$100)+100*ISNUMBER(AG$2:AG$100),0),1) -> 34
A36: =IF(EM!$C$6="LBG I",HGO!C35,IF(EM!$C$6="LBG II",HGO!D35,IF(EM!$C$6="LBG III",HGO!E35,IF(EM!$C$6="LBG IV",HGO!F35,IF(EM!$C$6="LBG V",""))))) -> FALSE | C36: Leguminosen Gemisch | D36: Leguminosen Gemisch | E36: Leguminosen Gemisch | I36: Lagerungskosten | J36: 0 | L36: =IF(EM!$A$4>=35,35,"") ->  | M36: =IF(L36=35,(((1+EM!$C$4/100)^35)*EM!$C$4/100)/(((1+EM!$C$4/100)^35)-1),"") ->  | N36: =IF(EM!$A$8>=6,HGO!N6,"") ->  | O36: =IF(EM!$A$8>=6,HGO!O6,"") ->  | Q36: =IF(ROW(P36)>COUNTA(P:P),"",INDEX(P:P,SMALL(IF(P$1:P$241<>"",ROW($1:$241)),ROW(P36))))/((1+(EM!$C$4/100))^HGO!L36) ->  | R36: =IF(Q36<>"",SUM($Q$2:Q36),"") ->  | T36: =IF(EM!$A$6=1,TRUE,MOD(ROW(),EM!$A$6)=1) ->  | U36: =IF(L36="","",((IF(AND(T36=TRUE,L37<>36,EM!$A$22="Nein"),EM!$D$30+EM!$F$30+AC36+AE36,IF(AND(T36=TRUE,L37<>36,EM!$A$22="Ja"),DGK!$AE$8+EM!$F$30+AC36+AE36,IF(AND(T36=TRUE,L37=36,EM!$A$22="Nein"),EM!$D$30+AC36+AE36,IF(AND(T36=TRUE,L37=36,EM!$A$22="Ja",(EM!$A$6/HGO!L36)=1),DGK!$AE$6+AC36+AE36,IF(AND(T36=TRUE,L37=36,EM!$A$22="Ja",((EM!$A$6*2)/HGO!L36)=1),DGK!$AE$7+AC36+AE36,IF(AND(T36=TRUE,L37=36,EM!$A$22="Ja",AND((EM!$A$6/HGO!L36)<>1,((EM!$A$6*2)/HGO!L36)<>1)),DGK!$AE$8+AC36+AE36,0+AC36+AE36))))))))+(IF(L36=EM!$A$6,EM!$D$37))) ->  | V36: =IF(L36<>35,"",(IF(AND(T36=TRUE,L36=35),EM!$H$31,0))*(IF(L36=EM!$A$6,HGO!$C$40,IF(HGO!L36=2*EM!$A$6,HGO!$C$41,HGO!$C$42)))) ->  | X36: =IF(W36<>"",W36/(1+(EM!$C$4/100))^HGO!L36,"") ->  | Y36: =IF(X36<>"",SUM($X$2:X36),"") ->  | AB36: =IF(AND(EM!$J$33=1,$L36>=EM!$J$31),EM!$I$31,(IF(OR(EM!$I$31="",EM!$J$31="",EM!$J$33=""),"",IF(AND(EM!$I$31<>"",HGO!$AA36=TRUE,$L36>=EM!$J$31),EM!$I$31,"")))) ->  | AE36: =IF(L36<>"",IF(AND(EM!$F$36=1,$L36>=EM!$F$34),EM!$E$35,(IF(OR(EM!$E$35="",EM!$F$34="",EM!$F$36=""),0,IF(AND(EM!$E$35<>"",HGO!$AD36=TRUE,$L36>=EM!$F$34),EM!$E$35,0)))),"") ->  | AF36: =IF(L36="","",((IF(AND(T36=TRUE,L37<>36,EM!$A$22="Nein"),EM!$E$32+EM!$F$30+AC36+AE36,IF(AND(T36=TRUE,L37<>36,EM!$A$22="Ja"),DGK!$AE$8+EM!$F$30+AC36+AE36,IF(AND(T36=TRUE,L37=36,EM!$A$22="Nein"),EM!$E$32+AC36+AE36,IF(AND(T36=TRUE,L37=36,EM!$A$22="Ja",(EM!$A$6/HGO!L36)=1),DGK!$AE$6+AC36+AE36,IF(AND(T36=TRUE,L37=36,EM!$A$22="Ja",((EM!$A$6*2)/HGO!L36)=1),DGK!$AE$7+AC36+AE36,IF(AND(T36=TRUE,L37=36,EM!$A$22="Ja",AND((EM!$A$6/HGO!L36)<>1,((EM!$A$6*2)/HGO!L36)<>1)),DGK!$AE$8+AC36+AE36,0+AC36+AE36))))))))+(IF(L36=EM!$A$6,EM!$D$41))) ->  | AG36: =IF(MOD(EM!$A$4,HGO!B82)=0,HGO!B82,"") -> 35 | AH36: =INDEX(AG$2:AG$100,MATCH(LARGE(COUNTIF(AG$2:AG$100,">="&AG$2:AG$100)+100*ISNUMBER(AG$2:AG$100),ROWS(AG$2:AG36)),COUNTIF(AG$2:AG$100,">="&AG$2:AG$100)+100*ISNUMBER(AG$2:AG$100),0),1) -> 35
A37: =IF(EM!$C$6="LBG I",HGO!C36,IF(EM!$C$6="LBG II",HGO!D36,IF(EM!$C$6="LBG III",HGO!E36,IF(EM!$C$6="LBG IV","",IF(EM!$C$6="LBG V",""))))) -> FALSE | C37: Senf-Gründüngung | D37: Senf-Gründüngung | E37: Senf-Gründüngung | I37: Trocknungskosten | J37: 1 | L37: =IF(EM!$A$4>=36,36,"") ->  | M37: =IF(L37=36,(((1+EM!$C$4/100)^36)*EM!$C$4/100)/(((1+EM!$C$4/100)^36)-1),"") ->  | N37: =IF(EM!$A$8>=6,HGO!N7,"") ->  | O37: =IF(EM!$A$8>=6,HGO!O7,"") ->  | Q37: =IF(ROW(P37)>COUNTA(P:P),"",INDEX(P:P,SMALL(IF(P$1:P$241<>"",ROW($1:$241)),ROW(P37))))/((1+(EM!$C$4/100))^HGO!L37) ->  | R37: =IF(Q37<>"",SUM($Q$2:Q37),"") ->  | T37: =IF(EM!$A$6=1,TRUE,MOD(ROW(),EM!$A$6)=1) ->  | U37: =IF(L37="","",((IF(AND(T37=TRUE,L38<>37,EM!$A$22="Nein"),EM!$D$30+EM!$F$30+AC37+AE37,IF(AND(T37=TRUE,L38<>37,EM!$A$22="Ja"),DGK!$AE$8+EM!$F$30+AC37+AE37,IF(AND(T37=TRUE,L38=37,EM!$A$22="Nein"),EM!$D$30+AC37+AE37,IF(AND(T37=TRUE,L38=37,EM!$A$22="Ja",(EM!$A$6/HGO!L37)=1),DGK!$AE$6+AC37+AE37,IF(AND(T37=TRUE,L38=37,EM!$A$22="Ja",((EM!$A$6*2)/HGO!L37)=1),DGK!$AE$7+AC37+AE37,IF(AND(T37=TRUE,L38=37,EM!$A$22="Ja",AND((EM!$A$6/HGO!L37)<>1,((EM!$A$6*2)/HGO!L37)<>1)),DGK!$AE$8+AC37+AE37,0+AC37+AE37))))))))+(IF(L37=EM!$A$6,EM!$D$37))) ->  | V37: =IF(L37<>36,"",(IF(AND(T37=TRUE,L37=36),EM!$H$31,0))*(IF(L37=EM!$A$6,HGO!$C$40,IF(HGO!L37=2*EM!$A$6,HGO!$C$41,HGO!$C$42)))) ->  | X37: =IF(W37<>"",W37/(1+(EM!$C$4/100))^HGO!L37,"") ->  | Y37: =IF(X37<>"",SUM($X$2:X37),"") ->  | AB37: =IF(AND(EM!$J$33=1,$L37>=EM!$J$31),EM!$I$31,(IF(OR(EM!$I$31="",EM!$J$31="",EM!$J$33=""),"",IF(AND(EM!$I$31<>"",HGO!$AA37=TRUE,$L37>=EM!$J$31),EM!$I$31,"")))) ->  | AE37: =IF(L37<>"",IF(AND(EM!$F$36=1,$L37>=EM!$F$34),EM!$E$35,(IF(OR(EM!$E$35="",EM!$F$34="",EM!$F$36=""),0,IF(AND(EM!$E$35<>"",HGO!$AD37=TRUE,$L37>=EM!$F$34),EM!$E$35,0)))),"") ->  | AF37: =IF(L37="","",((IF(AND(T37=TRUE,L38<>37,EM!$A$22="Nein"),EM!$E$32+EM!$F$30+AC37+AE37,IF(AND(T37=TRUE,L38<>37,EM!$A$22="Ja"),DGK!$AE$8+EM!$F$30+AC37+AE37,IF(AND(T37=TRUE,L38=37,EM!$A$22="Nein"),EM!$E$32+AC37+AE37,IF(AND(T37=TRUE,L38=37,EM!$A$22="Ja",(EM!$A$6/HGO!L37)=1),DGK!$AE$6+AC37+AE37,IF(AND(T37=TRUE,L38=37,EM!$A$22="Ja",((EM!$A$6*2)/HGO!L37)=1),DGK!$AE$7+AC37+AE37,IF(AND(T37=TRUE,L38=37,EM!$A$22="Ja",AND((EM!$A$6/HGO!L37)<>1,((EM!$A$6*2)/HGO!L37)<>1)),DGK!$AE$8+AC37+AE37,0+AC37+AE37))))))))+(IF(L37=EM!$A$6,EM!$D$41))) ->  | AG37: =IF(MOD(EM!$A$4,HGO!B83)=0,HGO!B83,"") -> 36 | AH37: =INDEX(AG$2:AG$100,MATCH(LARGE(COUNTIF(AG$2:AG$100,">="&AG$2:AG$100)+100*ISNUMBER(AG$2:AG$100),ROWS(AG$2:AG37)),COUNTIF(AG$2:AG$100,">="&AG$2:AG$100)+100*ISNUMBER(AG$2:AG$100),0),1) -> 36
A38: =IF(EM!$C$6="LBG I",HGO!C37,IF(EM!$C$6="LBG II",HGO!D37,IF(EM!$C$6="LBG III",HGO!E37,IF(EM!$C$6="LBG IV","",IF(EM!$C$6="LBG V",""))))) -> FALSE | I38: Verkauf | J38: 0 | L38: =IF(EM!$A$4>=37,37,"") ->  | M38: =IF(L38=37,(((1+EM!$C$4/100)^37)*EM!$C$4/100)/(((1+EM!$C$4/100)^37)-1),"") ->  | N38: =IF(EM!$A$8>=7,HGO!N2,"") ->  | O38: =IF(EM!$A$8>=7,HGO!$O$2,"") ->  | Q38: =IF(ROW(P38)>COUNTA(P:P),"",INDEX(P:P,SMALL(IF(P$1:P$241<>"",ROW($1:$241)),ROW(P38))))/((1+(EM!$C$4/100))^HGO!L38) ->  | R38: =IF(Q38<>"",SUM($Q$2:Q38),"") ->  | T38: =IF(EM!$A$6=1,TRUE,MOD(ROW(),EM!$A$6)=1) ->  | U38: =IF(L38="","",((IF(AND(T38=TRUE,L39<>38,EM!$A$22="Nein"),EM!$D$30+EM!$F$30+AC38+AE38,IF(AND(T38=TRUE,L39<>38,EM!$A$22="Ja"),DGK!$AE$8+EM!$F$30+AC38+AE38,IF(AND(T38=TRUE,L39=38,EM!$A$22="Nein"),EM!$D$30+AC38+AE38,IF(AND(T38=TRUE,L39=38,EM!$A$22="Ja",(EM!$A$6/HGO!L38)=1),DGK!$AE$6+AC38+AE38,IF(AND(T38=TRUE,L39=38,EM!$A$22="Ja",((EM!$A$6*2)/HGO!L38)=1),DGK!$AE$7+AC38+AE38,IF(AND(T38=TRUE,L39=38,EM!$A$22="Ja",AND((EM!$A$6/HGO!L38)<>1,((EM!$A$6*2)/HGO!L38)<>1)),DGK!$AE$8+AC38+AE38,0+AC38+AE38))))))))+(IF(L38=EM!$A$6,EM!$D$37))) ->  | V38: =IF(L38<>37,"",(IF(AND(T38=TRUE,L38=37),EM!$H$31,0))*(IF(L38=EM!$A$6,HGO!$C$40,IF(HGO!L38=2*EM!$A$6,HGO!$C$41,HGO!$C$42)))) ->  | X38: =IF(W38<>"",W38/(1+(EM!$C$4/100))^HGO!L38,"") ->  | Y38: =IF(X38<>"",SUM($X$2:X38),"") ->  | AB38: =IF(AND(EM!$J$33=1,$L38>=EM!$J$31),EM!$I$31,(IF(OR(EM!$I$31="",EM!$J$31="",EM!$J$33=""),"",IF(AND(EM!$I$31<>"",HGO!$AA38=TRUE,$L38>=EM!$J$31),EM!$I$31,"")))) ->  | AE38: =IF(L38<>"",IF(AND(EM!$F$36=1,$L38>=EM!$F$34),EM!$E$35,(IF(OR(EM!$E$35="",EM!$F$34="",EM!$F$36=""),0,IF(AND(EM!$E$35<>"",HGO!$AD38=TRUE,$L38>=EM!$F$34),EM!$E$35,0)))),"") ->  | AF38: =IF(L38="","",((IF(AND(T38=TRUE,L39<>38,EM!$A$22="Nein"),EM!$E$32+EM!$F$30+AC38+AE38,IF(AND(T38=TRUE,L39<>38,EM!$A$22="Ja"),DGK!$AE$8+EM!$F$30+AC38+AE38,IF(AND(T38=TRUE,L39=38,EM!$A$22="Nein"),EM!$E$32+AC38+AE38,IF(AND(T38=TRUE,L39=38,EM!$A$22="Ja",(EM!$A$6/HGO!L38)=1),DGK!$AE$6+AC38+AE38,IF(AND(T38=TRUE,L39=38,EM!$A$22="Ja",((EM!$A$6*2)/HGO!L38)=1),DGK!$AE$7+AC38+AE38,IF(AND(T38=TRUE,L39=38,EM!$A$22="Ja",AND((EM!$A$6/HGO!L38)<>1,((EM!$A$6*2)/HGO!L38)<>1)),DGK!$AE$8+AC38+AE38,0+AC38+AE38))))))))+(IF(L38=EM!$A$6,EM!$D$41))) ->  | AG38: =IF(MOD(EM!$A$4,HGO!B84)=0,HGO!B84,"") -> 37 | AH38: =INDEX(AG$2:AG$100,MATCH(LARGE(COUNTIF(AG$2:AG$100,">="&AG$2:AG$100)+100*ISNUMBER(AG$2:AG$100),ROWS(AG$2:AG38)),COUNTIF(AG$2:AG$100,">="&AG$2:AG$100)+100*ISNUMBER(AG$2:AG$100),0),1) -> 37
B39: Ertragssteigerungsfaktoren | D39: Ertragssteigerungsfaktoren | E39: ESF Faktoren | L39: =IF(EM!$A$4>=38,38,"") ->  | M39: =IF(L39=38,(((1+EM!$C$4/100)^38)*EM!$C$4/100)/(((1+EM!$C$4/100)^38)-1),"") ->  | N39: =IF(EM!$A$8>=7,HGO!N3,"") ->  | O39: =IF(EM!$A$8>=7,HGO!$O$3,"") ->  | Q39: =IF(ROW(P39)>COUNTA(P:P),"",INDEX(P:P,SMALL(IF(P$1:P$241<>"",ROW($1:$241)),ROW(P39))))/((1+(EM!$C$4/100))^HGO!L39) ->  | R39: =IF(Q39<>"",SUM($Q$2:Q39),"") ->  | T39: =IF(EM!$A$6=1,TRUE,MOD(ROW(),EM!$A$6)=1) ->  | U39: =IF(L39="","",((IF(AND(T39=TRUE,L40<>39,EM!$A$22="Nein"),EM!$D$30+EM!$F$30+AC39+AE39,IF(AND(T39=TRUE,L40<>39,EM!$A$22="Ja"),DGK!$AE$8+EM!$F$30+AC39+AE39,IF(AND(T39=TRUE,L40=39,EM!$A$22="Nein"),EM!$D$30+AC39+AE39,IF(AND(T39=TRUE,L40=39,EM!$A$22="Ja",(EM!$A$6/HGO!L39)=1),DGK!$AE$6+AC39+AE39,IF(AND(T39=TRUE,L40=39,EM!$A$22="Ja",((EM!$A$6*2)/HGO!L39)=1),DGK!$AE$7+AC39+AE39,IF(AND(T39=TRUE,L40=39,EM!$A$22="Ja",AND((EM!$A$6/HGO!L39)<>1,((EM!$A$6*2)/HGO!L39)<>1)),DGK!$AE$8+AC39+AE39,0+AC39+AE39))))))))+(IF(L39=EM!$A$6,EM!$D$37))) ->  | V39: =IF(L39<>38,"",(IF(AND(T39=TRUE,L39=38),EM!$H$31,0))*(IF(L39=EM!$A$6,HGO!$C$40,IF(HGO!L39=2*EM!$A$6,HGO!$C$41,HGO!$C$42)))) ->  | X39: =IF(W39<>"",W39/(1+(EM!$C$4/100))^HGO!L39,"") ->  | Y39: =IF(X39<>"",SUM($X$2:X39),"") ->  | AB39: =IF(AND(EM!$J$33=1,$L39>=EM!$J$31),EM!$I$31,(IF(OR(EM!$I$31="",EM!$J$31="",EM!$J$33=""),"",IF(AND(EM!$I$31<>"",HGO!$AA39=TRUE,$L39>=EM!$J$31),EM!$I$31,"")))) ->  | AE39: =IF(L39<>"",IF(AND(EM!$F$36=1,$L39>=EM!$F$34),EM!$E$35,(IF(OR(EM!$E$35="",EM!$F$34="",EM!$F$36=""),0,IF(AND(EM!$E$35<>"",HGO!$AD39=TRUE,$L39>=EM!$F$34),EM!$E$35,0)))),"") ->  | AF39: =IF(L39="","",((IF(AND(T39=TRUE,L40<>39,EM!$A$22="Nein"),EM!$E$32+EM!$F$30+AC39+AE39,IF(AND(T39=TRUE,L40<>39,EM!$A$22="Ja"),DGK!$AE$8+EM!$F$30+AC39+AE39,IF(AND(T39=TRUE,L40=39,EM!$A$22="Nein"),EM!$E$32+AC39+AE39,IF(AND(T39=TRUE,L40=39,EM!$A$22="Ja",(EM!$A$6/HGO!L39)=1),DGK!$AE$6+AC39+AE39,IF(AND(T39=TRUE,L40=39,EM!$A$22="Ja",((EM!$A$6*2)/HGO!L39)=1),DGK!$AE$7+AC39+AE39,IF(AND(T39=TRUE,L40=39,EM!$A$22="Ja",AND((EM!$A$6/HGO!L39)<>1,((EM!$A$6*2)/HGO!L39)<>1)),DGK!$AE$8+AC39+AE39,0+AC39+AE39))))))))+(IF(L39=EM!$A$6,EM!$D$41))) ->  | AG39: =IF(MOD(EM!$A$4,HGO!B85)=0,HGO!B85,"") -> 38 | AH39: =INDEX(AG$2:AG$100,MATCH(LARGE(COUNTIF(AG$2:AG$100,">="&AG$2:AG$100)+100*ISNUMBER(AG$2:AG$100),ROWS(AG$2:AG39)),COUNTIF(AG$2:AG$100,">="&AG$2:AG$100)+100*ISNUMBER(AG$2:AG$100),0),1) -> 38
A40: Baumpflege Anzahl | B40: 1. Rotation | C40: =IF(AND(EM!A22="Ja",EM!A12="Mini Rotation"),E40,1) -> 1 | D40: Ja | E40: 0,5 | I40: Für Speicheroption E-Nutzung - Häkchen Ja-Nein (1-0) | L40: =IF(EM!$A$4>=39,39,"") ->  | M40: =IF(L40=39,(((1+EM!$C$4/100)^39)*EM!$C$4/100)/(((1+EM!$C$4/100)^39)-1),"") ->  | N40: =IF(EM!$A$8>=7,HGO!N4,"") ->  | O40: =IF(EM!$A$8>=7,HGO!$O$4,"") ->  | Q40: =IF(ROW(P40)>COUNTA(P:P),"",INDEX(P:P,SMALL(IF(P$1:P$241<>"",ROW($1:$241)),ROW(P40))))/((1+(EM!$C$4/100))^HGO!L40) ->  | R40: =IF(Q40<>"",SUM($Q$2:Q40),"") ->  | T40: =IF(EM!$A$6=1,TRUE,MOD(ROW(),EM!$A$6)=1) ->  | U40: =IF(L40="","",((IF(AND(T40=TRUE,L41<>40,EM!$A$22="Nein"),EM!$D$30+EM!$F$30+AC40+AE40,IF(AND(T40=TRUE,L41<>40,EM!$A$22="Ja"),DGK!$AE$8+EM!$F$30+AC40+AE40,IF(AND(T40=TRUE,L41=40,EM!$A$22="Nein"),EM!$D$30+AC40+AE40,IF(AND(T40=TRUE,L41=40,EM!$A$22="Ja",(EM!$A$6/HGO!L40)=1),DGK!$AE$6+AC40+AE40,IF(AND(T40=TRUE,L41=40,EM!$A$22="Ja",((EM!$A$6*2)/HGO!L40)=1),DGK!$AE$7+AC40+AE40,IF(AND(T40=TRUE,L41=40,EM!$A$22="Ja",AND((EM!$A$6/HGO!L40)<>1,((EM!$A$6*2)/HGO!L40)<>1)),DGK!$AE$8+AC40+AE40,0+AC40+AE40))))))))+(IF(L40=EM!$A$6,EM!$D$37))) ->  | V40: =IF(L40<>39,"",(IF(AND(T40=TRUE,L40=39),EM!$H$31,0))*(IF(L40=EM!$A$6,HGO!$C$40,IF(HGO!L40=2*EM!$A$6,HGO!$C$41,HGO!$C$42)))) ->  | X40: =IF(W40<>"",W40/(1+(EM!$C$4/100))^HGO!L40,"") ->  | Y40: =IF(X40<>"",SUM($X$2:X40),"") ->  | AB40: =IF(AND(EM!$J$33=1,$L40>=EM!$J$31),EM!$I$31,(IF(OR(EM!$I$31="",EM!$J$31="",EM!$J$33=""),"",IF(AND(EM!$I$31<>"",HGO!$AA40=TRUE,$L40>=EM!$J$31),EM!$I$31,"")))) ->  | AE40: =IF(L40<>"",IF(AND(EM!$F$36=1,$L40>=EM!$F$34),EM!$E$35,(IF(OR(EM!$E$35="",EM!$F$34="",EM!$F$36=""),0,IF(AND(EM!$E$35<>"",HGO!$AD40=TRUE,$L40>=EM!$F$34),EM!$E$35,0)))),"") ->  | AF40: =IF(L40="","",((IF(AND(T40=TRUE,L41<>40,EM!$A$22="Nein"),EM!$E$32+EM!$F$30+AC40+AE40,IF(AND(T40=TRUE,L41<>40,EM!$A$22="Ja"),DGK!$AE$8+EM!$F$30+AC40+AE40,IF(AND(T40=TRUE,L41=40,EM!$A$22="Nein"),EM!$E$32+AC40+AE40,IF(AND(T40=TRUE,L41=40,EM!$A$22="Ja",(EM!$A$6/HGO!L40)=1),DGK!$AE$6+AC40+AE40,IF(AND(T40=TRUE,L41=40,EM!$A$22="Ja",((EM!$A$6*2)/HGO!L40)=1),DGK!$AE$7+AC40+AE40,IF(AND(T40=TRUE,L41=40,EM!$A$22="Ja",AND((EM!$A$6/HGO!L40)<>1,((EM!$A$6*2)/HGO!L40)<>1)),DGK!$AE$8+AC40+AE40,0+AC40+AE40))))))))+(IF(L40=EM!$A$6,EM!$D$41))) ->  | AG40: =IF(MOD(EM!$A$4,HGO!B86)=0,HGO!B86,"") -> 39 | AH40: =INDEX(AG$2:AG$100,MATCH(LARGE(COUNTIF(AG$2:AG$100,">="&AG$2:AG$100)+100*ISNUMBER(AG$2:AG$100),ROWS(AG$2:AG40)),COUNTIF(AG$2:AG$100,">="&AG$2:AG$100)+100*ISNUMBER(AG$2:AG$100),0),1) -> 39
A41: 1 | B41: 2. Rotation | C41: =IF(AND(EM!A22="Ja",EM!A12="Mini Rotation"),E41,1) -> 1 | D41: Nein | E41: 0,85 | I41: Trockenmasseverlust | J41: 0 | L41: =IF(EM!$A$4>=40,40,"") ->  | M41: =IF(L41=40,(((1+EM!$C$4/100)^40)*EM!$C$4/100)/(((1+EM!$C$4/100)^40)-1),"") ->  | N41: =IF(EM!$A$8>=7,HGO!N5,"") ->  | O41: =IF(EM!$A$8>=7,HGO!$O$5,"") ->  | Q41: =IF(ROW(P41)>COUNTA(P:P),"",INDEX(P:P,SMALL(IF(P$1:P$241<>"",ROW($1:$241)),ROW(P41))))/((1+(EM!$C$4/100))^HGO!L41) ->  | R41: =IF(Q41<>"",SUM($Q$2:Q41),"") ->  | T41: =IF(EM!$A$6=1,TRUE,MOD(ROW(),EM!$A$6)=1) ->  | U41: =IF(L41="","",((IF(AND(T41=TRUE,L42<>41,EM!$A$22="Nein"),EM!$D$30+EM!$F$30+AC41+AE41,IF(AND(T41=TRUE,L42<>41,EM!$A$22="Ja"),DGK!$AE$8+EM!$F$30+AC41+AE41,IF(AND(T41=TRUE,L42=41,EM!$A$22="Nein"),EM!$D$30+AC41+AE41,IF(AND(T41=TRUE,L42=41,EM!$A$22="Ja",(EM!$A$6/HGO!L41)=1),DGK!$AE$6+AC41+AE41,IF(AND(T41=TRUE,L42=41,EM!$A$22="Ja",((EM!$A$6*2)/HGO!L41)=1),DGK!$AE$7+AC41+AE41,IF(AND(T41=TRUE,L42=41,EM!$A$22="Ja",AND((EM!$A$6/HGO!L41)<>1,((EM!$A$6*2)/HGO!L41)<>1)),DGK!$AE$8+AC41+AE41,0+AC41+AE41))))))))+(IF(L41=EM!$A$6,EM!$D$37))) ->  | V41: =IF(L41<>40,"",(IF(AND(T41=TRUE,L41=40),EM!$H$31,0))*(IF(L41=EM!$A$6,HGO!$C$40,IF(HGO!L41=2*EM!$A$6,HGO!$C$41,HGO!$C$42)))) ->  | X41: =IF(W41<>"",W41/(1+(EM!$C$4/100))^HGO!L41,"") ->  | Y41: =IF(X41<>"",SUM($X$2:X41),"") ->  | AB41: =IF(AND(EM!$J$33=1,$L41>=EM!$J$31),EM!$I$31,(IF(OR(EM!$I$31="",EM!$J$31="",EM!$J$33=""),"",IF(AND(EM!$I$31<>"",HGO!$AA41=TRUE,$L41>=EM!$J$31),EM!$I$31,"")))) ->  | AE41: =IF(L41<>"",IF(AND(EM!$F$36=1,$L41>=EM!$F$34),EM!$E$35,(IF(OR(EM!$E$35="",EM!$F$34="",EM!$F$36=""),0,IF(AND(EM!$E$35<>"",HGO!$AD41=TRUE,$L41>=EM!$F$34),EM!$E$35,0)))),"") ->  | AF41: =IF(L41="","",((IF(AND(T41=TRUE,L42<>41,EM!$A$22="Nein"),EM!$E$32+EM!$F$30+AC41+AE41,IF(AND(T41=TRUE,L42<>41,EM!$A$22="Ja"),DGK!$AE$8+EM!$F$30+AC41+AE41,IF(AND(T41=TRUE,L42=41,EM!$A$22="Nein"),EM!$E$32+AC41+AE41,IF(AND(T41=TRUE,L42=41,EM!$A$22="Ja",(EM!$A$6/HGO!L41)=1),DGK!$AE$6+AC41+AE41,IF(AND(T41=TRUE,L42=41,EM!$A$22="Ja",((EM!$A$6*2)/HGO!L41)=1),DGK!$AE$7+AC41+AE41,IF(AND(T41=TRUE,L42=41,EM!$A$22="Ja",AND((EM!$A$6/HGO!L41)<>1,((EM!$A$6*2)/HGO!L41)<>1)),DGK!$AE$8+AC41+AE41,0+AC41+AE41))))))))+(IF(L41=EM!$A$6,EM!$D$41))) ->  | AG41: =IF(MOD(EM!$A$4,HGO!B87)=0,HGO!B87,"") -> 40 | AH41: =INDEX(AG$2:AG$100,MATCH(LARGE(COUNTIF(AG$2:AG$100,">="&AG$2:AG$100)+100*ISNUMBER(AG$2:AG$100),ROWS(AG$2:AG41)),COUNTIF(AG$2:AG$100,">="&AG$2:AG$100)+100*ISNUMBER(AG$2:AG$100),0),1) -> 40
A42: 2 | B42: Rest | C42: =IF(EM!A4/EM!A6<>2,(EM!A10-HGO!C40-HGO!C41)/(EM!A10-2),"") ->  | I42: Lagerungskosten | J42: 0 | L42: =IF(EM!$A$4>=41,41,"") ->  | M42: =IF(L42=41,(((1+EM!$C$4/100)^41)*EM!$C$4/100)/(((1+EM!$C$4/100)^41)-1),"") ->  | N42: =IF(EM!$A$8>=7,HGO!N6,"") ->  | O42: =IF(EM!$A$8>=7,HGO!$O$6,"") ->  | Q42: =IF(ROW(P42)>COUNTA(P:P),"",INDEX(P:P,SMALL(IF(P$1:P$241<>"",ROW($1:$241)),ROW(P42))))/((1+(EM!$C$4/100))^HGO!L42) ->  | R42: =IF(Q42<>"",SUM($Q$2:Q42),"") ->  | T42: =IF(EM!$A$6=1,TRUE,MOD(ROW(),EM!$A$6)=1) ->  | U42: =IF(L42="","",((IF(AND(T42=TRUE,L43<>42,EM!$A$22="Nein"),EM!$D$30+EM!$F$30+AC42+AE42,IF(AND(T42=TRUE,L43<>42,EM!$A$22="Ja"),DGK!$AE$8+EM!$F$30+AC42+AE42,IF(AND(T42=TRUE,L43=42,EM!$A$22="Nein"),EM!$D$30+AC42+AE42,IF(AND(T42=TRUE,L43=42,EM!$A$22="Ja",(EM!$A$6/HGO!L42)=1),DGK!$AE$6+AC42+AE42,IF(AND(T42=TRUE,L43=42,EM!$A$22="Ja",((EM!$A$6*2)/HGO!L42)=1),DGK!$AE$7+AC42+AE42,IF(AND(T42=TRUE,L43=42,EM!$A$22="Ja",AND((EM!$A$6/HGO!L42)<>1,((EM!$A$6*2)/HGO!L42)<>1)),DGK!$AE$8+AC42+AE42,0+AC42+AE42))))))))+(IF(L42=EM!$A$6,EM!$D$37))) ->  | V42: =IF(L42<>41,"",(IF(AND(T42=TRUE,L42=41),EM!$H$31,0))*(IF(L42=EM!$A$6,HGO!$C$40,IF(HGO!L42=2*EM!$A$6,HGO!$C$41,HGO!$C$42)))) ->  | X42: =IF(W42<>"",W42/(1+(EM!$C$4/100))^HGO!L42,"") ->  | Y42: =IF(X42<>"",SUM($X$2:X42),"") ->  | AB42: =IF(AND(EM!$J$33=1,$L42>=EM!$J$31),EM!$I$31,(IF(OR(EM!$I$31="",EM!$J$31="",EM!$J$33=""),"",IF(AND(EM!$I$31<>"",HGO!$AA42=TRUE,$L42>=EM!$J$31),EM!$I$31,"")))) ->  | AE42: =IF(L42<>"",IF(AND(EM!$F$36=1,$L42>=EM!$F$34),EM!$E$35,(IF(OR(EM!$E$35="",EM!$F$34="",EM!$F$36=""),0,IF(AND(EM!$E$35<>"",HGO!$AD42=TRUE,$L42>=EM!$F$34),EM!$E$35,0)))),"") ->  | AF42: =IF(L42="","",((IF(AND(T42=TRUE,L43<>42,EM!$A$22="Nein"),EM!$E$32+EM!$F$30+AC42+AE42,IF(AND(T42=TRUE,L43<>42,EM!$A$22="Ja"),DGK!$AE$8+EM!$F$30+AC42+AE42,IF(AND(T42=TRUE,L43=42,EM!$A$22="Nein"),EM!$E$32+AC42+AE42,IF(AND(T42=TRUE,L43=42,EM!$A$22="Ja",(EM!$A$6/HGO!L42)=1),DGK!$AE$6+AC42+AE42,IF(AND(T42=TRUE,L43=42,EM!$A$22="Ja",((EM!$A$6*2)/HGO!L42)=1),DGK!$AE$7+AC42+AE42,IF(AND(T42=TRUE,L43=42,EM!$A$22="Ja",AND((EM!$A$6/HGO!L42)<>1,((EM!$A$6*2)/HGO!L42)<>1)),DGK!$AE$8+AC42+AE42,0+AC42+AE42))))))))+(IF(L42=EM!$A$6,EM!$D$41))) ->  | AG42: =IF(MOD(EM!$A$4,HGO!B88)=0,HGO!B88,"") -> 41 | AH42: =INDEX(AG$2:AG$100,MATCH(LARGE(COUNTIF(AG$2:AG$100,">="&AG$2:AG$100)+100*ISNUMBER(AG$2:AG$100),ROWS(AG$2:AG42)),COUNTIF(AG$2:AG$100,">="&AG$2:AG$100)+100*ISNUMBER(AG$2:AG$100),0),1) -> 41
A43: 3 | I43: Trocknungskosten | J43: 0 | L43: =IF(EM!$A$4>=42,42,"") ->  | M43: =IF(L43=42,(((1+EM!$C$4/100)^42)*EM!$C$4/100)/(((1+EM!$C$4/100)^42)-1),"") ->  | N43: =IF(EM!$A$8>=7,HGO!N7,"") ->  | O43: =IF(EM!$A$8>=7,HGO!$O$7,"") ->  | Q43: =IF(ROW(P43)>COUNTA(P:P),"",INDEX(P:P,SMALL(IF(P$1:P$241<>"",ROW($1:$241)),ROW(P43))))/((1+(EM!$C$4/100))^HGO!L43) ->  | R43: =IF(Q43<>"",SUM($Q$2:Q43),"") ->  | T43: =IF(EM!$A$6=1,TRUE,MOD(ROW(),EM!$A$6)=1) ->  | U43: =IF(L43="","",((IF(AND(T43=TRUE,L44<>43,EM!$A$22="Nein"),EM!$D$30+EM!$F$30+AC43+AE43,IF(AND(T43=TRUE,L44<>43,EM!$A$22="Ja"),DGK!$AE$8+EM!$F$30+AC43+AE43,IF(AND(T43=TRUE,L44=43,EM!$A$22="Nein"),EM!$D$30+AC43+AE43,IF(AND(T43=TRUE,L44=43,EM!$A$22="Ja",(EM!$A$6/HGO!L43)=1),DGK!$AE$6+AC43+AE43,IF(AND(T43=TRUE,L44=43,EM!$A$22="Ja",((EM!$A$6*2)/HGO!L43)=1),DGK!$AE$7+AC43+AE43,IF(AND(T43=TRUE,L44=43,EM!$A$22="Ja",AND((EM!$A$6/HGO!L43)<>1,((EM!$A$6*2)/HGO!L43)<>1)),DGK!$AE$8+AC43+AE43,0+AC43+AE43))))))))+(IF(L43=EM!$A$6,EM!$D$37))) ->  | V43: =IF(L43<>42,"",(IF(AND(T43=TRUE,L43=42),EM!$H$31,0))*(IF(L43=EM!$A$6,HGO!$C$40,IF(HGO!L43=2*EM!$A$6,HGO!$C$41,HGO!$C$42)))) ->  | X43: =IF(W43<>"",W43/(1+(EM!$C$4/100))^HGO!L43,"") ->  | Y43: =IF(X43<>"",SUM($X$2:X43),"") ->  | AB43: =IF(AND(EM!$J$33=1,$L43>=EM!$J$31),EM!$I$31,(IF(OR(EM!$I$31="",EM!$J$31="",EM!$J$33=""),"",IF(AND(EM!$I$31<>"",HGO!$AA43=TRUE,$L43>=EM!$J$31),EM!$I$31,"")))) ->  | AE43: =IF(L43<>"",IF(AND(EM!$F$36=1,$L43>=EM!$F$34),EM!$E$35,(IF(OR(EM!$E$35="",EM!$F$34="",EM!$F$36=""),0,IF(AND(EM!$E$35<>"",HGO!$AD43=TRUE,$L43>=EM!$F$34),EM!$E$35,0)))),"") ->  | AF43: =IF(L43="","",((IF(AND(T43=TRUE,L44<>43,EM!$A$22="Nein"),EM!$E$32+EM!$F$30+AC43+AE43,IF(AND(T43=TRUE,L44<>43,EM!$A$22="Ja"),DGK!$AE$8+EM!$F$30+AC43+AE43,IF(AND(T43=TRUE,L44=43,EM!$A$22="Nein"),EM!$E$32+AC43+AE43,IF(AND(T43=TRUE,L44=43,EM!$A$22="Ja",(EM!$A$6/HGO!L43)=1),DGK!$AE$6+AC43+AE43,IF(AND(T43=TRUE,L44=43,EM!$A$22="Ja",((EM!$A$6*2)/HGO!L43)=1),DGK!$AE$7+AC43+AE43,IF(AND(T43=TRUE,L44=43,EM!$A$22="Ja",AND((EM!$A$6/HGO!L43)<>1,((EM!$A$6*2)/HGO!L43)<>1)),DGK!$AE$8+AC43+AE43,0+AC43+AE43))))))))+(IF(L43=EM!$A$6,EM!$D$41))) ->  | AG43: =IF(MOD(EM!$A$4,HGO!B89)=0,HGO!B89,"") -> 42 | AH43: =INDEX(AG$2:AG$100,MATCH(LARGE(COUNTIF(AG$2:AG$100,">="&AG$2:AG$100)+100*ISNUMBER(AG$2:AG$100),ROWS(AG$2:AG43)),COUNTIF(AG$2:AG$100,">="&AG$2:AG$100)+100*ISNUMBER(AG$2:AG$100),0),1) -> 42
A44: 4 | I44: Verkauf | J44: 1 | L44: =IF(EM!$A$4>=43,43,"") ->  | M44: =IF(L44=43,(((1+EM!$C$4/100)^43)*EM!$C$4/100)/(((1+EM!$C$4/100)^43)-1),"") ->  | N44: =IF(EM!$A$8>=8,HGO!N2,"") ->  | O44: =IF(EM!$A$8>=8,HGO!$O$2,"") ->  | Q44: =IF(ROW(P44)>COUNTA(P:P),"",INDEX(P:P,SMALL(IF(P$1:P$241<>"",ROW($1:$241)),ROW(P44))))/((1+(EM!$C$4/100))^HGO!L44) ->  | R44: =IF(Q44<>"",SUM($Q$2:Q44),"") ->  | T44: =IF(EM!$A$6=1,TRUE,MOD(ROW(),EM!$A$6)=1) ->  | U44: =IF(L44="","",((IF(AND(T44=TRUE,L45<>44,EM!$A$22="Nein"),EM!$D$30+EM!$F$30+AC44+AE44,IF(AND(T44=TRUE,L45<>44,EM!$A$22="Ja"),DGK!$AE$8+EM!$F$30+AC44+AE44,IF(AND(T44=TRUE,L45=44,EM!$A$22="Nein"),EM!$D$30+AC44+AE44,IF(AND(T44=TRUE,L45=44,EM!$A$22="Ja",(EM!$A$6/HGO!L44)=1),DGK!$AE$6+AC44+AE44,IF(AND(T44=TRUE,L45=44,EM!$A$22="Ja",((EM!$A$6*2)/HGO!L44)=1),DGK!$AE$7+AC44+AE44,IF(AND(T44=TRUE,L45=44,EM!$A$22="Ja",AND((EM!$A$6/HGO!L44)<>1,((EM!$A$6*2)/HGO!L44)<>1)),DGK!$AE$8+AC44+AE44,0+AC44+AE44))))))))+(IF(L44=EM!$A$6,EM!$D$37))) ->  | V44: =IF(L44<>43,"",(IF(AND(T44=TRUE,L44=43),EM!$H$31,0))*(IF(L44=EM!$A$6,HGO!$C$40,IF(HGO!L44=2*EM!$A$6,HGO!$C$41,HGO!$C$42)))) ->  | X44: =IF(W44<>"",W44/(1+(EM!$C$4/100))^HGO!L44,"") ->  | Y44: =IF(X44<>"",SUM($X$2:X44),"") ->  | AB44: =IF(AND(EM!$J$33=1,$L44>=EM!$J$31),EM!$I$31,(IF(OR(EM!$I$31="",EM!$J$31="",EM!$J$33=""),"",IF(AND(EM!$I$31<>"",HGO!$AA44=TRUE,$L44>=EM!$J$31),EM!$I$31,"")))) ->  | AE44: =IF(L44<>"",IF(AND(EM!$F$36=1,$L44>=EM!$F$34),EM!$E$35,(IF(OR(EM!$E$35="",EM!$F$34="",EM!$F$36=""),0,IF(AND(EM!$E$35<>"",HGO!$AD44=TRUE,$L44>=EM!$F$34),EM!$E$35,0)))),"") ->  | AF44: =IF(L44="","",((IF(AND(T44=TRUE,L45<>44,EM!$A$22="Nein"),EM!$E$32+EM!$F$30+AC44+AE44,IF(AND(T44=TRUE,L45<>44,EM!$A$22="Ja"),DGK!$AE$8+EM!$F$30+AC44+AE44,IF(AND(T44=TRUE,L45=44,EM!$A$22="Nein"),EM!$E$32+AC44+AE44,IF(AND(T44=TRUE,L45=44,EM!$A$22="Ja",(EM!$A$6/HGO!L44)=1),DGK!$AE$6+AC44+AE44,IF(AND(T44=TRUE,L45=44,EM!$A$22="Ja",((EM!$A$6*2)/HGO!L44)=1),DGK!$AE$7+AC44+AE44,IF(AND(T44=TRUE,L45=44,EM!$A$22="Ja",AND((EM!$A$6/HGO!L44)<>1,((EM!$A$6*2)/HGO!L44)<>1)),DGK!$AE$8+AC44+AE44,0+AC44+AE44))))))))+(IF(L44=EM!$A$6,EM!$D$41))) ->  | AG44: =IF(MOD(EM!$A$4,HGO!B90)=0,HGO!B90,"") -> 43 | AH44: =INDEX(AG$2:AG$100,MATCH(LARGE(COUNTIF(AG$2:AG$100,">="&AG$2:AG$100)+100*ISNUMBER(AG$2:AG$100),ROWS(AG$2:AG44)),COUNTIF(AG$2:AG$100,">="&AG$2:AG$100)+100*ISNUMBER(AG$2:AG$100),0),1) -> 43
A45: 5 | L45: =IF(EM!$A$4>=44,44,"") ->  | M45: =IF(L45=44,(((1+EM!$C$4/100)^44)*EM!$C$4/100)/(((1+EM!$C$4/100)^44)-1),"") ->  | N45: =IF(EM!$A$8>=8,HGO!N3,"") ->  | O45: =IF(EM!$A$8>=8,HGO!$O$3,"") ->  | Q45: =IF(ROW(P45)>COUNTA(P:P),"",INDEX(P:P,SMALL(IF(P$1:P$241<>"",ROW($1:$241)),ROW(P45))))/((1+(EM!$C$4/100))^HGO!L45) ->  | R45: =IF(Q45<>"",SUM($Q$2:Q45),"") ->  | T45: =IF(EM!$A$6=1,TRUE,MOD(ROW(),EM!$A$6)=1) ->  | U45: =IF(L45="","",((IF(AND(T45=TRUE,L46<>45,EM!$A$22="Nein"),EM!$D$30+EM!$F$30+AC45+AE45,IF(AND(T45=TRUE,L46<>45,EM!$A$22="Ja"),DGK!$AE$8+EM!$F$30+AC45+AE45,IF(AND(T45=TRUE,L46=45,EM!$A$22="Nein"),EM!$D$30+AC45+AE45,IF(AND(T45=TRUE,L46=45,EM!$A$22="Ja",(EM!$A$6/HGO!L45)=1),DGK!$AE$6+AC45+AE45,IF(AND(T45=TRUE,L46=45,EM!$A$22="Ja",((EM!$A$6*2)/HGO!L45)=1),DGK!$AE$7+AC45+AE45,IF(AND(T45=TRUE,L46=45,EM!$A$22="Ja",AND((EM!$A$6/HGO!L45)<>1,((EM!$A$6*2)/HGO!L45)<>1)),DGK!$AE$8+AC45+AE45,0+AC45+AE45))))))))+(IF(L45=EM!$A$6,EM!$D$37))) ->  | V45: =IF(L45<>44,"",(IF(AND(T45=TRUE,L45=44),EM!$H$31,0))*(IF(L45=EM!$A$6,HGO!$C$40,IF(HGO!L45=2*EM!$A$6,HGO!$C$41,HGO!$C$42)))) ->  | X45: =IF(W45<>"",W45/(1+(EM!$C$4/100))^HGO!L45,"") ->  | Y45: =IF(X45<>"",SUM($X$2:X45),"") ->  | AB45: =IF(AND(EM!$J$33=1,$L45>=EM!$J$31),EM!$I$31,(IF(OR(EM!$I$31="",EM!$J$31="",EM!$J$33=""),"",IF(AND(EM!$I$31<>"",HGO!$AA45=TRUE,$L45>=EM!$J$31),EM!$I$31,"")))) ->  | AE45: =IF(L45<>"",IF(AND(EM!$F$36=1,$L45>=EM!$F$34),EM!$E$35,(IF(OR(EM!$E$35="",EM!$F$34="",EM!$F$36=""),0,IF(AND(EM!$E$35<>"",HGO!$AD45=TRUE,$L45>=EM!$F$34),EM!$E$35,0)))),"") ->  | AF45: =IF(L45="","",((IF(AND(T45=TRUE,L46<>45,EM!$A$22="Nein"),EM!$E$32+EM!$F$30+AC45+AE45,IF(AND(T45=TRUE,L46<>45,EM!$A$22="Ja"),DGK!$AE$8+EM!$F$30+AC45+AE45,IF(AND(T45=TRUE,L46=45,EM!$A$22="Nein"),EM!$E$32+AC45+AE45,IF(AND(T45=TRUE,L46=45,EM!$A$22="Ja",(EM!$A$6/HGO!L45)=1),DGK!$AE$6+AC45+AE45,IF(AND(T45=TRUE,L46=45,EM!$A$22="Ja",((EM!$A$6*2)/HGO!L45)=1),DGK!$AE$7+AC45+AE45,IF(AND(T45=TRUE,L46=45,EM!$A$22="Ja",AND((EM!$A$6/HGO!L45)<>1,((EM!$A$6*2)/HGO!L45)<>1)),DGK!$AE$8+AC45+AE45,0+AC45+AE45))))))))+(IF(L45=EM!$A$6,EM!$D$41))) ->  | AG45: =IF(MOD(EM!$A$4,HGO!B91)=0,HGO!B91,"") -> 44 | AH45: =INDEX(AG$2:AG$100,MATCH(LARGE(COUNTIF(AG$2:AG$100,">="&AG$2:AG$100)+100*ISNUMBER(AG$2:AG$100),ROWS(AG$2:AG45)),COUNTIF(AG$2:AG$100,">="&AG$2:AG$100)+100*ISNUMBER(AG$2:AG$100),0),1) -> 44
A46: 6 | L46: =IF(EM!$A$4>=45,45,"") ->  | M46: =IF(L46=45,(((1+EM!$C$4/100)^45)*EM!$C$4/100)/(((1+EM!$C$4/100)^45)-1),"") ->  | N46: =IF(EM!$A$8>=8,HGO!N4,"") ->  | O46: =IF(EM!$A$8>=8,HGO!$O$4,"") ->  | Q46: =IF(ROW(P46)>COUNTA(P:P),"",INDEX(P:P,SMALL(IF(P$1:P$241<>"",ROW($1:$241)),ROW(P46))))/((1+(EM!$C$4/100))^HGO!L46) ->  | R46: =IF(Q46<>"",SUM($Q$2:Q46),"") ->  | T46: =IF(EM!$A$6=1,TRUE,MOD(ROW(),EM!$A$6)=1) ->  | U46: =IF(L46="","",((IF(AND(T46=TRUE,L47<>46,EM!$A$22="Nein"),EM!$D$30+EM!$F$30+AC46+AE46,IF(AND(T46=TRUE,L47<>46,EM!$A$22="Ja"),DGK!$AE$8+EM!$F$30+AC46+AE46,IF(AND(T46=TRUE,L47=46,EM!$A$22="Nein"),EM!$D$30+AC46+AE46,IF(AND(T46=TRUE,L47=46,EM!$A$22="Ja",(EM!$A$6/HGO!L46)=1),DGK!$AE$6+AC46+AE46,IF(AND(T46=TRUE,L47=46,EM!$A$22="Ja",((EM!$A$6*2)/HGO!L46)=1),DGK!$AE$7+AC46+AE46,IF(AND(T46=TRUE,L47=46,EM!$A$22="Ja",AND((EM!$A$6/HGO!L46)<>1,((EM!$A$6*2)/HGO!L46)<>1)),DGK!$AE$8+AC46+AE46,0+AC46+AE46))))))))+(IF(L46=EM!$A$6,EM!$D$37))) ->  | V46: =IF(L46<>45,"",(IF(AND(T46=TRUE,L46=45),EM!$H$31,0))*(IF(L46=EM!$A$6,HGO!$C$40,IF(HGO!L46=2*EM!$A$6,HGO!$C$41,HGO!$C$42)))) ->  | X46: =IF(W46<>"",W46/(1+(EM!$C$4/100))^HGO!L46,"") ->  | Y46: =IF(X46<>"",SUM($X$2:X46),"") ->  | AB46: =IF(AND(EM!$J$33=1,$L46>=EM!$J$31),EM!$I$31,(IF(OR(EM!$I$31="",EM!$J$31="",EM!$J$33=""),"",IF(AND(EM!$I$31<>"",HGO!$AA46=TRUE,$L46>=EM!$J$31),EM!$I$31,"")))) ->  | AE46: =IF(L46<>"",IF(AND(EM!$F$36=1,$L46>=EM!$F$34),EM!$E$35,(IF(OR(EM!$E$35="",EM!$F$34="",EM!$F$36=""),0,IF(AND(EM!$E$35<>"",HGO!$AD46=TRUE,$L46>=EM!$F$34),EM!$E$35,0)))),"") ->  | AF46: =IF(L46="","",((IF(AND(T46=TRUE,L47<>46,EM!$A$22="Nein"),EM!$E$32+EM!$F$30+AC46+AE46,IF(AND(T46=TRUE,L47<>46,EM!$A$22="Ja"),DGK!$AE$8+EM!$F$30+AC46+AE46,IF(AND(T46=TRUE,L47=46,EM!$A$22="Nein"),EM!$E$32+AC46+AE46,IF(AND(T46=TRUE,L47=46,EM!$A$22="Ja",(EM!$A$6/HGO!L46)=1),DGK!$AE$6+AC46+AE46,IF(AND(T46=TRUE,L47=46,EM!$A$22="Ja",((EM!$A$6*2)/HGO!L46)=1),DGK!$AE$7+AC46+AE46,IF(AND(T46=TRUE,L47=46,EM!$A$22="Ja",AND((EM!$A$6/HGO!L46)<>1,((EM!$A$6*2)/HGO!L46)<>1)),DGK!$AE$8+AC46+AE46,0+AC46+AE46))))))))+(IF(L46=EM!$A$6,EM!$D$41))) ->  | AG46: =IF(MOD(EM!$A$4,HGO!B92)=0,HGO!B92,"") -> 45 | AH46: =INDEX(AG$2:AG$100,MATCH(LARGE(COUNTIF(AG$2:AG$100,">="&AG$2:AG$100)+100*ISNUMBER(AG$2:AG$100),ROWS(AG$2:AG46)),COUNTIF(AG$2:AG$100,">="&AG$2:AG$100)+100*ISNUMBER(AG$2:AG$100),0),1) -> 45
A47: Gesamtlaufzeit | B47: Teiler für Gehölze | L47: =IF(EM!$A$4>=46,46,"") ->  | M47: =IF(L47=46,(((1+EM!$C$4/100)^46)*EM!$C$4/100)/(((1+EM!$C$4/100)^46)-1),"") ->  | N47: =IF(EM!$A$8>=8,HGO!N5,"") ->  | O47: =IF(EM!$A$8>=8,HGO!$O$5,"") ->  | Q47: =IF(ROW(P47)>COUNTA(P:P),"",INDEX(P:P,SMALL(IF(P$1:P$241<>"",ROW($1:$241)),ROW(P47))))/((1+(EM!$C$4/100))^HGO!L47) ->  | R47: =IF(Q47<>"",SUM($Q$2:Q47),"") ->  | T47: =IF(EM!$A$6=1,TRUE,MOD(ROW(),EM!$A$6)=1) ->  | U47: =IF(L47="","",((IF(AND(T47=TRUE,L48<>47,EM!$A$22="Nein"),EM!$D$30+EM!$F$30+AC47+AE47,IF(AND(T47=TRUE,L48<>47,EM!$A$22="Ja"),DGK!$AE$8+EM!$F$30+AC47+AE47,IF(AND(T47=TRUE,L48=47,EM!$A$22="Nein"),EM!$D$30+AC47+AE47,IF(AND(T47=TRUE,L48=47,EM!$A$22="Ja",(EM!$A$6/HGO!L47)=1),DGK!$AE$6+AC47+AE47,IF(AND(T47=TRUE,L48=47,EM!$A$22="Ja",((EM!$A$6*2)/HGO!L47)=1),DGK!$AE$7+AC47+AE47,IF(AND(T47=TRUE,L48=47,EM!$A$22="Ja",AND((EM!$A$6/HGO!L47)<>1,((EM!$A$6*2)/HGO!L47)<>1)),DGK!$AE$8+AC47+AE47,0+AC47+AE47))))))))+(IF(L47=EM!$A$6,EM!$D$37))) ->  | V47: =IF(L47<>46,"",(IF(AND(T47=TRUE,L47=46),EM!$H$31,0))*(IF(L47=EM!$A$6,HGO!$C$40,IF(HGO!L47=2*EM!$A$6,HGO!$C$41,HGO!$C$42)))) ->  | X47: =IF(W47<>"",W47/(1+(EM!$C$4/100))^HGO!L47,"") ->  | Y47: =IF(X47<>"",SUM($X$2:X47),"") ->  | AB47: =IF(AND(EM!$J$33=1,$L47>=EM!$J$31),EM!$I$31,(IF(OR(EM!$I$31="",EM!$J$31="",EM!$J$33=""),"",IF(AND(EM!$I$31<>"",HGO!$AA47=TRUE,$L47>=EM!$J$31),EM!$I$31,"")))) ->  | AE47: =IF(L47<>"",IF(AND(EM!$F$36=1,$L47>=EM!$F$34),EM!$E$35,(IF(OR(EM!$E$35="",EM!$F$34="",EM!$F$36=""),0,IF(AND(EM!$E$35<>"",HGO!$AD47=TRUE,$L47>=EM!$F$34),EM!$E$35,0)))),"") ->  | AF47: =IF(L47="","",((IF(AND(T47=TRUE,L48<>47,EM!$A$22="Nein"),EM!$E$32+EM!$F$30+AC47+AE47,IF(AND(T47=TRUE,L48<>47,EM!$A$22="Ja"),DGK!$AE$8+EM!$F$30+AC47+AE47,IF(AND(T47=TRUE,L48=47,EM!$A$22="Nein"),EM!$E$32+AC47+AE47,IF(AND(T47=TRUE,L48=47,EM!$A$22="Ja",(EM!$A$6/HGO!L47)=1),DGK!$AE$6+AC47+AE47,IF(AND(T47=TRUE,L48=47,EM!$A$22="Ja",((EM!$A$6*2)/HGO!L47)=1),DGK!$AE$7+AC47+AE47,IF(AND(T47=TRUE,L48=47,EM!$A$22="Ja",AND((EM!$A$6/HGO!L47)<>1,((EM!$A$6*2)/HGO!L47)<>1)),DGK!$AE$8+AC47+AE47,0+AC47+AE47))))))))+(IF(L47=EM!$A$6,EM!$D$41))) ->  | AG47: =IF(MOD(EM!$A$4,HGO!B93)=0,HGO!B93,"") -> 46 | AH47: =INDEX(AG$2:AG$100,MATCH(LARGE(COUNTIF(AG$2:AG$100,">="&AG$2:AG$100)+100*ISNUMBER(AG$2:AG$100),ROWS(AG$2:AG47)),COUNTIF(AG$2:AG$100,">="&AG$2:AG$100)+100*ISNUMBER(AG$2:AG$100),0),1) -> 46
A48: 1 | B48: 1 | L48: =IF(EM!$A$4>=47,47,"") ->  | M48: =IF(L48=47,(((1+EM!$C$4/100)^47)*EM!$C$4/100)/(((1+EM!$C$4/100)^47)-1),"") ->  | N48: =IF(EM!$A$8>=8,HGO!N6,"") ->  | O48: =IF(EM!$A$8>=8,HGO!$O$6,"") ->  | Q48: =IF(ROW(P48)>COUNTA(P:P),"",INDEX(P:P,SMALL(IF(P$1:P$241<>"",ROW($1:$241)),ROW(P48))))/((1+(EM!$C$4/100))^HGO!L48) ->  | R48: =IF(Q48<>"",SUM($Q$2:Q48),"") ->  | T48: =IF(EM!$A$6=1,TRUE,MOD(ROW(),EM!$A$6)=1) ->  | U48: =IF(L48="","",((IF(AND(T48=TRUE,L49<>48,EM!$A$22="Nein"),EM!$D$30+EM!$F$30+AC48+AE48,IF(AND(T48=TRUE,L49<>48,EM!$A$22="Ja"),DGK!$AE$8+EM!$F$30+AC48+AE48,IF(AND(T48=TRUE,L49=48,EM!$A$22="Nein"),EM!$D$30+AC48+AE48,IF(AND(T48=TRUE,L49=48,EM!$A$22="Ja",(EM!$A$6/HGO!L48)=1),DGK!$AE$6+AC48+AE48,IF(AND(T48=TRUE,L49=48,EM!$A$22="Ja",((EM!$A$6*2)/HGO!L48)=1),DGK!$AE$7+AC48+AE48,IF(AND(T48=TRUE,L49=48,EM!$A$22="Ja",AND((EM!$A$6/HGO!L48)<>1,((EM!$A$6*2)/HGO!L48)<>1)),DGK!$AE$8+AC48+AE48,0+AC48+AE48))))))))+(IF(L48=EM!$A$6,EM!$D$37))) ->  | V48: =IF(L48<>47,"",(IF(AND(T48=TRUE,L48=47),EM!$H$31,0))*(IF(L48=EM!$A$6,HGO!$C$40,IF(HGO!L48=2*EM!$A$6,HGO!$C$41,HGO!$C$42)))) ->  | X48: =IF(W48<>"",W48/(1+(EM!$C$4/100))^HGO!L48,"") ->  | Y48: =IF(X48<>"",SUM($X$2:X48),"") ->  | AB48: =IF(AND(EM!$J$33=1,$L48>=EM!$J$31),EM!$I$31,(IF(OR(EM!$I$31="",EM!$J$31="",EM!$J$33=""),"",IF(AND(EM!$I$31<>"",HGO!$AA48=TRUE,$L48>=EM!$J$31),EM!$I$31,"")))) ->  | AE48: =IF(L48<>"",IF(AND(EM!$F$36=1,$L48>=EM!$F$34),EM!$E$35,(IF(OR(EM!$E$35="",EM!$F$34="",EM!$F$36=""),0,IF(AND(EM!$E$35<>"",HGO!$AD48=TRUE,$L48>=EM!$F$34),EM!$E$35,0)))),"") ->  | AF48: =IF(L48="","",((IF(AND(T48=TRUE,L49<>48,EM!$A$22="Nein"),EM!$E$32+EM!$F$30+AC48+AE48,IF(AND(T48=TRUE,L49<>48,EM!$A$22="Ja"),DGK!$AE$8+EM!$F$30+AC48+AE48,IF(AND(T48=TRUE,L49=48,EM!$A$22="Nein"),EM!$E$32+AC48+AE48,IF(AND(T48=TRUE,L49=48,EM!$A$22="Ja",(EM!$A$6/HGO!L48)=1),DGK!$AE$6+AC48+AE48,IF(AND(T48=TRUE,L49=48,EM!$A$22="Ja",((EM!$A$6*2)/HGO!L48)=1),DGK!$AE$7+AC48+AE48,IF(AND(T48=TRUE,L49=48,EM!$A$22="Ja",AND((EM!$A$6/HGO!L48)<>1,((EM!$A$6*2)/HGO!L48)<>1)),DGK!$AE$8+AC48+AE48,0+AC48+AE48))))))))+(IF(L48=EM!$A$6,EM!$D$41))) ->  | AG48: =IF(MOD(EM!$A$4,HGO!B94)=0,HGO!B94,"") -> 47 | AH48: =INDEX(AG$2:AG$100,MATCH(LARGE(COUNTIF(AG$2:AG$100,">="&AG$2:AG$100)+100*ISNUMBER(AG$2:AG$100),ROWS(AG$2:AG48)),COUNTIF(AG$2:AG$100,">="&AG$2:AG$100)+100*ISNUMBER(AG$2:AG$100),0),1) -> 47
A49: 2 | B49: 2 | E49: Wassergehalt für Verkauf | L49: =IF(EM!$A$4>=48,48,"") ->  | M49: =IF(L49=48,(((1+EM!$C$4/100)^48)*EM!$C$4/100)/(((1+EM!$C$4/100)^48)-1),"") ->  | N49: =IF(EM!$A$8>=8,HGO!N7,"") ->  | O49: =IF(EM!$A$8>=8,HGO!$O$7,"") ->  | Q49: =IF(ROW(P49)>COUNTA(P:P),"",INDEX(P:P,SMALL(IF(P$1:P$241<>"",ROW($1:$241)),ROW(P49))))/((1+(EM!$C$4/100))^HGO!L49) ->  | R49: =IF(Q49<>"",SUM($Q$2:Q49),"") ->  | T49: =IF(EM!$A$6=1,TRUE,MOD(ROW(),EM!$A$6)=1) ->  | U49: =IF(L49="","",((IF(AND(T49=TRUE,L50<>49,EM!$A$22="Nein"),EM!$D$30+EM!$F$30+AC49+AE49,IF(AND(T49=TRUE,L50<>49,EM!$A$22="Ja"),DGK!$AE$8+EM!$F$30+AC49+AE49,IF(AND(T49=TRUE,L50=49,EM!$A$22="Nein"),EM!$D$30+AC49+AE49,IF(AND(T49=TRUE,L50=49,EM!$A$22="Ja",(EM!$A$6/HGO!L49)=1),DGK!$AE$6+AC49+AE49,IF(AND(T49=TRUE,L50=49,EM!$A$22="Ja",((EM!$A$6*2)/HGO!L49)=1),DGK!$AE$7+AC49+AE49,IF(AND(T49=TRUE,L50=49,EM!$A$22="Ja",AND((EM!$A$6/HGO!L49)<>1,((EM!$A$6*2)/HGO!L49)<>1)),DGK!$AE$8+AC49+AE49,0+AC49+AE49))))))))+(IF(L49=EM!$A$6,EM!$D$37))) ->  | V49: =IF(L49<>48,"",(IF(AND(T49=TRUE,L49=48),EM!$H$31,0))*(IF(L49=EM!$A$6,HGO!$C$40,IF(HGO!L49=2*EM!$A$6,HGO!$C$41,HGO!$C$42)))) ->  | X49: =IF(W49<>"",W49/(1+(EM!$C$4/100))^HGO!L49,"") ->  | Y49: =IF(X49<>"",SUM($X$2:X49),"") ->  | AB49: =IF(AND(EM!$J$33=1,$L49>=EM!$J$31),EM!$I$31,(IF(OR(EM!$I$31="",EM!$J$31="",EM!$J$33=""),"",IF(AND(EM!$I$31<>"",HGO!$AA49=TRUE,$L49>=EM!$J$31),EM!$I$31,"")))) ->  | AE49: =IF(L49<>"",IF(AND(EM!$F$36=1,$L49>=EM!$F$34),EM!$E$35,(IF(OR(EM!$E$35="",EM!$F$34="",EM!$F$36=""),0,IF(AND(EM!$E$35<>"",HGO!$AD49=TRUE,$L49>=EM!$F$34),EM!$E$35,0)))),"") ->  | AF49: =IF(L49="","",((IF(AND(T49=TRUE,L50<>49,EM!$A$22="Nein"),EM!$E$32+EM!$F$30+AC49+AE49,IF(AND(T49=TRUE,L50<>49,EM!$A$22="Ja"),DGK!$AE$8+EM!$F$30+AC49+AE49,IF(AND(T49=TRUE,L50=49,EM!$A$22="Nein"),EM!$E$32+AC49+AE49,IF(AND(T49=TRUE,L50=49,EM!$A$22="Ja",(EM!$A$6/HGO!L49)=1),DGK!$AE$6+AC49+AE49,IF(AND(T49=TRUE,L50=49,EM!$A$22="Ja",((EM!$A$6*2)/HGO!L49)=1),DGK!$AE$7+AC49+AE49,IF(AND(T49=TRUE,L50=49,EM!$A$22="Ja",AND((EM!$A$6/HGO!L49)<>1,((EM!$A$6*2)/HGO!L49)<>1)),DGK!$AE$8+AC49+AE49,0+AC49+AE49))))))))+(IF(L49=EM!$A$6,EM!$D$41))) ->  | AG49: =IF(MOD(EM!$A$4,HGO!B95)=0,HGO!B95,"") -> 48 | AH49: =INDEX(AG$2:AG$100,MATCH(LARGE(COUNTIF(AG$2:AG$100,">="&AG$2:AG$100)+100*ISNUMBER(AG$2:AG$100),ROWS(AG$2:AG49)),COUNTIF(AG$2:AG$100,">="&AG$2:AG$100)+100*ISNUMBER(AG$2:AG$100),0),1) -> 48
A50: 3 | B50: 3 | E50: Ernte | F50: Ernte | H50: WG in % | I50: WG in % | J50: Holzanteil | L50: =IF(EM!$A$4>=49,49,"") ->  | M50: =IF(L50=49,(((1+EM!$C$4/100)^49)*EM!$C$4/100)/(((1+EM!$C$4/100)^49)-1),"") ->  | N50: =IF(EM!$A$8>=9,HGO!N2,"") ->  | O50: =IF(EM!$A$8>=9,HGO!$O$2,"") ->  | Q50: =IF(ROW(P50)>COUNTA(P:P),"",INDEX(P:P,SMALL(IF(P$1:P$241<>"",ROW($1:$241)),ROW(P50))))/((1+(EM!$C$4/100))^HGO!L50) ->  | R50: =IF(Q50<>"",SUM($Q$2:Q50),"") ->  | T50: =IF(EM!$A$6=1,TRUE,MOD(ROW(),EM!$A$6)=1) ->  | U50: =IF(L50="","",((IF(AND(T50=TRUE,L51<>50,EM!$A$22="Nein"),EM!$D$30+EM!$F$30+AC50+AE50,IF(AND(T50=TRUE,L51<>50,EM!$A$22="Ja"),DGK!$AE$8+EM!$F$30+AC50+AE50,IF(AND(T50=TRUE,L51=50,EM!$A$22="Nein"),EM!$D$30+AC50+AE50,IF(AND(T50=TRUE,L51=50,EM!$A$22="Ja",(EM!$A$6/HGO!L50)=1),DGK!$AE$6+AC50+AE50,IF(AND(T50=TRUE,L51=50,EM!$A$22="Ja",((EM!$A$6*2)/HGO!L50)=1),DGK!$AE$7+AC50+AE50,IF(AND(T50=TRUE,L51=50,EM!$A$22="Ja",AND((EM!$A$6/HGO!L50)<>1,((EM!$A$6*2)/HGO!L50)<>1)),DGK!$AE$8+AC50+AE50,0+AC50+AE50))))))))+(IF(L50=EM!$A$6,EM!$D$37))) ->  | V50: =IF(L50<>49,"",(IF(AND(T50=TRUE,L50=49),EM!$H$31,0))*(IF(L50=EM!$A$6,HGO!$C$40,IF(HGO!L50=2*EM!$A$6,HGO!$C$41,HGO!$C$42)))) ->  | X50: =IF(W50<>"",W50/(1+(EM!$C$4/100))^HGO!L50,"") ->  | Y50: =IF(X50<>"",SUM($X$2:X50),"") ->  | AB50: =IF(AND(EM!$J$33=1,$L50>=EM!$J$31),EM!$I$31,(IF(OR(EM!$I$31="",EM!$J$31="",EM!$J$33=""),"",IF(AND(EM!$I$31<>"",HGO!$AA50=TRUE,$L50>=EM!$J$31),EM!$I$31,"")))) ->  | AE50: =IF(L50<>"",IF(AND(EM!$F$36=1,$L50>=EM!$F$34),EM!$E$35,(IF(OR(EM!$E$35="",EM!$F$34="",EM!$F$36=""),0,IF(AND(EM!$E$35<>"",HGO!$AD50=TRUE,$L50>=EM!$F$34),EM!$E$35,0)))),"") ->  | AF50: =IF(L50="","",((IF(AND(T50=TRUE,L51<>50,EM!$A$22="Nein"),EM!$E$32+EM!$F$30+AC50+AE50,IF(AND(T50=TRUE,L51<>50,EM!$A$22="Ja"),DGK!$AE$8+EM!$F$30+AC50+AE50,IF(AND(T50=TRUE,L51=50,EM!$A$22="Nein"),EM!$E$32+AC50+AE50,IF(AND(T50=TRUE,L51=50,EM!$A$22="Ja",(EM!$A$6/HGO!L50)=1),DGK!$AE$6+AC50+AE50,IF(AND(T50=TRUE,L51=50,EM!$A$22="Ja",((EM!$A$6*2)/HGO!L50)=1),DGK!$AE$7+AC50+AE50,IF(AND(T50=TRUE,L51=50,EM!$A$22="Ja",AND((EM!$A$6/HGO!L50)<>1,((EM!$A$6*2)/HGO!L50)<>1)),DGK!$AE$8+AC50+AE50,0+AC50+AE50))))))))+(IF(L50=EM!$A$6,EM!$D$41))) ->  | AG50: =IF(MOD(EM!$A$4,HGO!B96)=0,HGO!B96,"") -> 49 | AH50: =INDEX(AG$2:AG$100,MATCH(LARGE(COUNTIF(AG$2:AG$100,">="&AG$2:AG$100)+100*ISNUMBER(AG$2:AG$100),ROWS(AG$2:AG50)),COUNTIF(AG$2:AG$100,">="&AG$2:AG$100)+100*ISNUMBER(AG$2:AG$100),0),1) -> 49
A51: 4 | B51: 4 | E51: =EM!A14 ->  | F51: =IF(J51=0,"bitte Wassergehalt anpassen",E51/(HGO!J51/100)) ->  | H51: =EM!B8 -> 0 | I51: =H51 -> 0 | J51: =100-I51 -> 100 | L51: =IF(EM!$A$4>=50,50,"") ->  | M51: =IF(L51=50,(((1+EM!$C$4/100)^50)*EM!$C$4/100)/(((1+EM!$C$4/100)^50)-1),"") ->  | N51: =IF(EM!$A$8>=9,HGO!N3,"") ->  | O51: =IF(EM!$A$8>=9,HGO!$O$3,"") ->  | Q51: =IF(ROW(P51)>COUNTA(P:P),"",INDEX(P:P,SMALL(IF(P$1:P$241<>"",ROW($1:$241)),ROW(P51))))/((1+(EM!$C$4/100))^HGO!L51) ->  | R51: =IF(Q51<>"",SUM($Q$2:Q51),"") ->  | T51: =IF(EM!$A$6=1,TRUE,MOD(ROW(),EM!$A$6)=1) ->  | U51: =IF(L51="","",((IF(AND(T51=TRUE,L52<>51,EM!$A$22="Nein"),EM!$D$30+EM!$F$30+AC51+AE51,IF(AND(T51=TRUE,L52<>51,EM!$A$22="Ja"),DGK!$AE$8+EM!$F$30+AC51+AE51,IF(AND(T51=TRUE,L52=51,EM!$A$22="Nein"),EM!$D$30+AC51+AE51,IF(AND(T51=TRUE,L52=51,EM!$A$22="Ja",(EM!$A$6/HGO!L51)=1),DGK!$AE$6+AC51+AE51,IF(AND(T51=TRUE,L52=51,EM!$A$22="Ja",((EM!$A$6*2)/HGO!L51)=1),DGK!$AE$7+AC51+AE51,IF(AND(T51=TRUE,L52=51,EM!$A$22="Ja",AND((EM!$A$6/HGO!L51)<>1,((EM!$A$6*2)/HGO!L51)<>1)),DGK!$AE$8+AC51+AE51,0+AC51+AE51))))))))+(IF(L51=EM!$A$6,EM!$D$37))) ->  | V51: =IF(L51<>50,"",(IF(AND(T51=TRUE,L51=50),EM!$H$31,0))*(IF(L51=EM!$A$6,HGO!$C$40,IF(HGO!L51=2*EM!$A$6,HGO!$C$41,HGO!$C$42)))) ->  | X51: =IF(W51<>"",W51/(1+(EM!$C$4/100))^HGO!L51,"") ->  | Y51: =IF(X51<>"",SUM($X$2:X51),"") ->  | AB51: =IF(AND(EM!$J$33=1,$L51>=EM!$J$31),EM!$I$31,(IF(OR(EM!$I$31="",EM!$J$31="",EM!$J$33=""),"",IF(AND(EM!$I$31<>"",HGO!$AA51=TRUE,$L51>=EM!$J$31),EM!$I$31,"")))) ->  | AE51: =IF(L51<>"",IF(AND(EM!$F$36=1,$L51>=EM!$F$34),EM!$E$35,(IF(OR(EM!$E$35="",EM!$F$34="",EM!$F$36=""),0,IF(AND(EM!$E$35<>"",HGO!$AD51=TRUE,$L51>=EM!$F$34),EM!$E$35,0)))),"") ->  | AF51: =IF(L51="","",((IF(AND(T51=TRUE,L52<>51,EM!$A$22="Nein"),EM!$E$32+EM!$F$30+AC51+AE51,IF(AND(T51=TRUE,L52<>51,EM!$A$22="Ja"),DGK!$AE$8+EM!$F$30+AC51+AE51,IF(AND(T51=TRUE,L52=51,EM!$A$22="Nein"),EM!$E$32+AC51+AE51,IF(AND(T51=TRUE,L52=51,EM!$A$22="Ja",(EM!$A$6/HGO!L51)=1),DGK!$AE$6+AC51+AE51,IF(AND(T51=TRUE,L52=51,EM!$A$22="Ja",((EM!$A$6*2)/HGO!L51)=1),DGK!$AE$7+AC51+AE51,IF(AND(T51=TRUE,L52=51,EM!$A$22="Ja",AND((EM!$A$6/HGO!L51)<>1,((EM!$A$6*2)/HGO!L51)<>1)),DGK!$AE$8+AC51+AE51,0+AC51+AE51))))))))+(IF(L51=EM!$A$6,EM!$D$41))) ->  | AG51: =IF(MOD(EM!$A$4,HGO!B97)=0,HGO!B97,"") -> 50 | AH51: =INDEX(AG$2:AG$100,MATCH(LARGE(COUNTIF(AG$2:AG$100,">="&AG$2:AG$100)+100*ISNUMBER(AG$2:AG$100),ROWS(AG$2:AG51)),COUNTIF(AG$2:AG$100,">="&AG$2:AG$100)+100*ISNUMBER(AG$2:AG$100),0),1) -> 50
A52: 5 | B52: 5 | E52: Wassergehalt für energet. Eigenverwertung | L52: =IF(EM!$A$4>=51,51,"") ->  | M52: =IF(L52=51,(((1+EM!$C$4/100)^51)*EM!$C$4/100)/(((1+EM!$C$4/100)^51)-1),"") ->  | N52: =IF(EM!$A$8>=9,HGO!N4,"") ->  | O52: =IF(EM!$A$8>=9,HGO!$O$4,"") ->  | Q52: =IF(ROW(P52)>COUNTA(P:P),"",INDEX(P:P,SMALL(IF(P$1:P$241<>"",ROW($1:$241)),ROW(P52))))/((1+(EM!$C$4/100))^HGO!L52) ->  | R52: =IF(Q52<>"",SUM($Q$2:Q52),"") ->  | T52: =IF(EM!$A$6=1,TRUE,MOD(ROW(),EM!$A$6)=1) ->  | U52: =IF(L52="","",((IF(AND(T52=TRUE,L53<>52,EM!$A$22="Nein"),EM!$D$30+EM!$F$30+AC52+AE52,IF(AND(T52=TRUE,L53<>52,EM!$A$22="Ja"),DGK!$AE$8+EM!$F$30+AC52+AE52,IF(AND(T52=TRUE,L53=52,EM!$A$22="Nein"),EM!$D$30+AC52+AE52,IF(AND(T52=TRUE,L53=52,EM!$A$22="Ja",(EM!$A$6/HGO!L52)=1),DGK!$AE$6+AC52+AE52,IF(AND(T52=TRUE,L53=52,EM!$A$22="Ja",((EM!$A$6*2)/HGO!L52)=1),DGK!$AE$7+AC52+AE52,IF(AND(T52=TRUE,L53=52,EM!$A$22="Ja",AND((EM!$A$6/HGO!L52)<>1,((EM!$A$6*2)/HGO!L52)<>1)),DGK!$AE$8+AC52+AE52,0+AC52+AE52))))))))+(IF(L52=EM!$A$6,EM!$D$37))) ->  | V52: =IF(L52<>51,"",(IF(AND(T52=TRUE,L52=51),EM!$H$31,0))*(IF(L52=EM!$A$6,HGO!$C$40,IF(HGO!L52=2*EM!$A$6,HGO!$C$41,HGO!$C$42)))) ->  | X52: =IF(W52<>"",W52/(1+(EM!$C$4/100))^HGO!L52,"") ->  | Y52: =IF(X52<>"",SUM($X$2:X52),"") ->  | AB52: =IF(AND(EM!$J$33=1,$L52>=EM!$J$31),EM!$I$31,(IF(OR(EM!$I$31="",EM!$J$31="",EM!$J$33=""),"",IF(AND(EM!$I$31<>"",HGO!$AA52=TRUE,$L52>=EM!$J$31),EM!$I$31,"")))) ->  | AE52: =IF(L52<>"",IF(AND(EM!$F$36=1,$L52>=EM!$F$34),EM!$E$35,(IF(OR(EM!$E$35="",EM!$F$34="",EM!$F$36=""),0,IF(AND(EM!$E$35<>"",HGO!$AD52=TRUE,$L52>=EM!$F$34),EM!$E$35,0)))),"") ->  | AF52: =IF(L52="","",((IF(AND(T52=TRUE,L53<>52,EM!$A$22="Nein"),EM!$E$32+EM!$F$30+AC52+AE52,IF(AND(T52=TRUE,L53<>52,EM!$A$22="Ja"),DGK!$AE$8+EM!$F$30+AC52+AE52,IF(AND(T52=TRUE,L53=52,EM!$A$22="Nein"),EM!$E$32+AC52+AE52,IF(AND(T52=TRUE,L53=52,EM!$A$22="Ja",(EM!$A$6/HGO!L52)=1),DGK!$AE$6+AC52+AE52,IF(AND(T52=TRUE,L53=52,EM!$A$22="Ja",((EM!$A$6*2)/HGO!L52)=1),DGK!$AE$7+AC52+AE52,IF(AND(T52=TRUE,L53=52,EM!$A$22="Ja",AND((EM!$A$6/HGO!L52)<>1,((EM!$A$6*2)/HGO!L52)<>1)),DGK!$AE$8+AC52+AE52,0+AC52+AE52))))))))+(IF(L52=EM!$A$6,EM!$D$41))) ->  | AG52: =IF(MOD(EM!$A$4,HGO!B98)=0,HGO!B98,"") -> 51 | AH52: =INDEX(AG$2:AG$100,MATCH(LARGE(COUNTIF(AG$2:AG$100,">="&AG$2:AG$100)+100*ISNUMBER(AG$2:AG$100),ROWS(AG$2:AG52)),COUNTIF(AG$2:AG$100,">="&AG$2:AG$100)+100*ISNUMBER(AG$2:AG$100),0),1) -> 51
A53: 6 | B53: 6 | E53: Ernte | F53: Ernte | H53: WG in % | I53: WG in % | J53: Holzanteil | L53: =IF(EM!$A$4>=52,52,"") ->  | M53: =IF(L53=52,(((1+EM!$C$4/100)^52)*EM!$C$4/100)/(((1+EM!$C$4/100)^52)-1),"") ->  | N53: =IF(EM!$A$8>=9,HGO!N5,"") ->  | O53: =IF(EM!$A$8>=9,HGO!$O$5,"") ->  | Q53: =IF(ROW(P53)>COUNTA(P:P),"",INDEX(P:P,SMALL(IF(P$1:P$241<>"",ROW($1:$241)),ROW(P53))))/((1+(EM!$C$4/100))^HGO!L53) ->  | R53: =IF(Q53<>"",SUM($Q$2:Q53),"") ->  | T53: =IF(EM!$A$6=1,TRUE,MOD(ROW(),EM!$A$6)=1) ->  | U53: =IF(L53="","",((IF(AND(T53=TRUE,L54<>53,EM!$A$22="Nein"),EM!$D$30+EM!$F$30+AC53+AE53,IF(AND(T53=TRUE,L54<>53,EM!$A$22="Ja"),DGK!$AE$8+EM!$F$30+AC53+AE53,IF(AND(T53=TRUE,L54=53,EM!$A$22="Nein"),EM!$D$30+AC53+AE53,IF(AND(T53=TRUE,L54=53,EM!$A$22="Ja",(EM!$A$6/HGO!L53)=1),DGK!$AE$6+AC53+AE53,IF(AND(T53=TRUE,L54=53,EM!$A$22="Ja",((EM!$A$6*2)/HGO!L53)=1),DGK!$AE$7+AC53+AE53,IF(AND(T53=TRUE,L54=53,EM!$A$22="Ja",AND((EM!$A$6/HGO!L53)<>1,((EM!$A$6*2)/HGO!L53)<>1)),DGK!$AE$8+AC53+AE53,0+AC53+AE53))))))))+(IF(L53=EM!$A$6,EM!$D$37))) ->  | V53: =IF(L53<>52,"",(IF(AND(T53=TRUE,L53=52),EM!$H$31,0))*(IF(L53=EM!$A$6,HGO!$C$40,IF(HGO!L53=2*EM!$A$6,HGO!$C$41,HGO!$C$42)))) ->  | X53: =IF(W53<>"",W53/(1+(EM!$C$4/100))^HGO!L53,"") ->  | Y53: =IF(X53<>"",SUM($X$2:X53),"") ->  | AB53: =IF(AND(EM!$J$33=1,$L53>=EM!$J$31),EM!$I$31,(IF(OR(EM!$I$31="",EM!$J$31="",EM!$J$33=""),"",IF(AND(EM!$I$31<>"",HGO!$AA53=TRUE,$L53>=EM!$J$31),EM!$I$31,"")))) ->  | AE53: =IF(L53<>"",IF(AND(EM!$F$36=1,$L53>=EM!$F$34),EM!$E$35,(IF(OR(EM!$E$35="",EM!$F$34="",EM!$F$36=""),0,IF(AND(EM!$E$35<>"",HGO!$AD53=TRUE,$L53>=EM!$F$34),EM!$E$35,0)))),"") ->  | AF53: =IF(L53="","",((IF(AND(T53=TRUE,L54<>53,EM!$A$22="Nein"),EM!$E$32+EM!$F$30+AC53+AE53,IF(AND(T53=TRUE,L54<>53,EM!$A$22="Ja"),DGK!$AE$8+EM!$F$30+AC53+AE53,IF(AND(T53=TRUE,L54=53,EM!$A$22="Nein"),EM!$E$32+AC53+AE53,IF(AND(T53=TRUE,L54=53,EM!$A$22="Ja",(EM!$A$6/HGO!L53)=1),DGK!$AE$6+AC53+AE53,IF(AND(T53=TRUE,L54=53,EM!$A$22="Ja",((EM!$A$6*2)/HGO!L53)=1),DGK!$AE$7+AC53+AE53,IF(AND(T53=TRUE,L54=53,EM!$A$22="Ja",AND((EM!$A$6/HGO!L53)<>1,((EM!$A$6*2)/HGO!L53)<>1)),DGK!$AE$8+AC53+AE53,0+AC53+AE53))))))))+(IF(L53=EM!$A$6,EM!$D$41))) ->  | AG53: =IF(MOD(EM!$A$4,HGO!B99)=0,HGO!B99,"") -> 52 | AH53: =INDEX(AG$2:AG$100,MATCH(LARGE(COUNTIF(AG$2:AG$100,">="&AG$2:AG$100)+100*ISNUMBER(AG$2:AG$100),ROWS(AG$2:AG53)),COUNTIF(AG$2:AG$100,">="&AG$2:AG$100)+100*ISNUMBER(AG$2:AG$100),0),1) -> 52
A54: 8 | B54: 7 | E54: =EM!A14 ->  | F54: =IF(J54=0,"bitte Wassergehalt anpassen",E54/(HGO!J54/100)) ->  | H54: =EM!B4 -> 0 | I54: =H54 -> 0 | J54: =100-I54 -> 100 | L54: =IF(EM!$A$4>=53,53,"") ->  | M54: =IF(L54=53,(((1+EM!$C$4/100)^53)*EM!$C$4/100)/(((1+EM!$C$4/100)^53)-1),"") ->  | N54: =IF(EM!$A$8>=9,HGO!N6,"") ->  | O54: =IF(EM!$A$8>=9,HGO!$O$6,"") ->  | Q54: =IF(ROW(P54)>COUNTA(P:P),"",INDEX(P:P,SMALL(IF(P$1:P$241<>"",ROW($1:$241)),ROW(P54))))/((1+(EM!$C$4/100))^HGO!L54) ->  | R54: =IF(Q54<>"",SUM($Q$2:Q54),"") ->  | T54: =IF(EM!$A$6=1,TRUE,MOD(ROW(),EM!$A$6)=1) ->  | U54: =IF(L54="","",((IF(AND(T54=TRUE,L55<>54,EM!$A$22="Nein"),EM!$D$30+EM!$F$30+AC54+AE54,IF(AND(T54=TRUE,L55<>54,EM!$A$22="Ja"),DGK!$AE$8+EM!$F$30+AC54+AE54,IF(AND(T54=TRUE,L55=54,EM!$A$22="Nein"),EM!$D$30+AC54+AE54,IF(AND(T54=TRUE,L55=54,EM!$A$22="Ja",(EM!$A$6/HGO!L54)=1),DGK!$AE$6+AC54+AE54,IF(AND(T54=TRUE,L55=54,EM!$A$22="Ja",((EM!$A$6*2)/HGO!L54)=1),DGK!$AE$7+AC54+AE54,IF(AND(T54=TRUE,L55=54,EM!$A$22="Ja",AND((EM!$A$6/HGO!L54)<>1,((EM!$A$6*2)/HGO!L54)<>1)),DGK!$AE$8+AC54+AE54,0+AC54+AE54))))))))+(IF(L54=EM!$A$6,EM!$D$37))) ->  | V54: =IF(L54<>53,"",(IF(AND(T54=TRUE,L54=53),EM!$H$31,0))*(IF(L54=EM!$A$6,HGO!$C$40,IF(HGO!L54=2*EM!$A$6,HGO!$C$41,HGO!$C$42)))) ->  | X54: =IF(W54<>"",W54/(1+(EM!$C$4/100))^HGO!L54,"") ->  | Y54: =IF(X54<>"",SUM($X$2:X54),"") ->  | AB54: =IF(AND(EM!$J$33=1,$L54>=EM!$J$31),EM!$I$31,(IF(OR(EM!$I$31="",EM!$J$31="",EM!$J$33=""),"",IF(AND(EM!$I$31<>"",HGO!$AA54=TRUE,$L54>=EM!$J$31),EM!$I$31,"")))) ->  | AE54: =IF(L54<>"",IF(AND(EM!$F$36=1,$L54>=EM!$F$34),EM!$E$35,(IF(OR(EM!$E$35="",EM!$F$34="",EM!$F$36=""),0,IF(AND(EM!$E$35<>"",HGO!$AD54=TRUE,$L54>=EM!$F$34),EM!$E$35,0)))),"") ->  | AF54: =IF(L54="","",((IF(AND(T54=TRUE,L55<>54,EM!$A$22="Nein"),EM!$E$32+EM!$F$30+AC54+AE54,IF(AND(T54=TRUE,L55<>54,EM!$A$22="Ja"),DGK!$AE$8+EM!$F$30+AC54+AE54,IF(AND(T54=TRUE,L55=54,EM!$A$22="Nein"),EM!$E$32+AC54+AE54,IF(AND(T54=TRUE,L55=54,EM!$A$22="Ja",(EM!$A$6/HGO!L54)=1),DGK!$AE$6+AC54+AE54,IF(AND(T54=TRUE,L55=54,EM!$A$22="Ja",((EM!$A$6*2)/HGO!L54)=1),DGK!$AE$7+AC54+AE54,IF(AND(T54=TRUE,L55=54,EM!$A$22="Ja",AND((EM!$A$6/HGO!L54)<>1,((EM!$A$6*2)/HGO!L54)<>1)),DGK!$AE$8+AC54+AE54,0+AC54+AE54))))))))+(IF(L54=EM!$A$6,EM!$D$41))) ->  | AG54: =IF(MOD(EM!$A$4,HGO!B100)=0,HGO!B100,"") -> 53 | AH54: =INDEX(AG$2:AG$100,MATCH(LARGE(COUNTIF(AG$2:AG$100,">="&AG$2:AG$100)+100*ISNUMBER(AG$2:AG$100),ROWS(AG$2:AG54)),COUNTIF(AG$2:AG$100,">="&AG$2:AG$100)+100*ISNUMBER(AG$2:AG$100),0),1) -> 53
A55: 9 | B55: 8 | L55: =IF(EM!$A$4>=54,54,"") ->  | M55: =IF(L55=54,(((1+EM!$C$4/100)^54)*EM!$C$4/100)/(((1+EM!$C$4/100)^54)-1),"") ->  | N55: =IF(EM!$A$8>=9,HGO!N7,"") ->  | O55: =IF(EM!$A$8>=9,HGO!$O$7,"") ->  | Q55: =IF(ROW(P55)>COUNTA(P:P),"",INDEX(P:P,SMALL(IF(P$1:P$241<>"",ROW($1:$241)),ROW(P55))))/((1+(EM!$C$4/100))^HGO!L55) ->  | R55: =IF(Q55<>"",SUM($Q$2:Q55),"") ->  | T55: =IF(EM!$A$6=1,TRUE,MOD(ROW(),EM!$A$6)=1) ->  | U55: =IF(L55="","",((IF(AND(T55=TRUE,L56<>55,EM!$A$22="Nein"),EM!$D$30+EM!$F$30+AC55+AE55,IF(AND(T55=TRUE,L56<>55,EM!$A$22="Ja"),DGK!$AE$8+EM!$F$30+AC55+AE55,IF(AND(T55=TRUE,L56=55,EM!$A$22="Nein"),EM!$D$30+AC55+AE55,IF(AND(T55=TRUE,L56=55,EM!$A$22="Ja",(EM!$A$6/HGO!L55)=1),DGK!$AE$6+AC55+AE55,IF(AND(T55=TRUE,L56=55,EM!$A$22="Ja",((EM!$A$6*2)/HGO!L55)=1),DGK!$AE$7+AC55+AE55,IF(AND(T55=TRUE,L56=55,EM!$A$22="Ja",AND((EM!$A$6/HGO!L55)<>1,((EM!$A$6*2)/HGO!L55)<>1)),DGK!$AE$8+AC55+AE55,0+AC55+AE55))))))))+(IF(L55=EM!$A$6,EM!$D$37))) ->  | V55: =IF(L55<>54,"",(IF(AND(T55=TRUE,L55=54),EM!$H$31,0))*(IF(L55=EM!$A$6,HGO!$C$40,IF(HGO!L55=2*EM!$A$6,HGO!$C$41,HGO!$C$42)))) ->  | X55: =IF(W55<>"",W55/(1+(EM!$C$4/100))^HGO!L55,"") ->  | Y55: =IF(X55<>"",SUM($X$2:X55),"") ->  | AB55: =IF(AND(EM!$J$33=1,$L55>=EM!$J$31),EM!$I$31,(IF(OR(EM!$I$31="",EM!$J$31="",EM!$J$33=""),"",IF(AND(EM!$I$31<>"",HGO!$AA55=TRUE,$L55>=EM!$J$31),EM!$I$31,"")))) ->  | AE55: =IF(L55<>"",IF(AND(EM!$F$36=1,$L55>=EM!$F$34),EM!$E$35,(IF(OR(EM!$E$35="",EM!$F$34="",EM!$F$36=""),0,IF(AND(EM!$E$35<>"",HGO!$AD55=TRUE,$L55>=EM!$F$34),EM!$E$35,0)))),"") ->  | AF55: =IF(L55="","",((IF(AND(T55=TRUE,L56<>55,EM!$A$22="Nein"),EM!$E$32+EM!$F$30+AC55+AE55,IF(AND(T55=TRUE,L56<>55,EM!$A$22="Ja"),DGK!$AE$8+EM!$F$30+AC55+AE55,IF(AND(T55=TRUE,L56=55,EM!$A$22="Nein"),EM!$E$32+AC55+AE55,IF(AND(T55=TRUE,L56=55,EM!$A$22="Ja",(EM!$A$6/HGO!L55)=1),DGK!$AE$6+AC55+AE55,IF(AND(T55=TRUE,L56=55,EM!$A$22="Ja",((EM!$A$6*2)/HGO!L55)=1),DGK!$AE$7+AC55+AE55,IF(AND(T55=TRUE,L56=55,EM!$A$22="Ja",AND((EM!$A$6/HGO!L55)<>1,((EM!$A$6*2)/HGO!L55)<>1)),DGK!$AE$8+AC55+AE55,0+AC55+AE55))))))))+(IF(L55=EM!$A$6,EM!$D$41))) ->  | AG55: =IF(MOD(EM!$A$4,HGO!B101)=0,HGO!B101,"") -> 54 | AH55: =INDEX(AG$2:AG$100,MATCH(LARGE(COUNTIF(AG$2:AG$100,">="&AG$2:AG$100)+100*ISNUMBER(AG$2:AG$100),ROWS(AG$2:AG55)),COUNTIF(AG$2:AG$100,">="&AG$2:AG$100)+100*ISNUMBER(AG$2:AG$100),0),1) -> 54
A56: 10 | B56: 9 | L56: =IF(EM!$A$4>=55,55,"") ->  | M56: =IF(L56=55,(((1+EM!$C$4/100)^55)*EM!$C$4/100)/(((1+EM!$C$4/100)^55)-1),"") ->  | N56: =IF(EM!$A$8>=10,HGO!N2,"") ->  | O56: =IF(EM!$A$8>=10,HGO!$O$2,"") ->  | Q56: =IF(ROW(P56)>COUNTA(P:P),"",INDEX(P:P,SMALL(IF(P$1:P$241<>"",ROW($1:$241)),ROW(P56))))/((1+(EM!$C$4/100))^HGO!L56) ->  | R56: =IF(Q56<>"",SUM($Q$2:Q56),"") ->  | T56: =IF(EM!$A$6=1,TRUE,MOD(ROW(),EM!$A$6)=1) ->  | U56: =IF(L56="","",((IF(AND(T56=TRUE,L57<>56,EM!$A$22="Nein"),EM!$D$30+EM!$F$30+AC56+AE56,IF(AND(T56=TRUE,L57<>56,EM!$A$22="Ja"),DGK!$AE$8+EM!$F$30+AC56+AE56,IF(AND(T56=TRUE,L57=56,EM!$A$22="Nein"),EM!$D$30+AC56+AE56,IF(AND(T56=TRUE,L57=56,EM!$A$22="Ja",(EM!$A$6/HGO!L56)=1),DGK!$AE$6+AC56+AE56,IF(AND(T56=TRUE,L57=56,EM!$A$22="Ja",((EM!$A$6*2)/HGO!L56)=1),DGK!$AE$7+AC56+AE56,IF(AND(T56=TRUE,L57=56,EM!$A$22="Ja",AND((EM!$A$6/HGO!L56)<>1,((EM!$A$6*2)/HGO!L56)<>1)),DGK!$AE$8+AC56+AE56,0+AC56+AE56))))))))+(IF(L56=EM!$A$6,EM!$D$37))) ->  | V56: =IF(L56<>55,"",(IF(AND(T56=TRUE,L56=55),EM!$H$31,0))*(IF(L56=EM!$A$6,HGO!$C$40,IF(HGO!L56=2*EM!$A$6,HGO!$C$41,HGO!$C$42)))) ->  | X56: =IF(W56<>"",W56/(1+(EM!$C$4/100))^HGO!L56,"") ->  | Y56: =IF(X56<>"",SUM($X$2:X56),"") ->  | AB56: =IF(AND(EM!$J$33=1,$L56>=EM!$J$31),EM!$I$31,(IF(OR(EM!$I$31="",EM!$J$31="",EM!$J$33=""),"",IF(AND(EM!$I$31<>"",HGO!$AA56=TRUE,$L56>=EM!$J$31),EM!$I$31,"")))) ->  | AE56: =IF(L56<>"",IF(AND(EM!$F$36=1,$L56>=EM!$F$34),EM!$E$35,(IF(OR(EM!$E$35="",EM!$F$34="",EM!$F$36=""),0,IF(AND(EM!$E$35<>"",HGO!$AD56=TRUE,$L56>=EM!$F$34),EM!$E$35,0)))),"") ->  | AF56: =IF(L56="","",((IF(AND(T56=TRUE,L57<>56,EM!$A$22="Nein"),EM!$E$32+EM!$F$30+AC56+AE56,IF(AND(T56=TRUE,L57<>56,EM!$A$22="Ja"),DGK!$AE$8+EM!$F$30+AC56+AE56,IF(AND(T56=TRUE,L57=56,EM!$A$22="Nein"),EM!$E$32+AC56+AE56,IF(AND(T56=TRUE,L57=56,EM!$A$22="Ja",(EM!$A$6/HGO!L56)=1),DGK!$AE$6+AC56+AE56,IF(AND(T56=TRUE,L57=56,EM!$A$22="Ja",((EM!$A$6*2)/HGO!L56)=1),DGK!$AE$7+AC56+AE56,IF(AND(T56=TRUE,L57=56,EM!$A$22="Ja",AND((EM!$A$6/HGO!L56)<>1,((EM!$A$6*2)/HGO!L56)<>1)),DGK!$AE$8+AC56+AE56,0+AC56+AE56))))))))+(IF(L56=EM!$A$6,EM!$D$41))) ->  | AG56: =IF(MOD(EM!$A$4,HGO!B102)=0,HGO!B102,"") -> 55 | AH56: =INDEX(AG$2:AG$100,MATCH(LARGE(COUNTIF(AG$2:AG$100,">="&AG$2:AG$100)+100*ISNUMBER(AG$2:AG$100),ROWS(AG$2:AG56)),COUNTIF(AG$2:AG$100,">="&AG$2:AG$100)+100*ISNUMBER(AG$2:AG$100),0),1) -> 55
A57: 12 | B57: 10 | L57: =IF(EM!$A$4>=56,56,"") ->  | M57: =IF(L57=56,(((1+EM!$C$4/100)^56)*EM!$C$4/100)/(((1+EM!$C$4/100)^56)-1),"") ->  | N57: =IF(EM!$A$8>=10,HGO!N3,"") ->  | O57: =IF(EM!$A$8>=10,HGO!$O$3,"") ->  | Q57: =IF(ROW(P57)>COUNTA(P:P),"",INDEX(P:P,SMALL(IF(P$1:P$241<>"",ROW($1:$241)),ROW(P57))))/((1+(EM!$C$4/100))^HGO!L57) ->  | R57: =IF(Q57<>"",SUM($Q$2:Q57),"") ->  | T57: =IF(EM!$A$6=1,TRUE,MOD(ROW(),EM!$A$6)=1) ->  | U57: =IF(L57="","",((IF(AND(T57=TRUE,L58<>57,EM!$A$22="Nein"),EM!$D$30+EM!$F$30+AC57+AE57,IF(AND(T57=TRUE,L58<>57,EM!$A$22="Ja"),DGK!$AE$8+EM!$F$30+AC57+AE57,IF(AND(T57=TRUE,L58=57,EM!$A$22="Nein"),EM!$D$30+AC57+AE57,IF(AND(T57=TRUE,L58=57,EM!$A$22="Ja",(EM!$A$6/HGO!L57)=1),DGK!$AE$6+AC57+AE57,IF(AND(T57=TRUE,L58=57,EM!$A$22="Ja",((EM!$A$6*2)/HGO!L57)=1),DGK!$AE$7+AC57+AE57,IF(AND(T57=TRUE,L58=57,EM!$A$22="Ja",AND((EM!$A$6/HGO!L57)<>1,((EM!$A$6*2)/HGO!L57)<>1)),DGK!$AE$8+AC57+AE57,0+AC57+AE57))))))))+(IF(L57=EM!$A$6,EM!$D$37))) ->  | V57: =IF(L57<>56,"",(IF(AND(T57=TRUE,L57=56),EM!$H$31,0))*(IF(L57=EM!$A$6,HGO!$C$40,IF(HGO!L57=2*EM!$A$6,HGO!$C$41,HGO!$C$42)))) ->  | X57: =IF(W57<>"",W57/(1+(EM!$C$4/100))^HGO!L57,"") ->  | Y57: =IF(X57<>"",SUM($X$2:X57),"") ->  | AB57: =IF(AND(EM!$J$33=1,$L57>=EM!$J$31),EM!$I$31,(IF(OR(EM!$I$31="",EM!$J$31="",EM!$J$33=""),"",IF(AND(EM!$I$31<>"",HGO!$AA57=TRUE,$L57>=EM!$J$31),EM!$I$31,"")))) ->  | AE57: =IF(L57<>"",IF(AND(EM!$F$36=1,$L57>=EM!$F$34),EM!$E$35,(IF(OR(EM!$E$35="",EM!$F$34="",EM!$F$36=""),0,IF(AND(EM!$E$35<>"",HGO!$AD57=TRUE,$L57>=EM!$F$34),EM!$E$35,0)))),"") ->  | AF57: =IF(L57="","",((IF(AND(T57=TRUE,L58<>57,EM!$A$22="Nein"),EM!$E$32+EM!$F$30+AC57+AE57,IF(AND(T57=TRUE,L58<>57,EM!$A$22="Ja"),DGK!$AE$8+EM!$F$30+AC57+AE57,IF(AND(T57=TRUE,L58=57,EM!$A$22="Nein"),EM!$E$32+AC57+AE57,IF(AND(T57=TRUE,L58=57,EM!$A$22="Ja",(EM!$A$6/HGO!L57)=1),DGK!$AE$6+AC57+AE57,IF(AND(T57=TRUE,L58=57,EM!$A$22="Ja",((EM!$A$6*2)/HGO!L57)=1),DGK!$AE$7+AC57+AE57,IF(AND(T57=TRUE,L58=57,EM!$A$22="Ja",AND((EM!$A$6/HGO!L57)<>1,((EM!$A$6*2)/HGO!L57)<>1)),DGK!$AE$8+AC57+AE57,0+AC57+AE57))))))))+(IF(L57=EM!$A$6,EM!$D$41))) ->  | AG57: =IF(MOD(EM!$A$4,HGO!B103)=0,HGO!B103,"") -> 56 | AH57: =INDEX(AG$2:AG$100,MATCH(LARGE(COUNTIF(AG$2:AG$100,">="&AG$2:AG$100)+100*ISNUMBER(AG$2:AG$100),ROWS(AG$2:AG57)),COUNTIF(AG$2:AG$100,">="&AG$2:AG$100)+100*ISNUMBER(AG$2:AG$100),0),1) -> 56
A58: 14 | B58: 11 | L58: =IF(EM!$A$4>=57,57,"") ->  | M58: =IF(L58=57,(((1+EM!$C$4/100)^57)*EM!$C$4/100)/(((1+EM!$C$4/100)^57)-1),"") ->  | N58: =IF(EM!$A$8>=10,HGO!N4,"") ->  | O58: =IF(EM!$A$8>=10,HGO!$O$4,"") ->  | Q58: =IF(ROW(P58)>COUNTA(P:P),"",INDEX(P:P,SMALL(IF(P$1:P$241<>"",ROW($1:$241)),ROW(P58))))/((1+(EM!$C$4/100))^HGO!L58) ->  | R58: =IF(Q58<>"",SUM($Q$2:Q58),"") ->  | T58: =IF(EM!$A$6=1,TRUE,MOD(ROW(),EM!$A$6)=1) ->  | U58: =IF(L58="","",((IF(AND(T58=TRUE,L59<>58,EM!$A$22="Nein"),EM!$D$30+EM!$F$30+AC58+AE58,IF(AND(T58=TRUE,L59<>58,EM!$A$22="Ja"),DGK!$AE$8+EM!$F$30+AC58+AE58,IF(AND(T58=TRUE,L59=58,EM!$A$22="Nein"),EM!$D$30+AC58+AE58,IF(AND(T58=TRUE,L59=58,EM!$A$22="Ja",(EM!$A$6/HGO!L58)=1),DGK!$AE$6+AC58+AE58,IF(AND(T58=TRUE,L59=58,EM!$A$22="Ja",((EM!$A$6*2)/HGO!L58)=1),DGK!$AE$7+AC58+AE58,IF(AND(T58=TRUE,L59=58,EM!$A$22="Ja",AND((EM!$A$6/HGO!L58)<>1,((EM!$A$6*2)/HGO!L58)<>1)),DGK!$AE$8+AC58+AE58,0+AC58+AE58))))))))+(IF(L58=EM!$A$6,EM!$D$37))) ->  | V58: =IF(L58<>57,"",(IF(AND(T58=TRUE,L58=57),EM!$H$31,0))*(IF(L58=EM!$A$6,HGO!$C$40,IF(HGO!L58=2*EM!$A$6,HGO!$C$41,HGO!$C$42)))) ->  | X58: =IF(W58<>"",W58/(1+(EM!$C$4/100))^HGO!L58,"") ->  | Y58: =IF(X58<>"",SUM($X$2:X58),"") ->  | AB58: =IF(AND(EM!$J$33=1,$L58>=EM!$J$31),EM!$I$31,(IF(OR(EM!$I$31="",EM!$J$31="",EM!$J$33=""),"",IF(AND(EM!$I$31<>"",HGO!$AA58=TRUE,$L58>=EM!$J$31),EM!$I$31,"")))) ->  | AE58: =IF(L58<>"",IF(AND(EM!$F$36=1,$L58>=EM!$F$34),EM!$E$35,(IF(OR(EM!$E$35="",EM!$F$34="",EM!$F$36=""),0,IF(AND(EM!$E$35<>"",HGO!$AD58=TRUE,$L58>=EM!$F$34),EM!$E$35,0)))),"") ->  | AF58: =IF(L58="","",((IF(AND(T58=TRUE,L59<>58,EM!$A$22="Nein"),EM!$E$32+EM!$F$30+AC58+AE58,IF(AND(T58=TRUE,L59<>58,EM!$A$22="Ja"),DGK!$AE$8+EM!$F$30+AC58+AE58,IF(AND(T58=TRUE,L59=58,EM!$A$22="Nein"),EM!$E$32+AC58+AE58,IF(AND(T58=TRUE,L59=58,EM!$A$22="Ja",(EM!$A$6/HGO!L58)=1),DGK!$AE$6+AC58+AE58,IF(AND(T58=TRUE,L59=58,EM!$A$22="Ja",((EM!$A$6*2)/HGO!L58)=1),DGK!$AE$7+AC58+AE58,IF(AND(T58=TRUE,L59=58,EM!$A$22="Ja",AND((EM!$A$6/HGO!L58)<>1,((EM!$A$6*2)/HGO!L58)<>1)),DGK!$AE$8+AC58+AE58,0+AC58+AE58))))))))+(IF(L58=EM!$A$6,EM!$D$41))) ->  | AG58: =IF(MOD(EM!$A$4,HGO!B104)=0,HGO!B104,"") -> 57 | AH58: =INDEX(AG$2:AG$100,MATCH(LARGE(COUNTIF(AG$2:AG$100,">="&AG$2:AG$100)+100*ISNUMBER(AG$2:AG$100),ROWS(AG$2:AG58)),COUNTIF(AG$2:AG$100,">="&AG$2:AG$100)+100*ISNUMBER(AG$2:AG$100),0),1) -> 57
A59: 15 | B59: 12 | L59: =IF(EM!$A$4>=58,58,"") ->  | M59: =IF(L59=58,(((1+EM!$C$4/100)^58)*EM!$C$4/100)/(((1+EM!$C$4/100)^58)-1),"") ->  | N59: =IF(EM!$A$8>=10,HGO!N5,"") ->  | O59: =IF(EM!$A$8>=10,HGO!$O$5,"") ->  | Q59: =IF(ROW(P59)>COUNTA(P:P),"",INDEX(P:P,SMALL(IF(P$1:P$241<>"",ROW($1:$241)),ROW(P59))))/((1+(EM!$C$4/100))^HGO!L59) ->  | R59: =IF(Q59<>"",SUM($Q$2:Q59),"") ->  | T59: =IF(EM!$A$6=1,TRUE,MOD(ROW(),EM!$A$6)=1) ->  | U59: =IF(L59="","",((IF(AND(T59=TRUE,L60<>59,EM!$A$22="Nein"),EM!$D$30+EM!$F$30+AC59+AE59,IF(AND(T59=TRUE,L60<>59,EM!$A$22="Ja"),DGK!$AE$8+EM!$F$30+AC59+AE59,IF(AND(T59=TRUE,L60=59,EM!$A$22="Nein"),EM!$D$30+AC59+AE59,IF(AND(T59=TRUE,L60=59,EM!$A$22="Ja",(EM!$A$6/HGO!L59)=1),DGK!$AE$6+AC59+AE59,IF(AND(T59=TRUE,L60=59,EM!$A$22="Ja",((EM!$A$6*2)/HGO!L59)=1),DGK!$AE$7+AC59+AE59,IF(AND(T59=TRUE,L60=59,EM!$A$22="Ja",AND((EM!$A$6/HGO!L59)<>1,((EM!$A$6*2)/HGO!L59)<>1)),DGK!$AE$8+AC59+AE59,0+AC59+AE59))))))))+(IF(L59=EM!$A$6,EM!$D$37))) ->  | V59: =IF(L59<>58,"",(IF(AND(T59=TRUE,L59=58),EM!$H$31,0))*(IF(L59=EM!$A$6,HGO!$C$40,IF(HGO!L59=2*EM!$A$6,HGO!$C$41,HGO!$C$42)))) ->  | X59: =IF(W59<>"",W59/(1+(EM!$C$4/100))^HGO!L59,"") ->  | Y59: =IF(X59<>"",SUM($X$2:X59),"") ->  | AB59: =IF(AND(EM!$J$33=1,$L59>=EM!$J$31),EM!$I$31,(IF(OR(EM!$I$31="",EM!$J$31="",EM!$J$33=""),"",IF(AND(EM!$I$31<>"",HGO!$AA59=TRUE,$L59>=EM!$J$31),EM!$I$31,"")))) ->  | AE59: =IF(L59<>"",IF(AND(EM!$F$36=1,$L59>=EM!$F$34),EM!$E$35,(IF(OR(EM!$E$35="",EM!$F$34="",EM!$F$36=""),0,IF(AND(EM!$E$35<>"",HGO!$AD59=TRUE,$L59>=EM!$F$34),EM!$E$35,0)))),"") ->  | AF59: =IF(L59="","",((IF(AND(T59=TRUE,L60<>59,EM!$A$22="Nein"),EM!$E$32+EM!$F$30+AC59+AE59,IF(AND(T59=TRUE,L60<>59,EM!$A$22="Ja"),DGK!$AE$8+EM!$F$30+AC59+AE59,IF(AND(T59=TRUE,L60=59,EM!$A$22="Nein"),EM!$E$32+AC59+AE59,IF(AND(T59=TRUE,L60=59,EM!$A$22="Ja",(EM!$A$6/HGO!L59)=1),DGK!$AE$6+AC59+AE59,IF(AND(T59=TRUE,L60=59,EM!$A$22="Ja",((EM!$A$6*2)/HGO!L59)=1),DGK!$AE$7+AC59+AE59,IF(AND(T59=TRUE,L60=59,EM!$A$22="Ja",AND((EM!$A$6/HGO!L59)<>1,((EM!$A$6*2)/HGO!L59)<>1)),DGK!$AE$8+AC59+AE59,0+AC59+AE59))))))))+(IF(L59=EM!$A$6,EM!$D$41))) ->  | AG59: =IF(MOD(EM!$A$4,HGO!B105)=0,HGO!B105,"") -> 58 | AH59: =INDEX(AG$2:AG$100,MATCH(LARGE(COUNTIF(AG$2:AG$100,">="&AG$2:AG$100)+100*ISNUMBER(AG$2:AG$100),ROWS(AG$2:AG59)),COUNTIF(AG$2:AG$100,">="&AG$2:AG$100)+100*ISNUMBER(AG$2:AG$100),0),1) -> 58
A60: 16 | B60: 13 | L60: =IF(EM!$A$4>=59,59,"") ->  | M60: =IF(L60=59,(((1+EM!$C$4/100)^59)*EM!$C$4/100)/(((1+EM!$C$4/100)^59)-1),"") ->  | N60: =IF(EM!$A$8>=10,HGO!N6,"") ->  | O60: =IF(EM!$A$8>=10,HGO!$O$6,"") ->  | Q60: =IF(ROW(P60)>COUNTA(P:P),"",INDEX(P:P,SMALL(IF(P$1:P$241<>"",ROW($1:$241)),ROW(P60))))/((1+(EM!$C$4/100))^HGO!L60) ->  | R60: =IF(Q60<>"",SUM($Q$2:Q60),"") ->  | T60: =IF(EM!$A$6=1,TRUE,MOD(ROW(),EM!$A$6)=1) ->  | U60: =IF(L60="","",((IF(AND(T60=TRUE,L61<>60,EM!$A$22="Nein"),EM!$D$30+EM!$F$30+AC60+AE60,IF(AND(T60=TRUE,L61<>60,EM!$A$22="Ja"),DGK!$AE$8+EM!$F$30+AC60+AE60,IF(AND(T60=TRUE,L61=60,EM!$A$22="Nein"),EM!$D$30+AC60+AE60,IF(AND(T60=TRUE,L61=60,EM!$A$22="Ja",(EM!$A$6/HGO!L60)=1),DGK!$AE$6+AC60+AE60,IF(AND(T60=TRUE,L61=60,EM!$A$22="Ja",((EM!$A$6*2)/HGO!L60)=1),DGK!$AE$7+AC60+AE60,IF(AND(T60=TRUE,L61=60,EM!$A$22="Ja",AND((EM!$A$6/HGO!L60)<>1,((EM!$A$6*2)/HGO!L60)<>1)),DGK!$AE$8+AC60+AE60,0+AC60+AE60))))))))+(IF(L60=EM!$A$6,EM!$D$37))) ->  | V60: =IF(L60<>59,"",(IF(AND(T60=TRUE,L60=59),EM!$H$31,0))*(IF(L60=EM!$A$6,HGO!$C$40,IF(HGO!L60=2*EM!$A$6,HGO!$C$41,HGO!$C$42)))) ->  | X60: =IF(W60<>"",W60/(1+(EM!$C$4/100))^HGO!L60,"") ->  | Y60: =IF(X60<>"",SUM($X$2:X60),"") ->  | AB60: =IF(AND(EM!$J$33=1,$L60>=EM!$J$31),EM!$I$31,(IF(OR(EM!$I$31="",EM!$J$31="",EM!$J$33=""),"",IF(AND(EM!$I$31<>"",HGO!$AA60=TRUE,$L60>=EM!$J$31),EM!$I$31,"")))) ->  | AE60: =IF(L60<>"",IF(AND(EM!$F$36=1,$L60>=EM!$F$34),EM!$E$35,(IF(OR(EM!$E$35="",EM!$F$34="",EM!$F$36=""),0,IF(AND(EM!$E$35<>"",HGO!$AD60=TRUE,$L60>=EM!$F$34),EM!$E$35,0)))),"") ->  | AF60: =IF(L60="","",((IF(AND(T60=TRUE,L61<>60,EM!$A$22="Nein"),EM!$E$32+EM!$F$30+AC60+AE60,IF(AND(T60=TRUE,L61<>60,EM!$A$22="Ja"),DGK!$AE$8+EM!$F$30+AC60+AE60,IF(AND(T60=TRUE,L61=60,EM!$A$22="Nein"),EM!$E$32+AC60+AE60,IF(AND(T60=TRUE,L61=60,EM!$A$22="Ja",(EM!$A$6/HGO!L60)=1),DGK!$AE$6+AC60+AE60,IF(AND(T60=TRUE,L61=60,EM!$A$22="Ja",((EM!$A$6*2)/HGO!L60)=1),DGK!$AE$7+AC60+AE60,IF(AND(T60=TRUE,L61=60,EM!$A$22="Ja",AND((EM!$A$6/HGO!L60)<>1,((EM!$A$6*2)/HGO!L60)<>1)),DGK!$AE$8+AC60+AE60,0+AC60+AE60))))))))+(IF(L60=EM!$A$6,EM!$D$41))) ->  | AG60: =IF(MOD(EM!$A$4,HGO!B106)=0,HGO!B106,"") -> 59 | AH60: =INDEX(AG$2:AG$100,MATCH(LARGE(COUNTIF(AG$2:AG$100,">="&AG$2:AG$100)+100*ISNUMBER(AG$2:AG$100),ROWS(AG$2:AG60)),COUNTIF(AG$2:AG$100,">="&AG$2:AG$100)+100*ISNUMBER(AG$2:AG$100),0),1) -> 59
A61: 18 | B61: 14 | L61: =IF(EM!$A$4>=60,60,"") ->  | M61: =IF(L61=60,(((1+EM!$C$4/100)^60)*EM!$C$4/100)/(((1+EM!$C$4/100)^60)-1),"") ->  | N61: =IF(EM!$A$8>=10,HGO!N7,"") ->  | O61: =IF(EM!$A$8>=10,HGO!$O$7,"") ->  | Q61: =IF(ROW(P61)>COUNTA(P:P),"",INDEX(P:P,SMALL(IF(P$1:P$241<>"",ROW($1:$241)),ROW(P61))))/((1+(EM!$C$4/100))^HGO!L61) ->  | R61: =IF(Q61<>"",SUM($Q$2:Q61),"") ->  | T61: =IF(EM!$A$6=1,TRUE,MOD(ROW(),EM!$A$6)=1) ->  | U61: =IF(L61="","",((IF(AND(T61=TRUE,L62<>61,EM!$A$22="Nein"),EM!$D$30+EM!$F$30+AC61+AE61,IF(AND(T61=TRUE,L62<>61,EM!$A$22="Ja"),DGK!$AE$8+EM!$F$30+AC61+AE61,IF(AND(T61=TRUE,L62=61,EM!$A$22="Nein"),EM!$D$30+AC61+AE61,IF(AND(T61=TRUE,L62=61,EM!$A$22="Ja",(EM!$A$6/HGO!L61)=1),DGK!$AE$6+AC61+AE61,IF(AND(T61=TRUE,L62=61,EM!$A$22="Ja",((EM!$A$6*2)/HGO!L61)=1),DGK!$AE$7+AC61+AE61,IF(AND(T61=TRUE,L62=61,EM!$A$22="Ja",AND((EM!$A$6/HGO!L61)<>1,((EM!$A$6*2)/HGO!L61)<>1)),DGK!$AE$8+AC61+AE61,0+AC61+AE61))))))))+(IF(L61=EM!$A$6,EM!$D$37))) ->  | V61: =IF(L61<>60,"",(IF(AND(T61=TRUE,L61=60),EM!$H$31,0))*(IF(L61=EM!$A$6,HGO!$C$40,IF(HGO!L61=2*EM!$A$6,HGO!$C$41,HGO!$C$42)))) ->  | X61: =IF(W61<>"",W61/(1+(EM!$C$4/100))^HGO!L61,"") ->  | Y61: =IF(X61<>"",SUM($X$2:X61),"") ->  | AB61: =IF(AND(EM!$J$33=1,$L61>=EM!$J$31),EM!$I$31,(IF(OR(EM!$I$31="",EM!$J$31="",EM!$J$33=""),"",IF(AND(EM!$I$31<>"",HGO!$AA61=TRUE,$L61>=EM!$J$31),EM!$I$31,"")))) ->  | AE61: =IF(L61<>"",IF(AND(EM!$F$36=1,$L61>=EM!$F$34),EM!$E$35,(IF(OR(EM!$E$35="",EM!$F$34="",EM!$F$36=""),0,IF(AND(EM!$E$35<>"",HGO!$AD61=TRUE,$L61>=EM!$F$34),EM!$E$35,0)))),"") ->  | AF61: =IF(L61="","",((IF(AND(T61=TRUE,L62<>61,EM!$A$22="Nein"),EM!$E$32+EM!$F$30+AC61+AE61,IF(AND(T61=TRUE,L62<>61,EM!$A$22="Ja"),DGK!$AE$8+EM!$F$30+AC61+AE61,IF(AND(T61=TRUE,L62=61,EM!$A$22="Nein"),EM!$E$32+AC61+AE61,IF(AND(T61=TRUE,L62=61,EM!$A$22="Ja",(EM!$A$6/HGO!L61)=1),DGK!$AE$6+AC61+AE61,IF(AND(T61=TRUE,L62=61,EM!$A$22="Ja",((EM!$A$6*2)/HGO!L61)=1),DGK!$AE$7+AC61+AE61,IF(AND(T61=TRUE,L62=61,EM!$A$22="Ja",AND((EM!$A$6/HGO!L61)<>1,((EM!$A$6*2)/HGO!L61)<>1)),DGK!$AE$8+AC61+AE61,0+AC61+AE61))))))))+(IF(L61=EM!$A$6,EM!$D$41))) ->  | AG61: =IF(MOD(EM!$A$4,HGO!B107)=0,HGO!B107,"") -> 60 | AH61: =INDEX(AG$2:AG$100,MATCH(LARGE(COUNTIF(AG$2:AG$100,">="&AG$2:AG$100)+100*ISNUMBER(AG$2:AG$100),ROWS(AG$2:AG61)),COUNTIF(AG$2:AG$100,">="&AG$2:AG$100)+100*ISNUMBER(AG$2:AG$100),0),1) -> 60
A62: 20 | B62: 15 | L62: =IF(EM!$A$4>=61,61,"") ->  | M62: =IF(L62=61,(((1+EM!$C$4/100)^61)*EM!$C$4/100)/(((1+EM!$C$4/100)^61)-1),"") ->  | N62: =IF(EM!$A$8>=11,HGO!N2,"") ->  | O62: =IF(EM!$A$8>=11,HGO!$O$2,"") ->  | Q62: =IF(ROW(P62)>COUNTA(P:P),"",INDEX(P:P,SMALL(IF(P$1:P$241<>"",ROW($1:$241)),ROW(P62))))/((1+(EM!$C$4/100))^HGO!L62) ->  | R62: =IF(Q62<>"",SUM($Q$2:Q62),"") ->  | T62: =IF(EM!$A$6=1,TRUE,MOD(ROW(),EM!$A$6)=1) ->  | U62: =IF(L62="","",((IF(AND(T62=TRUE,L63<>62,EM!$A$22="Nein"),EM!$D$30+EM!$F$30+AC62+AE62,IF(AND(T62=TRUE,L63<>62,EM!$A$22="Ja"),DGK!$AE$8+EM!$F$30+AC62+AE62,IF(AND(T62=TRUE,L63=62,EM!$A$22="Nein"),EM!$D$30+AC62+AE62,IF(AND(T62=TRUE,L63=62,EM!$A$22="Ja",(EM!$A$6/HGO!L62)=1),DGK!$AE$6+AC62+AE62,IF(AND(T62=TRUE,L63=62,EM!$A$22="Ja",((EM!$A$6*2)/HGO!L62)=1),DGK!$AE$7+AC62+AE62,IF(AND(T62=TRUE,L63=62,EM!$A$22="Ja",AND((EM!$A$6/HGO!L62)<>1,((EM!$A$6*2)/HGO!L62)<>1)),DGK!$AE$8+AC62+AE62,0+AC62+AE62))))))))+(IF(L62=EM!$A$6,EM!$D$37))) ->  | V62: =IF(L62<>61,"",(IF(AND(T62=TRUE,L62=61),EM!$H$31,0))*(IF(L62=EM!$A$6,HGO!$C$40,IF(HGO!L62=2*EM!$A$6,HGO!$C$41,HGO!$C$42)))) ->  | X62: =IF(W62<>"",W62/(1+(EM!$C$4/100))^HGO!L62,"") ->  | Y62: =IF(X62<>"",SUM($X$2:X62),"") ->  | AB62: =IF(AND(EM!$J$33=1,$L62>=EM!$J$31),EM!$I$31,(IF(OR(EM!$I$31="",EM!$J$31="",EM!$J$33=""),"",IF(AND(EM!$I$31<>"",HGO!$AA62=TRUE,$L62>=EM!$J$31),EM!$I$31,"")))) ->  | AE62: =IF(L62<>"",IF(AND(EM!$F$36=1,$L62>=EM!$F$34),EM!$E$35,(IF(OR(EM!$E$35="",EM!$F$34="",EM!$F$36=""),0,IF(AND(EM!$E$35<>"",HGO!$AD62=TRUE,$L62>=EM!$F$34),EM!$E$35,0)))),"") ->  | AF62: =IF(L62="","",((IF(AND(T62=TRUE,L63<>62,EM!$A$22="Nein"),EM!$E$32+EM!$F$30+AC62+AE62,IF(AND(T62=TRUE,L63<>62,EM!$A$22="Ja"),DGK!$AE$8+EM!$F$30+AC62+AE62,IF(AND(T62=TRUE,L63=62,EM!$A$22="Nein"),EM!$E$32+AC62+AE62,IF(AND(T62=TRUE,L63=62,EM!$A$22="Ja",(EM!$A$6/HGO!L62)=1),DGK!$AE$6+AC62+AE62,IF(AND(T62=TRUE,L63=62,EM!$A$22="Ja",((EM!$A$6*2)/HGO!L62)=1),DGK!$AE$7+AC62+AE62,IF(AND(T62=TRUE,L63=62,EM!$A$22="Ja",AND((EM!$A$6/HGO!L62)<>1,((EM!$A$6*2)/HGO!L62)<>1)),DGK!$AE$8+AC62+AE62,0+AC62+AE62))))))))+(IF(L62=EM!$A$6,EM!$D$41))) ->  | AG62: =IF(MOD(EM!$A$4,HGO!B108)=0,HGO!B108,"") -> 61 | AH62: =INDEX(AG$2:AG$100,MATCH(LARGE(COUNTIF(AG$2:AG$100,">="&AG$2:AG$100)+100*ISNUMBER(AG$2:AG$100),ROWS(AG$2:AG62)),COUNTIF(AG$2:AG$100,">="&AG$2:AG$100)+100*ISNUMBER(AG$2:AG$100),0),1) -> 61
A63: 21 | B63: 16 | L63: =IF(EM!$A$4>=62,62,"") ->  | M63: =IF(L63=62,(((1+EM!$C$4/100)^62)*EM!$C$4/100)/(((1+EM!$C$4/100)^62)-1),"") ->  | N63: =IF(EM!$A$8>=11,HGO!N3,"") ->  | O63: =IF(EM!$A$8>=11,HGO!$O$3,"") ->  | Q63: =IF(ROW(P63)>COUNTA(P:P),"",INDEX(P:P,SMALL(IF(P$1:P$241<>"",ROW($1:$241)),ROW(P63))))/((1+(EM!$C$4/100))^HGO!L63) ->  | R63: =IF(Q63<>"",SUM($Q$2:Q63),"") ->  | T63: =IF(EM!$A$6=1,TRUE,MOD(ROW(),EM!$A$6)=1) ->  | U63: =IF(L63="","",((IF(AND(T63=TRUE,L64<>63,EM!$A$22="Nein"),EM!$D$30+EM!$F$30+AC63+AE63,IF(AND(T63=TRUE,L64<>63,EM!$A$22="Ja"),DGK!$AE$8+EM!$F$30+AC63+AE63,IF(AND(T63=TRUE,L64=63,EM!$A$22="Nein"),EM!$D$30+AC63+AE63,IF(AND(T63=TRUE,L64=63,EM!$A$22="Ja",(EM!$A$6/HGO!L63)=1),DGK!$AE$6+AC63+AE63,IF(AND(T63=TRUE,L64=63,EM!$A$22="Ja",((EM!$A$6*2)/HGO!L63)=1),DGK!$AE$7+AC63+AE63,IF(AND(T63=TRUE,L64=63,EM!$A$22="Ja",AND((EM!$A$6/HGO!L63)<>1,((EM!$A$6*2)/HGO!L63)<>1)),DGK!$AE$8+AC63+AE63,0+AC63+AE63))))))))+(IF(L63=EM!$A$6,EM!$D$37))) ->  | V63: =IF(L63<>62,"",(IF(AND(T63=TRUE,L63=62),EM!$H$31,0))*(IF(L63=EM!$A$6,HGO!$C$40,IF(HGO!L63=2*EM!$A$6,HGO!$C$41,HGO!$C$42)))) ->  | X63: =IF(W63<>"",W63/(1+(EM!$C$4/100))^HGO!L63,"") ->  | Y63: =IF(X63<>"",SUM($X$2:X63),"") ->  | AB63: =IF(AND(EM!$J$33=1,$L63>=EM!$J$31),EM!$I$31,(IF(OR(EM!$I$31="",EM!$J$31="",EM!$J$33=""),"",IF(AND(EM!$I$31<>"",HGO!$AA63=TRUE,$L63>=EM!$J$31),EM!$I$31,"")))) ->  | AE63: =IF(L63<>"",IF(AND(EM!$F$36=1,$L63>=EM!$F$34),EM!$E$35,(IF(OR(EM!$E$35="",EM!$F$34="",EM!$F$36=""),0,IF(AND(EM!$E$35<>"",HGO!$AD63=TRUE,$L63>=EM!$F$34),EM!$E$35,0)))),"") ->  | AF63: =IF(L63="","",((IF(AND(T63=TRUE,L64<>63,EM!$A$22="Nein"),EM!$E$32+EM!$F$30+AC63+AE63,IF(AND(T63=TRUE,L64<>63,EM!$A$22="Ja"),DGK!$AE$8+EM!$F$30+AC63+AE63,IF(AND(T63=TRUE,L64=63,EM!$A$22="Nein"),EM!$E$32+AC63+AE63,IF(AND(T63=TRUE,L64=63,EM!$A$22="Ja",(EM!$A$6/HGO!L63)=1),DGK!$AE$6+AC63+AE63,IF(AND(T63=TRUE,L64=63,EM!$A$22="Ja",((EM!$A$6*2)/HGO!L63)=1),DGK!$AE$7+AC63+AE63,IF(AND(T63=TRUE,L64=63,EM!$A$22="Ja",AND((EM!$A$6/HGO!L63)<>1,((EM!$A$6*2)/HGO!L63)<>1)),DGK!$AE$8+AC63+AE63,0+AC63+AE63))))))))+(IF(L63=EM!$A$6,EM!$D$41))) ->  | AG63: =IF(MOD(EM!$A$4,HGO!B109)=0,HGO!B109,"") -> 62 | AH63: =INDEX(AG$2:AG$100,MATCH(LARGE(COUNTIF(AG$2:AG$100,">="&AG$2:AG$100)+100*ISNUMBER(AG$2:AG$100),ROWS(AG$2:AG63)),COUNTIF(AG$2:AG$100,">="&AG$2:AG$100)+100*ISNUMBER(AG$2:AG$100),0),1) -> 62
A64: 22 | B64: 17 | L64: =IF(EM!$A$4>=63,63,"") ->  | M64: =IF(L64=63,(((1+EM!$C$4/100)^63)*EM!$C$4/100)/(((1+EM!$C$4/100)^63)-1),"") ->  | N64: =IF(EM!$A$8>=11,HGO!N4,"") ->  | O64: =IF(EM!$A$8>=11,HGO!$O$4,"") ->  | Q64: =IF(ROW(P64)>COUNTA(P:P),"",INDEX(P:P,SMALL(IF(P$1:P$241<>"",ROW($1:$241)),ROW(P64))))/((1+(EM!$C$4/100))^HGO!L64) ->  | R64: =IF(Q64<>"",SUM($Q$2:Q64),"") ->  | T64: =IF(EM!$A$6=1,TRUE,MOD(ROW(),EM!$A$6)=1) ->  | U64: =IF(L64="","",((IF(AND(T64=TRUE,L65<>64,EM!$A$22="Nein"),EM!$D$30+EM!$F$30+AC64+AE64,IF(AND(T64=TRUE,L65<>64,EM!$A$22="Ja"),DGK!$AE$8+EM!$F$30+AC64+AE64,IF(AND(T64=TRUE,L65=64,EM!$A$22="Nein"),EM!$D$30+AC64+AE64,IF(AND(T64=TRUE,L65=64,EM!$A$22="Ja",(EM!$A$6/HGO!L64)=1),DGK!$AE$6+AC64+AE64,IF(AND(T64=TRUE,L65=64,EM!$A$22="Ja",((EM!$A$6*2)/HGO!L64)=1),DGK!$AE$7+AC64+AE64,IF(AND(T64=TRUE,L65=64,EM!$A$22="Ja",AND((EM!$A$6/HGO!L64)<>1,((EM!$A$6*2)/HGO!L64)<>1)),DGK!$AE$8+AC64+AE64,0+AC64+AE64))))))))+(IF(L64=EM!$A$6,EM!$D$37))) ->  | V64: =IF(L64<>63,"",(IF(AND(T64=TRUE,L64=63),EM!$H$31,0))*(IF(L64=EM!$A$6,HGO!$C$40,IF(HGO!L64=2*EM!$A$6,HGO!$C$41,HGO!$C$42)))) ->  | X64: =IF(W64<>"",W64/(1+(EM!$C$4/100))^HGO!L64,"") ->  | Y64: =IF(X64<>"",SUM($X$2:X64),"") ->  | AB64: =IF(AND(EM!$J$33=1,$L64>=EM!$J$31),EM!$I$31,(IF(OR(EM!$I$31="",EM!$J$31="",EM!$J$33=""),"",IF(AND(EM!$I$31<>"",HGO!$AA64=TRUE,$L64>=EM!$J$31),EM!$I$31,"")))) ->  | AE64: =IF(L64<>"",IF(AND(EM!$F$36=1,$L64>=EM!$F$34),EM!$E$35,(IF(OR(EM!$E$35="",EM!$F$34="",EM!$F$36=""),0,IF(AND(EM!$E$35<>"",HGO!$AD64=TRUE,$L64>=EM!$F$34),EM!$E$35,0)))),"") ->  | AF64: =IF(L64="","",((IF(AND(T64=TRUE,L65<>64,EM!$A$22="Nein"),EM!$E$32+EM!$F$30+AC64+AE64,IF(AND(T64=TRUE,L65<>64,EM!$A$22="Ja"),DGK!$AE$8+EM!$F$30+AC64+AE64,IF(AND(T64=TRUE,L65=64,EM!$A$22="Nein"),EM!$E$32+AC64+AE64,IF(AND(T64=TRUE,L65=64,EM!$A$22="Ja",(EM!$A$6/HGO!L64)=1),DGK!$AE$6+AC64+AE64,IF(AND(T64=TRUE,L65=64,EM!$A$22="Ja",((EM!$A$6*2)/HGO!L64)=1),DGK!$AE$7+AC64+AE64,IF(AND(T64=TRUE,L65=64,EM!$A$22="Ja",AND((EM!$A$6/HGO!L64)<>1,((EM!$A$6*2)/HGO!L64)<>1)),DGK!$AE$8+AC64+AE64,0+AC64+AE64))))))))+(IF(L64=EM!$A$6,EM!$D$41))) ->  | AG64: =IF(MOD(EM!$A$4,HGO!B110)=0,HGO!B110,"") -> 63 | AH64: =INDEX(AG$2:AG$100,MATCH(LARGE(COUNTIF(AG$2:AG$100,">="&AG$2:AG$100)+100*ISNUMBER(AG$2:AG$100),ROWS(AG$2:AG64)),COUNTIF(AG$2:AG$100,">="&AG$2:AG$100)+100*ISNUMBER(AG$2:AG$100),0),1) -> 63
A65: 24 | B65: 18 | L65: =IF(EM!$A$4>=64,64,"") ->  | M65: =IF(L65=64,(((1+EM!$C$4/100)^64)*EM!$C$4/100)/(((1+EM!$C$4/100)^64)-1),"") ->  | N65: =IF(EM!$A$8>=11,HGO!N5,"") ->  | O65: =IF(EM!$A$8>=11,HGO!$O$5,"") ->  | Q65: =IF(ROW(P65)>COUNTA(P:P),"",INDEX(P:P,SMALL(IF(P$1:P$241<>"",ROW($1:$241)),ROW(P65))))/((1+(EM!$C$4/100))^HGO!L65) ->  | R65: =IF(Q65<>"",SUM($Q$2:Q65),"") ->  | T65: =IF(EM!$A$6=1,TRUE,MOD(ROW(),EM!$A$6)=1) ->  | U65: =IF(L65="","",((IF(AND(T65=TRUE,L66<>65,EM!$A$22="Nein"),EM!$D$30+EM!$F$30+AC65+AE65,IF(AND(T65=TRUE,L66<>65,EM!$A$22="Ja"),DGK!$AE$8+EM!$F$30+AC65+AE65,IF(AND(T65=TRUE,L66=65,EM!$A$22="Nein"),EM!$D$30+AC65+AE65,IF(AND(T65=TRUE,L66=65,EM!$A$22="Ja",(EM!$A$6/HGO!L65)=1),DGK!$AE$6+AC65+AE65,IF(AND(T65=TRUE,L66=65,EM!$A$22="Ja",((EM!$A$6*2)/HGO!L65)=1),DGK!$AE$7+AC65+AE65,IF(AND(T65=TRUE,L66=65,EM!$A$22="Ja",AND((EM!$A$6/HGO!L65)<>1,((EM!$A$6*2)/HGO!L65)<>1)),DGK!$AE$8+AC65+AE65,0+AC65+AE65))))))))+(IF(L65=EM!$A$6,EM!$D$37))) ->  | V65: =IF(L65<>64,"",(IF(AND(T65=TRUE,L65=64),EM!$H$31,0))*(IF(L65=EM!$A$6,HGO!$C$40,IF(HGO!L65=2*EM!$A$6,HGO!$C$41,HGO!$C$42)))) ->  | X65: =IF(W65<>"",W65/(1+(EM!$C$4/100))^HGO!L65,"") ->  | Y65: =IF(X65<>"",SUM($X$2:X65),"") ->  | AB65: =IF(AND(EM!$J$33=1,$L65>=EM!$J$31),EM!$I$31,(IF(OR(EM!$I$31="",EM!$J$31="",EM!$J$33=""),"",IF(AND(EM!$I$31<>"",HGO!$AA65=TRUE,$L65>=EM!$J$31),EM!$I$31,"")))) ->  | AE65: =IF(L65<>"",IF(AND(EM!$F$36=1,$L65>=EM!$F$34),EM!$E$35,(IF(OR(EM!$E$35="",EM!$F$34="",EM!$F$36=""),0,IF(AND(EM!$E$35<>"",HGO!$AD65=TRUE,$L65>=EM!$F$34),EM!$E$35,0)))),"") ->  | AF65: =IF(L65="","",((IF(AND(T65=TRUE,L66<>65,EM!$A$22="Nein"),EM!$E$32+EM!$F$30+AC65+AE65,IF(AND(T65=TRUE,L66<>65,EM!$A$22="Ja"),DGK!$AE$8+EM!$F$30+AC65+AE65,IF(AND(T65=TRUE,L66=65,EM!$A$22="Nein"),EM!$E$32+AC65+AE65,IF(AND(T65=TRUE,L66=65,EM!$A$22="Ja",(EM!$A$6/HGO!L65)=1),DGK!$AE$6+AC65+AE65,IF(AND(T65=TRUE,L66=65,EM!$A$22="Ja",((EM!$A$6*2)/HGO!L65)=1),DGK!$AE$7+AC65+AE65,IF(AND(T65=TRUE,L66=65,EM!$A$22="Ja",AND((EM!$A$6/HGO!L65)<>1,((EM!$A$6*2)/HGO!L65)<>1)),DGK!$AE$8+AC65+AE65,0+AC65+AE65))))))))+(IF(L65=EM!$A$6,EM!$D$41))) ->  | AG65: =IF(MOD(EM!$A$4,HGO!B111)=0,HGO!B111,"") -> 64 | AH65: =INDEX(AG$2:AG$100,MATCH(LARGE(COUNTIF(AG$2:AG$100,">="&AG$2:AG$100)+100*ISNUMBER(AG$2:AG$100),ROWS(AG$2:AG65)),COUNTIF(AG$2:AG$100,">="&AG$2:AG$100)+100*ISNUMBER(AG$2:AG$100),0),1) -> 64
A66: 25 | B66: 19 | L66: =IF(EM!$A$4>=65,65,"") ->  | M66: =IF(L66=65,(((1+EM!$C$4/100)^65)*EM!$C$4/100)/(((1+EM!$C$4/100)^65)-1),"") ->  | N66: =IF(EM!$A$8>=11,HGO!N6,"") ->  | O66: =IF(EM!$A$8>=11,HGO!$O$6,"") ->  | Q66: =IF(ROW(P66)>COUNTA(P:P),"",INDEX(P:P,SMALL(IF(P$1:P$241<>"",ROW($1:$241)),ROW(P66))))/((1+(EM!$C$4/100))^HGO!L66) ->  | R66: =IF(Q66<>"",SUM($Q$2:Q66),"") ->  | T66: =IF(EM!$A$6=1,TRUE,MOD(ROW(),EM!$A$6)=1) ->  | U66: =IF(L66="","",((IF(AND(T66=TRUE,L67<>66,EM!$A$22="Nein"),EM!$D$30+EM!$F$30+AC66+AE66,IF(AND(T66=TRUE,L67<>66,EM!$A$22="Ja"),DGK!$AE$8+EM!$F$30+AC66+AE66,IF(AND(T66=TRUE,L67=66,EM!$A$22="Nein"),EM!$D$30+AC66+AE66,IF(AND(T66=TRUE,L67=66,EM!$A$22="Ja",(EM!$A$6/HGO!L66)=1),DGK!$AE$6+AC66+AE66,IF(AND(T66=TRUE,L67=66,EM!$A$22="Ja",((EM!$A$6*2)/HGO!L66)=1),DGK!$AE$7+AC66+AE66,IF(AND(T66=TRUE,L67=66,EM!$A$22="Ja",AND((EM!$A$6/HGO!L66)<>1,((EM!$A$6*2)/HGO!L66)<>1)),DGK!$AE$8+AC66+AE66,0+AC66+AE66))))))))+(IF(L66=EM!$A$6,EM!$D$37))) ->  | V66: =IF(L66<>65,"",(IF(AND(T66=TRUE,L66=65),EM!$H$31,0))*(IF(L66=EM!$A$6,HGO!$C$40,IF(HGO!L66=2*EM!$A$6,HGO!$C$41,HGO!$C$42)))) ->  | W66: =IF(OR(V66="",U66=""),"",V66-U66+(IF(AB66<>"",AB66))) ->  | X66: =IF(W66<>"",W66/(1+(EM!$C$4/100))^HGO!L66,"") ->  | Y66: =IF(X66<>"",SUM($X$2:X66),"") ->  | AB66: =IF(AND(EM!$J$33=1,$L66>=EM!$J$31),EM!$I$31,(IF(OR(EM!$I$31="",EM!$J$31="",EM!$J$33=""),"",IF(AND(EM!$I$31<>"",HGO!$AA66=TRUE,$L66>=EM!$J$31),EM!$I$31,"")))) ->  | AE66: =IF(L66<>"",IF(AND(EM!$F$36=1,$L66>=EM!$F$34),EM!$E$35,(IF(OR(EM!$E$35="",EM!$F$34="",EM!$F$36=""),0,IF(AND(EM!$E$35<>"",HGO!$AD66=TRUE,$L66>=EM!$F$34),EM!$E$35,0)))),"") ->  | AF66: =IF(L66="","",((IF(AND(T66=TRUE,L67<>66,EM!$A$22="Nein"),EM!$E$32+EM!$F$30+AC66+AE66,IF(AND(T66=TRUE,L67<>66,EM!$A$22="Ja"),DGK!$AE$8+EM!$F$30+AC66+AE66,IF(AND(T66=TRUE,L67=66,EM!$A$22="Nein"),EM!$E$32+AC66+AE66,IF(AND(T66=TRUE,L67=66,EM!$A$22="Ja",(EM!$A$6/HGO!L66)=1),DGK!$AE$6+AC66+AE66,IF(AND(T66=TRUE,L67=66,EM!$A$22="Ja",((EM!$A$6*2)/HGO!L66)=1),DGK!$AE$7+AC66+AE66,IF(AND(T66=TRUE,L67=66,EM!$A$22="Ja",AND((EM!$A$6/HGO!L66)<>1,((EM!$A$6*2)/HGO!L66)<>1)),DGK!$AE$8+AC66+AE66,0+AC66+AE66))))))))+(IF(L66=EM!$A$6,EM!$D$41))) ->  | AG66: =IF(MOD(EM!$A$4,HGO!B112)=0,HGO!B112,"") -> 65 | AH66: =INDEX(AG$2:AG$100,MATCH(LARGE(COUNTIF(AG$2:AG$100,">="&AG$2:AG$100)+100*ISNUMBER(AG$2:AG$100),ROWS(AG$2:AG66)),COUNTIF(AG$2:AG$100,">="&AG$2:AG$100)+100*ISNUMBER(AG$2:AG$100),0),1) -> 65
A67: 26 | B67: 20 | L67: =IF(EM!$A$4>=66,66,"") ->  | M67: =IF(L67=66,(((1+EM!$C$4/100)^66)*EM!$C$4/100)/(((1+EM!$C$4/100)^66)-1),"") ->  | N67: =IF(EM!$A$8>=11,HGO!N7,"") ->  | O67: =IF(EM!$A$8>=11,HGO!$O$7,"") ->  | Q67: =IF(ROW(P67)>COUNTA(P:P),"",INDEX(P:P,SMALL(IF(P$1:P$241<>"",ROW($1:$241)),ROW(P67))))/((1+(EM!$C$4/100))^HGO!L67) ->  | R67: =IF(Q67<>"",SUM($Q$2:Q67),"") ->  | T67: =IF(EM!$A$6=1,TRUE,MOD(ROW(),EM!$A$6)=1) ->  | U67: =IF(L67="","",((IF(AND(T67=TRUE,L68<>67,EM!$A$22="Nein"),EM!$D$30+EM!$F$30+AC67+AE67,IF(AND(T67=TRUE,L68<>67,EM!$A$22="Ja"),DGK!$AE$8+EM!$F$30+AC67+AE67,IF(AND(T67=TRUE,L68=67,EM!$A$22="Nein"),EM!$D$30+AC67+AE67,IF(AND(T67=TRUE,L68=67,EM!$A$22="Ja",(EM!$A$6/HGO!L67)=1),DGK!$AE$6+AC67+AE67,IF(AND(T67=TRUE,L68=67,EM!$A$22="Ja",((EM!$A$6*2)/HGO!L67)=1),DGK!$AE$7+AC67+AE67,IF(AND(T67=TRUE,L68=67,EM!$A$22="Ja",AND((EM!$A$6/HGO!L67)<>1,((EM!$A$6*2)/HGO!L67)<>1)),DGK!$AE$8+AC67+AE67,0+AC67+AE67))))))))+(IF(L67=EM!$A$6,EM!$D$37))) ->  | V67: =IF(L67<>66,"",(IF(AND(T67=TRUE,L67=66),EM!$H$31,0))*(IF(L67=EM!$A$6,HGO!$C$40,IF(HGO!L67=2*EM!$A$6,HGO!$C$41,HGO!$C$42)))) ->  | X67: =IF(W67<>"",W67/(1+(EM!$C$4/100))^HGO!L67,"") ->  | Y67: =IF(X67<>"",SUM($X$2:X67),"") ->  | Z67: =IF(Y67<>"",Y67*M67,"") ->  | AB67: =IF(AND(EM!$J$33=1,$L67>=EM!$J$31),EM!$I$31,(IF(OR(EM!$I$31="",EM!$J$31="",EM!$J$33=""),"",IF(AND(EM!$I$31<>"",HGO!$AA67=TRUE,$L67>=EM!$J$31),EM!$I$31,"")))) ->  | AE67: =IF(L67<>"",IF(AND(EM!$F$36=1,$L67>=EM!$F$34),EM!$E$35,(IF(OR(EM!$E$35="",EM!$F$34="",EM!$F$36=""),0,IF(AND(EM!$E$35<>"",HGO!$AD67=TRUE,$L67>=EM!$F$34),EM!$E$35,0)))),"") ->  | AF67: =IF(L67="","",((IF(AND(T67=TRUE,L68<>67,EM!$A$22="Nein"),EM!$E$32+EM!$F$30+AC67+AE67,IF(AND(T67=TRUE,L68<>67,EM!$A$22="Ja"),DGK!$AE$8+EM!$F$30+AC67+AE67,IF(AND(T67=TRUE,L68=67,EM!$A$22="Nein"),EM!$E$32+AC67+AE67,IF(AND(T67=TRUE,L68=67,EM!$A$22="Ja",(EM!$A$6/HGO!L67)=1),DGK!$AE$6+AC67+AE67,IF(AND(T67=TRUE,L68=67,EM!$A$22="Ja",((EM!$A$6*2)/HGO!L67)=1),DGK!$AE$7+AC67+AE67,IF(AND(T67=TRUE,L68=67,EM!$A$22="Ja",AND((EM!$A$6/HGO!L67)<>1,((EM!$A$6*2)/HGO!L67)<>1)),DGK!$AE$8+AC67+AE67,0+AC67+AE67))))))))+(IF(L67=EM!$A$6,EM!$D$41))) ->  | AG67: =IF(MOD(EM!$A$4,HGO!B113)=0,HGO!B113,"") -> 66 | AH67: =INDEX(AG$2:AG$100,MATCH(LARGE(COUNTIF(AG$2:AG$100,">="&AG$2:AG$100)+100*ISNUMBER(AG$2:AG$100),ROWS(AG$2:AG67)),COUNTIF(AG$2:AG$100,">="&AG$2:AG$100)+100*ISNUMBER(AG$2:AG$100),0),1) -> 66
A68: 27 | B68: 21 | L68: =IF(EM!$A$4>=67,67,"") ->  | M68: =IF(L68=67,(((1+EM!$C$4/100)^67)*EM!$C$4/100)/(((1+EM!$C$4/100)^67)-1),"") ->  | N68: =IF(EM!$A$8>=12,HGO!N2,"") ->  | O68: =IF(EM!$A$8>=12,HGO!$O$2,"") ->  | P68: =IF(AND(N68="",O68=""),"",N68-O68) ->  | Q68: =IF(ROW(P68)>COUNTA(P:P),"",INDEX(P:P,SMALL(IF(P$1:P$241<>"",ROW($1:$241)),ROW(P68))))/((1+(EM!$C$4/100))^HGO!L68) ->  | R68: =IF(Q68<>"",SUM($Q$2:Q68),"") ->  | T68: =IF(EM!$A$6=1,TRUE,MOD(ROW(),EM!$A$6)=1) ->  | U68: =IF(L68="","",((IF(AND(T68=TRUE,L69<>68,EM!$A$22="Nein"),EM!$D$30+EM!$F$30+AC68+AE68,IF(AND(T68=TRUE,L69<>68,EM!$A$22="Ja"),DGK!$AE$8+EM!$F$30+AC68+AE68,IF(AND(T68=TRUE,L69=68,EM!$A$22="Nein"),EM!$D$30+AC68+AE68,IF(AND(T68=TRUE,L69=68,EM!$A$22="Ja",(EM!$A$6/HGO!L68)=1),DGK!$AE$6+AC68+AE68,IF(AND(T68=TRUE,L69=68,EM!$A$22="Ja",((EM!$A$6*2)/HGO!L68)=1),DGK!$AE$7+AC68+AE68,IF(AND(T68=TRUE,L69=68,EM!$A$22="Ja",AND((EM!$A$6/HGO!L68)<>1,((EM!$A$6*2)/HGO!L68)<>1)),DGK!$AE$8+AC68+AE68,0+AC68+AE68))))))))+(IF(L68=EM!$A$6,EM!$D$37))) ->  | V68: =IF(L68<>67,"",(IF(AND(T68=TRUE,L68=67),EM!$H$31,0))*(IF(L68=EM!$A$6,HGO!$C$40,IF(HGO!L68=2*EM!$A$6,HGO!$C$41,HGO!$C$42)))) ->  | X68: =IF(W68<>"",W68/(1+(EM!$C$4/100))^HGO!L68,"") ->  | Y68: =IF(X68<>"",SUM($X$2:X68),"") ->  | AB68: =IF(AND(EM!$J$33=1,$L68>=EM!$J$31),EM!$I$31,(IF(OR(EM!$I$31="",EM!$J$31="",EM!$J$33=""),"",IF(AND(EM!$I$31<>"",HGO!$AA68=TRUE,$L68>=EM!$J$31),EM!$I$31,"")))) ->  | AE68: =IF(L68<>"",IF(AND(EM!$F$36=1,$L68>=EM!$F$34),EM!$E$35,(IF(OR(EM!$E$35="",EM!$F$34="",EM!$F$36=""),0,IF(AND(EM!$E$35<>"",HGO!$AD68=TRUE,$L68>=EM!$F$34),EM!$E$35,0)))),"") ->  | AF68: =IF(L68="","",((IF(AND(T68=TRUE,L69<>68,EM!$A$22="Nein"),EM!$E$32+EM!$F$30+AC68+AE68,IF(AND(T68=TRUE,L69<>68,EM!$A$22="Ja"),DGK!$AE$8+EM!$F$30+AC68+AE68,IF(AND(T68=TRUE,L69=68,EM!$A$22="Nein"),EM!$E$32+AC68+AE68,IF(AND(T68=TRUE,L69=68,EM!$A$22="Ja",(EM!$A$6/HGO!L68)=1),DGK!$AE$6+AC68+AE68,IF(AND(T68=TRUE,L69=68,EM!$A$22="Ja",((EM!$A$6*2)/HGO!L68)=1),DGK!$AE$7+AC68+AE68,IF(AND(T68=TRUE,L69=68,EM!$A$22="Ja",AND((EM!$A$6/HGO!L68)<>1,((EM!$A$6*2)/HGO!L68)<>1)),DGK!$AE$8+AC68+AE68,0+AC68+AE68))))))))+(IF(L68=EM!$A$6,EM!$D$41))) ->  | AG68: =IF(MOD(EM!$A$4,HGO!B114)=0,HGO!B114,"") -> 67 | AH68: =INDEX(AG$2:AG$100,MATCH(LARGE(COUNTIF(AG$2:AG$100,">="&AG$2:AG$100)+100*ISNUMBER(AG$2:AG$100),ROWS(AG$2:AG68)),COUNTIF(AG$2:AG$100,">="&AG$2:AG$100)+100*ISNUMBER(AG$2:AG$100),0),1) -> 67
A69: 28 | B69: 22 | L69: =IF(EM!$A$4>=68,68,"") ->  | M69: =IF(L69=68,(((1+EM!$C$4/100)^68)*EM!$C$4/100)/(((1+EM!$C$4/100)^68)-1),"") ->  | N69: =IF(EM!$A$8>=12,HGO!N3,"") ->  | O69: =IF(EM!$A$8>=12,HGO!$O$3,"") ->  | Q69: =IF(ROW(P69)>COUNTA(P:P),"",INDEX(P:P,SMALL(IF(P$1:P$241<>"",ROW($1:$241)),ROW(P69))))/((1+(EM!$C$4/100))^HGO!L69) ->  | R69: =IF(Q69<>"",SUM($Q$2:Q69),"") ->  | S69: =IF(R69<>"",R69*M69,"") ->  | T69: =IF(EM!$A$6=1,TRUE,MOD(ROW(),EM!$A$6)=1) ->  | U69: =IF(L69="","",((IF(AND(T69=TRUE,L70<>69,EM!$A$22="Nein"),EM!$D$30+EM!$F$30+AC69+AE69,IF(AND(T69=TRUE,L70<>69,EM!$A$22="Ja"),DGK!$AE$8+EM!$F$30+AC69+AE69,IF(AND(T69=TRUE,L70=69,EM!$A$22="Nein"),EM!$D$30+AC69+AE69,IF(AND(T69=TRUE,L70=69,EM!$A$22="Ja",(EM!$A$6/HGO!L69)=1),DGK!$AE$6+AC69+AE69,IF(AND(T69=TRUE,L70=69,EM!$A$22="Ja",((EM!$A$6*2)/HGO!L69)=1),DGK!$AE$7+AC69+AE69,IF(AND(T69=TRUE,L70=69,EM!$A$22="Ja",AND((EM!$A$6/HGO!L69)<>1,((EM!$A$6*2)/HGO!L69)<>1)),DGK!$AE$8+AC69+AE69,0+AC69+AE69))))))))+(IF(L69=EM!$A$6,EM!$D$37))) ->  | V69: =IF(L69<>68,"",(IF(AND(T69=TRUE,L69=68),EM!$H$31,0))*(IF(L69=EM!$A$6,HGO!$C$40,IF(HGO!L69=2*EM!$A$6,HGO!$C$41,HGO!$C$42)))) ->  | X69: =IF(W69<>"",W69/(1+(EM!$C$4/100))^HGO!L69,"") ->  | Y69: =IF(X69<>"",SUM($X$2:X69),"") ->  | AB69: =IF(AND(EM!$J$33=1,$L69>=EM!$J$31),EM!$I$31,(IF(OR(EM!$I$31="",EM!$J$31="",EM!$J$33=""),"",IF(AND(EM!$I$31<>"",HGO!$AA69=TRUE,$L69>=EM!$J$31),EM!$I$31,"")))) ->  | AE69: =IF(L69<>"",IF(AND(EM!$F$36=1,$L69>=EM!$F$34),EM!$E$35,(IF(OR(EM!$E$35="",EM!$F$34="",EM!$F$36=""),0,IF(AND(EM!$E$35<>"",HGO!$AD69=TRUE,$L69>=EM!$F$34),EM!$E$35,0)))),"") ->  | AF69: =IF(L69="","",((IF(AND(T69=TRUE,L70<>69,EM!$A$22="Nein"),EM!$E$32+EM!$F$30+AC69+AE69,IF(AND(T69=TRUE,L70<>69,EM!$A$22="Ja"),DGK!$AE$8+EM!$F$30+AC69+AE69,IF(AND(T69=TRUE,L70=69,EM!$A$22="Nein"),EM!$E$32+AC69+AE69,IF(AND(T69=TRUE,L70=69,EM!$A$22="Ja",(EM!$A$6/HGO!L69)=1),DGK!$AE$6+AC69+AE69,IF(AND(T69=TRUE,L70=69,EM!$A$22="Ja",((EM!$A$6*2)/HGO!L69)=1),DGK!$AE$7+AC69+AE69,IF(AND(T69=TRUE,L70=69,EM!$A$22="Ja",AND((EM!$A$6/HGO!L69)<>1,((EM!$A$6*2)/HGO!L69)<>1)),DGK!$AE$8+AC69+AE69,0+AC69+AE69))))))))+(IF(L69=EM!$A$6,EM!$D$41))) ->  | AG69: =IF(MOD(EM!$A$4,HGO!B115)=0,HGO!B115,"") -> 68 | AH69: =INDEX(AG$2:AG$100,MATCH(LARGE(COUNTIF(AG$2:AG$100,">="&AG$2:AG$100)+100*ISNUMBER(AG$2:AG$100),ROWS(AG$2:AG69)),COUNTIF(AG$2:AG$100,">="&AG$2:AG$100)+100*ISNUMBER(AG$2:AG$100),0),1) -> 68
A70: 30 | B70: 23 | L70: =IF(EM!$A$4>=69,69,"") ->  | M70: =IF(L70=69,(((1+EM!$C$4/100)^69)*EM!$C$4/100)/(((1+EM!$C$4/100)^69)-1),"") ->  | N70: =IF(EM!$A$8>=12,HGO!N4,"") ->  | O70: =IF(EM!$A$8>=12,HGO!$O$4,"") ->  | Q70: =IF(ROW(P70)>COUNTA(P:P),"",INDEX(P:P,SMALL(IF(P$1:P$241<>"",ROW($1:$241)),ROW(P70))))/((1+(EM!$C$4/100))^HGO!L70) ->  | R70: =IF(Q70<>"",SUM($Q$2:Q70),"") ->  | T70: =IF(EM!$A$6=1,TRUE,MOD(ROW(),EM!$A$6)=1) ->  | U70: =IF(L70="","",((IF(AND(T70=TRUE,L71<>70,EM!$A$22="Nein"),EM!$D$30+EM!$F$30+AC70+AE70,IF(AND(T70=TRUE,L71<>70,EM!$A$22="Ja"),DGK!$AE$8+EM!$F$30+AC70+AE70,IF(AND(T70=TRUE,L71=70,EM!$A$22="Nein"),EM!$D$30+AC70+AE70,IF(AND(T70=TRUE,L71=70,EM!$A$22="Ja",(EM!$A$6/HGO!L70)=1),DGK!$AE$6+AC70+AE70,IF(AND(T70=TRUE,L71=70,EM!$A$22="Ja",((EM!$A$6*2)/HGO!L70)=1),DGK!$AE$7+AC70+AE70,IF(AND(T70=TRUE,L71=70,EM!$A$22="Ja",AND((EM!$A$6/HGO!L70)<>1,((EM!$A$6*2)/HGO!L70)<>1)),DGK!$AE$8+AC70+AE70,0+AC70+AE70))))))))+(IF(L70=EM!$A$6,EM!$D$37))) ->  | V70: =IF(L70<>69,"",(IF(AND(T70=TRUE,L70=69),EM!$H$31,0))*(IF(L70=EM!$A$6,HGO!$C$40,IF(HGO!L70=2*EM!$A$6,HGO!$C$41,HGO!$C$42)))) ->  | X70: =IF(W70<>"",W70/(1+(EM!$C$4/100))^HGO!L70,"") ->  | Y70: =IF(X70<>"",SUM($X$2:X70),"") ->  | AB70: =IF(AND(EM!$J$33=1,$L70>=EM!$J$31),EM!$I$31,(IF(OR(EM!$I$31="",EM!$J$31="",EM!$J$33=""),"",IF(AND(EM!$I$31<>"",HGO!$AA70=TRUE,$L70>=EM!$J$31),EM!$I$31,"")))) ->  | AE70: =IF(L70<>"",IF(AND(EM!$F$36=1,$L70>=EM!$F$34),EM!$E$35,(IF(OR(EM!$E$35="",EM!$F$34="",EM!$F$36=""),0,IF(AND(EM!$E$35<>"",HGO!$AD70=TRUE,$L70>=EM!$F$34),EM!$E$35,0)))),"") ->  | AF70: =IF(L70="","",((IF(AND(T70=TRUE,L71<>70,EM!$A$22="Nein"),EM!$E$32+EM!$F$30+AC70+AE70,IF(AND(T70=TRUE,L71<>70,EM!$A$22="Ja"),DGK!$AE$8+EM!$F$30+AC70+AE70,IF(AND(T70=TRUE,L71=70,EM!$A$22="Nein"),EM!$E$32+AC70+AE70,IF(AND(T70=TRUE,L71=70,EM!$A$22="Ja",(EM!$A$6/HGO!L70)=1),DGK!$AE$6+AC70+AE70,IF(AND(T70=TRUE,L71=70,EM!$A$22="Ja",((EM!$A$6*2)/HGO!L70)=1),DGK!$AE$7+AC70+AE70,IF(AND(T70=TRUE,L71=70,EM!$A$22="Ja",AND((EM!$A$6/HGO!L70)<>1,((EM!$A$6*2)/HGO!L70)<>1)),DGK!$AE$8+AC70+AE70,0+AC70+AE70))))))))+(IF(L70=EM!$A$6,EM!$D$41))) ->  | AG70: =IF(MOD(EM!$A$4,HGO!B116)=0,HGO!B116,"") -> 69 | AH70: =INDEX(AG$2:AG$100,MATCH(LARGE(COUNTIF(AG$2:AG$100,">="&AG$2:AG$100)+100*ISNUMBER(AG$2:AG$100),ROWS(AG$2:AG70)),COUNTIF(AG$2:AG$100,">="&AG$2:AG$100)+100*ISNUMBER(AG$2:AG$100),0),1) -> 69
